Workbook

Sheet Sheet1
A1: STUDENTS MARKS ANALYSIS; ATTENDANCE MONETERING; PROMOTION LISTS;
E2: SSC RESULTS ANALYSIS AND MORE
D3: First change date format in your system into DD/MM/YYYY & minimise the Tool Bar Ribbon, then use the Software
B6: This program is prepared by Mr. T. V. Rama Kumar, Headmaster, Z.P.P.High School, Mulumudi, Nellore Rural Mandal, Sri Potti Sreeramulu Nellore District.
B36: Features of the Program
B37: 1 | C37: Enter the details of the school from time to time in 'School details & Plan', it create headings in all the sheets.
B39: 2 | C39: Enter the details of students in 'List of Students', it creates primary data In all the sheets. It also calculates the age of each students upto the target date (Usually 31st of August in the academic year). This will help you to fill the DISE formats of the school
C41: Note: | D41: Caste codes must be entered which leads to three dimantional (i.Medium wise, ii.Class wise, iii.Sex wise) classification of students in 'Strength Particulars'
C43: Note: | D43: Enter the Roll Numbers as required only. Do not enter more.
C44: Note: | D44: This program is disigned for 110 students in each TM class and 50 students in each EM class
B46: 3 | C46: In all the sheets use the filter in the left side border and de-select "o" and "blanks"
B48: 4 | C48: Alter the rates of different kinds of fee to be collected in the school, and enter the date of collection of fee from the student. It consolidates the fee collecton details in same sheet and in separate table, which are helpful in maintaining the DFC Register
C51: Now the program is set to your school for the academic year.
B53: 5 | C53: At the end of every month enter the number of working days in each month in 'School details & Plan" sheet and enter the attendance of students in 'Attendance Monetering' sheet. It reminds you about the suffiency of the attendance and also about fee collection.
B56: 6 | C56: After every internal examination enter the marks in 'Marks Analysis' sheets of each class. You may print test wise analysi from the same sheet. It also carries marks to the 'Promotion list' of the respective classes.
B59: 7 | C59: It creates the 'Promotion lists' of all classes and 'Consolidate Promotion List' of the school by the end of year. You simply check and prit for producing before inspecting authority.
B62: 8 | C62: Enter Hall ticket numbers and marks obtained by the students in SSC Public Examinations. It analyses the results and give two formats, which will help you to publish results in the notice board, to submitt the results to inspecting authority and to fill Data Capture Formats of the school
B66: 9 | C66: It creates 'Marks Dockets' with names and roll numbers for all classes. You may print and make xerox copies to use in every examination
B68: 10 | C68: It creates Individual 'Marks Registers' with names and roll numbers of studets for the use of teachers.
B70: 11 | C70: It creates 'PET attendance registers' for all classes with name, roll number and date of birth of the all studets.
B72: 12 | C72: It creates Requirement of Text books for free distribution. If you enter actual received nmber of books it gives the additional requirement or balance at your table. It also creates an acquittance for distribution.
B75: Note: | C75: Before you enter a data in any sheet read the comments in same sheet.
C77: Before you print any page please see the page number of the data you wish to print in 'Print Preview'
C79: Don’t do sorting in any sheet. It corrupts the correlation of the data.
B81: Submission: | C81: All the sheets are locked in the programe inorder not to disturb the formulae.
K83: T. V. Rama Kumar,
J84: Headmaster, ZPPHS, Mulumudi, Nellore Dt.
K85: e-mail: ramakumar1964@gmail.com
L86: 9246421487

Sheet Data
C3: Academic Year | E3: 2011~2012 | I3: School DISE Code | L3: 0925675
F5: Exam. Time Tables | I5: School Working Days | L5: PET Periods conducted per Year
F6: Exam | G6: Month | I6: Month | J6: Days | L6: Class | M6: Days
C7: Name of the School | D7: Z P P HIGH SCHOOL | F7: Unit Test I | G7: July | I7: June | J7: 17 | K7: =J7 -> 17 | L7: VI TM | M7: 52
C8: Address | D8: ISLAMPETA | F8: Unit Test II | G8: August | I8: July | J8: 24 | K8: 24 | L8: VI EM | M8: 52
D9: PEDAGANTYADA MANDAL | F9: Quarterly | G9: October | I9: August | J9: 25 | K9: 25 | L9: VII TM | M9: 50
D10: VISAKHAPATNAM | F10: Unit Test III | G10: November | I10: September | J10: 20 | K10: 20 | L10: VII EM | M10: 50
F11: Half yearly | G11: December | I11: October | J11: 19 | K11: 19 | L11: VIII TM | M11: 51
C12: Head of the Institution | D12: T. V. Rama Kumar | F12: Unit Test IV | G12: Febraury | I12: November | J12: 25 | K12: 25 | L12: VIII EM | M12: 51
D13: Headmaster | F13: Pre-Public | G13: March | I13: December | J13: 24 | K13: 24 | L13: IX TM | M13: 49
C14: Last Admission Number in the previous academic year | F14: Annual Exams | G14: April | I14: January | J14: 19 | K14: 19 | L14: IX EM | M14: 49
D15: 125 | I15: February | J15: 20 | K15: 20 | L15: X TM | M15: 40
I16: March | J16: 20 | K16: 20 | L16: X EM | M16: 40
I17: April | J17: 15 | K17: =J20 -> 0
I18: Total | J18: =SUM(J7:J17) -> 228 | K18: =SUM(K7:K17) -> 213
I19: Last Date SSC Public Examination
I20: No of working days for SSC students in April

Sheet List
A1: Click to find Caste Code | L1: Read the commets before you enter the data. Some model entries are given.
C2: =CONCATENATE("LIST OF STUDENTS ",Data!E3) -> LIST OF STUDENTS 2011~2012
C4: Class | D4: Medium | F4: Admn. No | G4: Roll No | H4: Name of the Student | J4: Sex | L4: Caste | M4: Code | O4: D.O.B. DD/MM/YYYY | Q4: Age(Years) as on | R4: Name of the Parent or Guardian Father's Name | S4: Name of the Parent or Guardian Mother's Name | T4: Contact Number | U4: Coment if any | V4: Code (Auto) | W4: =Data!D15 -> 125
Q5: 2011-08-31
A7: =G7 -> 1 | C7: 6 | D7: TM | E7: =IF(D7="TM","1","2") -> 1 | F7: 123 | G7: 1 | H7: T | I7: Lekhya | J7: G | K7: =IF(J7="G","2",IF(J7="B","1","0")) -> 2 | L7: Vysya | M7: OC | N7: =IF(M7="OC","1",IF(M7="BC-A","2",IF(M7="BC-B","3",IF(M7="BC-C","4",IF(M7="BC-D","5",IF(M7="SC-B","6",IF(M7="SC-C","7",IF(M7="ST","8","9")))))))) -> 1 | O7: 2000-08-31 | P7: =Q5 -> 2011-08-31 | Q7: =IF(O7>0,ROUND(DATEDIF(O7,P7,"M")/12,1),0) -> 11 | R7: Rama Kumar | S7: Vijaya Bharathi | T7: 9492737686 | V7: =N7+K7*10+E7*100+C7*1000 -> 6121 | W7: =W4 -> 125 | X7: =F7-W7 -> -2 | Y7: =COUNTIF(X7:X116,">0") -> 3
A8: =G8 -> 2 | C8: 6 | D8: TM | E8: =IF(D8="TM","1","2") -> 1 | F8: 124 | G8: 2 | H8: A | I8: Neeharika | J8: G | K8: =IF(J8="G","2",IF(J8="B","1","0")) -> 2 | L8: AK Khathriya | M8: BC-A | N8: =IF(M8="OC","1",IF(M8="BC-A","2",IF(M8="BC-B","3",IF(M8="BC-C","4",IF(M8="BC-D","5",IF(M8="SC-B","6",IF(M8="SC-C","7",IF(M8="ST","8","9")))))))) -> 2 | O8: 2000-08-30 | P8: =P7 -> 2011-08-31 | Q8: =IF(O8>0,ROUND(DATEDIF(O8,P8,"M")/12,1),0) -> 11 | R8: Ranganadh | S8: Ravanamma | U8: TC issued 25/10/2011 | V8: 6122 | W8: =W7 -> 125 | X8: =F8-W8 -> -1 | Y8: =COUNTIF(X118:X167,">0") -> 0
A9: 3 | C9: 6 | D9: TM | E9: =IF(D9="TM","1","2") -> 1 | F9: 125 | G9: 3 | H9: Sk | I9: Neelesh | J9: B | K9: 1 | L9: Muslim | M9: BC-E | N9: 9 | O9: 2000-08-29 | P9: =P8 -> 2011-08-31 | Q9: 11 | U9: Discontinued 30/6/11 | V9: 6119 | W9: 125 | X9: 0 | Y9: =COUNTIF(X169:X278,">0") -> 0
A10: 4 | C10: 6 | D10: TM | E10: =IF(D10="TM","1","2") -> 1 | F10: 126 | G10: 4 | H10: Ch | I10: Nikhil | J10: B | K10: 1 | L10: Madiga | M10: SC-B | N10: 6 | O10: 2001-08-25 | P10: 2011-08-31 | Q10: 10 | V10: 6116 | W10: 125 | X10: 1 | Y10: =COUNTIF(X280:X329,">0") -> 0
A11: 5 | C11: 6 | D11: TM | E11: =IF(D11="TM","1","2") -> 1 | F11: 127 | G11: 5 | H11: D | I11: Anjusha | J11: G | K11: 2 | L11: Samban | M11: SC-C | N11: 7 | O11: 2002-08-20 | P11: 2011-08-31 | Q11: 9 | V11: 6127 | W11: 125 | X11: 2 | Y11: =COUNTIF(X331:X440,">0") -> 0
A12: 6 | C12: 6 | D12: TM | E12: =IF(D12="TM","1",IF(D12="EM","2","0")) -> 1 | F12: 128 | G12: 6 | H12: E | I12: Raja Sekhar | J12: B | K12: 1 | L12: Yanadi | M12: ST | N12: 8 | O12: 2001-08-21 | P12: 2011-08-31 | Q12: 10 | V12: 6118 | W12: 125 | X12: 3 | Y12: =COUNTIF(X442:X491,">0") -> 0
A13: 0 | C13: 6 | D13: TM | E13: =IF(D13="TM","1",IF(D13="EM","2","0")) -> 1 | K13: 0 | N13: 9 | P13: 2011-08-31 | Q13: 0 | V13: 6109 | W13: 125 | X13: -125 | Y13: =COUNTIF(X493:X602,">0") -> 0
A14: 0 | C14: 6 | D14: TM | E14: 1 | K14: 0 | N14: 9 | P14: 2011-08-31 | Q14: 0 | V14: 6109 | W14: 125 | X14: -125 | Y14: =COUNTIF(X604:X653,">0") -> 0
A15: 0 | C15: 6 | D15: TM | E15: 1 | K15: 0 | N15: 9 | P15: 2011-08-31 | Q15: 0 | V15: 6109 | W15: 125 | X15: -125 | Y15: =COUNTIF(X655:X764,">0") -> 0
A16: 0 | C16: 6 | D16: TM | E16: 1 | K16: 0 | N16: 9 | P16: 2011-08-31 | Q16: 0 | V16: 6109 | W16: 125 | X16: -125 | Y16: =COUNTIF(X766:X815,">0") -> 0
A17: 0 | C17: 6 | D17: TM | E17: 1 | K17: 0 | N17: 9 | P17: 2011-08-31 | Q17: 0 | V17: 6109 | W17: 125 | X17: -125
A18: 0 | C18: 6 | D18: TM | E18: 1 | K18: 0 | N18: 9 | P18: 2011-08-31 | Q18: 0 | V18: 6109 | W18: 125 | X18: -125
A19: 0 | C19: 6 | D19: TM | E19: 1 | K19: 0 | N19: 9 | P19: 2011-08-31 | Q19: 0 | V19: 6109 | W19: 125 | X19: -125
A20: 0 | C20: 6 | D20: TM | E20: 1 | K20: 0 | N20: 9 | P20: 2011-08-31 | Q20: 0 | V20: 6109 | W20: 125 | X20: -125
A21: 0 | C21: 6 | D21: TM | E21: 1 | K21: 0 | N21: 9 | P21: 2011-08-31 | Q21: 0 | V21: 6109 | W21: 125 | X21: -125
A22: 0 | C22: 6 | D22: TM | E22: 1 | K22: 0 | N22: 9 | P22: 2011-08-31 | Q22: 0 | V22: 6109 | W22: 125 | X22: -125
A23: 0 | C23: 6 | D23: TM | E23: 1 | K23: 0 | N23: 9 | P23: 2011-08-31 | Q23: 0 | V23: 6109 | W23: 125 | X23: -125
A24: 0 | C24: 6 | D24: TM | E24: 1 | K24: 0 | N24: 9 | P24: 2011-08-31 | Q24: 0 | V24: 6109 | W24: =W23 -> 125 | X24: =F24-W24 -> -125
A25: 0 | C25: 6 | D25: TM | E25: 1 | K25: 0 | N25: 9 | P25: 2011-08-31 | Q25: 0 | V25: 6109 | W25: 125 | X25: -125
A26: 0 | C26: 6 | D26: TM | E26: 1 | K26: 0 | N26: 9 | P26: 2011-08-31 | Q26: 0 | V26: 6109 | W26: 125 | X26: -125
A27: 0 | C27: 6 | D27: TM | E27: 1 | K27: 0 | N27: 9 | P27: 2011-08-31 | Q27: 0 | V27: 6109 | W27: 125 | X27: -125
A28: 0 | C28: 6 | D28: TM | E28: 1 | K28: 0 | N28: 9 | P28: 2011-08-31 | Q28: 0 | V28: 6109 | W28: 125 | X28: -125
A29: 0 | C29: 6 | D29: TM | E29: 1 | K29: 0 | N29: 9 | P29: 2011-08-31 | Q29: 0 | V29: 6109 | W29: 125 | X29: -125
A30: 0 | C30: 6 | D30: TM | E30: 1 | K30: 0 | N30: 9 | P30: 2011-08-31 | Q30: 0 | V30: 6109 | W30: 125 | X30: -125
A31: 0 | C31: 6 | D31: TM | E31: 1 | K31: 0 | N31: 9 | P31: 2011-08-31 | Q31: 0 | V31: 6109 | W31: 125 | X31: -125
A32: 0 | C32: 6 | D32: TM | E32: 1 | K32: 0 | N32: 9 | P32: 2011-08-31 | Q32: 0 | V32: 6109 | W32: 125 | X32: -125
A33: 0 | C33: 6 | D33: TM | E33: 1 | K33: 0 | N33: 9 | P33: 2011-08-31 | Q33: 0 | V33: 6109 | W33: 125 | X33: -125
A34: 0 | C34: 6 | D34: TM | E34: 1 | K34: 0 | N34: 9 | P34: 2011-08-31 | Q34: 0 | V34: 6109 | W34: 125 | X34: -125
A35: 0 | C35: 6 | D35: TM | E35: 1 | K35: 0 | N35: 9 | P35: 2011-08-31 | Q35: 0 | V35: 6109 | W35: 125 | X35: -125
A36: 0 | C36: 6 | D36: TM | E36: 1 | K36: 0 | N36: 9 | P36: 2011-08-31 | Q36: 0 | V36: 6109 | W36: 125 | X36: -125
A37: 0 | C37: 6 | D37: TM | E37: 1 | K37: 0 | N37: 9 | P37: 2011-08-31 | Q37: 0 | V37: 6109 | W37: 125 | X37: -125
A38: 0 | C38: 6 | D38: TM | E38: 1 | K38: 0 | N38: 9 | P38: 2011-08-31 | Q38: 0 | V38: 6109 | W38: 125 | X38: -125
A39: 0 | C39: 6 | D39: TM | E39: 1 | K39: 0 | N39: 9 | P39: 2011-08-31 | Q39: 0 | V39: 6109 | W39: 125 | X39: -125
A40: 0 | C40: 6 | D40: TM | E40: 1 | K40: 0 | N40: 9 | P40: 2011-08-31 | Q40: 0 | V40: 6109 | W40: 125 | X40: -125
A41: 0 | C41: 6 | D41: TM | E41: 1 | K41: 0 | N41: 9 | P41: 2011-08-31 | Q41: 0 | V41: 6109 | W41: 125 | X41: -125
A42: 0 | C42: 6 | D42: TM | E42: 1 | K42: 0 | N42: 9 | P42: 2011-08-31 | Q42: 0 | V42: 6109 | W42: 125 | X42: -125
A43: 0 | C43: 6 | D43: TM | E43: 1 | K43: 0 | N43: 9 | P43: 2011-08-31 | Q43: 0 | V43: 6109 | W43: 125 | X43: -125
A44: 0 | C44: 6 | D44: TM | E44: 1 | K44: 0 | N44: 9 | P44: 2011-08-31 | Q44: 0 | V44: 6109 | W44: 125 | X44: -125
A45: 0 | C45: 6 | D45: TM | E45: 1 | K45: 0 | N45: 9 | P45: 2011-08-31 | Q45: 0 | V45: 6109 | W45: 125 | X45: -125
A46: 0 | C46: 6 | D46: TM | E46: 1 | K46: 0 | N46: 9 | P46: 2011-08-31 | Q46: 0 | V46: 6109 | W46: 125 | X46: -125
A47: 0 | C47: 6 | D47: TM | E47: 1 | K47: 0 | N47: 9 | P47: 2011-08-31 | Q47: 0 | V47: 6109 | W47: 125 | X47: -125
A48: 0 | C48: 6 | D48: TM | E48: 1 | K48: 0 | N48: 9 | P48: 2011-08-31 | Q48: 0 | V48: 6109 | W48: 125 | X48: -125
A49: 0 | C49: 6 | D49: TM | E49: 1 | K49: 0 | N49: 9 | P49: 2011-08-31 | Q49: 0 | V49: 6109 | W49: 125 | X49: -125
A50: 0 | C50: 6 | D50: TM | E50: 1 | K50: 0 | N50: 9 | P50: 2011-08-31 | Q50: 0 | V50: 6109 | W50: 125 | X50: -125
A51: 0 | C51: 6 | D51: TM | E51: 1 | K51: 0 | N51: 9 | P51: 2011-08-31 | Q51: 0 | V51: 6109 | W51: 125 | X51: -125
A52: 0 | C52: 6 | D52: TM | E52: 1 | K52: 0 | N52: 9 | P52: 2011-08-31 | Q52: 0 | V52: 6109 | W52: 125 | X52: -125
A53: 0 | C53: 6 | D53: TM | E53: 1 | K53: 0 | N53: 9 | P53: 2011-08-31 | Q53: 0 | V53: 6109 | W53: 125 | X53: -125
A54: 0 | C54: 6 | D54: TM | E54: 1 | K54: 0 | N54: 9 | P54: 2011-08-31 | Q54: 0 | V54: 6109 | W54: 125 | X54: -125
A55: 0 | C55: 6 | D55: TM | E55: 1 | K55: 0 | N55: 9 | P55: 2011-08-31 | Q55: 0 | V55: 6109 | W55: 125 | X55: -125
A56: 0 | C56: 6 | D56: TM | E56: 1 | K56: 0 | N56: 9 | P56: 2011-08-31 | Q56: 0 | V56: 6109 | W56: 125 | X56: -125
A57: 0 | C57: 6 | D57: TM | E57: 1 | K57: 0 | N57: 9 | P57: 2011-08-31 | Q57: 0 | V57: 6109 | W57: 125 | X57: -125
A58: 0 | C58: 6 | D58: TM | E58: 1 | K58: 0 | N58: 9 | P58: 2011-08-31 | Q58: 0 | V58: 6109 | W58: 125 | X58: -125
A59: 0 | C59: 6 | D59: TM | E59: 1 | K59: 0 | N59: 9 | P59: 2011-08-31 | Q59: 0 | V59: 6109 | W59: 125 | X59: -125
A60: 0 | C60: 6 | D60: TM | E60: 1 | K60: 0 | N60: 9 | P60: 2011-08-31 | Q60: 0 | V60: 6109 | W60: 125 | X60: -125
A61: 0 | C61: 6 | D61: TM | E61: 1 | K61: 0 | N61: 9 | P61: 2011-08-31 | Q61: 0 | V61: 6109 | W61: 125 | X61: -125
A62: 0 | C62: 6 | D62: TM | E62: 1 | K62: 0 | N62: 9 | P62: 2011-08-31 | Q62: 0 | V62: 6109 | W62: 125 | X62: -125
A63: 0 | C63: 6 | D63: TM | E63: 1 | K63: 0 | N63: 9 | P63: 2011-08-31 | Q63: 0 | V63: 6109 | W63: 125 | X63: -125
A64: 0 | C64: 6 | D64: TM | E64: 1 | K64: 0 | N64: 9 | P64: 2011-08-31 | Q64: 0 | V64: 6109 | W64: =W63 -> 125 | X64: =F64-W64 -> -125
A65: 0 | C65: 6 | D65: TM | E65: 1 | K65: 0 | N65: 9 | P65: 2011-08-31 | Q65: 0 | V65: 6109 | W65: 125 | X65: -125
A66: 0 | C66: 6 | D66: TM | E66: 1 | K66: 0 | N66: 9 | P66: 2011-08-31 | Q66: 0 | V66: 6109 | W66: 125 | X66: -125
A67: 0 | C67: 6 | D67: TM | E67: 1 | K67: 0 | N67: 9 | P67: 2011-08-31 | Q67: 0 | V67: 6109 | W67: 125 | X67: -125
A68: 0 | C68: 6 | D68: TM | E68: 1 | K68: 0 | N68: 9 | P68: 2011-08-31 | Q68: 0 | V68: 6109 | W68: 125 | X68: -125
A69: 0 | C69: 6 | D69: TM | E69: 1 | K69: 0 | N69: 9 | P69: 2011-08-31 | Q69: 0 | V69: 6109 | W69: 125 | X69: -125
A70: 0 | C70: 6 | D70: TM | E70: 1 | K70: 0 | N70: 9 | P70: 2011-08-31 | Q70: 0 | V70: 6109 | W70: 125 | X70: -125
A71: 0 | C71: 6 | D71: TM | E71: 1 | K71: 0 | N71: =IF(M71="OC","1",IF(M71="BC-A","2",IF(M71="BC-B","3",IF(M71="BC-C","4",IF(M71="BC-D","5",IF(M71="SC-B","6",IF(M71="SC-C","7",IF(M71="ST","8","9")))))))) -> 9 | P71: 2011-08-31 | Q71: 0 | V71: =N71+K71*10+E71*100+C71*1000 -> 6109 | W71: 125 | X71: -125
A72: =G72 -> 0 | C72: 6 | D72: TM | E72: 1 | K72: =IF(J72="G","2",IF(J72="B","1","0")) -> 0 | N72: 9 | P72: 2011-08-31 | Q72: =IF(O72>0,ROUND(DATEDIF(O72,P72,"M")/12,1),0) -> 0 | V72: 6109 | W72: 125 | X72: -125
A73: 0 | C73: 6 | D73: TM | E73: 1 | K73: 0 | N73: 9 | P73: =P72 -> 2011-08-31 | Q73: 0 | V73: 6109 | W73: 125 | X73: -125
A74: 0 | C74: 6 | D74: TM | E74: 1 | K74: 0 | N74: 9 | P74: 2011-08-31 | Q74: 0 | V74: 6109 | W74: 125 | X74: -125
A75: 0 | C75: 6 | D75: TM | E75: 1 | K75: 0 | N75: 9 | P75: 2011-08-31 | Q75: 0 | V75: 6109 | W75: 125 | X75: -125
A76: 0 | C76: 6 | D76: TM | E76: 1 | K76: 0 | N76: 9 | P76: 2011-08-31 | Q76: 0 | V76: 6109 | W76: 125 | X76: -125
A77: 0 | C77: 6 | D77: TM | E77: =IF(D77="TM","1",IF(D77="EM","2","0")) -> 1 | K77: 0 | N77: 9 | P77: 2011-08-31 | Q77: 0 | V77: 6109 | W77: 125 | X77: -125
A78: 0 | C78: 6 | D78: TM | E78: 1 | K78: 0 | N78: 9 | P78: 2011-08-31 | Q78: 0 | V78: 6109 | W78: 125 | X78: -125
A79: 0 | C79: 6 | D79: TM | E79: 1 | K79: 0 | N79: 9 | P79: 2011-08-31 | Q79: 0 | V79: 6109 | W79: 125 | X79: -125
A80: 0 | C80: 6 | D80: TM | E80: 1 | K80: 0 | N80: 9 | P80: 2011-08-31 | Q80: 0 | V80: 6109 | W80: 125 | X80: -125
A81: 0 | C81: 6 | D81: TM | E81: 1 | K81: 0 | N81: 9 | P81: 2011-08-31 | Q81: 0 | V81: 6109 | W81: 125 | X81: -125
A82: 0 | C82: 6 | D82: TM | E82: 1 | K82: 0 | N82: 9 | P82: 2011-08-31 | Q82: 0 | V82: 6109 | W82: 125 | X82: -125
A83: 0 | C83: 6 | D83: TM | E83: 1 | K83: 0 | N83: 9 | P83: 2011-08-31 | Q83: 0 | V83: 6109 | W83: 125 | X83: -125
A84: 0 | C84: 6 | D84: TM | E84: 1 | K84: 0 | N84: 9 | P84: 2011-08-31 | Q84: 0 | V84: 6109 | W84: 125 | X84: -125
A85: 0 | C85: 6 | D85: TM | E85: 1 | K85: 0 | N85: 9 | P85: 2011-08-31 | Q85: 0 | V85: 6109 | W85: 125 | X85: -125
A86: 0 | C86: 6 | D86: TM | E86: =IF(D86="TM","1",IF(D86="EM","2","0")) -> 1 | K86: =IF(J86="G","2",IF(J86="B","1","0")) -> 0 | N86: =IF(M86="OC","1",IF(M86="BC-A","2",IF(M86="BC-B","3",IF(M86="BC-C","4",IF(M86="BC-D","5",IF(M86="SC-B","6",IF(M86="SC-C","7",IF(M86="ST","8","9")))))))) -> 9 | P86: 2011-08-31 | Q86: 0 | V86: 6109 | W86: 125 | X86: -125
A87: 0 | C87: 6 | D87: TM | E87: 1 | K87: 0 | N87: 9 | P87: 2011-08-31 | Q87: 0 | V87: 6109 | W87: 125 | X87: -125
A88: 0 | C88: 6 | D88: TM | E88: 1 | K88: 0 | N88: 9 | P88: 2011-08-31 | Q88: 0 | V88: 6109 | W88: 125 | X88: -125
A89: 0 | C89: 6 | D89: TM | E89: 1 | K89: 0 | N89: 9 | P89: 2011-08-31 | Q89: 0 | V89: 6109 | W89: 125 | X89: -125
A90: 0 | C90: 6 | D90: TM | E90: 1 | K90: 0 | N90: 9 | P90: 2011-08-31 | Q90: 0 | V90: 6109 | W90: 125 | X90: -125
A91: 0 | C91: 6 | D91: TM | E91: 1 | K91: 0 | N91: 9 | P91: 2011-08-31 | Q91: 0 | V91: 6109 | W91: 125 | X91: -125
A92: 0 | C92: 6 | D92: TM | E92: 1 | K92: 0 | N92: 9 | P92: 2011-08-31 | Q92: 0 | V92: 6109 | W92: 125 | X92: -125
A93: 0 | C93: 6 | D93: TM | E93: 1 | K93: 0 | N93: 9 | P93: 2011-08-31 | Q93: 0 | V93: 6109 | W93: 125 | X93: -125
A94: 0 | C94: 6 | D94: TM | E94: 1 | K94: 0 | N94: 9 | P94: 2011-08-31 | Q94: 0 | V94: 6109 | W94: 125 | X94: -125
A95: 0 | C95: 6 | D95: TM | E95: 1 | K95: 0 | N95: 9 | P95: 2011-08-31 | Q95: 0 | V95: 6109 | W95: 125 | X95: -125
A96: 0 | C96: 6 | D96: TM | E96: 1 | K96: 0 | N96: 9 | P96: 2011-08-31 | Q96: 0 | V96: 6109 | W96: 125 | X96: -125
A97: 0 | C97: 6 | D97: TM | E97: 1 | K97: 0 | N97: 9 | P97: 2011-08-31 | Q97: 0 | V97: 6109 | W97: 125 | X97: -125
A98: 0 | C98: 6 | D98: TM | E98: 1 | K98: 0 | N98: 9 | P98: 2011-08-31 | Q98: 0 | V98: 6109 | W98: 125 | X98: -125
A99: 0 | C99: 6 | D99: TM | E99: 1 | K99: 0 | N99: 9 | P99: 2011-08-31 | Q99: 0 | V99: 6109 | W99: 125 | X99: -125
A100: 0 | C100: 6 | D100: TM | E100: 1 | K100: 0 | N100: 9 | P100: 2011-08-31 | Q100: 0 | V100: 6109 | W100: 125 | X100: -125
A101: 0 | C101: 6 | D101: TM | E101: 1 | K101: 0 | N101: 9 | P101: 2011-08-31 | Q101: 0 | V101: 6109 | W101: 125 | X101: -125
A102: 0 | C102: 6 | D102: TM | E102: 1 | K102: 0 | N102: 9 | P102: 2011-08-31 | Q102: 0 | V102: 6109 | W102: 125 | X102: -125
A103: 0 | C103: 6 | D103: TM | E103: 1 | K103: 0 | N103: 9 | P103: 2011-08-31 | Q103: 0 | V103: 6109 | W103: 125 | X103: -125
A104: 0 | C104: 6 | D104: TM | E104: 1 | K104: 0 | N104: 9 | P104: 2011-08-31 | Q104: 0 | V104: 6109 | W104: 125 | X104: -125
A105: 0 | C105: 6 | D105: TM | E105: 1 | K105: 0 | N105: 9 | P105: 2011-08-31 | Q105: 0 | V105: 6109 | W105: 125 | X105: -125
A106: 0 | C106: 6 | D106: TM | E106: 1 | K106: 0 | N106: 9 | P106: 2011-08-31 | Q106: 0 | V106: 6109 | W106: 125 | X106: =F106-W106 -> -125
A107: 0 | C107: 6 | D107: TM | E107: 1 | K107: 0 | N107: 9 | P107: 2011-08-31 | Q107: 0 | V107: 6109 | W107: 125 | X107: -125
A108: 0 | C108: 6 | D108: TM | E108: 1 | K108: 0 | N108: 9 | P108: 2011-08-31 | Q108: 0 | V108: 6109 | W108: 125 | X108: -125
A109: 0 | C109: 6 | D109: TM | E109: 1 | K109: 0 | N109: 9 | P109: 2011-08-31 | Q109: 0 | V109: 6109 | W109: 125 | X109: -125
A110: 0 | C110: 6 | D110: TM | E110: 1 | K110: 0 | N110: 9 | P110: 2011-08-31 | Q110: 0 | V110: 6109 | W110: 125 | X110: -125
A111: 0 | C111: 6 | D111: TM | E111: 1 | K111: 0 | N111: 9 | P111: 2011-08-31 | Q111: 0 | V111: 6109 | W111: 125 | X111: -125
A112: 0 | C112: 6 | D112: TM | E112: 1 | K112: 0 | N112: 9 | P112: 2011-08-31 | Q112: 0 | V112: 6109 | W112: 125 | X112: -125
A113: 0 | C113: 6 | D113: TM | E113: 1 | K113: 0 | N113: 9 | P113: 2011-08-31 | Q113: 0 | V113: 6109 | W113: 125 | X113: -125
A114: 0 | C114: 6 | D114: TM | E114: 1 | K114: 0 | N114: 9 | P114: 2011-08-31 | Q114: 0 | V114: 6109 | W114: 125 | X114: -125
A115: 0 | C115: 6 | D115: TM | E115: 1 | K115: 0 | N115: 9 | P115: 2011-08-31 | Q115: 0 | V115: 6109 | W115: 125 | X115: -125
A116: 0 | C116: 6 | D116: TM | E116: 1 | K116: 0 | N116: 9 | P116: 2011-08-31 | Q116: 0 | V116: 6109 | W116: 125 | X116: -125
A117: 1 | G117: 200 | P117: 2011-08-31 | Q117: 0
A118: 0 | C118: 6 | D118: EM | E118: 2 | K118: 0 | N118: 9 | P118: 2011-08-31 | Q118: 0 | V118: 6209 | W118: =W4 -> 125 | X118: -125
A119: 0 | C119: 6 | D119: EM | E119: 2 | K119: 0 | N119: 9 | P119: 2011-08-31 | Q119: 0 | V119: 6209 | W119: 125 | X119: -125
A120: 0 | C120: 6 | D120: EM | E120: 2 | K120: 0 | N120: 9 | P120: 2011-08-31 | Q120: 0 | V120: 6209 | W120: 125 | X120: -125
A121: 0 | C121: 6 | D121: EM | E121: 2 | K121: 0 | N121: 9 | P121: 2011-08-31 | Q121: 0 | V121: 6209 | W121: 125 | X121: -125
A122: 0 | C122: 6 | D122: EM | E122: 2 | K122: 0 | N122: 9 | P122: 2011-08-31 | Q122: 0 | V122: 6209 | W122: 125 | X122: -125
A123: 0 | C123: 6 | D123: EM | E123: 2 | K123: 0 | N123: 9 | P123: 2011-08-31 | Q123: 0 | V123: 6209 | W123: 125 | X123: -125
A124: 0 | C124: 6 | D124: EM | E124: 2 | K124: 0 | N124: 9 | P124: 2011-08-31 | Q124: 0 | V124: 6209 | W124: 125 | X124: -125
A125: 0 | C125: 6 | D125: EM | E125: 2 | K125: 0 | N125: 9 | P125: 2011-08-31 | Q125: 0 | V125: 6209 | W125: 125 | X125: -125
A126: 0 | C126: 6 | D126: EM | E126: 2 | K126: 0 | N126: 9 | P126: 2011-08-31 | Q126: 0 | V126: 6209 | W126: 125 | X126: -125
A127: 0 | C127: 6 | D127: EM | E127: 2 | K127: 0 | N127: 9 | P127: 2011-08-31 | Q127: 0 | V127: 6209 | W127: 125 | X127: -125
A128: 0 | C128: 6 | D128: EM | E128: 2 | K128: 0 | N128: 9 | P128: 2011-08-31 | Q128: 0 | V128: 6209 | W128: 125 | X128: -125
A129: 0 | C129: 6 | D129: EM | E129: 2 | K129: 0 | N129: 9 | P129: 2011-08-31 | Q129: 0 | V129: 6209 | W129: 125 | X129: -125
A130: 0 | C130: 6 | D130: EM | E130: 2 | K130: 0 | N130: 9 | P130: 2011-08-31 | Q130: 0 | V130: 6209 | W130: 125 | X130: -125
A131: 0 | C131: 6 | D131: EM | E131: 2 | K131: 0 | N131: 9 | P131: 2011-08-31 | Q131: 0 | V131: 6209 | W131: 125 | X131: -125
A132: 0 | C132: 6 | D132: EM | E132: 2 | K132: 0 | N132: 9 | P132: 2011-08-31 | Q132: 0 | V132: 6209 | W132: 125 | X132: -125
A133: 0 | C133: 6 | D133: EM | E133: 2 | K133: 0 | N133: 9 | P133: 2011-08-31 | Q133: 0 | V133: 6209 | W133: 125 | X133: -125
A134: 0 | C134: 6 | D134: EM | E134: 2 | K134: 0 | N134: 9 | P134: 2011-08-31 | Q134: 0 | V134: 6209 | W134: 125 | X134: -125
A135: 0 | C135: 6 | D135: EM | E135: 2 | K135: 0 | N135: 9 | P135: 2011-08-31 | Q135: 0 | V135: 6209 | W135: 125 | X135: -125
A136: =G136 -> 0 | C136: 6 | D136: EM | E136: 2 | K136: 0 | N136: 9 | P136: 2011-08-31 | Q136: =IF(O136>0,ROUND(DATEDIF(O136,P136,"M")/12,1),0) -> 0 | V136: 6209 | W136: 125 | X136: -125
A137: 0 | C137: 6 | D137: EM | E137: 2 | K137: 0 | N137: 9 | P137: =P136 -> 2011-08-31 | Q137: 0 | V137: 6209 | W137: 125 | X137: -125
A138: 0 | C138: 6 | D138: EM | E138: 2 | K138: 0 | N138: 9 | P138: 2011-08-31 | Q138: 0 | V138: 6209 | W138: =W137 -> 125 | X138: =F138-W138 -> -125
A139: 0 | C139: 6 | D139: EM | E139: 2 | K139: 0 | N139: 9 | P139: 2011-08-31 | Q139: 0 | V139: 6209 | W139: 125 | X139: -125
A140: 0 | C140: 6 | D140: EM | E140: 2 | K140: 0 | N140: 9 | P140: 2011-08-31 | Q140: 0 | V140: 6209 | W140: 125 | X140: -125
A141: 0 | C141: 6 | D141: EM | E141: 2 | K141: 0 | N141: 9 | P141: 2011-08-31 | Q141: 0 | V141: 6209 | W141: 125 | X141: -125
A142: 0 | C142: 6 | D142: EM | E142: 2 | K142: 0 | N142: 9 | P142: 2011-08-31 | Q142: 0 | V142: 6209 | W142: 125 | X142: -125
A143: 0 | C143: 6 | D143: EM | E143: 2 | K143: 0 | N143: 9 | P143: 2011-08-31 | Q143: 0 | V143: 6209 | W143: 125 | X143: -125
A144: 0 | C144: 6 | D144: EM | E144: 2 | K144: 0 | N144: 9 | P144: 2011-08-31 | Q144: 0 | V144: 6209 | W144: 125 | X144: -125
A145: 0 | C145: 6 | D145: EM | E145: 2 | K145: 0 | N145: 9 | P145: 2011-08-31 | Q145: 0 | V145: 6209 | W145: 125 | X145: -125
A146: 0 | C146: 6 | D146: EM | E146: 2 | K146: 0 | N146: 9 | P146: 2011-08-31 | Q146: 0 | V146: 6209 | W146: 125 | X146: -125
A147: 0 | C147: 6 | D147: EM | E147: 2 | K147: 0 | N147: 9 | P147: 2011-08-31 | Q147: 0 | V147: 6209 | W147: 125 | X147: -125
A148: 0 | C148: 6 | D148: EM | E148: 2 | K148: 0 | N148: 9 | P148: 2011-08-31 | Q148: 0 | V148: 6209 | W148: 125 | X148: -125
A149: 0 | C149: 6 | D149: EM | E149: 2 | K149: 0 | N149: 9 | P149: 2011-08-31 | Q149: 0 | V149: 6209 | W149: 125 | X149: -125
A150: 0 | C150: 6 | D150: EM | E150: 2 | K150: 0 | N150: 9 | P150: 2011-08-31 | Q150: 0 | V150: 6209 | W150: 125 | X150: -125
A151: 0 | C151: 6 | D151: EM | E151: 2 | K151: 0 | N151: 9 | P151: 2011-08-31 | Q151: 0 | V151: 6209 | W151: 125 | X151: -125
A152: 0 | C152: 6 | D152: EM | E152: 2 | K152: 0 | N152: 9 | P152: 2011-08-31 | Q152: 0 | V152: 6209 | W152: 125 | X152: -125
A153: 0 | C153: 6 | D153: EM | E153: 2 | K153: 0 | N153: 9 | P153: 2011-08-31 | Q153: 0 | V153: 6209 | W153: 125 | X153: -125
A154: 0 | C154: 6 | D154: EM | E154: 2 | K154: 0 | N154: 9 | P154: 2011-08-31 | Q154: 0 | V154: 6209 | W154: 125 | X154: -125
A155: 0 | C155: 6 | D155: EM | E155: 2 | K155: 0 | N155: 9 | P155: 2011-08-31 | Q155: 0 | V155: 6209 | W155: 125 | X155: -125
A156: 0 | C156: 6 | D156: EM | E156: 2 | K156: 0 | N156: 9 | P156: 2011-08-31 | Q156: 0 | V156: 6209 | W156: 125 | X156: -125
A157: 0 | C157: 6 | D157: EM | E157: 2 | K157: 0 | N157: 9 | P157: 2011-08-31 | Q157: 0 | V157: 6209 | W157: 125 | X157: -125
A158: 0 | C158: 6 | D158: EM | E158: 2 | K158: 0 | N158: 9 | P158: 2011-08-31 | Q158: 0 | V158: 6209 | W158: 125 | X158: -125
A159: 0 | C159: 6 | D159: EM | E159: 2 | K159: 0 | N159: 9 | P159: 2011-08-31 | Q159: 0 | V159: 6209 | W159: 125 | X159: -125
A160: 0 | C160: 6 | D160: EM | E160: 2 | K160: 0 | N160: 9 | P160: 2011-08-31 | Q160: 0 | V160: 6209 | W160: 125 | X160: -125
A161: 0 | C161: 6 | D161: EM | E161: 2 | K161: 0 | N161: 9 | P161: 2011-08-31 | Q161: 0 | V161: 6209 | W161: 125 | X161: -125
A162: 0 | C162: 6 | D162: EM | E162: 2 | K162: 0 | N162: 9 | P162: 2011-08-31 | Q162: 0 | V162: 6209 | W162: 125 | X162: -125
A163: 0 | C163: 6 | D163: EM | E163: 2 | K163: 0 | N163: 9 | P163: 2011-08-31 | Q163: 0 | V163: 6209 | W163: 125 | X163: -125
A164: 0 | C164: 6 | D164: EM | E164: 2 | K164: 0 | N164: 9 | P164: 2011-08-31 | Q164: 0 | V164: 6209 | W164: 125 | X164: -125
A165: 0 | C165: 6 | D165: EM | E165: 2 | K165: 0 | N165: =IF(M165="OC","1",IF(M165="BC-A","2",IF(M165="BC-B","3",IF(M165="BC-C","4",IF(M165="BC-D","5",IF(M165="SC-B","6",IF(M165="SC-C","7",IF(M165="ST","8","9")))))))) -> 9 | P165: 2011-08-31 | Q165: 0 | V165: =N165+K165*10+E165*100+C165*1000 -> 6209 | W165: 125 | X165: -125
A166: 0 | C166: 6 | D166: EM | E166: 2 | K166: =IF(J166="G","2",IF(J166="B","1","0")) -> 0 | N166: 9 | P166: 2011-08-31 | Q166: 0 | V166: 6209 | W166: 125 | X166: -125
A167: 0 | C167: 6 | D167: EM | E167: 2 | K167: 0 | N167: 9 | P167: 2011-08-31 | Q167: 0 | V167: 6209 | W167: 125 | X167: -125
A168: 1 | G168: 200 | P168: 2011-08-31 | Q168: 0
A169: 0 | C169: 7 | D169: TM | E169: 1 | K169: 0 | N169: 9 | P169: 2011-08-31 | Q169: 0 | V169: 7109 | W169: =W4 -> 125 | X169: -125
A170: 0 | C170: 7 | D170: TM | E170: 1 | K170: 0 | N170: 9 | P170: 2011-08-31 | Q170: 0 | V170: 7109 | W170: 125 | X170: -125
A171: 0 | C171: 7 | D171: TM | E171: =IF(D171="TM","1",IF(D171="EM","2","0")) -> 1 | K171: 0 | N171: 9 | P171: 2011-08-31 | Q171: 0 | V171: 7109 | W171: 125 | X171: -125
A172: 0 | C172: 7 | D172: TM | E172: 1 | K172: 0 | N172: 9 | P172: 2011-08-31 | Q172: 0 | V172: 7109 | W172: 125 | X172: -125
A173: 0 | C173: 7 | D173: TM | E173: 1 | K173: 0 | N173: 9 | P173: 2011-08-31 | Q173: 0 | V173: 7109 | W173: 125 | X173: -125
A174: 0 | C174: 7 | D174: TM | E174: 1 | K174: 0 | N174: 9 | P174: 2011-08-31 | Q174: 0 | V174: 7109 | W174: 125 | X174: -125
A175: 0 | C175: 7 | D175: TM | E175: 1 | K175: 0 | N175: 9 | P175: 2011-08-31 | Q175: 0 | V175: 7109 | W175: 125 | X175: -125
A176: 0 | C176: 7 | D176: TM | E176: 1 | K176: 0 | N176: 9 | P176: 2011-08-31 | Q176: 0 | V176: 7109 | W176: 125 | X176: -125
A177: 0 | C177: 7 | D177: TM | E177: 1 | K177: 0 | N177: 9 | P177: 2011-08-31 | Q177: 0 | V177: 7109 | W177: 125 | X177: -125
A178: 0 | C178: 7 | D178: TM | E178: 1 | K178: 0 | N178: 9 | P178: 2011-08-31 | Q178: 0 | V178: 7109 | W178: 125 | X178: -125
A179: 0 | C179: 7 | D179: TM | E179: 1 | K179: 0 | N179: 9 | P179: 2011-08-31 | Q179: 0 | V179: 7109 | W179: 125 | X179: -125
A180: 0 | C180: 7 | D180: TM | E180: 1 | K180: 0 | N180: 9 | P180: 2011-08-31 | Q180: 0 | V180: 7109 | W180: 125 | X180: -125
A181: 0 | C181: 7 | D181: TM | E181: 1 | K181: 0 | N181: 9 | P181: 2011-08-31 | Q181: 0 | V181: 7109 | W181: 125 | X181: -125
A182: 0 | C182: 7 | D182: TM | E182: 1 | K182: 0 | N182: 9 | P182: 2011-08-31 | Q182: 0 | V182: 7109 | W182: 125 | X182: -125
A183: 0 | C183: 7 | D183: TM | E183: 1 | K183: 0 | N183: 9 | P183: 2011-08-31 | Q183: 0 | V183: 7109 | W183: 125 | X183: -125
A184: 0 | C184: 7 | D184: TM | E184: 1 | K184: 0 | N184: 9 | P184: 2011-08-31 | Q184: 0 | V184: 7109 | W184: 125 | X184: -125
A185: 0 | C185: 7 | D185: TM | E185: 1 | K185: 0 | N185: 9 | P185: 2011-08-31 | Q185: 0 | V185: 7109 | W185: 125 | X185: -125
A186: 0 | C186: 7 | D186: TM | E186: 1 | K186: 0 | N186: 9 | P186: 2011-08-31 | Q186: 0 | V186: 7109 | W186: 125 | X186: -125
A187: 0 | C187: 7 | D187: TM | E187: 1 | K187: 0 | N187: 9 | P187: 2011-08-31 | Q187: 0 | V187: 7109 | W187: 125 | X187: -125
A188: 0 | C188: 7 | D188: TM | E188: 1 | K188: 0 | N188: 9 | P188: 2011-08-31 | Q188: 0 | V188: 7109 | W188: 125 | X188: -125
A189: 0 | C189: 7 | D189: TM | E189: 1 | K189: 0 | N189: 9 | P189: 2011-08-31 | Q189: 0 | V189: 7109 | W189: 125 | X189: -125
A190: 0 | C190: 7 | D190: TM | E190: 1 | K190: 0 | N190: 9 | P190: 2011-08-31 | Q190: 0 | V190: 7109 | W190: 125 | X190: -125
A191: 0 | C191: 7 | D191: TM | E191: 1 | K191: 0 | N191: 9 | P191: 2011-08-31 | Q191: 0 | V191: 7109 | W191: 125 | X191: -125
A192: 0 | C192: 7 | D192: TM | E192: 1 | K192: 0 | N192: 9 | P192: 2011-08-31 | Q192: 0 | V192: 7109 | W192: 125 | X192: -125
A193: 0 | C193: 7 | D193: TM | E193: 1 | K193: 0 | N193: 9 | P193: 2011-08-31 | Q193: 0 | V193: 7109 | W193: 125 | X193: -125
A194: 0 | C194: 7 | D194: TM | E194: 1 | K194: 0 | N194: 9 | P194: 2011-08-31 | Q194: 0 | V194: 7109 | W194: 125 | X194: -125
A195: 0 | C195: 7 | D195: TM | E195: 1 | K195: 0 | N195: 9 | P195: 2011-08-31 | Q195: 0 | V195: 7109 | W195: 125 | X195: -125
A196: 0 | C196: 7 | D196: TM | E196: 1 | K196: 0 | N196: 9 | P196: 2011-08-31 | Q196: 0 | V196: 7109 | W196: 125 | X196: -125
A197: 0 | C197: 7 | D197: TM | E197: 1 | K197: 0 | N197: 9 | P197: 2011-08-31 | Q197: 0 | V197: 7109 | W197: 125 | X197: -125
A198: 0 | C198: 7 | D198: TM | E198: 1 | K198: 0 | N198: 9 | P198: 2011-08-31 | Q198: 0 | V198: 7109 | W198: 125 | X198: -125
A199: 0 | C199: 7 | D199: TM | E199: 1 | K199: 0 | N199: 9 | P199: 2011-08-31 | Q199: 0 | V199: 7109 | W199: 125 | X199: -125
A200: =G200 -> 0 | C200: 7 | D200: TM | E200: 1 | K200: 0 | N200: 9 | P200: 2011-08-31 | Q200: =IF(O200>0,ROUND(DATEDIF(O200,P200,"M")/12,1),0) -> 0 | V200: 7109 | W200: 125 | X200: -125
A201: 0 | C201: 7 | D201: TM | E201: 1 | K201: 0 | N201: 9 | P201: =P200 -> 2011-08-31 | Q201: 0 | V201: 7109 | W201: 125 | X201: -125
A202: 0 | C202: 7 | D202: TM | E202: 1 | K202: 0 | N202: 9 | P202: 2011-08-31 | Q202: 0 | V202: 7109 | W202: =W201 -> 125 | X202: =F202-W202 -> -125
... 614 more rows

Sheet Fee
H2: Games Fee | I2: SEC Fee | K2: DCEB Fee | L2: TOTALS | M2: =SUM(M3:M12) -> 0 | N2: 0 | O2: 1 | P2: 6.75 | Q2: 2.25 | R2: 0 | S2: 0 | T2: 0 | U2: 9
L3: VI TM | M3: =COUNTIF(L16:L125,">0") -> 0 | N3: =SUM(N16:N125) -> 0 | O3: 1 | P3: 6.75 | Q3: 2.25 | R3: 0 | S3: 0 | T3: 0 | U3: 9
L4: VI EM | M4: =COUNTIF(L127:L176,">0") -> 0 | N4: =SUM(N127:N176) -> 0 | O4: 0 | P4: 0 | Q4: 0 | R4: 0 | S4: 0 | T4: 0 | U4: 0
L5: VIITM | M5: =COUNTIF(L178:L287,">0") -> 0 | N5: =SUM(N178:N287) -> 0 | O5: 0 | P5: 0 | Q5: 0 | R5: 0 | S5: 0 | T5: 0 | U5: 0
L6: VII EM | M6: =COUNTIF(L289:L338,">0") -> 0 | N6: =SUM(N289:N338) -> 0 | O6: 0 | P6: 0 | Q6: 0 | R6: 0 | S6: 0 | T6: 0 | U6: 0
L7: VIII TM | M7: =COUNTIF(L340:L449,">0") -> 0 | N7: =SUM(N340:N449) -> 0 | O7: 0 | P7: 0 | Q7: 0 | R7: 0 | S7: 0 | T7: 0 | U7: 0
L8: VIII EM | M8: =COUNTIF(L451:L500,">0") -> 0 | N8: =SUM(N451:N500) -> 0 | O8: 0 | P8: 0 | Q8: 0 | R8: 0 | S8: 0 | T8: 0 | U8: 0
H9: 13 | K9: 20 | L9: IX TM | M9: =COUNTIF(L502:L611,">0") -> 0 | N9: =SUM(N502:N611) -> 0 | O9: 0 | P9: 0 | Q9: 0 | R9: 0 | S9: 0 | T9: 0 | U9: 0
H10: 13 | K10: 20 | L10: IX EM | M10: =COUNTIF(L613:L662,">0") -> 0 | N10: =SUM(N613:N662) -> 0 | O10: 0 | P10: 0 | Q10: 0 | R10: 0 | S10: 0 | T10: 0 | U10: 0
H11: 14 | K11: 30 | L11: X TM | M11: =COUNTIF(L664:L772,">0") -> 0 | N11: =SUM(N664:N772) -> 0 | O11: 0 | P11: 0 | Q11: 0 | R11: 0 | S11: 0 | T11: 0 | U11: 0
H12: 14 | K12: 30 | L12: X EM | M12: =COUNTIF(L775:L824,">0") -> 0 | N12: =SUM(N775:N824) -> 0 | O12: 0 | P12: 0 | Q12: 0 | R12: 0 | S12: 0 | T12: 0 | U12: 0
A14: 1 | C14: Class | D14: Medium | E14: Adm. No | F14: Roll No | G14: Name of the Student | I14: Sex | J14: Code | K14: Name of the Parent or Gardian | L14: Date of payment of fee | M14: Whether Spl. fee Exempted | N14: Adm fee | P14: Special Fee Group A | Q14: Special Fee Group B | R14: =H2 -> Games Fee | S14: =I2 -> SEC Fee | T14: =K2 -> DCEB Fee | U14: Total
A15: =F15 -> 0
A16: =F16 -> 1 | C16: =List!C7 -> 6 | D16: =List!D7 -> TM | E16: =List!F7 -> 123 | F16: =List!G7 -> 1 | G16: =List!H7 -> T | H16: =List!I7 -> Lekhya | I16: =List!J7 -> G | J16: =List!M7 -> OC | K16: =List!R7 -> Rama Kumar | M16: Y | N16: =IF(AND(O16=0,List!X7>0),0.5, ) -> 0 | O16: =IF(M16="N",0,IF(M16="Y",1," ")) -> 1 | P16: =IF(O16=0,6.75,0) -> 0 | Q16: =IF(O16=0,2.25,0) -> 0 | R16: =IF(F16>=1,H3,0) -> 0 | S16: =IF(F16>=1,I3,0) -> 0 | T16: =IF(F16>0,K3,0) -> 0 | U16: =N16+P16+Q16+R16+S16+T16 -> 0
A17: =F17 -> 2 | C17: =List!C8 -> 6 | D17: =List!D8 -> TM | E17: =List!F8 -> 124 | F17: =List!G8 -> 2 | G17: =List!H8 -> A | H17: =List!I8 -> Neeharika | I17: =List!J8 -> G | J17: =List!M8 -> BC-A | K17: =List!R8 -> Ranganadh | M17: N | N17: =IF(AND(O17=0,List!X8>0),0.5, ) -> 0 | O17: =IF(M17="N",0,IF(M17="Y",1," ")) -> 0 | P17: =IF(O17=0,6.75,0) -> 6.75 | Q17: =IF(O17=0,2.25,0) -> 2.25 | R17: =IF(F17>=1,R16,0) -> 0 | S17: =IF(F17>=1,S16,0) -> 0 | T17: =IF(F17>0,T16,0) -> 0 | U17: =N17+P17+Q17+R17+S17+T17 -> 9
A18: 3 | C18: =List!C9 -> 6 | D18: =List!D9 -> TM | E18: =List!F9 -> 125 | F18: =List!G9 -> 3 | G18: =List!H9 -> Sk | H18: =List!I9 -> Neelesh | I18: =List!J9 -> B | J18: =List!M9 -> BC-E | K18: =List!R9 -> 0 | N18: =IF(AND(O18=0,List!X9>0),0.5, ) -> 0 | P18: 0 | Q18: 0 | R18: 0 | S18: 0 | T18: =IF(F18>0,T17,0) -> 0 | U18: 0
A19: 4 | C19: =List!C10 -> 6 | D19: =List!D10 -> TM | E19: =List!F10 -> 126 | F19: =List!G10 -> 4 | G19: =List!H10 -> Ch | H19: =List!I10 -> Nikhil | I19: =List!J10 -> B | J19: =List!M10 -> SC-B | K19: =List!R10 -> 0 | N19: =IF(AND(O19=0,List!X10>0),0.5, ) -> 0 | P19: 0 | Q19: 0 | R19: 0 | S19: 0 | T19: 0 | U19: 0
A20: 5 | C20: =List!C11 -> 6 | D20: =List!D11 -> TM | E20: =List!F11 -> 127 | F20: =List!G11 -> 5 | G20: =List!H11 -> D | H20: =List!I11 -> Anjusha | I20: =List!J11 -> G | J20: =List!M11 -> SC-C | K20: =List!R11 -> 0 | N20: =IF(AND(O20=0,List!X11>0),0.5, ) -> 0 | P20: 0 | Q20: 0 | R20: 0 | S20: 0 | T20: 0 | U20: 0
A21: 6 | C21: =List!C12 -> 6 | D21: =List!D12 -> TM | E21: =List!F12 -> 128 | F21: =List!G12 -> 6 | G21: =List!H12 -> E | H21: =List!I12 -> Raja Sekhar | I21: =List!J12 -> B | J21: =List!M12 -> ST | K21: =List!R12 -> 0 | N21: =IF(AND(O21=0,List!X12>0),0.5, ) -> 0 | P21: 0 | Q21: 0 | R21: 0 | S21: 0 | T21: 0 | U21: 0
A22: 0 | C22: =List!C13 -> 6 | D22: =List!D13 -> TM | E22: =List!F13 -> 0 | F22: =List!G13 -> 0 | G22: =List!H13 -> 0 | H22: =List!I13 -> 0 | I22: =List!J13 -> 0 | J22: =List!M13 -> 0 | K22: =List!R13 -> 0 | N22: =IF(AND(O22=0,List!X13>0),0.5, ) -> 0 | P22: 0 | Q22: 0 | R22: 0 | S22: 0 | T22: 0 | U22: 0
A23: 0 | C23: =List!C14 -> 6 | D23: =List!D14 -> TM | E23: =List!F14 -> 0 | F23: =List!G14 -> 0 | G23: =List!H14 -> 0 | H23: =List!I14 -> 0 | I23: =List!J14 -> 0 | J23: =List!M14 -> 0 | K23: =List!R14 -> 0 | N23: =IF(AND(O23=0,List!X14>0),0.5, ) -> 0 | P23: 0 | Q23: 0 | R23: 0 | S23: 0 | T23: 0 | U23: 0
A24: 0 | C24: =List!C15 -> 6 | D24: =List!D15 -> TM | E24: =List!F15 -> 0 | F24: =List!G15 -> 0 | G24: =List!H15 -> 0 | H24: =List!I15 -> 0 | I24: =List!J15 -> 0 | J24: =List!M15 -> 0 | K24: =List!R15 -> 0 | N24: =IF(AND(O24=0,List!X15>0),0.5, ) -> 0 | P24: 0 | Q24: 0 | R24: 0 | S24: 0 | T24: 0 | U24: 0
A25: 0 | C25: =List!C16 -> 6 | D25: =List!D16 -> TM | E25: =List!F16 -> 0 | F25: =List!G16 -> 0 | G25: =List!H16 -> 0 | H25: =List!I16 -> 0 | I25: =List!J16 -> 0 | J25: =List!M16 -> 0 | K25: =List!R16 -> 0 | N25: =IF(AND(O25=0,List!X16>0),0.5, ) -> 0 | P25: 0 | Q25: 0 | R25: 0 | S25: 0 | T25: 0 | U25: 0
A26: 0 | C26: =List!C17 -> 6 | D26: =List!D17 -> TM | E26: =List!F17 -> 0 | F26: =List!G17 -> 0 | G26: =List!H17 -> 0 | H26: =List!I17 -> 0 | I26: =List!J17 -> 0 | J26: =List!M17 -> 0 | K26: =List!R17 -> 0 | N26: =IF(AND(O26=0,List!X17>0),0.5, ) -> 0 | P26: 0 | Q26: 0 | R26: 0 | S26: 0 | T26: 0 | U26: 0
A27: 0 | C27: =List!C18 -> 6 | D27: =List!D18 -> TM | E27: =List!F18 -> 0 | F27: =List!G18 -> 0 | G27: =List!H18 -> 0 | H27: =List!I18 -> 0 | I27: =List!J18 -> 0 | J27: =List!M18 -> 0 | K27: =List!R18 -> 0 | N27: =IF(AND(O27=0,List!X18>0),0.5, ) -> 0 | P27: 0 | Q27: 0 | R27: 0 | S27: 0 | T27: 0 | U27: 0
A28: 0 | C28: =List!C19 -> 6 | D28: =List!D19 -> TM | E28: =List!F19 -> 0 | F28: =List!G19 -> 0 | G28: =List!H19 -> 0 | H28: =List!I19 -> 0 | I28: =List!J19 -> 0 | J28: =List!M19 -> 0 | K28: =List!R19 -> 0 | N28: =IF(AND(O28=0,List!X19>0),0.5, ) -> 0 | P28: 0 | Q28: 0 | R28: 0 | S28: 0 | T28: 0 | U28: 0
A29: 0 | C29: =List!C20 -> 6 | D29: =List!D20 -> TM | E29: =List!F20 -> 0 | F29: =List!G20 -> 0 | G29: =List!H20 -> 0 | H29: =List!I20 -> 0 | I29: =List!J20 -> 0 | J29: =List!M20 -> 0 | K29: =List!R20 -> 0 | N29: =IF(AND(O29=0,List!X20>0),0.5, ) -> 0 | P29: 0 | Q29: 0 | R29: 0 | S29: 0 | T29: 0 | U29: 0
A30: 0 | C30: =List!C21 -> 6 | D30: =List!D21 -> TM | E30: =List!F21 -> 0 | F30: =List!G21 -> 0 | G30: =List!H21 -> 0 | H30: =List!I21 -> 0 | I30: =List!J21 -> 0 | J30: =List!M21 -> 0 | K30: =List!R21 -> 0 | N30: =IF(AND(O30=0,List!X21>0),0.5, ) -> 0 | P30: 0 | Q30: 0 | R30: 0 | S30: 0 | T30: 0 | U30: 0
A31: 0 | C31: =List!C22 -> 6 | D31: =List!D22 -> TM | E31: =List!F22 -> 0 | F31: =List!G22 -> 0 | G31: =List!H22 -> 0 | H31: =List!I22 -> 0 | I31: =List!J22 -> 0 | J31: =List!M22 -> 0 | K31: =List!R22 -> 0 | N31: =IF(AND(O31=0,List!X22>0),0.5, ) -> 0 | P31: 0 | Q31: 0 | R31: 0 | S31: 0 | T31: 0 | U31: 0
A32: 0 | C32: =List!C23 -> 6 | D32: =List!D23 -> TM | E32: =List!F23 -> 0 | F32: =List!G23 -> 0 | G32: =List!H23 -> 0 | H32: =List!I23 -> 0 | I32: =List!J23 -> 0 | J32: =List!M23 -> 0 | K32: =List!R23 -> 0 | N32: =IF(AND(O32=0,List!X23>0),0.5, ) -> 0 | P32: 0 | Q32: 0 | R32: 0 | S32: 0 | T32: 0 | U32: 0
A33: 0 | C33: =List!C24 -> 6 | D33: =List!D24 -> TM | E33: =List!F24 -> 0 | F33: =List!G24 -> 0 | G33: =List!H24 -> 0 | H33: =List!I24 -> 0 | I33: =List!J24 -> 0 | J33: =List!M24 -> 0 | K33: =List!R24 -> 0 | N33: =IF(AND(O33=0,List!X24>0),0.5, ) -> 0 | P33: 0 | Q33: 0 | R33: 0 | S33: 0 | T33: 0 | U33: 0
A34: 0 | C34: =List!C25 -> 6 | D34: =List!D25 -> TM | E34: =List!F25 -> 0 | F34: =List!G25 -> 0 | G34: =List!H25 -> 0 | H34: =List!I25 -> 0 | I34: =List!J25 -> 0 | J34: =List!M25 -> 0 | K34: =List!R25 -> 0 | N34: =IF(AND(O34=0,List!X25>0),0.5, ) -> 0 | P34: 0 | Q34: 0 | R34: 0 | S34: 0 | T34: 0 | U34: 0
A35: 0 | C35: =List!C26 -> 6 | D35: =List!D26 -> TM | E35: =List!F26 -> 0 | F35: =List!G26 -> 0 | G35: =List!H26 -> 0 | H35: =List!I26 -> 0 | I35: =List!J26 -> 0 | J35: =List!M26 -> 0 | K35: =List!R26 -> 0 | N35: =IF(AND(O35=0,List!X26>0),0.5, ) -> 0 | P35: 0 | Q35: 0 | R35: 0 | S35: 0 | T35: 0 | U35: 0
A36: 0 | C36: =List!C27 -> 6 | D36: =List!D27 -> TM | E36: =List!F27 -> 0 | F36: =List!G27 -> 0 | G36: =List!H27 -> 0 | H36: =List!I27 -> 0 | I36: =List!J27 -> 0 | J36: =List!M27 -> 0 | K36: =List!R27 -> 0 | N36: =IF(AND(O36=0,List!X27>0),0.5, ) -> 0 | P36: 0 | Q36: 0 | R36: 0 | S36: 0 | T36: 0 | U36: 0
A37: 0 | C37: =List!C28 -> 6 | D37: =List!D28 -> TM | E37: =List!F28 -> 0 | F37: =List!G28 -> 0 | G37: =List!H28 -> 0 | H37: =List!I28 -> 0 | I37: =List!J28 -> 0 | J37: =List!M28 -> 0 | K37: =List!R28 -> 0 | N37: =IF(AND(O37=0,List!X28>0),0.5, ) -> 0 | P37: 0 | Q37: 0 | R37: 0 | S37: 0 | T37: 0 | U37: 0
A38: 0 | C38: =List!C29 -> 6 | D38: =List!D29 -> TM | E38: =List!F29 -> 0 | F38: =List!G29 -> 0 | G38: =List!H29 -> 0 | H38: =List!I29 -> 0 | I38: =List!J29 -> 0 | J38: =List!M29 -> 0 | K38: =List!R29 -> 0 | N38: =IF(AND(O38=0,List!X29>0),0.5, ) -> 0 | P38: 0 | Q38: 0 | R38: 0 | S38: 0 | T38: 0 | U38: 0
A39: 0 | C39: =List!C30 -> 6 | D39: =List!D30 -> TM | E39: =List!F30 -> 0 | F39: =List!G30 -> 0 | G39: =List!H30 -> 0 | H39: =List!I30 -> 0 | I39: =List!J30 -> 0 | J39: =List!M30 -> 0 | K39: =List!R30 -> 0 | N39: =IF(AND(O39=0,List!X30>0),0.5, ) -> 0 | P39: 0 | Q39: 0 | R39: 0 | S39: 0 | T39: 0 | U39: 0
A40: 0 | C40: =List!C31 -> 6 | D40: =List!D31 -> TM | E40: =List!F31 -> 0 | F40: =List!G31 -> 0 | G40: =List!H31 -> 0 | H40: =List!I31 -> 0 | I40: =List!J31 -> 0 | J40: =List!M31 -> 0 | K40: =List!R31 -> 0 | N40: =IF(AND(O40=0,List!X31>0),0.5, ) -> 0 | P40: 0 | Q40: 0 | R40: 0 | S40: 0 | T40: 0 | U40: 0
A41: 0 | C41: =List!C32 -> 6 | D41: =List!D32 -> TM | E41: =List!F32 -> 0 | F41: =List!G32 -> 0 | G41: =List!H32 -> 0 | H41: =List!I32 -> 0 | I41: =List!J32 -> 0 | J41: =List!M32 -> 0 | K41: =List!R32 -> 0 | N41: =IF(AND(O41=0,List!X32>0),0.5, ) -> 0 | P41: 0 | Q41: 0 | R41: 0 | S41: 0 | T41: 0 | U41: 0
A42: 0 | C42: =List!C33 -> 6 | D42: =List!D33 -> TM | E42: =List!F33 -> 0 | F42: =List!G33 -> 0 | G42: =List!H33 -> 0 | H42: =List!I33 -> 0 | I42: =List!J33 -> 0 | J42: =List!M33 -> 0 | K42: =List!R33 -> 0 | N42: =IF(AND(O42=0,List!X33>0),0.5, ) -> 0 | P42: 0 | Q42: 0 | R42: 0 | S42: 0 | T42: 0 | U42: 0
A43: 0 | C43: =List!C34 -> 6 | D43: =List!D34 -> TM | E43: =List!F34 -> 0 | F43: =List!G34 -> 0 | G43: =List!H34 -> 0 | H43: =List!I34 -> 0 | I43: =List!J34 -> 0 | J43: =List!M34 -> 0 | K43: =List!R34 -> 0 | N43: =IF(AND(O43=0,List!X34>0),0.5, ) -> 0 | P43: 0 | Q43: 0 | R43: 0 | S43: 0 | T43: 0 | U43: 0
A44: 0 | C44: =List!C35 -> 6 | D44: =List!D35 -> TM | E44: =List!F35 -> 0 | F44: =List!G35 -> 0 | G44: =List!H35 -> 0 | H44: =List!I35 -> 0 | I44: =List!J35 -> 0 | J44: =List!M35 -> 0 | K44: =List!R35 -> 0 | N44: =IF(AND(O44=0,List!X35>0),0.5, ) -> 0 | P44: 0 | Q44: 0 | R44: 0 | S44: 0 | T44: 0 | U44: 0
A45: 0 | C45: =List!C36 -> 6 | D45: =List!D36 -> TM | E45: =List!F36 -> 0 | F45: =List!G36 -> 0 | G45: =List!H36 -> 0 | H45: =List!I36 -> 0 | I45: =List!J36 -> 0 | J45: =List!M36 -> 0 | K45: =List!R36 -> 0 | N45: =IF(AND(O45=0,List!X36>0),0.5, ) -> 0 | P45: 0 | Q45: 0 | R45: 0 | S45: 0 | T45: 0 | U45: 0
A46: 0 | C46: =List!C37 -> 6 | D46: =List!D37 -> TM | E46: =List!F37 -> 0 | F46: =List!G37 -> 0 | G46: =List!H37 -> 0 | H46: =List!I37 -> 0 | I46: =List!J37 -> 0 | J46: =List!M37 -> 0 | K46: =List!R37 -> 0 | N46: =IF(AND(O46=0,List!X37>0),0.5, ) -> 0 | P46: 0 | Q46: 0 | R46: 0 | S46: 0 | T46: 0 | U46: 0
A47: 0 | C47: =List!C38 -> 6 | D47: =List!D38 -> TM | E47: =List!F38 -> 0 | F47: =List!G38 -> 0 | G47: =List!H38 -> 0 | H47: =List!I38 -> 0 | I47: =List!J38 -> 0 | J47: =List!M38 -> 0 | K47: =List!R38 -> 0 | N47: =IF(AND(O47=0,List!X38>0),0.5, ) -> 0 | P47: 0 | Q47: 0 | R47: 0 | S47: 0 | T47: 0 | U47: 0
A48: 0 | C48: =List!C39 -> 6 | D48: =List!D39 -> TM | E48: =List!F39 -> 0 | F48: =List!G39 -> 0 | G48: =List!H39 -> 0 | H48: =List!I39 -> 0 | I48: =List!J39 -> 0 | J48: =List!M39 -> 0 | K48: =List!R39 -> 0 | N48: =IF(AND(O48=0,List!X39>0),0.5, ) -> 0 | P48: 0 | Q48: 0 | R48: 0 | S48: 0 | T48: 0 | U48: 0
A49: 0 | C49: =List!C40 -> 6 | D49: =List!D40 -> TM | E49: =List!F40 -> 0 | F49: =List!G40 -> 0 | G49: =List!H40 -> 0 | H49: =List!I40 -> 0 | I49: =List!J40 -> 0 | J49: =List!M40 -> 0 | K49: =List!R40 -> 0 | N49: =IF(AND(O49=0,List!X40>0),0.5, ) -> 0 | P49: 0 | Q49: 0 | R49: =IF(F49>=1,R48,0) -> 0 | S49: =IF(F49>=1,S48,0) -> 0 | T49: 0 | U49: 0
A50: 0 | C50: =List!C41 -> 6 | D50: =List!D41 -> TM | E50: =List!F41 -> 0 | F50: =List!G41 -> 0 | G50: =List!H41 -> 0 | H50: =List!I41 -> 0 | I50: =List!J41 -> 0 | J50: =List!M41 -> 0 | K50: =List!R41 -> 0 | N50: =IF(AND(O50=0,List!X41>0),0.5, ) -> 0 | P50: 0 | Q50: 0 | R50: 0 | S50: 0 | T50: 0 | U50: 0
A51: 0 | C51: =List!C42 -> 6 | D51: =List!D42 -> TM | E51: =List!F42 -> 0 | F51: =List!G42 -> 0 | G51: =List!H42 -> 0 | H51: =List!I42 -> 0 | I51: =List!J42 -> 0 | J51: =List!M42 -> 0 | K51: =List!R42 -> 0 | N51: =IF(AND(O51=0,List!X42>0),0.5, ) -> 0 | P51: 0 | Q51: 0 | R51: 0 | S51: 0 | T51: 0 | U51: 0
A52: 0 | C52: =List!C43 -> 6 | D52: =List!D43 -> TM | E52: =List!F43 -> 0 | F52: =List!G43 -> 0 | G52: =List!H43 -> 0 | H52: =List!I43 -> 0 | I52: =List!J43 -> 0 | J52: =List!M43 -> 0 | K52: =List!R43 -> 0 | N52: =IF(AND(O52=0,List!X43>0),0.5, ) -> 0 | P52: 0 | Q52: 0 | R52: 0 | S52: 0 | T52: 0 | U52: 0
A53: 0 | C53: =List!C44 -> 6 | D53: =List!D44 -> TM | E53: =List!F44 -> 0 | F53: =List!G44 -> 0 | G53: =List!H44 -> 0 | H53: =List!I44 -> 0 | I53: =List!J44 -> 0 | J53: =List!M44 -> 0 | K53: =List!R44 -> 0 | N53: =IF(AND(O53=0,List!X44>0),0.5, ) -> 0 | P53: 0 | Q53: 0 | R53: 0 | S53: 0 | T53: 0 | U53: 0
A54: 0 | C54: =List!C45 -> 6 | D54: =List!D45 -> TM | E54: =List!F45 -> 0 | F54: =List!G45 -> 0 | G54: =List!H45 -> 0 | H54: =List!I45 -> 0 | I54: =List!J45 -> 0 | J54: =List!M45 -> 0 | K54: =List!R45 -> 0 | N54: =IF(AND(O54=0,List!X45>0),0.5, ) -> 0 | P54: 0 | Q54: 0 | R54: 0 | S54: 0 | T54: 0 | U54: 0
A55: 0 | C55: =List!C46 -> 6 | D55: =List!D46 -> TM | E55: =List!F46 -> 0 | F55: =List!G46 -> 0 | G55: =List!H46 -> 0 | H55: =List!I46 -> 0 | I55: =List!J46 -> 0 | J55: =List!M46 -> 0 | K55: =List!R46 -> 0 | N55: =IF(AND(O55=0,List!X46>0),0.5, ) -> 0 | P55: 0 | Q55: 0 | R55: 0 | S55: 0 | T55: 0 | U55: 0
A56: 0 | C56: =List!C47 -> 6 | D56: =List!D47 -> TM | E56: =List!F47 -> 0 | F56: =List!G47 -> 0 | G56: =List!H47 -> 0 | H56: =List!I47 -> 0 | I56: =List!J47 -> 0 | J56: =List!M47 -> 0 | K56: =List!R47 -> 0 | N56: =IF(AND(O56=0,List!X47>0),0.5, ) -> 0 | P56: 0 | Q56: =IF(O56=0,2.25,0) -> 0 | R56: 0 | S56: 0 | T56: 0 | U56: 0
A57: 0 | C57: =List!C48 -> 6 | D57: =List!D48 -> TM | E57: =List!F48 -> 0 | F57: =List!G48 -> 0 | G57: =List!H48 -> 0 | H57: =List!I48 -> 0 | I57: =List!J48 -> 0 | J57: =List!M48 -> 0 | K57: =List!R48 -> 0 | N57: =IF(AND(O57=0,List!X48>0),0.5, ) -> 0 | P57: 0 | Q57: 0 | R57: 0 | S57: 0 | T57: 0 | U57: 0
A58: 0 | C58: =List!C49 -> 6 | D58: =List!D49 -> TM | E58: =List!F49 -> 0 | F58: =List!G49 -> 0 | G58: =List!H49 -> 0 | H58: =List!I49 -> 0 | I58: =List!J49 -> 0 | J58: =List!M49 -> 0 | K58: =List!R49 -> 0 | N58: =IF(AND(O58=0,List!X49>0),0.5, ) -> 0 | P58: 0 | Q58: 0 | R58: 0 | S58: 0 | T58: 0 | U58: 0
A59: 0 | C59: =List!C50 -> 6 | D59: =List!D50 -> TM | E59: =List!F50 -> 0 | F59: =List!G50 -> 0 | G59: =List!H50 -> 0 | H59: =List!I50 -> 0 | I59: =List!J50 -> 0 | J59: =List!M50 -> 0 | K59: =List!R50 -> 0 | N59: =IF(AND(O59=0,List!X50>0),0.5, ) -> 0 | P59: 0 | Q59: 0 | R59: 0 | S59: 0 | T59: 0 | U59: 0
A60: 0 | C60: =List!C51 -> 6 | D60: =List!D51 -> TM | E60: =List!F51 -> 0 | F60: =List!G51 -> 0 | G60: =List!H51 -> 0 | H60: =List!I51 -> 0 | I60: =List!J51 -> 0 | J60: =List!M51 -> 0 | K60: =List!R51 -> 0 | N60: =IF(AND(O60=0,List!X51>0),0.5, ) -> 0 | P60: 0 | Q60: 0 | R60: 0 | S60: 0 | T60: 0 | U60: 0
A61: 0 | C61: =List!C52 -> 6 | D61: =List!D52 -> TM | E61: =List!F52 -> 0 | F61: =List!G52 -> 0 | G61: =List!H52 -> 0 | H61: =List!I52 -> 0 | I61: =List!J52 -> 0 | J61: =List!M52 -> 0 | K61: =List!R52 -> 0 | N61: =IF(AND(O61=0,List!X52>0),0.5, ) -> 0 | P61: 0 | Q61: 0 | R61: 0 | S61: 0 | T61: 0 | U61: 0
A62: 0 | C62: =List!C53 -> 6 | D62: =List!D53 -> TM | E62: =List!F53 -> 0 | F62: =List!G53 -> 0 | G62: =List!H53 -> 0 | H62: =List!I53 -> 0 | I62: =List!J53 -> 0 | J62: =List!M53 -> 0 | K62: =List!R53 -> 0 | N62: =IF(AND(O62=0,List!X53>0),0.5, ) -> 0 | P62: 0 | Q62: 0 | R62: 0 | S62: 0 | T62: 0 | U62: 0
A63: 0 | C63: =List!C54 -> 6 | D63: =List!D54 -> TM | E63: =List!F54 -> 0 | F63: =List!G54 -> 0 | G63: =List!H54 -> 0 | H63: =List!I54 -> 0 | I63: =List!J54 -> 0 | J63: =List!M54 -> 0 | K63: =List!R54 -> 0 | N63: =IF(AND(O63=0,List!X54>0),0.5, ) -> 0 | P63: 0 | Q63: 0 | R63: 0 | S63: 0 | T63: 0 | U63: 0
A64: 0 | C64: =List!C55 -> 6 | D64: =List!D55 -> TM | E64: =List!F55 -> 0 | F64: =List!G55 -> 0 | G64: =List!H55 -> 0 | H64: =List!I55 -> 0 | I64: =List!J55 -> 0 | J64: =List!M55 -> 0 | K64: =List!R55 -> 0 | N64: =IF(AND(O64=0,List!X55>0),0.5, ) -> 0 | P64: 0 | Q64: 0 | R64: 0 | S64: 0 | T64: 0 | U64: 0
A65: 0 | C65: =List!C56 -> 6 | D65: =List!D56 -> TM | E65: =List!F56 -> 0 | F65: =List!G56 -> 0 | G65: =List!H56 -> 0 | H65: =List!I56 -> 0 | I65: =List!J56 -> 0 | J65: =List!M56 -> 0 | K65: =List!R56 -> 0 | N65: =IF(AND(O65=0,List!X56>0),0.5, ) -> 0 | P65: 0 | Q65: 0 | R65: 0 | S65: 0 | T65: 0 | U65: 0
A66: 0 | C66: =List!C57 -> 6 | D66: =List!D57 -> TM | E66: =List!F57 -> 0 | F66: =List!G57 -> 0 | G66: =List!H57 -> 0 | H66: =List!I57 -> 0 | I66: =List!J57 -> 0 | J66: =List!M57 -> 0 | K66: =List!R57 -> 0 | N66: =IF(AND(O66=0,List!X57>0),0.5, ) -> 0 | P66: 0 | Q66: 0 | R66: 0 | S66: 0 | T66: 0 | U66: 0
A67: 0 | C67: =List!C58 -> 6 | D67: =List!D58 -> TM | E67: =List!F58 -> 0 | F67: =List!G58 -> 0 | G67: =List!H58 -> 0 | H67: =List!I58 -> 0 | I67: =List!J58 -> 0 | J67: =List!M58 -> 0 | K67: =List!R58 -> 0 | N67: =IF(AND(O67=0,List!X58>0),0.5, ) -> 0 | P67: 0 | Q67: 0 | R67: 0 | S67: 0 | T67: 0 | U67: 0
A68: 0 | C68: =List!C59 -> 6 | D68: =List!D59 -> TM | E68: =List!F59 -> 0 | F68: =List!G59 -> 0 | G68: =List!H59 -> 0 | H68: =List!I59 -> 0 | I68: =List!J59 -> 0 | J68: =List!M59 -> 0 | K68: =List!R59 -> 0 | N68: =IF(AND(O68=0,List!X59>0),0.5, ) -> 0 | P68: 0 | Q68: 0 | R68: 0 | S68: 0 | T68: 0 | U68: 0
A69: 0 | C69: =List!C60 -> 6 | D69: =List!D60 -> TM | E69: =List!F60 -> 0 | F69: =List!G60 -> 0 | G69: =List!H60 -> 0 | H69: =List!I60 -> 0 | I69: =List!J60 -> 0 | J69: =List!M60 -> 0 | K69: =List!R60 -> 0 | N69: =IF(AND(O69=0,List!X60>0),0.5, ) -> 0 | P69: 0 | Q69: 0 | R69: 0 | S69: 0 | T69: 0 | U69: 0
A70: 0 | C70: =List!C61 -> 6 | D70: =List!D61 -> TM | E70: =List!F61 -> 0 | F70: =List!G61 -> 0 | G70: =List!H61 -> 0 | H70: =List!I61 -> 0 | I70: =List!J61 -> 0 | J70: =List!M61 -> 0 | K70: =List!R61 -> 0 | N70: =IF(AND(O70=0,List!X61>0),0.5, ) -> 0 | P70: 0 | Q70: 0 | R70: 0 | S70: 0 | T70: 0 | U70: 0
A71: 0 | C71: =List!C62 -> 6 | D71: =List!D62 -> TM | E71: =List!F62 -> 0 | F71: =List!G62 -> 0 | G71: =List!H62 -> 0 | H71: =List!I62 -> 0 | I71: =List!J62 -> 0 | J71: =List!M62 -> 0 | K71: =List!R62 -> 0 | N71: =IF(AND(O71=0,List!X62>0),0.5, ) -> 0 | P71: 0 | Q71: 0 | R71: 0 | S71: 0 | T71: 0 | U71: 0
A72: 0 | C72: =List!C63 -> 6 | D72: =List!D63 -> TM | E72: =List!F63 -> 0 | F72: =List!G63 -> 0 | G72: =List!H63 -> 0 | H72: =List!I63 -> 0 | I72: =List!J63 -> 0 | J72: =List!M63 -> 0 | K72: =List!R63 -> 0 | N72: =IF(AND(O72=0,List!X63>0),0.5, ) -> 0 | P72: 0 | Q72: 0 | R72: 0 | S72: 0 | T72: 0 | U72: 0
A73: 0 | C73: =List!C64 -> 6 | D73: =List!D64 -> TM | E73: =List!F64 -> 0 | F73: =List!G64 -> 0 | G73: =List!H64 -> 0 | H73: =List!I64 -> 0 | I73: =List!J64 -> 0 | J73: =List!M64 -> 0 | K73: =List!R64 -> 0 | N73: =IF(AND(O73=0,List!X64>0),0.5, ) -> 0 | P73: 0 | Q73: 0 | R73: 0 | S73: 0 | T73: 0 | U73: 0
A74: 0 | C74: =List!C65 -> 6 | D74: =List!D65 -> TM | E74: =List!F65 -> 0 | F74: =List!G65 -> 0 | G74: =List!H65 -> 0 | H74: =List!I65 -> 0 | I74: =List!J65 -> 0 | J74: =List!M65 -> 0 | K74: =List!R65 -> 0 | N74: =IF(AND(O74=0,List!X65>0),0.5, ) -> 0 | P74: 0 | Q74: 0 | R74: 0 | S74: 0 | T74: 0 | U74: 0
A75: 0 | C75: =List!C66 -> 6 | D75: =List!D66 -> TM | E75: =List!F66 -> 0 | F75: =List!G66 -> 0 | G75: =List!H66 -> 0 | H75: =List!I66 -> 0 | I75: =List!J66 -> 0 | J75: =List!M66 -> 0 | K75: =List!R66 -> 0 | N75: =IF(AND(O75=0,List!X66>0),0.5, ) -> 0 | P75: 0 | Q75: 0 | R75: 0 | S75: 0 | T75: 0 | U75: 0
A76: 0 | C76: =List!C67 -> 6 | D76: =List!D67 -> TM | E76: =List!F67 -> 0 | F76: =List!G67 -> 0 | G76: =List!H67 -> 0 | H76: =List!I67 -> 0 | I76: =List!J67 -> 0 | J76: =List!M67 -> 0 | K76: =List!R67 -> 0 | N76: =IF(AND(O76=0,List!X67>0),0.5, ) -> 0 | P76: 0 | Q76: 0 | R76: 0 | S76: 0 | T76: 0 | U76: 0
A77: 0 | C77: =List!C68 -> 6 | D77: =List!D68 -> TM | E77: =List!F68 -> 0 | F77: =List!G68 -> 0 | G77: =List!H68 -> 0 | H77: =List!I68 -> 0 | I77: =List!J68 -> 0 | J77: =List!M68 -> 0 | K77: =List!R68 -> 0 | N77: =IF(AND(O77=0,List!X68>0),0.5, ) -> 0 | P77: 0 | Q77: 0 | R77: 0 | S77: 0 | T77: 0 | U77: 0
A78: 0 | C78: =List!C69 -> 6 | D78: =List!D69 -> TM | E78: =List!F69 -> 0 | F78: =List!G69 -> 0 | G78: =List!H69 -> 0 | H78: =List!I69 -> 0 | I78: =List!J69 -> 0 | J78: =List!M69 -> 0 | K78: =List!R69 -> 0 | N78: =IF(AND(O78=0,List!X69>0),0.5, ) -> 0 | P78: 0 | Q78: 0 | R78: 0 | S78: 0 | T78: 0 | U78: 0
A79: 0 | C79: =List!C70 -> 6 | D79: =List!D70 -> TM | E79: =List!F70 -> 0 | F79: =List!G70 -> 0 | G79: =List!H70 -> 0 | H79: =List!I70 -> 0 | I79: =List!J70 -> 0 | J79: =List!M70 -> 0 | K79: =List!R70 -> 0 | N79: =IF(AND(O79=0,List!X70>0),0.5, ) -> 0 | P79: 0 | Q79: 0 | R79: 0 | S79: 0 | T79: 0 | U79: 0
A80: 0 | C80: =List!C71 -> 6 | D80: =List!D71 -> TM | E80: =List!F71 -> 0 | F80: =List!G71 -> 0 | G80: =List!H71 -> 0 | H80: =List!I71 -> 0 | I80: =List!J71 -> 0 | J80: =List!M71 -> 0 | K80: =List!R71 -> 0 | N80: =IF(AND(O80=0,List!X71>0),0.5, ) -> 0 | P80: 0 | Q80: 0 | R80: 0 | S80: 0 | T80: 0 | U80: 0
A81: =F81 -> 0 | C81: =List!C72 -> 6 | D81: =List!D72 -> TM | E81: =List!F72 -> 0 | F81: =List!G72 -> 0 | G81: =List!H72 -> 0 | H81: =List!I72 -> 0 | I81: =List!J72 -> 0 | J81: =List!M72 -> 0 | K81: =List!R72 -> 0 | N81: =IF(AND(O81=0,List!X72>0),0.5, ) -> 0 | O81: =IF(M81="N",0,IF(M81="Y",1," ")) ->  | P81: =IF(O81=0,6.75,0) -> 0 | Q81: 0 | R81: =IF(F81>=1,R80,0) -> 0 | S81: =IF(F81>=1,S80,0) -> 0 | T81: 0 | U81: =N81+P81+Q81+R81+S81+T81 -> 0
A82: 0 | C82: =List!C73 -> 6 | D82: =List!D73 -> TM | E82: =List!F73 -> 0 | F82: =List!G73 -> 0 | G82: =List!H73 -> 0 | H82: =List!I73 -> 0 | I82: =List!J73 -> 0 | J82: =List!M73 -> 0 | K82: =List!R73 -> 0 | N82: =IF(AND(O82=0,List!X73>0),0.5, ) -> 0 | P82: 0 | Q82: 0 | R82: 0 | S82: 0 | T82: =IF(F82>0,T81,0) -> 0 | U82: 0
A83: 0 | C83: =List!C74 -> 6 | D83: =List!D74 -> TM | E83: =List!F74 -> 0 | F83: =List!G74 -> 0 | G83: =List!H74 -> 0 | H83: =List!I74 -> 0 | I83: =List!J74 -> 0 | J83: =List!M74 -> 0 | K83: =List!R74 -> 0 | N83: =IF(AND(O83=0,List!X74>0),0.5, ) -> 0 | P83: 0 | Q83: 0 | R83: 0 | S83: 0 | T83: 0 | U83: 0
A84: 0 | C84: =List!C75 -> 6 | D84: =List!D75 -> TM | E84: =List!F75 -> 0 | F84: =List!G75 -> 0 | G84: =List!H75 -> 0 | H84: =List!I75 -> 0 | I84: =List!J75 -> 0 | J84: =List!M75 -> 0 | K84: =List!R75 -> 0 | N84: =IF(AND(O84=0,List!X75>0),0.5, ) -> 0 | P84: 0 | Q84: 0 | R84: 0 | S84: 0 | T84: 0 | U84: 0
A85: 0 | C85: =List!C76 -> 6 | D85: =List!D76 -> TM | E85: =List!F76 -> 0 | F85: =List!G76 -> 0 | G85: =List!H76 -> 0 | H85: =List!I76 -> 0 | I85: =List!J76 -> 0 | J85: =List!M76 -> 0 | K85: =List!R76 -> 0 | N85: =IF(AND(O85=0,List!X76>0),0.5, ) -> 0 | P85: 0 | Q85: 0 | R85: 0 | S85: 0 | T85: 0 | U85: 0
A86: 0 | C86: =List!C77 -> 6 | D86: =List!D77 -> TM | E86: =List!F77 -> 0 | F86: =List!G77 -> 0 | G86: =List!H77 -> 0 | H86: =List!I77 -> 0 | I86: =List!J77 -> 0 | J86: =List!M77 -> 0 | K86: =List!R77 -> 0 | N86: =IF(AND(O86=0,List!X77>0),0.5, ) -> 0 | P86: 0 | Q86: 0 | R86: 0 | S86: 0 | T86: 0 | U86: 0
A87: 0 | C87: =List!C78 -> 6 | D87: =List!D78 -> TM | E87: =List!F78 -> 0 | F87: =List!G78 -> 0 | G87: =List!H78 -> 0 | H87: =List!I78 -> 0 | I87: =List!J78 -> 0 | J87: =List!M78 -> 0 | K87: =List!R78 -> 0 | N87: =IF(AND(O87=0,List!X78>0),0.5, ) -> 0 | P87: 0 | Q87: 0 | R87: 0 | S87: 0 | T87: 0 | U87: 0
A88: 0 | C88: =List!C79 -> 6 | D88: =List!D79 -> TM | E88: =List!F79 -> 0 | F88: =List!G79 -> 0 | G88: =List!H79 -> 0 | H88: =List!I79 -> 0 | I88: =List!J79 -> 0 | J88: =List!M79 -> 0 | K88: =List!R79 -> 0 | N88: =IF(AND(O88=0,List!X79>0),0.5, ) -> 0 | P88: 0 | Q88: 0 | R88: 0 | S88: 0 | T88: 0 | U88: 0
A89: 0 | C89: =List!C80 -> 6 | D89: =List!D80 -> TM | E89: =List!F80 -> 0 | F89: =List!G80 -> 0 | G89: =List!H80 -> 0 | H89: =List!I80 -> 0 | I89: =List!J80 -> 0 | J89: =List!M80 -> 0 | K89: =List!R80 -> 0 | N89: =IF(AND(O89=0,List!X80>0),0.5, ) -> 0 | P89: 0 | Q89: 0 | R89: 0 | S89: 0 | T89: 0 | U89: 0
A90: 0 | C90: =List!C81 -> 6 | D90: =List!D81 -> TM | E90: =List!F81 -> 0 | F90: =List!G81 -> 0 | G90: =List!H81 -> 0 | H90: =List!I81 -> 0 | I90: =List!J81 -> 0 | J90: =List!M81 -> 0 | K90: =List!R81 -> 0 | N90: =IF(AND(O90=0,List!X81>0),0.5, ) -> 0 | P90: 0 | Q90: 0 | R90: 0 | S90: 0 | T90: 0 | U90: 0
A91: 0 | C91: =List!C82 -> 6 | D91: =List!D82 -> TM | E91: =List!F82 -> 0 | F91: =List!G82 -> 0 | G91: =List!H82 -> 0 | H91: =List!I82 -> 0 | I91: =List!J82 -> 0 | J91: =List!M82 -> 0 | K91: =List!R82 -> 0 | N91: =IF(AND(O91=0,List!X82>0),0.5, ) -> 0 | P91: 0 | Q91: 0 | R91: 0 | S91: 0 | T91: 0 | U91: 0
A92: 0 | C92: =List!C83 -> 6 | D92: =List!D83 -> TM | E92: =List!F83 -> 0 | F92: =List!G83 -> 0 | G92: =List!H83 -> 0 | H92: =List!I83 -> 0 | I92: =List!J83 -> 0 | J92: =List!M83 -> 0 | K92: =List!R83 -> 0 | N92: =IF(AND(O92=0,List!X83>0),0.5, ) -> 0 | P92: 0 | Q92: 0 | R92: 0 | S92: 0 | T92: 0 | U92: 0
A93: 0 | C93: =List!C84 -> 6 | D93: =List!D84 -> TM | E93: =List!F84 -> 0 | F93: =List!G84 -> 0 | G93: =List!H84 -> 0 | H93: =List!I84 -> 0 | I93: =List!J84 -> 0 | J93: =List!M84 -> 0 | K93: =List!R84 -> 0 | N93: =IF(AND(O93=0,List!X84>0),0.5, ) -> 0 | P93: 0 | Q93: 0 | R93: 0 | S93: 0 | T93: 0 | U93: 0
A94: 0 | C94: =List!C85 -> 6 | D94: =List!D85 -> TM | E94: =List!F85 -> 0 | F94: =List!G85 -> 0 | G94: =List!H85 -> 0 | H94: =List!I85 -> 0 | I94: =List!J85 -> 0 | J94: =List!M85 -> 0 | K94: =List!R85 -> 0 | N94: =IF(AND(O94=0,List!X85>0),0.5, ) -> 0 | P94: 0 | Q94: 0 | R94: 0 | S94: 0 | T94: 0 | U94: 0
A95: 0 | C95: =List!C86 -> 6 | D95: =List!D86 -> TM | E95: =List!F86 -> 0 | F95: =List!G86 -> 0 | G95: =List!H86 -> 0 | H95: =List!I86 -> 0 | I95: =List!J86 -> 0 | J95: =List!M86 -> 0 | K95: =List!R86 -> 0 | N95: =IF(AND(O95=0,List!X86>0),0.5, ) -> 0 | P95: 0 | Q95: 0 | R95: 0 | S95: 0 | T95: 0 | U95: 0
A96: 0 | C96: =List!C87 -> 6 | D96: =List!D87 -> TM | E96: =List!F87 -> 0 | F96: =List!G87 -> 0 | G96: =List!H87 -> 0 | H96: =List!I87 -> 0 | I96: =List!J87 -> 0 | J96: =List!M87 -> 0 | K96: =List!R87 -> 0 | N96: =IF(AND(O96=0,List!X87>0),0.5, ) -> 0 | P96: 0 | Q96: 0 | R96: 0 | S96: 0 | T96: 0 | U96: 0
A97: 0 | C97: =List!C88 -> 6 | D97: =List!D88 -> TM | E97: =List!F88 -> 0 | F97: =List!G88 -> 0 | G97: =List!H88 -> 0 | H97: =List!I88 -> 0 | I97: =List!J88 -> 0 | J97: =List!M88 -> 0 | K97: =List!R88 -> 0 | N97: =IF(AND(O97=0,List!X88>0),0.5, ) -> 0 | P97: 0 | Q97: 0 | R97: 0 | S97: 0 | T97: 0 | U97: 0
A98: 0 | C98: =List!C89 -> 6 | D98: =List!D89 -> TM | E98: =List!F89 -> 0 | F98: =List!G89 -> 0 | G98: =List!H89 -> 0 | H98: =List!I89 -> 0 | I98: =List!J89 -> 0 | J98: =List!M89 -> 0 | K98: =List!R89 -> 0 | N98: =IF(AND(O98=0,List!X89>0),0.5, ) -> 0 | P98: 0 | Q98: 0 | R98: 0 | S98: 0 | T98: 0 | U98: 0
A99: 0 | C99: =List!C90 -> 6 | D99: =List!D90 -> TM | E99: =List!F90 -> 0 | F99: =List!G90 -> 0 | G99: =List!H90 -> 0 | H99: =List!I90 -> 0 | I99: =List!J90 -> 0 | J99: =List!M90 -> 0 | K99: =List!R90 -> 0 | N99: =IF(AND(O99=0,List!X90>0),0.5, ) -> 0 | P99: 0 | Q99: 0 | R99: 0 | S99: 0 | T99: 0 | U99: 0
A100: 0 | C100: =List!C91 -> 6 | D100: =List!D91 -> TM | E100: =List!F91 -> 0 | F100: =List!G91 -> 0 | G100: =List!H91 -> 0 | H100: =List!I91 -> 0 | I100: =List!J91 -> 0 | J100: =List!M91 -> 0 | K100: =List!R91 -> 0 | N100: =IF(AND(O100=0,List!X91>0),0.5, ) -> 0 | P100: 0 | Q100: 0 | R100: 0 | S100: 0 | T100: 0 | U100: 0
A101: 0 | C101: =List!C92 -> 6 | D101: =List!D92 -> TM | E101: =List!F92 -> 0 | F101: =List!G92 -> 0 | G101: =List!H92 -> 0 | H101: =List!I92 -> 0 | I101: =List!J92 -> 0 | J101: =List!M92 -> 0 | K101: =List!R92 -> 0 | N101: =IF(AND(O101=0,List!X92>0),0.5, ) -> 0 | P101: 0 | Q101: 0 | R101: 0 | S101: 0 | T101: 0 | U101: 0
A102: 0 | C102: =List!C93 -> 6 | D102: =List!D93 -> TM | E102: =List!F93 -> 0 | F102: =List!G93 -> 0 | G102: =List!H93 -> 0 | H102: =List!I93 -> 0 | I102: =List!J93 -> 0 | J102: =List!M93 -> 0 | K102: =List!R93 -> 0 | N102: =IF(AND(O102=0,List!X93>0),0.5, ) -> 0 | P102: 0 | Q102: 0 | R102: 0 | S102: 0 | T102: 0 | U102: 0
A103: 0 | C103: =List!C94 -> 6 | D103: =List!D94 -> TM | E103: =List!F94 -> 0 | F103: =List!G94 -> 0 | G103: =List!H94 -> 0 | H103: =List!I94 -> 0 | I103: =List!J94 -> 0 | J103: =List!M94 -> 0 | K103: =List!R94 -> 0 | N103: =IF(AND(O103=0,List!X94>0),0.5, ) -> 0 | P103: 0 | Q103: 0 | R103: 0 | S103: 0 | T103: 0 | U103: 0
A104: 0 | C104: =List!C95 -> 6 | D104: =List!D95 -> TM | E104: =List!F95 -> 0 | F104: =List!G95 -> 0 | G104: =List!H95 -> 0 | H104: =List!I95 -> 0 | I104: =List!J95 -> 0 | J104: =List!M95 -> 0 | K104: =List!R95 -> 0 | N104: =IF(AND(O104=0,List!X95>0),0.5, ) -> 0 | P104: 0 | Q104: 0 | R104: 0 | S104: 0 | T104: 0 | U104: 0
A105: 0 | C105: =List!C96 -> 6 | D105: =List!D96 -> TM | E105: =List!F96 -> 0 | F105: =List!G96 -> 0 | G105: =List!H96 -> 0 | H105: =List!I96 -> 0 | I105: =List!J96 -> 0 | J105: =List!M96 -> 0 | K105: =List!R96 -> 0 | N105: =IF(AND(O105=0,List!X96>0),0.5, ) -> 0 | P105: 0 | Q105: 0 | R105: 0 | S105: 0 | T105: 0 | U105: 0
A106: 0 | C106: =List!C97 -> 6 | D106: =List!D97 -> TM | E106: =List!F97 -> 0 | F106: =List!G97 -> 0 | G106: =List!H97 -> 0 | H106: =List!I97 -> 0 | I106: =List!J97 -> 0 | J106: =List!M97 -> 0 | K106: =List!R97 -> 0 | N106: =IF(AND(O106=0,List!X97>0),0.5, ) -> 0 | P106: 0 | Q106: 0 | R106: 0 | S106: 0 | T106: 0 | U106: 0
A107: 0 | C107: =List!C98 -> 6 | D107: =List!D98 -> TM | E107: =List!F98 -> 0 | F107: =List!G98 -> 0 | G107: =List!H98 -> 0 | H107: =List!I98 -> 0 | I107: =List!J98 -> 0 | J107: =List!M98 -> 0 | K107: =List!R98 -> 0 | N107: =IF(AND(O107=0,List!X98>0),0.5, ) -> 0 | P107: 0 | Q107: 0 | R107: 0 | S107: 0 | T107: 0 | U107: 0
A108: 0 | C108: =List!C99 -> 6 | D108: =List!D99 -> TM | E108: =List!F99 -> 0 | F108: =List!G99 -> 0 | G108: =List!H99 -> 0 | H108: =List!I99 -> 0 | I108: =List!J99 -> 0 | J108: =List!M99 -> 0 | K108: =List!R99 -> 0 | N108: =IF(AND(O108=0,List!X99>0),0.5, ) -> 0 | P108: 0 | Q108: 0 | R108: 0 | S108: 0 | T108: 0 | U108: 0
A109: 0 | C109: =List!C100 -> 6 | D109: =List!D100 -> TM | E109: =List!F100 -> 0 | F109: =List!G100 -> 0 | G109: =List!H100 -> 0 | H109: =List!I100 -> 0 | I109: =List!J100 -> 0 | J109: =List!M100 -> 0 | K109: =List!R100 -> 0 | N109: =IF(AND(O109=0,List!X100>0),0.5, ) -> 0 | P109: 0 | Q109: 0 | R109: 0 | S109: 0 | T109: 0 | U109: 0
A110: 0 | C110: =List!C101 -> 6 | D110: =List!D101 -> TM | E110: =List!F101 -> 0 | F110: =List!G101 -> 0 | G110: =List!H101 -> 0 | H110: =List!I101 -> 0 | I110: =List!J101 -> 0 | J110: =List!M101 -> 0 | K110: =List!R101 -> 0 | N110: =IF(AND(O110=0,List!X101>0),0.5, ) -> 0 | P110: 0 | Q110: 0 | R110: 0 | S110: 0 | T110: 0 | U110: 0
A111: 0 | C111: =List!C102 -> 6 | D111: =List!D102 -> TM | E111: =List!F102 -> 0 | F111: =List!G102 -> 0 | G111: =List!H102 -> 0 | H111: =List!I102 -> 0 | I111: =List!J102 -> 0 | J111: =List!M102 -> 0 | K111: =List!R102 -> 0 | N111: =IF(AND(O111=0,List!X102>0),0.5, ) -> 0 | P111: 0 | Q111: 0 | R111: 0 | S111: 0 | T111: 0 | U111: 0
A112: 0 | C112: =List!C103 -> 6 | D112: =List!D103 -> TM | E112: =List!F103 -> 0 | F112: =List!G103 -> 0 | G112: =List!H103 -> 0 | H112: =List!I103 -> 0 | I112: =List!J103 -> 0 | J112: =List!M103 -> 0 | K112: =List!R103 -> 0 | N112: =IF(AND(O112=0,List!X103>0),0.5, ) -> 0 | P112: 0 | Q112: 0 | R112: 0 | S112: 0 | T112: 0 | U112: 0
A113: 0 | C113: =List!C104 -> 6 | D113: =List!D104 -> TM | E113: =List!F104 -> 0 | F113: =List!G104 -> 0 | G113: =List!H104 -> 0 | H113: =List!I104 -> 0 | I113: =List!J104 -> 0 | J113: =List!M104 -> 0 | K113: =List!R104 -> 0 | N113: =IF(AND(O113=0,List!X104>0),0.5, ) -> 0 | P113: 0 | Q113: 0 | R113: =IF(F113>=1,R112,0) -> 0 | S113: =IF(F113>=1,S112,0) -> 0 | T113: 0 | U113: 0
A114: 0 | C114: =List!C105 -> 6 | D114: =List!D105 -> TM | E114: =List!F105 -> 0 | F114: =List!G105 -> 0 | G114: =List!H105 -> 0 | H114: =List!I105 -> 0 | I114: =List!J105 -> 0 | J114: =List!M105 -> 0 | K114: =List!R105 -> 0 | N114: =IF(AND(O114=0,List!X105>0),0.5, ) -> 0 | P114: 0 | Q114: 0 | R114: 0 | S114: 0 | T114: 0 | U114: 0
A115: 0 | C115: =List!C106 -> 6 | D115: =List!D106 -> TM | E115: =List!F106 -> 0 | F115: =List!G106 -> 0 | G115: =List!H106 -> 0 | H115: =List!I106 -> 0 | I115: =List!J106 -> 0 | J115: =List!M106 -> 0 | K115: =List!R106 -> 0 | N115: =IF(AND(O115=0,List!X106>0),0.5, ) -> 0 | O115: =IF(M115="N",0,IF(M115="Y",1," ")) ->  | P115: =IF(O115=0,6.75,0) -> 0 | Q115: =IF(O115=0,2.25,0) -> 0 | R115: 0 | S115: 0 | T115: 0 | U115: =N115+P115+Q115+R115+S115+T115 -> 0
A116: 0 | C116: =List!C107 -> 6 | D116: =List!D107 -> TM | E116: =List!F107 -> 0 | F116: =List!G107 -> 0 | G116: =List!H107 -> 0 | H116: =List!I107 -> 0 | I116: =List!J107 -> 0 | J116: =List!M107 -> 0 | K116: =List!R107 -> 0 | N116: =IF(AND(O116=0,List!X107>0),0.5, ) -> 0 | P116: 0 | Q116: 0 | R116: 0 | S116: 0 | T116: 0 | U116: 0
A117: 0 | C117: =List!C108 -> 6 | D117: =List!D108 -> TM | E117: =List!F108 -> 0 | F117: =List!G108 -> 0 | G117: =List!H108 -> 0 | H117: =List!I108 -> 0 | I117: =List!J108 -> 0 | J117: =List!M108 -> 0 | K117: =List!R108 -> 0 | N117: =IF(AND(O117=0,List!X108>0),0.5, ) -> 0 | P117: 0 | Q117: 0 | R117: 0 | S117: 0 | T117: 0 | U117: 0
A118: 0 | C118: =List!C109 -> 6 | D118: =List!D109 -> TM | E118: =List!F109 -> 0 | F118: =List!G109 -> 0 | G118: =List!H109 -> 0 | H118: =List!I109 -> 0 | I118: =List!J109 -> 0 | J118: =List!M109 -> 0 | K118: =List!R109 -> 0 | N118: =IF(AND(O118=0,List!X109>0),0.5, ) -> 0 | P118: 0 | Q118: 0 | R118: 0 | S118: 0 | T118: 0 | U118: 0
A119: 0 | C119: =List!C110 -> 6 | D119: =List!D110 -> TM | E119: =List!F110 -> 0 | F119: =List!G110 -> 0 | G119: =List!H110 -> 0 | H119: =List!I110 -> 0 | I119: =List!J110 -> 0 | J119: =List!M110 -> 0 | K119: =List!R110 -> 0 | N119: =IF(AND(O119=0,List!X110>0),0.5, ) -> 0 | P119: 0 | Q119: 0 | R119: 0 | S119: 0 | T119: 0 | U119: 0
A120: 0 | C120: =List!C111 -> 6 | D120: =List!D111 -> TM | E120: =List!F111 -> 0 | F120: =List!G111 -> 0 | G120: =List!H111 -> 0 | H120: =List!I111 -> 0 | I120: =List!J111 -> 0 | J120: =List!M111 -> 0 | K120: =List!R111 -> 0 | N120: =IF(AND(O120=0,List!X111>0),0.5, ) -> 0 | P120: 0 | Q120: 0 | R120: 0 | S120: 0 | T120: 0 | U120: 0
A121: 0 | C121: =List!C112 -> 6 | D121: =List!D112 -> TM | E121: =List!F112 -> 0 | F121: =List!G112 -> 0 | G121: =List!H112 -> 0 | H121: =List!I112 -> 0 | I121: =List!J112 -> 0 | J121: =List!M112 -> 0 | K121: =List!R112 -> 0 | N121: =IF(AND(O121=0,List!X112>0),0.5, ) -> 0 | P121: 0 | Q121: 0 | R121: 0 | S121: 0 | T121: 0 | U121: 0
A122: 0 | C122: =List!C113 -> 6 | D122: =List!D113 -> TM | E122: =List!F113 -> 0 | F122: =List!G113 -> 0 | G122: =List!H113 -> 0 | H122: =List!I113 -> 0 | I122: =List!J113 -> 0 | J122: =List!M113 -> 0 | K122: =List!R113 -> 0 | N122: =IF(AND(O122=0,List!X113>0),0.5, ) -> 0 | P122: 0 | Q122: 0 | R122: 0 | S122: 0 | T122: 0 | U122: 0
A123: 0 | C123: =List!C114 -> 6 | D123: =List!D114 -> TM | E123: =List!F114 -> 0 | F123: =List!G114 -> 0 | G123: =List!H114 -> 0 | H123: =List!I114 -> 0 | I123: =List!J114 -> 0 | J123: =List!M114 -> 0 | K123: =List!R114 -> 0 | N123: =IF(AND(O123=0,List!X114>0),0.5, ) -> 0 | P123: 0 | Q123: 0 | R123: 0 | S123: 0 | T123: 0 | U123: 0
A124: 0 | C124: =List!C115 -> 6 | D124: =List!D115 -> TM | E124: =List!F115 -> 0 | F124: =List!G115 -> 0 | G124: =List!H115 -> 0 | H124: =List!I115 -> 0 | I124: =List!J115 -> 0 | J124: =List!M115 -> 0 | K124: =List!R115 -> 0 | N124: =IF(AND(O124=0,List!X115>0),0.5, ) -> 0 | P124: 0 | Q124: 0 | R124: 0 | S124: 0 | T124: 0 | U124: 0
A125: 0 | C125: =List!C116 -> 6 | D125: =List!D116 -> TM | E125: =List!F116 -> 0 | F125: =List!G116 -> 0 | G125: =List!H116 -> 0 | H125: =List!I116 -> 0 | I125: =List!J116 -> 0 | J125: =List!M116 -> 0 | K125: =List!R116 -> 0 | N125: =IF(AND(O125=0,List!X116>0),0.5, ) -> 0 | P125: 0 | Q125: 0 | R125: 0 | S125: 0 | T125: 0 | U125: 0
A126: 1
A127: =F127 -> 0 | C127: =List!C118 -> 6 | D127: =List!D118 -> EM | E127: =List!F118 -> 0 | F127: =List!G118 -> 0 | G127: =List!H118 -> 0 | H127: =List!I118 -> 0 | I127: =List!J118 -> 0 | J127: =List!M118 -> 0 | K127: =List!R118 -> 0 | N127: =IF(AND(O127=0,List!X118>0),0.5, ) -> 0 | P127: 0 | Q127: 0 | R127: =IF(F127>=1,H4,0) -> 0 | S127: =IF(F127>=1,I4,0) -> 0 | T127: =IF(F127>0,K4,0) -> 0 | U127: 0
A128: 0 | C128: =List!C119 -> 6 | D128: =List!D119 -> EM | E128: =List!F119 -> 0 | F128: =List!G119 -> 0 | G128: =List!H119 -> 0 | H128: =List!I119 -> 0 | I128: =List!J119 -> 0 | J128: =List!M119 -> 0 | K128: =List!R119 -> 0 | N128: =IF(AND(O128=0,List!X119>0),0.5, ) -> 0 | P128: 0 | Q128: 0 | R128: =IF(F128>=1,R127,0) -> 0 | S128: =IF(F128>=1,S127,0) -> 0 | T128: =IF(F128>0,T127,0) -> 0 | U128: 0
A129: 0 | C129: =List!C120 -> 6 | D129: =List!D120 -> EM | E129: =List!F120 -> 0 | F129: =List!G120 -> 0 | G129: =List!H120 -> 0 | H129: =List!I120 -> 0 | I129: =List!J120 -> 0 | J129: =List!M120 -> 0 | K129: =List!R120 -> 0 | N129: =IF(AND(O129=0,List!X120>0),0.5, ) -> 0 | P129: 0 | Q129: 0 | R129: 0 | S129: 0 | T129: =IF(F129>0,T128,0) -> 0 | U129: 0
A130: 0 | C130: =List!C121 -> 6 | D130: =List!D121 -> EM | E130: =List!F121 -> 0 | F130: =List!G121 -> 0 | G130: =List!H121 -> 0 | H130: =List!I121 -> 0 | I130: =List!J121 -> 0 | J130: =List!M121 -> 0 | K130: =List!R121 -> 0 | N130: =IF(AND(O130=0,List!X121>0),0.5, ) -> 0 | P130: 0 | Q130: =IF(O130=0,2.25,0) -> 0 | R130: 0 | S130: 0 | T130: 0 | U130: 0
A131: 0 | C131: =List!C122 -> 6 | D131: =List!D122 -> EM | E131: =List!F122 -> 0 | F131: =List!G122 -> 0 | G131: =List!H122 -> 0 | H131: =List!I122 -> 0 | I131: =List!J122 -> 0 | J131: =List!M122 -> 0 | K131: =List!R122 -> 0 | N131: =IF(AND(O131=0,List!X122>0),0.5, ) -> 0 | P131: 0 | Q131: 0 | R131: 0 | S131: 0 | T131: 0 | U131: 0
A132: 0 | C132: =List!C123 -> 6 | D132: =List!D123 -> EM | E132: =List!F123 -> 0 | F132: =List!G123 -> 0 | G132: =List!H123 -> 0 | H132: =List!I123 -> 0 | I132: =List!J123 -> 0 | J132: =List!M123 -> 0 | K132: =List!R123 -> 0 | N132: =IF(AND(O132=0,List!X123>0),0.5, ) -> 0 | P132: 0 | Q132: 0 | R132: 0 | S132: 0 | T132: 0 | U132: 0
A133: 0 | C133: =List!C124 -> 6 | D133: =List!D124 -> EM | E133: =List!F124 -> 0 | F133: =List!G124 -> 0 | G133: =List!H124 -> 0 | H133: =List!I124 -> 0 | I133: =List!J124 -> 0 | J133: =List!M124 -> 0 | K133: =List!R124 -> 0 | N133: =IF(AND(O133=0,List!X124>0),0.5, ) -> 0 | P133: 0 | Q133: 0 | R133: 0 | S133: 0 | T133: 0 | U133: 0
A134: 0 | C134: =List!C125 -> 6 | D134: =List!D125 -> EM | E134: =List!F125 -> 0 | F134: =List!G125 -> 0 | G134: =List!H125 -> 0 | H134: =List!I125 -> 0 | I134: =List!J125 -> 0 | J134: =List!M125 -> 0 | K134: =List!R125 -> 0 | N134: =IF(AND(O134=0,List!X125>0),0.5, ) -> 0 | P134: 0 | Q134: 0 | R134: 0 | S134: 0 | T134: 0 | U134: 0
A135: 0 | C135: =List!C126 -> 6 | D135: =List!D126 -> EM | E135: =List!F126 -> 0 | F135: =List!G126 -> 0 | G135: =List!H126 -> 0 | H135: =List!I126 -> 0 | I135: =List!J126 -> 0 | J135: =List!M126 -> 0 | K135: =List!R126 -> 0 | N135: =IF(AND(O135=0,List!X126>0),0.5, ) -> 0 | P135: 0 | Q135: 0 | R135: 0 | S135: 0 | T135: 0 | U135: 0
A136: 0 | C136: =List!C127 -> 6 | D136: =List!D127 -> EM | E136: =List!F127 -> 0 | F136: =List!G127 -> 0 | G136: =List!H127 -> 0 | H136: =List!I127 -> 0 | I136: =List!J127 -> 0 | J136: =List!M127 -> 0 | K136: =List!R127 -> 0 | N136: =IF(AND(O136=0,List!X127>0),0.5, ) -> 0 | P136: 0 | Q136: 0 | R136: 0 | S136: 0 | T136: 0 | U136: 0
A137: 0 | C137: =List!C128 -> 6 | D137: =List!D128 -> EM | E137: =List!F128 -> 0 | F137: =List!G128 -> 0 | G137: =List!H128 -> 0 | H137: =List!I128 -> 0 | I137: =List!J128 -> 0 | J137: =List!M128 -> 0 | K137: =List!R128 -> 0 | N137: =IF(AND(O137=0,List!X128>0),0.5, ) -> 0 | P137: 0 | Q137: 0 | R137: 0 | S137: 0 | T137: 0 | U137: 0
A138: 0 | C138: =List!C129 -> 6 | D138: =List!D129 -> EM | E138: =List!F129 -> 0 | F138: =List!G129 -> 0 | G138: =List!H129 -> 0 | H138: =List!I129 -> 0 | I138: =List!J129 -> 0 | J138: =List!M129 -> 0 | K138: =List!R129 -> 0 | N138: =IF(AND(O138=0,List!X129>0),0.5, ) -> 0 | P138: 0 | Q138: 0 | R138: 0 | S138: 0 | T138: 0 | U138: 0
A139: 0 | C139: =List!C130 -> 6 | D139: =List!D130 -> EM | E139: =List!F130 -> 0 | F139: =List!G130 -> 0 | G139: =List!H130 -> 0 | H139: =List!I130 -> 0 | I139: =List!J130 -> 0 | J139: =List!M130 -> 0 | K139: =List!R130 -> 0 | N139: =IF(AND(O139=0,List!X130>0),0.5, ) -> 0 | P139: 0 | Q139: 0 | R139: 0 | S139: 0 | T139: 0 | U139: 0
A140: 0 | C140: =List!C131 -> 6 | D140: =List!D131 -> EM | E140: =List!F131 -> 0 | F140: =List!G131 -> 0 | G140: =List!H131 -> 0 | H140: =List!I131 -> 0 | I140: =List!J131 -> 0 | J140: =List!M131 -> 0 | K140: =List!R131 -> 0 | N140: =IF(AND(O140=0,List!X131>0),0.5, ) -> 0 | P140: 0 | Q140: 0 | R140: 0 | S140: 0 | T140: 0 | U140: 0
A141: 0 | C141: =List!C132 -> 6 | D141: =List!D132 -> EM | E141: =List!F132 -> 0 | F141: =List!G132 -> 0 | G141: =List!H132 -> 0 | H141: =List!I132 -> 0 | I141: =List!J132 -> 0 | J141: =List!M132 -> 0 | K141: =List!R132 -> 0 | N141: =IF(AND(O141=0,List!X132>0),0.5, ) -> 0 | P141: 0 | Q141: 0 | R141: 0 | S141: 0 | T141: 0 | U141: 0
A142: 0 | C142: =List!C133 -> 6 | D142: =List!D133 -> EM | E142: =List!F133 -> 0 | F142: =List!G133 -> 0 | G142: =List!H133 -> 0 | H142: =List!I133 -> 0 | I142: =List!J133 -> 0 | J142: =List!M133 -> 0 | K142: =List!R133 -> 0 | N142: =IF(AND(O142=0,List!X133>0),0.5, ) -> 0 | P142: 0 | Q142: 0 | R142: 0 | S142: 0 | T142: 0 | U142: 0
A143: 0 | C143: =List!C134 -> 6 | D143: =List!D134 -> EM | E143: =List!F134 -> 0 | F143: =List!G134 -> 0 | G143: =List!H134 -> 0 | H143: =List!I134 -> 0 | I143: =List!J134 -> 0 | J143: =List!M134 -> 0 | K143: =List!R134 -> 0 | N143: =IF(AND(O143=0,List!X134>0),0.5, ) -> 0 | P143: 0 | Q143: 0 | R143: 0 | S143: 0 | T143: 0 | U143: 0
A144: 0 | C144: =List!C135 -> 6 | D144: =List!D135 -> EM | E144: =List!F135 -> 0 | F144: =List!G135 -> 0 | G144: =List!H135 -> 0 | H144: =List!I135 -> 0 | I144: =List!J135 -> 0 | J144: =List!M135 -> 0 | K144: =List!R135 -> 0 | N144: =IF(AND(O144=0,List!X135>0),0.5, ) -> 0 | P144: 0 | Q144: 0 | R144: 0 | S144: 0 | T144: 0 | U144: 0
A145: 0 | C145: =List!C136 -> 6 | D145: =List!D136 -> EM | E145: =List!F136 -> 0 | F145: =List!G136 -> 0 | G145: =List!H136 -> 0 | H145: =List!I136 -> 0 | I145: =List!J136 -> 0 | J145: =List!M136 -> 0 | K145: =List!R136 -> 0 | N145: =IF(AND(O145=0,List!X136>0),0.5, ) -> 0 | P145: 0 | Q145: 0 | R145: 0 | S145: 0 | T145: 0 | U145: 0
A146: 0 | C146: =List!C137 -> 6 | D146: =List!D137 -> EM | E146: =List!F137 -> 0 | F146: =List!G137 -> 0 | G146: =List!H137 -> 0 | H146: =List!I137 -> 0 | I146: =List!J137 -> 0 | J146: =List!M137 -> 0 | K146: =List!R137 -> 0 | N146: =IF(AND(O146=0,List!X137>0),0.5, ) -> 0 | P146: 0 | Q146: 0 | R146: 0 | S146: 0 | T146: 0 | U146: 0
A147: 0 | C147: =List!C138 -> 6 | D147: =List!D138 -> EM | E147: =List!F138 -> 0 | F147: =List!G138 -> 0 | G147: =List!H138 -> 0 | H147: =List!I138 -> 0 | I147: =List!J138 -> 0 | J147: =List!M138 -> 0 | K147: =List!R138 -> 0 | N147: =IF(AND(O147=0,List!X138>0),0.5, ) -> 0 | P147: 0 | Q147: 0 | R147: 0 | S147: 0 | T147: 0 | U147: 0
A148: 0 | C148: =List!C139 -> 6 | D148: =List!D139 -> EM | E148: =List!F139 -> 0 | F148: =List!G139 -> 0 | G148: =List!H139 -> 0 | H148: =List!I139 -> 0 | I148: =List!J139 -> 0 | J148: =List!M139 -> 0 | K148: =List!R139 -> 0 | N148: =IF(AND(O148=0,List!X139>0),0.5, ) -> 0 | P148: 0 | Q148: 0 | R148: 0 | S148: 0 | T148: 0 | U148: 0
A149: 0 | C149: =List!C140 -> 6 | D149: =List!D140 -> EM | E149: =List!F140 -> 0 | F149: =List!G140 -> 0 | G149: =List!H140 -> 0 | H149: =List!I140 -> 0 | I149: =List!J140 -> 0 | J149: =List!M140 -> 0 | K149: =List!R140 -> 0 | N149: =IF(AND(O149=0,List!X140>0),0.5, ) -> 0 | P149: 0 | Q149: 0 | R149: 0 | S149: 0 | T149: 0 | U149: 0
A150: 0 | C150: =List!C141 -> 6 | D150: =List!D141 -> EM | E150: =List!F141 -> 0 | F150: =List!G141 -> 0 | G150: =List!H141 -> 0 | H150: =List!I141 -> 0 | I150: =List!J141 -> 0 | J150: =List!M141 -> 0 | K150: =List!R141 -> 0 | N150: =IF(AND(O150=0,List!X141>0),0.5, ) -> 0 | P150: 0 | Q150: 0 | R150: 0 | S150: 0 | T150: 0 | U150: 0
A151: 0 | C151: =List!C142 -> 6 | D151: =List!D142 -> EM | E151: =List!F142 -> 0 | F151: =List!G142 -> 0 | G151: =List!H142 -> 0 | H151: =List!I142 -> 0 | I151: =List!J142 -> 0 | J151: =List!M142 -> 0 | K151: =List!R142 -> 0 | N151: =IF(AND(O151=0,List!X142>0),0.5, ) -> 0 | P151: 0 | Q151: 0 | R151: 0 | S151: 0 | T151: 0 | U151: 0
A152: 0 | C152: =List!C143 -> 6 | D152: =List!D143 -> EM | E152: =List!F143 -> 0 | F152: =List!G143 -> 0 | G152: =List!H143 -> 0 | H152: =List!I143 -> 0 | I152: =List!J143 -> 0 | J152: =List!M143 -> 0 | K152: =List!R143 -> 0 | N152: =IF(AND(O152=0,List!X143>0),0.5, ) -> 0 | P152: 0 | Q152: 0 | R152: 0 | S152: 0 | T152: 0 | U152: 0
A153: 0 | C153: =List!C144 -> 6 | D153: =List!D144 -> EM | E153: =List!F144 -> 0 | F153: =List!G144 -> 0 | G153: =List!H144 -> 0 | H153: =List!I144 -> 0 | I153: =List!J144 -> 0 | J153: =List!M144 -> 0 | K153: =List!R144 -> 0 | N153: =IF(AND(O153=0,List!X144>0),0.5, ) -> 0 | P153: 0 | Q153: 0 | R153: 0 | S153: 0 | T153: 0 | U153: 0
A154: 0 | C154: =List!C145 -> 6 | D154: =List!D145 -> EM | E154: =List!F145 -> 0 | F154: =List!G145 -> 0 | G154: =List!H145 -> 0 | H154: =List!I145 -> 0 | I154: =List!J145 -> 0 | J154: =List!M145 -> 0 | K154: =List!R145 -> 0 | N154: =IF(AND(O154=0,List!X145>0),0.5, ) -> 0 | P154: 0 | Q154: 0 | R154: 0 | S154: 0 | T154: 0 | U154: 0
A155: 0 | C155: =List!C146 -> 6 | D155: =List!D146 -> EM | E155: =List!F146 -> 0 | F155: =List!G146 -> 0 | G155: =List!H146 -> 0 | H155: =List!I146 -> 0 | I155: =List!J146 -> 0 | J155: =List!M146 -> 0 | K155: =List!R146 -> 0 | N155: =IF(AND(O155=0,List!X146>0),0.5, ) -> 0 | O155: =IF(M155="N",0,IF(M155="Y",1," ")) ->  | P155: =IF(O155=0,6.75,0) -> 0 | Q155: 0 | R155: 0 | S155: 0 | T155: 0 | U155: =N155+P155+Q155+R155+S155+T155 -> 0
A156: 0 | C156: =List!C147 -> 6 | D156: =List!D147 -> EM | E156: =List!F147 -> 0 | F156: =List!G147 -> 0 | G156: =List!H147 -> 0 | H156: =List!I147 -> 0 | I156: =List!J147 -> 0 | J156: =List!M147 -> 0 | K156: =List!R147 -> 0 | N156: =IF(AND(O156=0,List!X147>0),0.5, ) -> 0 | P156: 0 | Q156: 0 | R156: 0 | S156: 0 | T156: 0 | U156: 0
A157: 0 | C157: =List!C148 -> 6 | D157: =List!D148 -> EM | E157: =List!F148 -> 0 | F157: =List!G148 -> 0 | G157: =List!H148 -> 0 | H157: =List!I148 -> 0 | I157: =List!J148 -> 0 | J157: =List!M148 -> 0 | K157: =List!R148 -> 0 | N157: =IF(AND(O157=0,List!X148>0),0.5, ) -> 0 | P157: 0 | Q157: 0 | R157: 0 | S157: 0 | T157: 0 | U157: 0
A158: 0 | C158: =List!C149 -> 6 | D158: =List!D149 -> EM | E158: =List!F149 -> 0 | F158: =List!G149 -> 0 | G158: =List!H149 -> 0 | H158: =List!I149 -> 0 | I158: =List!J149 -> 0 | J158: =List!M149 -> 0 | K158: =List!R149 -> 0 | N158: =IF(AND(O158=0,List!X149>0),0.5, ) -> 0 | P158: 0 | Q158: 0 | R158: 0 | S158: 0 | T158: 0 | U158: 0
A159: =F159 -> 0 | C159: =List!C150 -> 6 | D159: =List!D150 -> EM | E159: =List!F150 -> 0 | F159: =List!G150 -> 0 | G159: =List!H150 -> 0 | H159: =List!I150 -> 0 | I159: =List!J150 -> 0 | J159: =List!M150 -> 0 | K159: =List!R150 -> 0 | N159: =IF(AND(O159=0,List!X150>0),0.5, ) -> 0 | P159: 0 | Q159: 0 | R159: 0 | S159: 0 | T159: 0 | U159: 0
A160: 0 | C160: =List!C151 -> 6 | D160: =List!D151 -> EM | E160: =List!F151 -> 0 | F160: =List!G151 -> 0 | G160: =List!H151 -> 0 | H160: =List!I151 -> 0 | I160: =List!J151 -> 0 | J160: =List!M151 -> 0 | K160: =List!R151 -> 0 | N160: =IF(AND(O160=0,List!X151>0),0.5, ) -> 0 | P160: 0 | Q160: 0 | R160: =IF(F160>=1,R159,0) -> 0 | S160: =IF(F160>=1,S159,0) -> 0 | T160: 0 | U160: 0
A161: 0 | C161: =List!C152 -> 6 | D161: =List!D152 -> EM | E161: =List!F152 -> 0 | F161: =List!G152 -> 0 | G161: =List!H152 -> 0 | H161: =List!I152 -> 0 | I161: =List!J152 -> 0 | J161: =List!M152 -> 0 | K161: =List!R152 -> 0 | N161: =IF(AND(O161=0,List!X152>0),0.5, ) -> 0 | P161: 0 | Q161: 0 | R161: 0 | S161: 0 | T161: 0 | U161: 0
A162: 0 | C162: =List!C153 -> 6 | D162: =List!D153 -> EM | E162: =List!F153 -> 0 | F162: =List!G153 -> 0 | G162: =List!H153 -> 0 | H162: =List!I153 -> 0 | I162: =List!J153 -> 0 | J162: =List!M153 -> 0 | K162: =List!R153 -> 0 | N162: =IF(AND(O162=0,List!X153>0),0.5, ) -> 0 | P162: 0 | Q162: 0 | R162: 0 | S162: 0 | T162: 0 | U162: 0
A163: 0 | C163: =List!C154 -> 6 | D163: =List!D154 -> EM | E163: =List!F154 -> 0 | F163: =List!G154 -> 0 | G163: =List!H154 -> 0 | H163: =List!I154 -> 0 | I163: =List!J154 -> 0 | J163: =List!M154 -> 0 | K163: =List!R154 -> 0 | N163: =IF(AND(O163=0,List!X154>0),0.5, ) -> 0 | P163: 0 | Q163: 0 | R163: 0 | S163: 0 | T163: 0 | U163: 0
A164: 0 | C164: =List!C155 -> 6 | D164: =List!D155 -> EM | E164: =List!F155 -> 0 | F164: =List!G155 -> 0 | G164: =List!H155 -> 0 | H164: =List!I155 -> 0 | I164: =List!J155 -> 0 | J164: =List!M155 -> 0 | K164: =List!R155 -> 0 | N164: =IF(AND(O164=0,List!X155>0),0.5, ) -> 0 | P164: 0 | Q164: 0 | R164: 0 | S164: 0 | T164: 0 | U164: 0
A165: 0 | C165: =List!C156 -> 6 | D165: =List!D156 -> EM | E165: =List!F156 -> 0 | F165: =List!G156 -> 0 | G165: =List!H156 -> 0 | H165: =List!I156 -> 0 | I165: =List!J156 -> 0 | J165: =List!M156 -> 0 | K165: =List!R156 -> 0 | N165: =IF(AND(O165=0,List!X156>0),0.5, ) -> 0 | P165: 0 | Q165: 0 | R165: 0 | S165: 0 | T165: 0 | U165: 0
A166: 0 | C166: =List!C157 -> 6 | D166: =List!D157 -> EM | E166: =List!F157 -> 0 | F166: =List!G157 -> 0 | G166: =List!H157 -> 0 | H166: =List!I157 -> 0 | I166: =List!J157 -> 0 | J166: =List!M157 -> 0 | K166: =List!R157 -> 0 | N166: =IF(AND(O166=0,List!X157>0),0.5, ) -> 0 | P166: 0 | Q166: 0 | R166: 0 | S166: 0 | T166: 0 | U166: 0
A167: 0 | C167: =List!C158 -> 6 | D167: =List!D158 -> EM | E167: =List!F158 -> 0 | F167: =List!G158 -> 0 | G167: =List!H158 -> 0 | H167: =List!I158 -> 0 | I167: =List!J158 -> 0 | J167: =List!M158 -> 0 | K167: =List!R158 -> 0 | N167: =IF(AND(O167=0,List!X158>0),0.5, ) -> 0 | P167: 0 | Q167: 0 | R167: 0 | S167: 0 | T167: 0 | U167: 0
A168: 0 | C168: =List!C159 -> 6 | D168: =List!D159 -> EM | E168: =List!F159 -> 0 | F168: =List!G159 -> 0 | G168: =List!H159 -> 0 | H168: =List!I159 -> 0 | I168: =List!J159 -> 0 | J168: =List!M159 -> 0 | K168: =List!R159 -> 0 | N168: =IF(AND(O168=0,List!X159>0),0.5, ) -> 0 | P168: 0 | Q168: 0 | R168: 0 | S168: 0 | T168: 0 | U168: 0
A169: 0 | C169: =List!C160 -> 6 | D169: =List!D160 -> EM | E169: =List!F160 -> 0 | F169: =List!G160 -> 0 | G169: =List!H160 -> 0 | H169: =List!I160 -> 0 | I169: =List!J160 -> 0 | J169: =List!M160 -> 0 | K169: =List!R160 -> 0 | N169: =IF(AND(O169=0,List!X160>0),0.5, ) -> 0 | P169: 0 | Q169: 0 | R169: 0 | S169: 0 | T169: 0 | U169: 0
A170: 0 | C170: =List!C161 -> 6 | D170: =List!D161 -> EM | E170: =List!F161 -> 0 | F170: =List!G161 -> 0 | G170: =List!H161 -> 0 | H170: =List!I161 -> 0 | I170: =List!J161 -> 0 | J170: =List!M161 -> 0 | K170: =List!R161 -> 0 | N170: =IF(AND(O170=0,List!X161>0),0.5, ) -> 0 | P170: 0 | Q170: 0 | R170: 0 | S170: 0 | T170: 0 | U170: 0
A171: 0 | C171: =List!C162 -> 6 | D171: =List!D162 -> EM | E171: =List!F162 -> 0 | F171: =List!G162 -> 0 | G171: =List!H162 -> 0 | H171: =List!I162 -> 0 | I171: =List!J162 -> 0 | J171: =List!M162 -> 0 | K171: =List!R162 -> 0 | N171: =IF(AND(O171=0,List!X162>0),0.5, ) -> 0 | P171: 0 | Q171: 0 | R171: 0 | S171: 0 | T171: 0 | U171: 0
A172: 0 | C172: =List!C163 -> 6 | D172: =List!D163 -> EM | E172: =List!F163 -> 0 | F172: =List!G163 -> 0 | G172: =List!H163 -> 0 | H172: =List!I163 -> 0 | I172: =List!J163 -> 0 | J172: =List!M163 -> 0 | K172: =List!R163 -> 0 | N172: =IF(AND(O172=0,List!X163>0),0.5, ) -> 0 | P172: 0 | Q172: 0 | R172: 0 | S172: 0 | T172: 0 | U172: 0
A173: 0 | C173: =List!C164 -> 6 | D173: =List!D164 -> EM | E173: =List!F164 -> 0 | F173: =List!G164 -> 0 | G173: =List!H164 -> 0 | H173: =List!I164 -> 0 | I173: =List!J164 -> 0 | J173: =List!M164 -> 0 | K173: =List!R164 -> 0 | N173: =IF(AND(O173=0,List!X164>0),0.5, ) -> 0 | P173: 0 | Q173: 0 | R173: 0 | S173: 0 | T173: 0 | U173: 0
A174: 0 | C174: =List!C165 -> 6 | D174: =List!D165 -> EM | E174: =List!F165 -> 0 | F174: =List!G165 -> 0 | G174: =List!H165 -> 0 | H174: =List!I165 -> 0 | I174: =List!J165 -> 0 | J174: =List!M165 -> 0 | K174: =List!R165 -> 0 | N174: =IF(AND(O174=0,List!X165>0),0.5, ) -> 0 | P174: 0 | Q174: 0 | R174: 0 | S174: 0 | T174: 0 | U174: 0
A175: 0 | C175: =List!C166 -> 6 | D175: =List!D166 -> EM | E175: =List!F166 -> 0 | F175: =List!G166 -> 0 | G175: =List!H166 -> 0 | H175: =List!I166 -> 0 | I175: =List!J166 -> 0 | J175: =List!M166 -> 0 | K175: =List!R166 -> 0 | N175: =IF(AND(O175=0,List!X166>0),0.5, ) -> 0 | P175: 0 | Q175: 0 | R175: 0 | S175: 0 | T175: 0 | U175: 0
A176: 0 | C176: =List!C167 -> 6 | D176: =List!D167 -> EM | E176: =List!F167 -> 0 | F176: =List!G167 -> 0 | G176: =List!H167 -> 0 | H176: =List!I167 -> 0 | I176: =List!J167 -> 0 | J176: =List!M167 -> 0 | K176: =List!R167 -> 0 | N176: =IF(AND(O176=0,List!X167>0),0.5, ) -> 0 | P176: 0 | Q176: 0 | R176: 0 | S176: 0 | T176: 0 | U176: 0
A177: 1
A178: =F178 -> 0 | C178: =List!C169 -> 7 | D178: =List!D169 -> TM | E178: =List!F169 -> 0 | F178: =List!G169 -> 0 | G178: =List!H169 -> 0 | H178: =List!I169 -> 0 | I178: =List!J169 -> 0 | J178: =List!M169 -> 0 | K178: =List!R169 -> 0 | N178: =IF(AND(O178=0,List!X169>0),0.5, ) -> 0 | P178: 0 | Q178: 0 | R178: =IF(F178>=1,H5,0) -> 0 | S178: =IF(F178>=1,I5,0) -> 0 | T178: =IF(F178>0,K5,0) -> 0 | U178: 0
A179: 0 | C179: =List!C170 -> 7 | D179: =List!D170 -> TM | E179: =List!F170 -> 0 | F179: =List!G170 -> 0 | G179: =List!H170 -> 0 | H179: =List!I170 -> 0 | I179: =List!J170 -> 0 | J179: =List!M170 -> 0 | K179: =List!R170 -> 0 | N179: =IF(AND(O179=0,List!X170>0),0.5, ) -> 0 | P179: 0 | Q179: 0 | R179: =IF(F179>=1,R178,0) -> 0 | S179: =IF(F179>=1,S178,0) -> 0 | T179: =IF(F179>0,T178,0) -> 0 | U179: 0
A180: 0 | C180: =List!C171 -> 7 | D180: =List!D171 -> TM | E180: =List!F171 -> 0 | F180: =List!G171 -> 0 | G180: =List!H171 -> 0 | H180: =List!I171 -> 0 | I180: =List!J171 -> 0 | J180: =List!M171 -> 0 | K180: =List!R171 -> 0 | N180: =IF(AND(O180=0,List!X171>0),0.5, ) -> 0 | P180: 0 | Q180: 0 | R180: 0 | S180: 0 | T180: =IF(F180>0,T179,0) -> 0 | U180: 0
A181: 0 | C181: =List!C172 -> 7 | D181: =List!D172 -> TM | E181: =List!F172 -> 0 | F181: =List!G172 -> 0 | G181: =List!H172 -> 0 | H181: =List!I172 -> 0 | I181: =List!J172 -> 0 | J181: =List!M172 -> 0 | K181: =List!R172 -> 0 | N181: =IF(AND(O181=0,List!X172>0),0.5, ) -> 0 | P181: 0 | Q181: 0 | R181: 0 | S181: 0 | T181: 0 | U181: 0
A182: 0 | C182: =List!C173 -> 7 | D182: =List!D173 -> TM | E182: =List!F173 -> 0 | F182: =List!G173 -> 0 | G182: =List!H173 -> 0 | H182: =List!I173 -> 0 | I182: =List!J173 -> 0 | J182: =List!M173 -> 0 | K182: =List!R173 -> 0 | N182: =IF(AND(O182=0,List!X173>0),0.5, ) -> 0 | P182: 0 | Q182: 0 | R182: 0 | S182: 0 | T182: 0 | U182: 0
A183: 0 | C183: =List!C174 -> 7 | D183: =List!D174 -> TM | E183: =List!F174 -> 0 | F183: =List!G174 -> 0 | G183: =List!H174 -> 0 | H183: =List!I174 -> 0 | I183: =List!J174 -> 0 | J183: =List!M174 -> 0 | K183: =List!R174 -> 0 | N183: =IF(AND(O183=0,List!X174>0),0.5, ) -> 0 | P183: 0 | Q183: 0 | R183: 0 | S183: 0 | T183: 0 | U183: 0
A184: 0 | C184: =List!C175 -> 7 | D184: =List!D175 -> TM | E184: =List!F175 -> 0 | F184: =List!G175 -> 0 | G184: =List!H175 -> 0 | H184: =List!I175 -> 0 | I184: =List!J175 -> 0 | J184: =List!M175 -> 0 | K184: =List!R175 -> 0 | N184: =IF(AND(O184=0,List!X175>0),0.5, ) -> 0 | P184: 0 | Q184: 0 | R184: 0 | S184: 0 | T184: 0 | U184: 0
A185: 0 | C185: =List!C176 -> 7 | D185: =List!D176 -> TM | E185: =List!F176 -> 0 | F185: =List!G176 -> 0 | G185: =List!H176 -> 0 | H185: =List!I176 -> 0 | I185: =List!J176 -> 0 | J185: =List!M176 -> 0 | K185: =List!R176 -> 0 | N185: =IF(AND(O185=0,List!X176>0),0.5, ) -> 0 | P185: 0 | Q185: 0 | R185: 0 | S185: 0 | T185: 0 | U185: 0
A186: 0 | C186: =List!C177 -> 7 | D186: =List!D177 -> TM | E186: =List!F177 -> 0 | F186: =List!G177 -> 0 | G186: =List!H177 -> 0 | H186: =List!I177 -> 0 | I186: =List!J177 -> 0 | J186: =List!M177 -> 0 | K186: =List!R177 -> 0 | N186: =IF(AND(O186=0,List!X177>0),0.5, ) -> 0 | P186: 0 | Q186: 0 | R186: 0 | S186: 0 | T186: 0 | U186: 0
A187: 0 | C187: =List!C178 -> 7 | D187: =List!D178 -> TM | E187: =List!F178 -> 0 | F187: =List!G178 -> 0 | G187: =List!H178 -> 0 | H187: =List!I178 -> 0 | I187: =List!J178 -> 0 | J187: =List!M178 -> 0 | K187: =List!R178 -> 0 | N187: =IF(AND(O187=0,List!X178>0),0.5, ) -> 0 | P187: 0 | Q187: 0 | R187: 0 | S187: 0 | T187: 0 | U187: 0
A188: 0 | C188: =List!C179 -> 7 | D188: =List!D179 -> TM | E188: =List!F179 -> 0 | F188: =List!G179 -> 0 | G188: =List!H179 -> 0 | H188: =List!I179 -> 0 | I188: =List!J179 -> 0 | J188: =List!M179 -> 0 | K188: =List!R179 -> 0 | N188: =IF(AND(O188=0,List!X179>0),0.5, ) -> 0 | P188: 0 | Q188: 0 | R188: 0 | S188: 0 | T188: 0 | U188: 0
A189: 0 | C189: =List!C180 -> 7 | D189: =List!D180 -> TM | E189: =List!F180 -> 0 | F189: =List!G180 -> 0 | G189: =List!H180 -> 0 | H189: =List!I180 -> 0 | I189: =List!J180 -> 0 | J189: =List!M180 -> 0 | K189: =List!R180 -> 0 | N189: =IF(AND(O189=0,List!X180>0),0.5, ) -> 0 | P189: 0 | Q189: 0 | R189: 0 | S189: 0 | T189: 0 | U189: 0
A190: 0 | C190: =List!C181 -> 7 | D190: =List!D181 -> TM | E190: =List!F181 -> 0 | F190: =List!G181 -> 0 | G190: =List!H181 -> 0 | H190: =List!I181 -> 0 | I190: =List!J181 -> 0 | J190: =List!M181 -> 0 | K190: =List!R181 -> 0 | N190: =IF(AND(O190=0,List!X181>0),0.5, ) -> 0 | P190: 0 | Q190: 0 | R190: 0 | S190: 0 | T190: 0 | U190: 0
A191: 0 | C191: =List!C182 -> 7 | D191: =List!D182 -> TM | E191: =List!F182 -> 0 | F191: =List!G182 -> 0 | G191: =List!H182 -> 0 | H191: =List!I182 -> 0 | I191: =List!J182 -> 0 | J191: =List!M182 -> 0 | K191: =List!R182 -> 0 | N191: =IF(AND(O191=0,List!X182>0),0.5, ) -> 0 | P191: 0 | Q191: 0 | R191: 0 | S191: 0 | T191: 0 | U191: 0
A192: 0 | C192: =List!C183 -> 7 | D192: =List!D183 -> TM | E192: =List!F183 -> 0 | F192: =List!G183 -> 0 | G192: =List!H183 -> 0 | H192: =List!I183 -> 0 | I192: =List!J183 -> 0 | J192: =List!M183 -> 0 | K192: =List!R183 -> 0 | N192: =IF(AND(O192=0,List!X183>0),0.5, ) -> 0 | P192: 0 | Q192: 0 | R192: 0 | S192: 0 | T192: 0 | U192: 0
A193: 0 | C193: =List!C184 -> 7 | D193: =List!D184 -> TM | E193: =List!F184 -> 0 | F193: =List!G184 -> 0 | G193: =List!H184 -> 0 | H193: =List!I184 -> 0 | I193: =List!J184 -> 0 | J193: =List!M184 -> 0 | K193: =List!R184 -> 0 | N193: =IF(AND(O193=0,List!X184>0),0.5, ) -> 0 | P193: 0 | Q193: 0 | R193: 0 | S193: 0 | T193: 0 | U193: 0
A194: 0 | C194: =List!C185 -> 7 | D194: =List!D185 -> TM | E194: =List!F185 -> 0 | F194: =List!G185 -> 0 | G194: =List!H185 -> 0 | H194: =List!I185 -> 0 | I194: =List!J185 -> 0 | J194: =List!M185 -> 0 | K194: =List!R185 -> 0 | N194: =IF(AND(O194=0,List!X185>0),0.5, ) -> 0 | P194: 0 | Q194: =IF(O194=0,2.25,0) -> 0 | R194: 0 | S194: 0 | T194: 0 | U194: 0
A195: 0 | C195: =List!C186 -> 7 | D195: =List!D186 -> TM | E195: =List!F186 -> 0 | F195: =List!G186 -> 0 | G195: =List!H186 -> 0 | H195: =List!I186 -> 0 | I195: =List!J186 -> 0 | J195: =List!M186 -> 0 | K195: =List!R186 -> 0 | N195: =IF(AND(O195=0,List!X186>0),0.5, ) -> 0 | P195: 0 | Q195: 0 | R195: 0 | S195: 0 | T195: 0 | U195: 0
A196: 0 | C196: =List!C187 -> 7 | D196: =List!D187 -> TM | E196: =List!F187 -> 0 | F196: =List!G187 -> 0 | G196: =List!H187 -> 0 | H196: =List!I187 -> 0 | I196: =List!J187 -> 0 | J196: =List!M187 -> 0 | K196: =List!R187 -> 0 | N196: =IF(AND(O196=0,List!X187>0),0.5, ) -> 0 | P196: 0 | Q196: 0 | R196: 0 | S196: 0 | T196: 0 | U196: 0
A197: 0 | C197: =List!C188 -> 7 | D197: =List!D188 -> TM | E197: =List!F188 -> 0 | F197: =List!G188 -> 0 | G197: =List!H188 -> 0 | H197: =List!I188 -> 0 | I197: =List!J188 -> 0 | J197: =List!M188 -> 0 | K197: =List!R188 -> 0 | N197: =IF(AND(O197=0,List!X188>0),0.5, ) -> 0 | P197: 0 | Q197: 0 | R197: 0 | S197: 0 | T197: 0 | U197: 0
A198: 0 | C198: =List!C189 -> 7 | D198: =List!D189 -> TM | E198: =List!F189 -> 0 | F198: =List!G189 -> 0 | G198: =List!H189 -> 0 | H198: =List!I189 -> 0 | I198: =List!J189 -> 0 | J198: =List!M189 -> 0 | K198: =List!R189 -> 0 | N198: =IF(AND(O198=0,List!X189>0),0.5, ) -> 0 | P198: 0 | Q198: 0 | R198: 0 | S198: 0 | T198: 0 | U198: 0
A199: 0 | C199: =List!C190 -> 7 | D199: =List!D190 -> TM | E199: =List!F190 -> 0 | F199: =List!G190 -> 0 | G199: =List!H190 -> 0 | H199: =List!I190 -> 0 | I199: =List!J190 -> 0 | J199: =List!M190 -> 0 | K199: =List!R190 -> 0 | N199: =IF(AND(O199=0,List!X190>0),0.5, ) -> 0 | P199: 0 | Q199: 0 | R199: 0 | S199: 0 | T199: 0 | U199: 0
A200: 0 | C200: =List!C191 -> 7 | D200: =List!D191 -> TM | E200: =List!F191 -> 0 | F200: =List!G191 -> 0 | G200: =List!H191 -> 0 | H200: =List!I191 -> 0 | I200: =List!J191 -> 0 | J200: =List!M191 -> 0 | K200: =List!R191 -> 0 | N200: =IF(AND(O200=0,List!X191>0),0.5, ) -> 0 | P200: 0 | Q200: 0 | R200: 0 | S200: 0 | T200: 0 | U200: 0
A201: 0 | C201: =List!C192 -> 7 | D201: =List!D192 -> TM | E201: =List!F192 -> 0 | F201: =List!G192 -> 0 | G201: =List!H192 -> 0 | H201: =List!I192 -> 0 | I201: =List!J192 -> 0 | J201: =List!M192 -> 0 | K201: =List!R192 -> 0 | N201: =IF(AND(O201=0,List!X192>0),0.5, ) -> 0 | P201: 0 | Q201: 0 | R201: 0 | S201: 0 | T201: 0 | U201: 0
A202: 0 | C202: =List!C193 -> 7 | D202: =List!D193 -> TM | E202: =List!F193 -> 0 | F202: =List!G193 -> 0 | G202: =List!H193 -> 0 | H202: =List!I193 -> 0 | I202: =List!J193 -> 0 | J202: =List!M193 -> 0 | K202: =List!R193 -> 0 | N202: =IF(AND(O202=0,List!X193>0),0.5, ) -> 0 | P202: 0 | Q202: 0 | R202: 0 | S202: 0 | T202: 0 | U202: 0
... 623 more rows

Sheet Att
K1: Enter the working days of the school for each month in 'School Details and Plan' sheet.
C2: CONSOLIDATE ATTENDANCE
C3: Adm. No | D3: Roll No | E3: Name of the Student | G3: Sex | H3: Caste Code | I3: Fee Paid? | J3: Warning | K3: No of days of attendance - Long term | U3: No of days atndce - Short term | AB3: Total Days | AE3: PET
K4: June | L4: July | M4: Aug | N4: Sep | O4: Oct | P4: Nov | Q4: Dec | R4: Total | S4: working days | T4: % | U4: Jan | V4: Feb | W4: Mar | X4: Apr | Y4: Total | Z4: Working days | AA4: % | AB4: Attendance | AC4: Working days | AD4: % | AE4: Atdc | AG4: %
A5: 1 | K5: =Data!J7 -> 17 | L5: =Data!J8 -> 24 | M5: =Data!J9 -> 25 | N5: =Data!J10 -> 20 | O5: =Data!J11 -> 19 | P5: =Data!J12 -> 25 | Q5: =Data!J13 -> 24 | R5: =K5+L5+M5+N5+O5+P5+Q5 -> 154 | U5: =Data!J14 -> 19 | V5: =Data!J15 -> 20 | W5: =Data!J16 -> 20 | X5: =Data!J17 -> 15 | Y5: =U5+V5+W5+X5 -> 74 | AB5: =R5+Y5 -> 228
A6: 1
A7: =A8 -> 1 | C7: VI CLASS TELUGU MEDIUM
A8: =D8 -> 1 | C8: =List!F7 -> 123 | D8: =List!G7 -> 1 | E8: =List!H7 -> T | F8: =CONCATENATE(List!I7," -",List!U7) -> Lekhya - | G8: =List!J7 -> G | H8: =List!M7 -> OC | I8: =IF(D8<1," ",IF(Fee!L16,"Yes ","No")) -> No | J8: =IF(AD8<1,"Neglect",IF(AD8<65,"Detained",IF(AD8<75,"MC required","Satisfactory"))) -> Neglect | R8: =SUM(K8:Q8) -> 0 | S8: =R5 -> 154 | T8: =IF(R8>0,ROUND(R8*100/S8,0)," ") ->  | Y8: =SUM(U8:X8) -> 0 | Z8: =Y5 -> 74 | AA8: =IF(Y8>0,ROUND(Y8*100/Z8,0)," ") ->  | AB8: =ROUND(R8+Y8,0) -> 0 | AC8: =AB5 -> 228 | AD8: =IF(AB8>0,ROUND(AB8*100/AC8,0),0) -> 0 | AF8: =Data!M7 -> 52 | AG8: =IF(AE8>0,ROUND(AE8*100/AF8,0),0) -> 0
A9: =D9 -> 2 | C9: =List!F8 -> 124 | D9: =List!G8 -> 2 | E9: =List!H8 -> A | F9: =CONCATENATE(List!I8," -",List!U8) -> Neeharika -TC issued 25/10/2011 | G9: =List!J8 -> G | H9: =List!M8 -> BC-A | I9: =IF(D9<1," ",IF(Fee!L17,"Yes ","No")) -> No | J9: Neglect | R9: =SUM(K9:Q9) -> 0 | S9: =S8 -> 154 | T9: =IF(R9>0,ROUND(R9*100/S9,0)," ") ->  | Y9: =SUM(U9:X9) -> 0 | Z9: =Z8 -> 74 | AA9: =IF(Y9>0,ROUND(Y9*100/Z9,0)," ") ->  | AB9: 0 | AC9: =AC8 -> 228 | AD9: =IF(AB9>0,ROUND(AB9*100/AC9,0),0) -> 0 | AF9: =AF8 -> 52 | AG9: =IF(AE9>0,ROUND(AE9*100/AF9,0),0) -> 0
A10: 3 | C10: =List!F9 -> 125 | D10: =List!G9 -> 3 | E10: =List!H9 -> Sk | F10: =CONCATENATE(List!I9," -",List!U9) -> Neelesh -Discontinued 30/6/11 | G10: =List!J9 -> B | H10: =List!M9 -> BC-E | I10: =IF(D10<1," ",IF(Fee!L18,"Yes ","No")) -> No | J10: Neglect | R10: 0 | S10: 154 | Y10: 0 | Z10: 74 | AB10: 0 | AC10: 228 | AD10: 0 | AF10: =AF9 -> 52 | AG10: =IF(AE10>0,ROUND(AE10*100/AF10,0),0) -> 0
A11: 4 | C11: =List!F10 -> 126 | D11: =List!G10 -> 4 | E11: =List!H10 -> Ch | F11: =CONCATENATE(List!I10," -",List!U10) -> Nikhil - | G11: =List!J10 -> B | H11: =List!M10 -> SC-B | I11: =IF(D11<1," ",IF(Fee!L19,"Yes ","No")) -> No | J11: Neglect | R11: 0 | S11: 154 | Y11: 0 | Z11: 74 | AB11: 0 | AC11: 228 | AD11: 0 | AF11: 52 | AG11: 0
A12: 5 | C12: =List!F11 -> 127 | D12: =List!G11 -> 5 | E12: =List!H11 -> D | F12: =CONCATENATE(List!I11," -",List!U11) -> Anjusha - | G12: =List!J11 -> G | H12: =List!M11 -> SC-C | I12: =IF(D12<1," ",IF(Fee!L20,"Yes ","No")) -> No | J12: Neglect | R12: 0 | S12: 154 | Y12: 0 | Z12: 74 | AB12: 0 | AC12: 228 | AD12: 0 | AF12: 52 | AG12: 0
A13: 6 | C13: =List!F12 -> 128 | D13: =List!G12 -> 6 | E13: =List!H12 -> E | F13: =CONCATENATE(List!I12," -",List!U12) -> Raja Sekhar - | G13: =List!J12 -> B | H13: =List!M12 -> ST | I13: =IF(D13<1," ",IF(Fee!L21,"Yes ","No")) -> No | J13: Neglect | R13: 0 | S13: 154 | Y13: 0 | Z13: 74 | AB13: 0 | AC13: 228 | AD13: 0 | AF13: 52 | AG13: 0
A14: 0 | C14: =List!F13 -> 0 | D14: =List!G13 -> 0 | E14: =List!H13 -> 0 | F14: =CONCATENATE(List!I13," -",List!U13) -> - | G14: =List!J13 -> 0 | H14: =List!M13 -> 0 | I14: =IF(D14<1," ",IF(Fee!L22,"Yes ","No")) ->  | J14: Neglect | R14: 0 | S14: 154 | Y14: 0 | Z14: 74 | AB14: 0 | AC14: 228 | AD14: 0 | AF14: 52 | AG14: 0
A15: 0 | C15: =List!F14 -> 0 | D15: =List!G14 -> 0 | E15: =List!H14 -> 0 | F15: =CONCATENATE(List!I14," -",List!U14) -> - | G15: =List!J14 -> 0 | H15: =List!M14 -> 0 | I15: =IF(D15<1," ",IF(Fee!L23,"Yes ","No")) ->  | J15: Neglect | R15: 0 | S15: 154 | Y15: 0 | Z15: 74 | AB15: 0 | AC15: 228 | AD15: 0 | AF15: 52 | AG15: 0
A16: 0 | C16: =List!F15 -> 0 | D16: =List!G15 -> 0 | E16: =List!H15 -> 0 | F16: =CONCATENATE(List!I15," -",List!U15) -> - | G16: =List!J15 -> 0 | H16: =List!M15 -> 0 | I16: =IF(D16<1," ",IF(Fee!L24,"Yes ","No")) ->  | J16: Neglect | R16: 0 | S16: 154 | Y16: 0 | Z16: 74 | AB16: 0 | AC16: 228 | AD16: 0 | AF16: 52 | AG16: 0
A17: 0 | C17: =List!F16 -> 0 | D17: =List!G16 -> 0 | E17: =List!H16 -> 0 | F17: =CONCATENATE(List!I16," -",List!U16) -> - | G17: =List!J16 -> 0 | H17: =List!M16 -> 0 | I17: =IF(D17<1," ",IF(Fee!L25,"Yes ","No")) ->  | J17: Neglect | R17: 0 | S17: 154 | Y17: 0 | Z17: 74 | AB17: 0 | AC17: 228 | AD17: 0 | AF17: 52 | AG17: 0
A18: 0 | C18: =List!F17 -> 0 | D18: =List!G17 -> 0 | E18: =List!H17 -> 0 | F18: =CONCATENATE(List!I17," -",List!U17) -> - | G18: =List!J17 -> 0 | H18: =List!M17 -> 0 | I18: =IF(D18<1," ",IF(Fee!L26,"Yes ","No")) ->  | J18: Neglect | R18: 0 | S18: 154 | Y18: 0 | Z18: 74 | AB18: 0 | AC18: 228 | AD18: 0 | AF18: 52 | AG18: 0
A19: 0 | C19: =List!F18 -> 0 | D19: =List!G18 -> 0 | E19: =List!H18 -> 0 | F19: =CONCATENATE(List!I18," -",List!U18) -> - | G19: =List!J18 -> 0 | H19: =List!M18 -> 0 | I19: =IF(D19<1," ",IF(Fee!L27,"Yes ","No")) ->  | J19: Neglect | R19: 0 | S19: 154 | Y19: 0 | Z19: 74 | AB19: 0 | AC19: 228 | AD19: 0 | AF19: 52 | AG19: 0
A20: 0 | C20: =List!F19 -> 0 | D20: =List!G19 -> 0 | E20: =List!H19 -> 0 | F20: =CONCATENATE(List!I19," -",List!U19) -> - | G20: =List!J19 -> 0 | H20: =List!M19 -> 0 | I20: =IF(D20<1," ",IF(Fee!L28,"Yes ","No")) ->  | J20: Neglect | R20: 0 | S20: 154 | Y20: 0 | Z20: 74 | AB20: 0 | AC20: 228 | AD20: 0 | AF20: 52 | AG20: 0
A21: 0 | C21: =List!F20 -> 0 | D21: =List!G20 -> 0 | E21: =List!H20 -> 0 | F21: =CONCATENATE(List!I20," -",List!U20) -> - | G21: =List!J20 -> 0 | H21: =List!M20 -> 0 | I21: =IF(D21<1," ",IF(Fee!L29,"Yes ","No")) ->  | J21: Neglect | R21: 0 | S21: 154 | Y21: 0 | Z21: 74 | AB21: 0 | AC21: 228 | AD21: 0 | AF21: 52 | AG21: 0
A22: 0 | C22: =List!F21 -> 0 | D22: =List!G21 -> 0 | E22: =List!H21 -> 0 | F22: =CONCATENATE(List!I21," -",List!U21) -> - | G22: =List!J21 -> 0 | H22: =List!M21 -> 0 | I22: =IF(D22<1," ",IF(Fee!L30,"Yes ","No")) ->  | J22: Neglect | R22: 0 | S22: 154 | Y22: 0 | Z22: 74 | AB22: 0 | AC22: 228 | AD22: 0 | AF22: 52 | AG22: 0
A23: 0 | C23: =List!F22 -> 0 | D23: =List!G22 -> 0 | E23: =List!H22 -> 0 | F23: =CONCATENATE(List!I22," -",List!U22) -> - | G23: =List!J22 -> 0 | H23: =List!M22 -> 0 | I23: =IF(D23<1," ",IF(Fee!L31,"Yes ","No")) ->  | J23: Neglect | R23: 0 | S23: 154 | Y23: 0 | Z23: 74 | AB23: 0 | AC23: 228 | AD23: 0 | AF23: 52 | AG23: 0
A24: 0 | C24: =List!F23 -> 0 | D24: =List!G23 -> 0 | E24: =List!H23 -> 0 | F24: =CONCATENATE(List!I23," -",List!U23) -> - | G24: =List!J23 -> 0 | H24: =List!M23 -> 0 | I24: =IF(D24<1," ",IF(Fee!L32,"Yes ","No")) ->  | J24: Neglect | R24: 0 | S24: 154 | Y24: 0 | Z24: 74 | AB24: 0 | AC24: 228 | AD24: 0 | AF24: 52 | AG24: 0
A25: 0 | C25: =List!F24 -> 0 | D25: =List!G24 -> 0 | E25: =List!H24 -> 0 | F25: =CONCATENATE(List!I24," -",List!U24) -> - | G25: =List!J24 -> 0 | H25: =List!M24 -> 0 | I25: =IF(D25<1," ",IF(Fee!L33,"Yes ","No")) ->  | J25: Neglect | R25: 0 | S25: 154 | Y25: 0 | Z25: 74 | AB25: 0 | AC25: 228 | AD25: 0 | AF25: 52 | AG25: 0
A26: 0 | C26: =List!F25 -> 0 | D26: =List!G25 -> 0 | E26: =List!H25 -> 0 | F26: =CONCATENATE(List!I25," -",List!U25) -> - | G26: =List!J25 -> 0 | H26: =List!M25 -> 0 | I26: =IF(D26<1," ",IF(Fee!L34,"Yes ","No")) ->  | J26: Neglect | R26: 0 | S26: 154 | Y26: 0 | Z26: 74 | AB26: 0 | AC26: 228 | AD26: 0 | AF26: 52 | AG26: 0
A27: 0 | C27: =List!F26 -> 0 | D27: =List!G26 -> 0 | E27: =List!H26 -> 0 | F27: =CONCATENATE(List!I26," -",List!U26) -> - | G27: =List!J26 -> 0 | H27: =List!M26 -> 0 | I27: =IF(D27<1," ",IF(Fee!L35,"Yes ","No")) ->  | J27: Neglect | R27: 0 | S27: 154 | Y27: 0 | Z27: 74 | AB27: 0 | AC27: 228 | AD27: 0 | AF27: 52 | AG27: 0
A28: 0 | C28: =List!F27 -> 0 | D28: =List!G27 -> 0 | E28: =List!H27 -> 0 | F28: =CONCATENATE(List!I27," -",List!U27) -> - | G28: =List!J27 -> 0 | H28: =List!M27 -> 0 | I28: =IF(D28<1," ",IF(Fee!L36,"Yes ","No")) ->  | J28: =IF(AD28<1,"Neglect",IF(AD28<65,"Detained",IF(AD28<75,"MC required","Satisfactory"))) -> Neglect | R28: 0 | S28: 154 | Y28: =SUM(U28:X28) -> 0 | Z28: 74 | AB28: =ROUND(R28+Y28,0) -> 0 | AC28: 228 | AD28: 0 | AF28: 52 | AG28: 0
A29: 0 | C29: =List!F28 -> 0 | D29: =List!G28 -> 0 | E29: =List!H28 -> 0 | F29: =CONCATENATE(List!I28," -",List!U28) -> - | G29: =List!J28 -> 0 | H29: =List!M28 -> 0 | I29: =IF(D29<1," ",IF(Fee!L37,"Yes ","No")) ->  | J29: Neglect | R29: 0 | S29: 154 | Y29: 0 | Z29: 74 | AB29: 0 | AC29: 228 | AD29: 0 | AF29: 52 | AG29: 0
A30: 0 | C30: =List!F29 -> 0 | D30: =List!G29 -> 0 | E30: =List!H29 -> 0 | F30: =CONCATENATE(List!I29," -",List!U29) -> - | G30: =List!J29 -> 0 | H30: =List!M29 -> 0 | I30: =IF(D30<1," ",IF(Fee!L38,"Yes ","No")) ->  | J30: Neglect | R30: 0 | S30: 154 | Y30: 0 | Z30: 74 | AB30: 0 | AC30: 228 | AD30: 0 | AF30: 52 | AG30: 0
A31: 0 | C31: =List!F30 -> 0 | D31: =List!G30 -> 0 | E31: =List!H30 -> 0 | F31: =CONCATENATE(List!I30," -",List!U30) -> - | G31: 0 | H31: =List!M30 -> 0 | I31: =IF(D31<1," ",IF(Fee!L39,"Yes ","No")) ->  | J31: Neglect | R31: 0 | S31: 154 | Y31: 0 | Z31: 74 | AB31: 0 | AC31: 228 | AD31: 0 | AF31: 52 | AG31: 0
A32: 0 | C32: =List!F31 -> 0 | D32: =List!G31 -> 0 | E32: =List!H31 -> 0 | F32: =CONCATENATE(List!I31," -",List!U31) -> - | G32: 0 | H32: =List!M31 -> 0 | I32: =IF(D32<1," ",IF(Fee!L40,"Yes ","No")) ->  | J32: Neglect | R32: 0 | S32: 154 | Y32: 0 | Z32: 74 | AB32: 0 | AC32: 228 | AD32: 0 | AF32: 52 | AG32: 0
A33: 0 | C33: =List!F32 -> 0 | D33: =List!G32 -> 0 | E33: =List!H32 -> 0 | F33: =CONCATENATE(List!I32," -",List!U32) -> - | G33: =List!J32 -> 0 | H33: =List!M32 -> 0 | I33: =IF(D33<1," ",IF(Fee!L41,"Yes ","No")) ->  | J33: Neglect | R33: 0 | S33: 154 | Y33: 0 | Z33: 74 | AB33: 0 | AC33: 228 | AD33: 0 | AF33: 52 | AG33: 0
A34: 0 | C34: =List!F33 -> 0 | D34: =List!G33 -> 0 | E34: =List!H33 -> 0 | F34: =CONCATENATE(List!I33," -",List!U33) -> - | G34: =List!J33 -> 0 | H34: =List!M33 -> 0 | I34: =IF(D34<1," ",IF(Fee!L42,"Yes ","No")) ->  | J34: Neglect | R34: 0 | S34: 154 | Y34: 0 | Z34: 74 | AB34: 0 | AC34: 228 | AD34: 0 | AF34: 52 | AG34: 0
A35: 0 | C35: =List!F34 -> 0 | D35: =List!G34 -> 0 | E35: =List!H34 -> 0 | F35: =CONCATENATE(List!I34," -",List!U34) -> - | G35: =List!J34 -> 0 | H35: =List!M34 -> 0 | I35: =IF(D35<1," ",IF(Fee!L43,"Yes ","No")) ->  | J35: Neglect | R35: 0 | S35: 154 | Y35: 0 | Z35: 74 | AB35: 0 | AC35: 228 | AD35: 0 | AF35: 52 | AG35: 0
A36: 0 | C36: =List!F35 -> 0 | D36: =List!G35 -> 0 | E36: =List!H35 -> 0 | F36: =CONCATENATE(List!I35," -",List!U35) -> - | G36: =List!J35 -> 0 | H36: =List!M35 -> 0 | I36: =IF(D36<1," ",IF(Fee!L44,"Yes ","No")) ->  | J36: Neglect | R36: 0 | S36: 154 | Y36: 0 | Z36: 74 | AB36: 0 | AC36: 228 | AD36: 0 | AF36: 52 | AG36: 0
A37: 0 | C37: =List!F36 -> 0 | D37: =List!G36 -> 0 | E37: =List!H36 -> 0 | F37: =CONCATENATE(List!I36," -",List!U36) -> - | G37: =List!J36 -> 0 | H37: =List!M36 -> 0 | I37: =IF(D37<1," ",IF(Fee!L45,"Yes ","No")) ->  | J37: Neglect | R37: 0 | S37: 154 | Y37: 0 | Z37: 74 | AB37: 0 | AC37: 228 | AD37: 0 | AF37: 52 | AG37: 0
A38: 0 | C38: =List!F37 -> 0 | D38: =List!G37 -> 0 | E38: =List!H37 -> 0 | F38: =CONCATENATE(List!I37," -",List!U37) -> - | G38: =List!J37 -> 0 | H38: =List!M37 -> 0 | I38: =IF(D38<1," ",IF(Fee!L46,"Yes ","No")) ->  | J38: Neglect | R38: 0 | S38: 154 | Y38: 0 | Z38: 74 | AB38: 0 | AC38: 228 | AD38: 0 | AF38: 52 | AG38: 0
A39: 0 | C39: =List!F38 -> 0 | D39: =List!G38 -> 0 | E39: =List!H38 -> 0 | F39: =CONCATENATE(List!I38," -",List!U38) -> - | G39: =List!J38 -> 0 | H39: =List!M38 -> 0 | I39: =IF(D39<1," ",IF(Fee!L47,"Yes ","No")) ->  | J39: Neglect | R39: 0 | S39: 154 | Y39: 0 | Z39: 74 | AB39: 0 | AC39: 228 | AD39: 0 | AF39: 52 | AG39: 0
A40: 0 | C40: =List!F39 -> 0 | D40: =List!G39 -> 0 | E40: =List!H39 -> 0 | F40: =CONCATENATE(List!I39," -",List!U39) -> - | G40: =List!J39 -> 0 | H40: =List!M39 -> 0 | I40: =IF(D40<1," ",IF(Fee!L48,"Yes ","No")) ->  | J40: Neglect | R40: 0 | S40: 154 | Y40: 0 | Z40: 74 | AB40: 0 | AC40: 228 | AD40: 0 | AF40: 52 | AG40: 0
A41: 0 | C41: =List!F40 -> 0 | D41: =List!G40 -> 0 | E41: =List!H40 -> 0 | F41: =CONCATENATE(List!I40," -",List!U40) -> - | G41: =List!J40 -> 0 | H41: =List!M40 -> 0 | I41: =IF(D41<1," ",IF(Fee!L49,"Yes ","No")) ->  | J41: Neglect | R41: 0 | S41: 154 | Y41: 0 | Z41: 74 | AB41: 0 | AC41: 228 | AD41: 0 | AF41: 52 | AG41: 0
A42: 0 | C42: =List!F41 -> 0 | D42: =List!G41 -> 0 | E42: =List!H41 -> 0 | F42: =CONCATENATE(List!I41," -",List!U41) -> - | G42: =List!J41 -> 0 | H42: =List!M41 -> 0 | I42: =IF(D42<1," ",IF(Fee!L50,"Yes ","No")) ->  | J42: Neglect | R42: 0 | S42: 154 | Y42: 0 | Z42: 74 | AB42: 0 | AC42: 228 | AD42: 0 | AF42: 52 | AG42: 0
A43: 0 | C43: =List!F42 -> 0 | D43: =List!G42 -> 0 | E43: =List!H42 -> 0 | F43: =CONCATENATE(List!I42," -",List!U42) -> - | G43: =List!J42 -> 0 | H43: =List!M42 -> 0 | I43: =IF(D43<1," ",IF(Fee!L51,"Yes ","No")) ->  | J43: Neglect | R43: 0 | S43: 154 | Y43: 0 | Z43: 74 | AB43: 0 | AC43: 228 | AD43: 0 | AF43: 52 | AG43: 0
A44: 0 | C44: =List!F43 -> 0 | D44: =List!G43 -> 0 | E44: =List!H43 -> 0 | F44: =CONCATENATE(List!I43," -",List!U43) -> - | G44: =List!J43 -> 0 | H44: =List!M43 -> 0 | I44: =IF(D44<1," ",IF(Fee!L52,"Yes ","No")) ->  | J44: Neglect | R44: 0 | S44: 154 | Y44: 0 | Z44: 74 | AB44: 0 | AC44: 228 | AD44: 0 | AF44: 52 | AG44: 0
A45: 0 | C45: =List!F44 -> 0 | D45: =List!G44 -> 0 | E45: =List!H44 -> 0 | F45: =CONCATENATE(List!I44," -",List!U44) -> - | G45: =List!J44 -> 0 | H45: =List!M44 -> 0 | I45: =IF(D45<1," ",IF(Fee!L53,"Yes ","No")) ->  | J45: Neglect | R45: 0 | S45: 154 | Y45: 0 | Z45: 74 | AB45: 0 | AC45: 228 | AD45: 0 | AF45: 52 | AG45: 0
A46: 0 | C46: =List!F45 -> 0 | D46: =List!G45 -> 0 | E46: =List!H45 -> 0 | F46: =CONCATENATE(List!I45," -",List!U45) -> - | G46: =List!J45 -> 0 | H46: =List!M45 -> 0 | I46: =IF(D46<1," ",IF(Fee!L54,"Yes ","No")) ->  | J46: Neglect | R46: 0 | S46: 154 | Y46: 0 | Z46: 74 | AB46: 0 | AC46: 228 | AD46: 0 | AF46: 52 | AG46: 0
A47: 0 | C47: =List!F46 -> 0 | D47: =List!G46 -> 0 | E47: =List!H46 -> 0 | F47: =CONCATENATE(List!I46," -",List!U46) -> - | G47: =List!J46 -> 0 | H47: =List!M46 -> 0 | I47: =IF(D47<1," ",IF(Fee!L55,"Yes ","No")) ->  | J47: Neglect | R47: 0 | S47: 154 | Y47: 0 | Z47: 74 | AB47: 0 | AC47: 228 | AD47: 0 | AF47: 52 | AG47: 0
A48: 0 | C48: =List!F47 -> 0 | D48: =List!G47 -> 0 | E48: =List!H47 -> 0 | F48: =CONCATENATE(List!I47," -",List!U47) -> - | G48: =List!J47 -> 0 | H48: =List!M47 -> 0 | I48: =IF(D48<1," ",IF(Fee!L56,"Yes ","No")) ->  | J48: Neglect | R48: 0 | S48: 154 | Y48: 0 | Z48: 74 | AB48: 0 | AC48: 228 | AD48: 0 | AF48: 52 | AG48: 0
A49: 0 | C49: =List!F48 -> 0 | D49: =List!G48 -> 0 | E49: =List!H48 -> 0 | F49: =CONCATENATE(List!I48," -",List!U48) -> - | G49: =List!J48 -> 0 | H49: =List!M48 -> 0 | I49: =IF(D49<1," ",IF(Fee!L57,"Yes ","No")) ->  | J49: Neglect | R49: 0 | S49: 154 | Y49: 0 | Z49: 74 | AB49: 0 | AC49: 228 | AD49: 0 | AF49: 52 | AG49: 0
A50: 0 | C50: =List!F49 -> 0 | D50: =List!G49 -> 0 | E50: =List!H49 -> 0 | F50: =CONCATENATE(List!I49," -",List!U49) -> - | G50: =List!J49 -> 0 | H50: =List!M49 -> 0 | I50: =IF(D50<1," ",IF(Fee!L58,"Yes ","No")) ->  | J50: Neglect | R50: 0 | S50: 154 | Y50: 0 | Z50: 74 | AB50: 0 | AC50: 228 | AD50: 0 | AF50: 52 | AG50: 0
A51: 0 | C51: =List!F50 -> 0 | D51: =List!G50 -> 0 | E51: =List!H50 -> 0 | F51: =CONCATENATE(List!I50," -",List!U50) -> - | G51: =List!J50 -> 0 | H51: =List!M50 -> 0 | I51: =IF(D51<1," ",IF(Fee!L59,"Yes ","No")) ->  | J51: Neglect | R51: 0 | S51: 154 | Y51: 0 | Z51: 74 | AB51: 0 | AC51: 228 | AD51: 0 | AF51: 52 | AG51: 0
A52: 0 | C52: =List!F51 -> 0 | D52: =List!G51 -> 0 | E52: =List!H51 -> 0 | F52: =CONCATENATE(List!I51," -",List!U51) -> - | G52: =List!J51 -> 0 | H52: =List!M51 -> 0 | I52: =IF(D52<1," ",IF(Fee!L60,"Yes ","No")) ->  | J52: Neglect | R52: 0 | S52: 154 | Y52: 0 | Z52: 74 | AB52: 0 | AC52: 228 | AD52: 0 | AF52: 52 | AG52: 0
A53: 0 | C53: =List!F52 -> 0 | D53: =List!G52 -> 0 | E53: =List!H52 -> 0 | F53: =CONCATENATE(List!I52," -",List!U52) -> - | G53: =List!J52 -> 0 | H53: =List!M52 -> 0 | I53: =IF(D53<1," ",IF(Fee!L61,"Yes ","No")) ->  | J53: Neglect | R53: 0 | S53: 154 | Y53: 0 | Z53: 74 | AB53: 0 | AC53: 228 | AD53: 0 | AF53: 52 | AG53: 0
A54: 0 | C54: =List!F53 -> 0 | D54: =List!G53 -> 0 | E54: =List!H53 -> 0 | F54: =CONCATENATE(List!I53," -",List!U53) -> - | G54: =List!J53 -> 0 | H54: =List!M53 -> 0 | I54: =IF(D54<1," ",IF(Fee!L62,"Yes ","No")) ->  | J54: Neglect | R54: 0 | S54: 154 | Y54: 0 | Z54: 74 | AB54: 0 | AC54: 228 | AD54: 0 | AF54: 52 | AG54: 0
A55: 0 | C55: =List!F54 -> 0 | D55: =List!G54 -> 0 | E55: =List!H54 -> 0 | F55: =CONCATENATE(List!I54," -",List!U54) -> - | G55: =List!J54 -> 0 | H55: =List!M54 -> 0 | I55: =IF(D55<1," ",IF(Fee!L63,"Yes ","No")) ->  | J55: Neglect | R55: 0 | S55: 154 | Y55: 0 | Z55: 74 | AB55: 0 | AC55: 228 | AD55: 0 | AF55: 52 | AG55: 0
A56: 0 | C56: =List!F55 -> 0 | D56: =List!G55 -> 0 | E56: =List!H55 -> 0 | F56: =CONCATENATE(List!I55," -",List!U55) -> - | G56: =List!J55 -> 0 | H56: =List!M55 -> 0 | I56: =IF(D56<1," ",IF(Fee!L64,"Yes ","No")) ->  | J56: Neglect | R56: 0 | S56: 154 | Y56: 0 | Z56: 74 | AB56: 0 | AC56: 228 | AD56: 0 | AF56: 52 | AG56: 0
A57: 0 | C57: =List!F56 -> 0 | D57: =List!G56 -> 0 | E57: =List!H56 -> 0 | F57: =CONCATENATE(List!I56," -",List!U56) -> - | G57: =List!J56 -> 0 | H57: =List!M56 -> 0 | I57: =IF(D57<1," ",IF(Fee!L65,"Yes ","No")) ->  | J57: Neglect | R57: 0 | S57: 154 | Y57: 0 | Z57: 74 | AB57: 0 | AC57: 228 | AD57: 0 | AF57: 52 | AG57: 0
A58: 0 | C58: =List!F57 -> 0 | D58: =List!G57 -> 0 | E58: =List!H57 -> 0 | F58: =CONCATENATE(List!I57," -",List!U57) -> - | G58: =List!J57 -> 0 | H58: =List!M57 -> 0 | I58: =IF(D58<1," ",IF(Fee!L66,"Yes ","No")) ->  | J58: Neglect | R58: 0 | S58: 154 | Y58: 0 | Z58: 74 | AB58: 0 | AC58: 228 | AD58: 0 | AF58: 52 | AG58: 0
A59: 0 | C59: =List!F58 -> 0 | D59: =List!G58 -> 0 | E59: =List!H58 -> 0 | F59: =CONCATENATE(List!I58," -",List!U58) -> - | G59: =List!J58 -> 0 | H59: =List!M58 -> 0 | I59: =IF(D59<1," ",IF(Fee!L67,"Yes ","No")) ->  | J59: Neglect | R59: 0 | S59: 154 | Y59: 0 | Z59: 74 | AB59: 0 | AC59: 228 | AD59: 0 | AF59: 52 | AG59: 0
A60: 0 | C60: =List!F59 -> 0 | D60: =List!G59 -> 0 | E60: =List!H59 -> 0 | F60: =CONCATENATE(List!I59," -",List!U59) -> - | G60: =List!J59 -> 0 | H60: =List!M59 -> 0 | I60: =IF(D60<1," ",IF(Fee!L68,"Yes ","No")) ->  | J60: Neglect | R60: 0 | S60: 154 | Y60: 0 | Z60: 74 | AB60: 0 | AC60: 228 | AD60: 0 | AF60: 52 | AG60: 0
A61: 0 | C61: =List!F60 -> 0 | D61: =List!G60 -> 0 | E61: =List!H60 -> 0 | F61: =CONCATENATE(List!I60," -",List!U60) -> - | G61: =List!J60 -> 0 | H61: =List!M60 -> 0 | I61: =IF(D61<1," ",IF(Fee!L69,"Yes ","No")) ->  | J61: Neglect | R61: 0 | S61: 154 | Y61: 0 | Z61: 74 | AB61: 0 | AC61: 228 | AD61: 0 | AF61: 52 | AG61: 0
A62: 0 | C62: =List!F61 -> 0 | D62: =List!G61 -> 0 | E62: =List!H61 -> 0 | F62: =CONCATENATE(List!I61," -",List!U61) -> - | G62: =List!J61 -> 0 | H62: =List!M61 -> 0 | I62: =IF(D62<1," ",IF(Fee!L70,"Yes ","No")) ->  | J62: Neglect | R62: 0 | S62: 154 | Y62: 0 | Z62: 74 | AB62: 0 | AC62: 228 | AD62: 0 | AF62: 52 | AG62: 0
A63: 0 | C63: =List!F62 -> 0 | D63: =List!G62 -> 0 | E63: =List!H62 -> 0 | F63: =CONCATENATE(List!I62," -",List!U62) -> - | G63: =List!J62 -> 0 | H63: =List!M62 -> 0 | I63: =IF(D63<1," ",IF(Fee!L71,"Yes ","No")) ->  | J63: Neglect | R63: 0 | S63: 154 | Y63: 0 | Z63: 74 | AB63: 0 | AC63: 228 | AD63: 0 | AF63: 52 | AG63: 0
A64: 0 | C64: =List!F63 -> 0 | D64: =List!G63 -> 0 | E64: =List!H63 -> 0 | F64: =CONCATENATE(List!I63," -",List!U63) -> - | G64: =List!J63 -> 0 | H64: =List!M63 -> 0 | I64: =IF(D64<1," ",IF(Fee!L72,"Yes ","No")) ->  | J64: Neglect | R64: 0 | S64: 154 | Y64: 0 | Z64: 74 | AB64: 0 | AC64: 228 | AD64: 0 | AF64: 52 | AG64: 0
A65: 0 | C65: =List!F64 -> 0 | D65: =List!G64 -> 0 | E65: =List!H64 -> 0 | F65: =CONCATENATE(List!I64," -",List!U64) -> - | G65: =List!J64 -> 0 | H65: =List!M64 -> 0 | I65: =IF(D65<1," ",IF(Fee!L73,"Yes ","No")) ->  | J65: Neglect | R65: 0 | S65: 154 | Y65: 0 | Z65: 74 | AB65: 0 | AC65: 228 | AD65: 0 | AF65: 52 | AG65: 0
A66: 0 | C66: =List!F65 -> 0 | D66: =List!G65 -> 0 | E66: =List!H65 -> 0 | F66: =CONCATENATE(List!I65," -",List!U65) -> - | G66: =List!J65 -> 0 | H66: =List!M65 -> 0 | I66: =IF(D66<1," ",IF(Fee!L74,"Yes ","No")) ->  | J66: Neglect | R66: 0 | S66: 154 | Y66: 0 | Z66: 74 | AB66: 0 | AC66: 228 | AD66: 0 | AF66: 52 | AG66: 0
A67: 0 | C67: =List!F66 -> 0 | D67: =List!G66 -> 0 | E67: =List!H66 -> 0 | F67: =CONCATENATE(List!I66," -",List!U66) -> - | G67: =List!J66 -> 0 | H67: =List!M66 -> 0 | I67: =IF(D67<1," ",IF(Fee!L75,"Yes ","No")) ->  | J67: Neglect | R67: 0 | S67: 154 | Y67: 0 | Z67: 74 | AB67: 0 | AC67: 228 | AD67: 0 | AF67: 52 | AG67: 0
A68: 0 | C68: =List!F67 -> 0 | D68: =List!G67 -> 0 | E68: =List!H67 -> 0 | F68: =CONCATENATE(List!I67," -",List!U67) -> - | G68: =List!J67 -> 0 | H68: =List!M67 -> 0 | I68: =IF(D68<1," ",IF(Fee!L76,"Yes ","No")) ->  | J68: Neglect | R68: 0 | S68: 154 | Y68: 0 | Z68: 74 | AB68: 0 | AC68: 228 | AD68: 0 | AF68: 52 | AG68: 0
A69: 0 | C69: =List!F68 -> 0 | D69: =List!G68 -> 0 | E69: =List!H68 -> 0 | F69: =CONCATENATE(List!I68," -",List!U68) -> - | G69: =List!J68 -> 0 | H69: =List!M68 -> 0 | I69: =IF(D69<1," ",IF(Fee!L77,"Yes ","No")) ->  | J69: Neglect | R69: 0 | S69: 154 | Y69: 0 | Z69: 74 | AB69: 0 | AC69: 228 | AD69: 0 | AF69: 52 | AG69: 0
A70: 0 | C70: =List!F69 -> 0 | D70: =List!G69 -> 0 | E70: =List!H69 -> 0 | F70: =CONCATENATE(List!I69," -",List!U69) -> - | G70: =List!J69 -> 0 | H70: =List!M69 -> 0 | I70: =IF(D70<1," ",IF(Fee!L78,"Yes ","No")) ->  | J70: Neglect | R70: 0 | S70: 154 | Y70: 0 | Z70: 74 | AB70: 0 | AC70: 228 | AD70: 0 | AF70: 52 | AG70: 0
A71: 0 | C71: =List!F70 -> 0 | D71: =List!G70 -> 0 | E71: =List!H70 -> 0 | F71: =CONCATENATE(List!I70," -",List!U70) -> - | G71: =List!J70 -> 0 | H71: =List!M70 -> 0 | I71: =IF(D71<1," ",IF(Fee!L79,"Yes ","No")) ->  | J71: Neglect | R71: 0 | S71: 154 | Y71: 0 | Z71: 74 | AB71: 0 | AC71: 228 | AD71: 0 | AF71: 52 | AG71: 0
A72: 0 | C72: =List!F71 -> 0 | D72: =List!G71 -> 0 | E72: =List!H71 -> 0 | F72: =CONCATENATE(List!I71," -",List!U71) -> - | G72: =List!J71 -> 0 | H72: =List!M71 -> 0 | I72: =IF(D72<1," ",IF(Fee!L80,"Yes ","No")) ->  | J72: Neglect | R72: 0 | S72: 154 | Y72: 0 | Z72: 74 | AB72: 0 | AC72: 228 | AD72: 0 | AF72: 52 | AG72: 0
A73: =D73 -> 0 | C73: =List!F72 -> 0 | D73: =List!G72 -> 0 | E73: =List!H72 -> 0 | F73: =CONCATENATE(List!I72," -",List!U72) -> - | G73: =List!J72 -> 0 | H73: =List!M72 -> 0 | I73: =IF(D73<1," ",IF(Fee!L81,"Yes ","No")) ->  | J73: Neglect | R73: =SUM(K73:Q73) -> 0 | S73: 154 | T73: =IF(R73>0,ROUND(R73*100/S73,0)," ") ->  | Y73: 0 | Z73: 74 | AA73: =IF(Y73>0,ROUND(Y73*100/Z73,0)," ") ->  | AB73: 0 | AC73: 228 | AD73: =IF(AB73>0,ROUND(AB73*100/AC73,0),0) -> 0 | AF73: 52 | AG73: 0
A74: 0 | C74: =List!F73 -> 0 | D74: =List!G73 -> 0 | E74: =List!H73 -> 0 | F74: =CONCATENATE(List!I73," -",List!U73) -> - | G74: =List!J73 -> 0 | H74: =List!M73 -> 0 | I74: =IF(D74<1," ",IF(Fee!L82,"Yes ","No")) ->  | J74: Neglect | R74: 0 | S74: 154 | Y74: 0 | Z74: 74 | AB74: 0 | AC74: 228 | AD74: 0 | AF74: 52 | AG74: =IF(AE74>0,ROUND(AE74*100/AF74,0),0) -> 0
A75: 0 | C75: =List!F74 -> 0 | D75: =List!G74 -> 0 | E75: =List!H74 -> 0 | F75: =CONCATENATE(List!I74," -",List!U74) -> - | G75: =List!J74 -> 0 | H75: =List!M74 -> 0 | I75: =IF(D75<1," ",IF(Fee!L83,"Yes ","No")) ->  | J75: Neglect | R75: 0 | S75: 154 | Y75: 0 | Z75: 74 | AB75: 0 | AC75: 228 | AD75: 0 | AF75: 52 | AG75: 0
A76: 0 | C76: =List!F75 -> 0 | D76: =List!G75 -> 0 | E76: =List!H75 -> 0 | F76: =CONCATENATE(List!I75," -",List!U75) -> - | G76: =List!J75 -> 0 | H76: =List!M75 -> 0 | I76: =IF(D76<1," ",IF(Fee!L84,"Yes ","No")) ->  | J76: =IF(AD76<1,"Neglect",IF(AD76<65,"Detained",IF(AD76<75,"MC required","Satisfactory"))) -> Neglect | R76: 0 | S76: 154 | Y76: =SUM(U76:X76) -> 0 | Z76: 74 | AB76: =ROUND(R76+Y76,0) -> 0 | AC76: 228 | AD76: 0 | AF76: 52 | AG76: 0
A77: 0 | C77: =List!F76 -> 0 | D77: =List!G76 -> 0 | E77: =List!H76 -> 0 | F77: =CONCATENATE(List!I76," -",List!U76) -> - | G77: =List!J76 -> 0 | H77: =List!M76 -> 0 | I77: =IF(D77<1," ",IF(Fee!L85,"Yes ","No")) ->  | J77: Neglect | R77: 0 | S77: 154 | Y77: 0 | Z77: 74 | AB77: 0 | AC77: 228 | AD77: 0 | AF77: 52 | AG77: 0
A78: 0 | C78: =List!F77 -> 0 | D78: =List!G77 -> 0 | E78: =List!H77 -> 0 | F78: =CONCATENATE(List!I77," -",List!U77) -> - | G78: =List!J77 -> 0 | H78: =List!M77 -> 0 | I78: =IF(D78<1," ",IF(Fee!L86,"Yes ","No")) ->  | J78: Neglect | R78: 0 | S78: 154 | Y78: 0 | Z78: 74 | AB78: 0 | AC78: 228 | AD78: 0 | AF78: 52 | AG78: 0
A79: 0 | C79: =List!F78 -> 0 | D79: =List!G78 -> 0 | E79: =List!H78 -> 0 | F79: =CONCATENATE(List!I78," -",List!U78) -> - | G79: =List!J78 -> 0 | H79: =List!M78 -> 0 | I79: =IF(D79<1," ",IF(Fee!L87,"Yes ","No")) ->  | J79: Neglect | R79: 0 | S79: 154 | Y79: 0 | Z79: 74 | AB79: 0 | AC79: 228 | AD79: 0 | AF79: 52 | AG79: 0
A80: 0 | C80: =List!F79 -> 0 | D80: =List!G79 -> 0 | E80: =List!H79 -> 0 | F80: =CONCATENATE(List!I79," -",List!U79) -> - | G80: =List!J79 -> 0 | H80: =List!M79 -> 0 | I80: =IF(D80<1," ",IF(Fee!L88,"Yes ","No")) ->  | J80: Neglect | R80: 0 | S80: 154 | Y80: 0 | Z80: 74 | AB80: 0 | AC80: 228 | AD80: 0 | AF80: 52 | AG80: 0
A81: 0 | C81: =List!F80 -> 0 | D81: =List!G80 -> 0 | E81: =List!H80 -> 0 | F81: =CONCATENATE(List!I80," -",List!U80) -> - | G81: =List!J80 -> 0 | H81: =List!M80 -> 0 | I81: =IF(D81<1," ",IF(Fee!L89,"Yes ","No")) ->  | J81: Neglect | R81: 0 | S81: 154 | Y81: 0 | Z81: 74 | AB81: 0 | AC81: 228 | AD81: 0 | AF81: 52 | AG81: 0
A82: 0 | C82: =List!F81 -> 0 | D82: =List!G81 -> 0 | E82: =List!H81 -> 0 | F82: =CONCATENATE(List!I81," -",List!U81) -> - | G82: =List!J81 -> 0 | H82: =List!M81 -> 0 | I82: =IF(D82<1," ",IF(Fee!L90,"Yes ","No")) ->  | J82: Neglect | R82: 0 | S82: 154 | Y82: 0 | Z82: 74 | AB82: 0 | AC82: 228 | AD82: 0 | AF82: 52 | AG82: 0
A83: 0 | C83: =List!F82 -> 0 | D83: =List!G82 -> 0 | E83: =List!H82 -> 0 | F83: =CONCATENATE(List!I82," -",List!U82) -> - | G83: =List!J82 -> 0 | H83: =List!M82 -> 0 | I83: =IF(D83<1," ",IF(Fee!L91,"Yes ","No")) ->  | J83: Neglect | R83: 0 | S83: 154 | Y83: 0 | Z83: 74 | AB83: 0 | AC83: 228 | AD83: 0 | AF83: 52 | AG83: 0
A84: 0 | C84: =List!F83 -> 0 | D84: =List!G83 -> 0 | E84: =List!H83 -> 0 | F84: =CONCATENATE(List!I83," -",List!U83) -> - | G84: =List!J83 -> 0 | H84: =List!M83 -> 0 | I84: =IF(D84<1," ",IF(Fee!L92,"Yes ","No")) ->  | J84: Neglect | R84: 0 | S84: 154 | Y84: 0 | Z84: 74 | AB84: 0 | AC84: 228 | AD84: 0 | AF84: 52 | AG84: 0
A85: 0 | C85: =List!F84 -> 0 | D85: =List!G84 -> 0 | E85: =List!H84 -> 0 | F85: =CONCATENATE(List!I84," -",List!U84) -> - | G85: =List!J84 -> 0 | H85: =List!M84 -> 0 | I85: =IF(D85<1," ",IF(Fee!L93,"Yes ","No")) ->  | J85: Neglect | R85: 0 | S85: 154 | Y85: 0 | Z85: 74 | AB85: 0 | AC85: 228 | AD85: 0 | AF85: 52 | AG85: 0
A86: 0 | C86: =List!F85 -> 0 | D86: =List!G85 -> 0 | E86: =List!H85 -> 0 | F86: =CONCATENATE(List!I85," -",List!U85) -> - | G86: =List!J85 -> 0 | H86: =List!M85 -> 0 | I86: =IF(D86<1," ",IF(Fee!L94,"Yes ","No")) ->  | J86: Neglect | R86: 0 | S86: 154 | Y86: 0 | Z86: 74 | AB86: 0 | AC86: 228 | AD86: 0 | AF86: 52 | AG86: 0
A87: 0 | C87: =List!F86 -> 0 | D87: =List!G86 -> 0 | E87: =List!H86 -> 0 | F87: =CONCATENATE(List!I86," -",List!U86) -> - | G87: =List!J86 -> 0 | H87: =List!M86 -> 0 | I87: =IF(D87<1," ",IF(Fee!L95,"Yes ","No")) ->  | J87: =IF(AD87<1,"Neglect",IF(AD87<65,"Detained",IF(AD87<75,"MC required","Satisfactory"))) -> Neglect | R87: =SUM(K87:Q87) -> 0 | S87: 154 | Y87: =SUM(U87:X87) -> 0 | Z87: 74 | AB87: =ROUND(R87+Y87,0) -> 0 | AC87: 228 | AD87: 0 | AF87: 52 | AG87: 0
A88: 0 | C88: =List!F87 -> 0 | D88: =List!G87 -> 0 | E88: =List!H87 -> 0 | F88: =CONCATENATE(List!I87," -",List!U87) -> - | G88: =List!J87 -> 0 | H88: =List!M87 -> 0 | I88: =IF(D88<1," ",IF(Fee!L96,"Yes ","No")) ->  | J88: Neglect | R88: 0 | S88: 154 | Y88: 0 | Z88: 74 | AB88: 0 | AC88: 228 | AD88: 0 | AF88: 52 | AG88: 0
A89: 0 | C89: =List!F88 -> 0 | D89: =List!G88 -> 0 | E89: =List!H88 -> 0 | F89: =CONCATENATE(List!I88," -",List!U88) -> - | G89: =List!J88 -> 0 | H89: =List!M88 -> 0 | I89: =IF(D89<1," ",IF(Fee!L97,"Yes ","No")) ->  | J89: Neglect | R89: 0 | S89: 154 | Y89: 0 | Z89: 74 | AB89: 0 | AC89: 228 | AD89: 0 | AF89: 52 | AG89: 0
A90: 0 | C90: =List!F89 -> 0 | D90: =List!G89 -> 0 | E90: =List!H89 -> 0 | F90: =CONCATENATE(List!I89," -",List!U89) -> - | G90: =List!J89 -> 0 | H90: =List!M89 -> 0 | I90: =IF(D90<1," ",IF(Fee!L98,"Yes ","No")) ->  | J90: Neglect | R90: 0 | S90: 154 | Y90: 0 | Z90: 74 | AB90: 0 | AC90: 228 | AD90: 0 | AF90: 52 | AG90: 0
A91: 0 | C91: =List!F90 -> 0 | D91: =List!G90 -> 0 | E91: =List!H90 -> 0 | F91: =CONCATENATE(List!I90," -",List!U90) -> - | G91: =List!J90 -> 0 | H91: =List!M90 -> 0 | I91: =IF(D91<1," ",IF(Fee!L99,"Yes ","No")) ->  | J91: Neglect | R91: 0 | S91: 154 | Y91: 0 | Z91: 74 | AB91: 0 | AC91: 228 | AD91: 0 | AF91: 52 | AG91: 0
A92: 0 | C92: =List!F91 -> 0 | D92: =List!G91 -> 0 | E92: =List!H91 -> 0 | F92: =CONCATENATE(List!I91," -",List!U91) -> - | G92: =List!J91 -> 0 | H92: =List!M91 -> 0 | I92: =IF(D92<1," ",IF(Fee!L100,"Yes ","No")) ->  | J92: Neglect | R92: 0 | S92: 154 | Y92: 0 | Z92: 74 | AB92: 0 | AC92: 228 | AD92: 0 | AF92: 52 | AG92: 0
A93: 0 | C93: =List!F92 -> 0 | D93: =List!G92 -> 0 | E93: =List!H92 -> 0 | F93: =CONCATENATE(List!I92," -",List!U92) -> - | G93: =List!J92 -> 0 | H93: =List!M92 -> 0 | I93: =IF(D93<1," ",IF(Fee!L101,"Yes ","No")) ->  | J93: Neglect | R93: 0 | S93: 154 | Y93: 0 | Z93: 74 | AB93: 0 | AC93: 228 | AD93: 0 | AF93: 52 | AG93: 0
A94: 0 | C94: =List!F93 -> 0 | D94: =List!G93 -> 0 | E94: =List!H93 -> 0 | F94: =CONCATENATE(List!I93," -",List!U93) -> - | G94: =List!J93 -> 0 | H94: =List!M93 -> 0 | I94: =IF(D94<1," ",IF(Fee!L102,"Yes ","No")) ->  | J94: Neglect | R94: 0 | S94: 154 | Y94: 0 | Z94: 74 | AB94: 0 | AC94: 228 | AD94: 0 | AF94: 52 | AG94: 0
A95: 0 | C95: =List!F94 -> 0 | D95: =List!G94 -> 0 | E95: =List!H94 -> 0 | F95: =CONCATENATE(List!I94," -",List!U94) -> - | G95: =List!J94 -> 0 | H95: =List!M94 -> 0 | I95: =IF(D95<1," ",IF(Fee!L103,"Yes ","No")) ->  | J95: Neglect | R95: 0 | S95: 154 | Y95: 0 | Z95: 74 | AB95: 0 | AC95: 228 | AD95: 0 | AF95: 52 | AG95: 0
A96: 0 | C96: =List!F95 -> 0 | D96: =List!G95 -> 0 | E96: =List!H95 -> 0 | F96: =CONCATENATE(List!I95," -",List!U95) -> - | G96: =List!J95 -> 0 | H96: =List!M95 -> 0 | I96: =IF(D96<1," ",IF(Fee!L104,"Yes ","No")) ->  | J96: Neglect | R96: 0 | S96: 154 | Y96: 0 | Z96: 74 | AB96: 0 | AC96: 228 | AD96: 0 | AF96: 52 | AG96: 0
A97: 0 | C97: =List!F96 -> 0 | D97: =List!G96 -> 0 | E97: =List!H96 -> 0 | F97: =CONCATENATE(List!I96," -",List!U96) -> - | G97: =List!J96 -> 0 | H97: =List!M96 -> 0 | I97: =IF(D97<1," ",IF(Fee!L105,"Yes ","No")) ->  | J97: Neglect | R97: 0 | S97: 154 | Y97: 0 | Z97: 74 | AB97: 0 | AC97: 228 | AD97: 0 | AF97: 52 | AG97: 0
A98: 0 | C98: =List!F97 -> 0 | D98: =List!G97 -> 0 | E98: =List!H97 -> 0 | F98: =CONCATENATE(List!I97," -",List!U97) -> - | G98: =List!J97 -> 0 | H98: =List!M97 -> 0 | I98: =IF(D98<1," ",IF(Fee!L106,"Yes ","No")) ->  | J98: Neglect | R98: 0 | S98: 154 | Y98: 0 | Z98: 74 | AB98: 0 | AC98: 228 | AD98: 0 | AF98: 52 | AG98: 0
A99: 0 | C99: =List!F98 -> 0 | D99: =List!G98 -> 0 | E99: =List!H98 -> 0 | F99: =CONCATENATE(List!I98," -",List!U98) -> - | G99: =List!J98 -> 0 | H99: =List!M98 -> 0 | I99: =IF(D99<1," ",IF(Fee!L107,"Yes ","No")) ->  | J99: Neglect | R99: 0 | S99: 154 | Y99: 0 | Z99: 74 | AB99: 0 | AC99: 228 | AD99: 0 | AF99: 52 | AG99: 0
A100: 0 | C100: =List!F99 -> 0 | D100: =List!G99 -> 0 | E100: =List!H99 -> 0 | F100: =CONCATENATE(List!I99," -",List!U99) -> - | G100: =List!J99 -> 0 | H100: =List!M99 -> 0 | I100: =IF(D100<1," ",IF(Fee!L108,"Yes ","No")) ->  | J100: Neglect | R100: 0 | S100: 154 | Y100: 0 | Z100: 74 | AB100: 0 | AC100: 228 | AD100: 0 | AF100: 52 | AG100: 0
A101: 0 | C101: =List!F100 -> 0 | D101: =List!G100 -> 0 | E101: =List!H100 -> 0 | F101: =CONCATENATE(List!I100," -",List!U100) -> - | G101: =List!J100 -> 0 | H101: =List!M100 -> 0 | I101: =IF(D101<1," ",IF(Fee!L109,"Yes ","No")) ->  | J101: Neglect | R101: 0 | S101: 154 | Y101: 0 | Z101: 74 | AB101: 0 | AC101: 228 | AD101: 0 | AF101: 52 | AG101: 0
A102: 0 | C102: =List!F101 -> 0 | D102: =List!G101 -> 0 | E102: =List!H101 -> 0 | F102: =CONCATENATE(List!I101," -",List!U101) -> - | G102: =List!J101 -> 0 | H102: =List!M101 -> 0 | I102: =IF(D102<1," ",IF(Fee!L110,"Yes ","No")) ->  | J102: Neglect | R102: 0 | S102: 154 | Y102: 0 | Z102: 74 | AB102: 0 | AC102: 228 | AD102: 0 | AF102: 52 | AG102: 0
A103: 0 | C103: =List!F102 -> 0 | D103: =List!G102 -> 0 | E103: =List!H102 -> 0 | F103: =CONCATENATE(List!I102," -",List!U102) -> - | G103: =List!J102 -> 0 | H103: =List!M102 -> 0 | I103: =IF(D103<1," ",IF(Fee!L111,"Yes ","No")) ->  | J103: Neglect | R103: 0 | S103: 154 | Y103: 0 | Z103: 74 | AB103: 0 | AC103: 228 | AD103: 0 | AF103: 52 | AG103: 0
A104: 0 | C104: =List!F103 -> 0 | D104: =List!G103 -> 0 | E104: =List!H103 -> 0 | F104: =CONCATENATE(List!I103," -",List!U103) -> - | G104: =List!J103 -> 0 | H104: =List!M103 -> 0 | I104: =IF(D104<1," ",IF(Fee!L112,"Yes ","No")) ->  | J104: Neglect | R104: 0 | S104: 154 | Y104: 0 | Z104: 74 | AB104: 0 | AC104: 228 | AD104: 0 | AF104: 52 | AG104: 0
A105: 0 | C105: =List!F104 -> 0 | D105: =List!G104 -> 0 | E105: =List!H104 -> 0 | F105: =CONCATENATE(List!I104," -",List!U104) -> - | G105: =List!J104 -> 0 | H105: =List!M104 -> 0 | I105: =IF(D105<1," ",IF(Fee!L113,"Yes ","No")) ->  | J105: Neglect | R105: 0 | S105: 154 | Y105: 0 | Z105: 74 | AB105: 0 | AC105: 228 | AD105: 0 | AF105: 52 | AG105: 0
A106: 0 | C106: =List!F105 -> 0 | D106: =List!G105 -> 0 | E106: =List!H105 -> 0 | F106: =CONCATENATE(List!I105," -",List!U105) -> - | G106: =List!J105 -> 0 | H106: =List!M105 -> 0 | I106: =IF(D106<1," ",IF(Fee!L114,"Yes ","No")) ->  | J106: Neglect | R106: 0 | S106: 154 | Y106: 0 | Z106: 74 | AB106: 0 | AC106: 228 | AD106: 0 | AF106: 52 | AG106: 0
A107: 0 | C107: =List!F106 -> 0 | D107: =List!G106 -> 0 | E107: =List!H106 -> 0 | F107: =CONCATENATE(List!I106," -",List!U106) -> - | G107: =List!J106 -> 0 | H107: =List!M106 -> 0 | I107: =IF(D107<1," ",IF(Fee!L115,"Yes ","No")) ->  | J107: =IF(AD107<1,"Neglect",IF(AD107<65,"Detained",IF(AD107<75,"MC required","Satisfactory"))) -> Neglect | R107: =SUM(K107:Q107) -> 0 | S107: 154 | Y107: =SUM(U107:X107) -> 0 | Z107: 74 | AB107: =ROUND(R107+Y107,0) -> 0 | AC107: 228 | AD107: 0 | AF107: 52 | AG107: 0
A108: 0 | C108: =List!F107 -> 0 | D108: =List!G107 -> 0 | E108: =List!H107 -> 0 | F108: =CONCATENATE(List!I107," -",List!U107) -> - | G108: =List!J107 -> 0 | H108: =List!M107 -> 0 | I108: =IF(D108<1," ",IF(Fee!L116,"Yes ","No")) ->  | J108: Neglect | R108: 0 | S108: 154 | Y108: 0 | Z108: 74 | AB108: 0 | AC108: 228 | AD108: 0 | AF108: 52 | AG108: 0
A109: 0 | C109: =List!F108 -> 0 | D109: =List!G108 -> 0 | E109: =List!H108 -> 0 | F109: =CONCATENATE(List!I108," -",List!U108) -> - | G109: =List!J108 -> 0 | H109: =List!M108 -> 0 | I109: =IF(D109<1," ",IF(Fee!L117,"Yes ","No")) ->  | J109: Neglect | R109: 0 | S109: 154 | Y109: 0 | Z109: 74 | AB109: 0 | AC109: 228 | AD109: 0 | AF109: 52 | AG109: 0
A110: 0 | C110: =List!F109 -> 0 | D110: =List!G109 -> 0 | E110: =List!H109 -> 0 | F110: =CONCATENATE(List!I109," -",List!U109) -> - | G110: =List!J109 -> 0 | H110: =List!M109 -> 0 | I110: =IF(D110<1," ",IF(Fee!L118,"Yes ","No")) ->  | J110: Neglect | R110: 0 | S110: 154 | Y110: 0 | Z110: 74 | AB110: 0 | AC110: 228 | AD110: 0 | AF110: 52 | AG110: 0
A111: 0 | C111: =List!F110 -> 0 | D111: =List!G110 -> 0 | E111: =List!H110 -> 0 | F111: =CONCATENATE(List!I110," -",List!U110) -> - | G111: =List!J110 -> 0 | H111: =List!M110 -> 0 | I111: =IF(D111<1," ",IF(Fee!L119,"Yes ","No")) ->  | J111: Neglect | R111: 0 | S111: 154 | Y111: 0 | Z111: 74 | AB111: 0 | AC111: 228 | AD111: 0 | AF111: 52 | AG111: 0
A112: 0 | C112: =List!F111 -> 0 | D112: =List!G111 -> 0 | E112: =List!H111 -> 0 | F112: =CONCATENATE(List!I111," -",List!U111) -> - | G112: =List!J111 -> 0 | H112: =List!M111 -> 0 | I112: =IF(D112<1," ",IF(Fee!L120,"Yes ","No")) ->  | J112: Neglect | R112: 0 | S112: 154 | Y112: 0 | Z112: 74 | AB112: 0 | AC112: 228 | AD112: 0 | AF112: 52 | AG112: 0
A113: 0 | C113: =List!F112 -> 0 | D113: =List!G112 -> 0 | E113: =List!H112 -> 0 | F113: =CONCATENATE(List!I112," -",List!U112) -> - | G113: =List!J112 -> 0 | H113: =List!M112 -> 0 | I113: =IF(D113<1," ",IF(Fee!L121,"Yes ","No")) ->  | J113: Neglect | R113: 0 | S113: 154 | Y113: 0 | Z113: 74 | AB113: 0 | AC113: 228 | AD113: 0 | AF113: 52 | AG113: 0
A114: 0 | C114: =List!F113 -> 0 | D114: =List!G113 -> 0 | E114: =List!H113 -> 0 | F114: =CONCATENATE(List!I113," -",List!U113) -> - | G114: =List!J113 -> 0 | H114: =List!M113 -> 0 | I114: =IF(D114<1," ",IF(Fee!L122,"Yes ","No")) ->  | J114: Neglect | R114: 0 | S114: 154 | Y114: 0 | Z114: 74 | AB114: 0 | AC114: 228 | AD114: 0 | AF114: 52 | AG114: 0
A115: 0 | C115: =List!F114 -> 0 | D115: =List!G114 -> 0 | E115: =List!H114 -> 0 | F115: =CONCATENATE(List!I114," -",List!U114) -> - | G115: =List!J114 -> 0 | H115: =List!M114 -> 0 | I115: =IF(D115<1," ",IF(Fee!L123,"Yes ","No")) ->  | J115: Neglect | R115: 0 | S115: 154 | Y115: 0 | Z115: 74 | AB115: 0 | AC115: 228 | AD115: 0 | AF115: 52 | AG115: 0
A116: 0 | C116: =List!F115 -> 0 | D116: =List!G115 -> 0 | E116: =List!H115 -> 0 | F116: =CONCATENATE(List!I115," -",List!U115) -> - | G116: =List!J115 -> 0 | H116: =List!M115 -> 0 | I116: =IF(D116<1," ",IF(Fee!L124,"Yes ","No")) ->  | J116: Neglect | R116: 0 | S116: 154 | Y116: 0 | Z116: 74 | AB116: 0 | AC116: 228 | AD116: 0 | AF116: 52 | AG116: 0
A117: 0 | C117: =List!F116 -> 0 | D117: =List!G116 -> 0 | E117: =List!H116 -> 0 | F117: =CONCATENATE(List!I116," -",List!U116) -> - | G117: =List!J116 -> 0 | H117: =List!M116 -> 0 | I117: =IF(D117<1," ",IF(Fee!L125,"Yes ","No")) ->  | J117: =IF(AD117<1,"Neglect",IF(AD117<65,"Detained",IF(AD117<75,"MC required","Satisfactory"))) -> Neglect | R117: 0 | S117: =S86 -> 154 | Y117: =SUM(U117:X117) -> 0 | Z117: =Z86 -> 74 | AB117: =ROUND(R117+Y117,0) -> 0 | AC117: =AC86 -> 228 | AD117: 0 | AF117: =AF86 -> 52 | AG117: 0
A118: =A119 -> 0 | C118: VI CLASS ENGLISH MEDIUM | J118: =IF(AD118<1,"Neglect",IF(AD118<65,"Detained",IF(AD118<75,"MC required","Satisfactory"))) -> Neglect | AD118: 0 | AG118: 0
A119: =D119 -> 0 | C119: =List!F118 -> 0 | D119: =List!G118 -> 0 | E119: =List!H118 -> 0 | F119: =CONCATENATE(List!I118," -",List!U118) -> - | G119: =List!J118 -> 0 | H119: =List!M118 -> 0 | I119: =IF(D119<1," ",IF(Fee!L127,"Yes ","No")) ->  | J119: Neglect | R119: 0 | S119: =S117 -> 154 | Y119: =SUM(U119:X119) -> 0 | Z119: =Z117 -> 74 | AB119: =ROUND(R119+Y119,0) -> 0 | AC119: =AB5 -> 228 | AD119: 0 | AF119: =Data!M8 -> 52 | AG119: 0
A120: 0 | C120: =List!F119 -> 0 | D120: =List!G119 -> 0 | E120: =List!H119 -> 0 | F120: =CONCATENATE(List!I119," -",List!U119) -> - | G120: =List!J119 -> 0 | H120: =List!M119 -> 0 | I120: =IF(D120<1," ",IF(Fee!L128,"Yes ","No")) ->  | J120: Neglect | R120: 0 | S120: 154 | Y120: 0 | Z120: 74 | AB120: 0 | AC120: 228 | AD120: 0 | AF120: 52 | AG120: 0
A121: 0 | C121: =List!F120 -> 0 | D121: =List!G120 -> 0 | E121: =List!H120 -> 0 | F121: =CONCATENATE(List!I120," -",List!U120) -> - | G121: =List!J120 -> 0 | H121: =List!M120 -> 0 | I121: =IF(D121<1," ",IF(Fee!L129,"Yes ","No")) ->  | J121: Neglect | R121: 0 | S121: 154 | Y121: 0 | Z121: 74 | AB121: 0 | AC121: 228 | AD121: 0 | AF121: 52 | AG121: 0
A122: 0 | C122: =List!F121 -> 0 | D122: =List!G121 -> 0 | E122: =List!H121 -> 0 | F122: =CONCATENATE(List!I121," -",List!U121) -> - | G122: =List!J121 -> 0 | H122: =List!M121 -> 0 | I122: =IF(D122<1," ",IF(Fee!L130,"Yes ","No")) ->  | J122: Neglect | R122: 0 | S122: 154 | Y122: 0 | Z122: 74 | AB122: 0 | AC122: 228 | AD122: 0 | AF122: 52 | AG122: 0
A123: 0 | C123: =List!F122 -> 0 | D123: =List!G122 -> 0 | E123: =List!H122 -> 0 | F123: =CONCATENATE(List!I122," -",List!U122) -> - | G123: =List!J122 -> 0 | H123: =List!M122 -> 0 | I123: =IF(D123<1," ",IF(Fee!L131,"Yes ","No")) ->  | J123: Neglect | R123: 0 | S123: 154 | Y123: 0 | Z123: 74 | AB123: 0 | AC123: 228 | AD123: 0 | AF123: 52 | AG123: 0
A124: 0 | C124: =List!F123 -> 0 | D124: =List!G123 -> 0 | E124: =List!H123 -> 0 | F124: =CONCATENATE(List!I123," -",List!U123) -> - | G124: =List!J123 -> 0 | H124: =List!M123 -> 0 | I124: =IF(D124<1," ",IF(Fee!L132,"Yes ","No")) ->  | J124: Neglect | R124: 0 | S124: 154 | Y124: 0 | Z124: 74 | AB124: 0 | AC124: 228 | AD124: 0 | AF124: 52 | AG124: 0
A125: 0 | C125: =List!F124 -> 0 | D125: =List!G124 -> 0 | E125: =List!H124 -> 0 | F125: =CONCATENATE(List!I124," -",List!U124) -> - | G125: =List!J124 -> 0 | H125: =List!M124 -> 0 | I125: =IF(D125<1," ",IF(Fee!L133,"Yes ","No")) ->  | J125: Neglect | R125: 0 | S125: 154 | Y125: 0 | Z125: 74 | AB125: 0 | AC125: 228 | AD125: 0 | AF125: 52 | AG125: 0
A126: 0 | C126: =List!F125 -> 0 | D126: =List!G125 -> 0 | E126: =List!H125 -> 0 | F126: =CONCATENATE(List!I125," -",List!U125) -> - | G126: =List!J125 -> 0 | H126: =List!M125 -> 0 | I126: =IF(D126<1," ",IF(Fee!L134,"Yes ","No")) ->  | J126: Neglect | R126: 0 | S126: 154 | Y126: 0 | Z126: 74 | AB126: 0 | AC126: 228 | AD126: 0 | AF126: 52 | AG126: 0
A127: 0 | C127: =List!F126 -> 0 | D127: =List!G126 -> 0 | E127: =List!H126 -> 0 | F127: =CONCATENATE(List!I126," -",List!U126) -> - | G127: =List!J126 -> 0 | H127: =List!M126 -> 0 | I127: =IF(D127<1," ",IF(Fee!L135,"Yes ","No")) ->  | J127: Neglect | R127: 0 | S127: 154 | Y127: 0 | Z127: 74 | AB127: 0 | AC127: 228 | AD127: 0 | AF127: 52 | AG127: 0
A128: 0 | C128: =List!F127 -> 0 | D128: =List!G127 -> 0 | E128: =List!H127 -> 0 | F128: =CONCATENATE(List!I127," -",List!U127) -> - | G128: =List!J127 -> 0 | H128: =List!M127 -> 0 | I128: =IF(D128<1," ",IF(Fee!L136,"Yes ","No")) ->  | J128: Neglect | R128: 0 | S128: 154 | Y128: 0 | Z128: 74 | AB128: 0 | AC128: 228 | AD128: 0 | AF128: 52 | AG128: 0
A129: 0 | C129: =List!F128 -> 0 | D129: =List!G128 -> 0 | E129: =List!H128 -> 0 | F129: =CONCATENATE(List!I128," -",List!U128) -> - | G129: =List!J128 -> 0 | H129: =List!M128 -> 0 | I129: =IF(D129<1," ",IF(Fee!L137,"Yes ","No")) ->  | J129: Neglect | R129: 0 | S129: 154 | Y129: 0 | Z129: 74 | AB129: 0 | AC129: 228 | AD129: 0 | AF129: 52 | AG129: 0
A130: 0 | C130: =List!F129 -> 0 | D130: =List!G129 -> 0 | E130: =List!H129 -> 0 | F130: =CONCATENATE(List!I129," -",List!U129) -> - | G130: =List!J129 -> 0 | H130: =List!M129 -> 0 | I130: =IF(D130<1," ",IF(Fee!L138,"Yes ","No")) ->  | J130: Neglect | R130: 0 | S130: 154 | Y130: 0 | Z130: 74 | AB130: 0 | AC130: 228 | AD130: 0 | AF130: 52 | AG130: 0
A131: 0 | C131: =List!F130 -> 0 | D131: =List!G130 -> 0 | E131: =List!H130 -> 0 | F131: =CONCATENATE(List!I130," -",List!U130) -> - | G131: =List!J130 -> 0 | H131: =List!M130 -> 0 | I131: =IF(D131<1," ",IF(Fee!L139,"Yes ","No")) ->  | J131: Neglect | R131: 0 | S131: 154 | Y131: 0 | Z131: 74 | AB131: 0 | AC131: 228 | AD131: 0 | AF131: 52 | AG131: 0
A132: 0 | C132: =List!F131 -> 0 | D132: =List!G131 -> 0 | E132: =List!H131 -> 0 | F132: =CONCATENATE(List!I131," -",List!U131) -> - | G132: =List!J131 -> 0 | H132: =List!M131 -> 0 | I132: =IF(D132<1," ",IF(Fee!L140,"Yes ","No")) ->  | J132: Neglect | R132: 0 | S132: 154 | Y132: 0 | Z132: 74 | AB132: 0 | AC132: 228 | AD132: 0 | AF132: 52 | AG132: 0
A133: 0 | C133: =List!F132 -> 0 | D133: =List!G132 -> 0 | E133: =List!H132 -> 0 | F133: =CONCATENATE(List!I132," -",List!U132) -> - | G133: =List!J132 -> 0 | H133: =List!M132 -> 0 | I133: =IF(D133<1," ",IF(Fee!L141,"Yes ","No")) ->  | J133: Neglect | R133: 0 | S133: 154 | Y133: 0 | Z133: 74 | AB133: 0 | AC133: 228 | AD133: 0 | AF133: 52 | AG133: 0
A134: 0 | C134: =List!F133 -> 0 | D134: =List!G133 -> 0 | E134: =List!H133 -> 0 | F134: =CONCATENATE(List!I133," -",List!U133) -> - | G134: =List!J133 -> 0 | H134: =List!M133 -> 0 | I134: =IF(D134<1," ",IF(Fee!L142,"Yes ","No")) ->  | J134: Neglect | R134: 0 | S134: 154 | Y134: 0 | Z134: 74 | AB134: 0 | AC134: 228 | AD134: 0 | AF134: 52 | AG134: 0
A135: 0 | C135: =List!F134 -> 0 | D135: =List!G134 -> 0 | E135: =List!H134 -> 0 | F135: =CONCATENATE(List!I134," -",List!U134) -> - | G135: =List!J134 -> 0 | H135: =List!M134 -> 0 | I135: =IF(D135<1," ",IF(Fee!L143,"Yes ","No")) ->  | J135: Neglect | R135: 0 | S135: 154 | Y135: 0 | Z135: 74 | AB135: 0 | AC135: 228 | AD135: 0 | AF135: 52 | AG135: 0
A136: 0 | C136: =List!F135 -> 0 | D136: =List!G135 -> 0 | E136: =List!H135 -> 0 | F136: =CONCATENATE(List!I135," -",List!U135) -> - | G136: =List!J135 -> 0 | H136: =List!M135 -> 0 | I136: =IF(D136<1," ",IF(Fee!L144,"Yes ","No")) ->  | J136: Neglect | R136: 0 | S136: 154 | Y136: 0 | Z136: 74 | AB136: 0 | AC136: 228 | AD136: 0 | AF136: 52 | AG136: 0
A137: 0 | C137: =List!F136 -> 0 | D137: =List!G136 -> 0 | E137: =List!H136 -> 0 | F137: =CONCATENATE(List!I136," -",List!U136) -> - | G137: =List!J136 -> 0 | H137: =List!M136 -> 0 | I137: =IF(D137<1," ",IF(Fee!L145,"Yes ","No")) ->  | J137: Neglect | R137: 0 | S137: 154 | T137: =IF(R137>0,ROUND(R137*100/S137,0)," ") ->  | Y137: 0 | Z137: 74 | AA137: =IF(Y137>0,ROUND(Y137*100/Z137,0)," ") ->  | AB137: 0 | AC137: 228 | AD137: =IF(AB137>0,ROUND(AB137*100/AC137,0),0) -> 0 | AF137: 52 | AG137: 0
A138: 0 | C138: =List!F137 -> 0 | D138: =List!G137 -> 0 | E138: =List!H137 -> 0 | F138: =CONCATENATE(List!I137," -",List!U137) -> - | G138: =List!J137 -> 0 | H138: =List!M137 -> 0 | I138: =IF(D138<1," ",IF(Fee!L146,"Yes ","No")) ->  | J138: Neglect | R138: 0 | S138: 154 | Y138: 0 | Z138: 74 | AB138: 0 | AC138: 228 | AD138: 0 | AF138: 52 | AG138: =IF(AE138>0,ROUND(AE138*100/AF138,0),0) -> 0
A139: 0 | C139: =List!F138 -> 0 | D139: =List!G138 -> 0 | E139: =List!H138 -> 0 | F139: =CONCATENATE(List!I138," -",List!U138) -> - | G139: =List!J138 -> 0 | H139: =List!M138 -> 0 | I139: =IF(D139<1," ",IF(Fee!L147,"Yes ","No")) ->  | J139: Neglect | R139: 0 | S139: 154 | Y139: 0 | Z139: 74 | AB139: 0 | AC139: 228 | AD139: 0 | AF139: 52 | AG139: 0
A140: 0 | C140: =List!F139 -> 0 | D140: =List!G139 -> 0 | E140: =List!H139 -> 0 | F140: =CONCATENATE(List!I139," -",List!U139) -> - | G140: =List!J139 -> 0 | H140: =List!M139 -> 0 | I140: =IF(D140<1," ",IF(Fee!L148,"Yes ","No")) ->  | J140: Neglect | R140: 0 | S140: 154 | Y140: 0 | Z140: 74 | AB140: 0 | AC140: 228 | AD140: 0 | AF140: 52 | AG140: 0
A141: 0 | C141: =List!F140 -> 0 | D141: =List!G140 -> 0 | E141: =List!H140 -> 0 | F141: =CONCATENATE(List!I140," -",List!U140) -> - | G141: =List!J140 -> 0 | H141: =List!M140 -> 0 | I141: =IF(D141<1," ",IF(Fee!L149,"Yes ","No")) ->  | J141: Neglect | R141: 0 | S141: 154 | Y141: 0 | Z141: 74 | AB141: 0 | AC141: 228 | AD141: 0 | AF141: 52 | AG141: 0
A142: 0 | C142: =List!F141 -> 0 | D142: =List!G141 -> 0 | E142: =List!H141 -> 0 | F142: =CONCATENATE(List!I141," -",List!U141) -> - | G142: =List!J141 -> 0 | H142: =List!M141 -> 0 | I142: =IF(D142<1," ",IF(Fee!L150,"Yes ","No")) ->  | J142: =IF(AD142<1,"Neglect",IF(AD142<65,"Detained",IF(AD142<75,"MC required","Satisfactory"))) -> Neglect | R142: 0 | S142: =S141 -> 154 | Y142: =SUM(U142:X142) -> 0 | Z142: =Z141 -> 74 | AB142: =ROUND(R142+Y142,0) -> 0 | AC142: =AC141 -> 228 | AD142: 0 | AF142: 52 | AG142: 0
A143: 0 | C143: =List!F142 -> 0 | D143: =List!G142 -> 0 | E143: =List!H142 -> 0 | F143: =CONCATENATE(List!I142," -",List!U142) -> - | G143: =List!J142 -> 0 | H143: =List!M142 -> 0 | I143: =IF(D143<1," ",IF(Fee!L151,"Yes ","No")) ->  | J143: =IF(AD143<1,"Neglect",IF(AD143<65,"Detained",IF(AD143<75,"MC required","Satisfactory"))) -> Neglect | R143: 0 | S143: 154 | Y143: =SUM(U143:X143) -> 0 | Z143: 74 | AB143: =ROUND(R143+Y143,0) -> 0 | AC143: 228 | AD143: 0 | AF143: 52 | AG143: 0
A144: 0 | C144: =List!F143 -> 0 | D144: =List!G143 -> 0 | E144: =List!H143 -> 0 | F144: =CONCATENATE(List!I143," -",List!U143) -> - | G144: =List!J143 -> 0 | H144: =List!M143 -> 0 | I144: =IF(D144<1," ",IF(Fee!L152,"Yes ","No")) ->  | J144: Neglect | R144: 0 | S144: 154 | Y144: 0 | Z144: 74 | AB144: 0 | AC144: 228 | AD144: 0 | AF144: =AF143 -> 52 | AG144: 0
A145: 0 | C145: =List!F144 -> 0 | D145: =List!G144 -> 0 | E145: =List!H144 -> 0 | F145: =CONCATENATE(List!I144," -",List!U144) -> - | G145: =List!J144 -> 0 | H145: =List!M144 -> 0 | I145: =IF(D145<1," ",IF(Fee!L153,"Yes ","No")) ->  | J145: Neglect | R145: 0 | S145: 154 | Y145: 0 | Z145: 74 | AB145: 0 | AC145: 228 | AD145: 0 | AF145: 52 | AG145: 0
A146: 0 | C146: =List!F145 -> 0 | D146: =List!G145 -> 0 | E146: =List!H145 -> 0 | F146: =CONCATENATE(List!I145," -",List!U145) -> - | G146: =List!J145 -> 0 | H146: =List!M145 -> 0 | I146: =IF(D146<1," ",IF(Fee!L154,"Yes ","No")) ->  | J146: Neglect | R146: 0 | S146: 154 | Y146: 0 | Z146: 74 | AB146: 0 | AC146: 228 | AD146: 0 | AF146: 52 | AG146: 0
A147: 0 | C147: =List!F146 -> 0 | D147: =List!G146 -> 0 | E147: =List!H146 -> 0 | F147: =CONCATENATE(List!I146," -",List!U146) -> - | G147: =List!J146 -> 0 | H147: =List!M146 -> 0 | I147: =IF(D147<1," ",IF(Fee!L155,"Yes ","No")) ->  | J147: Neglect | R147: 0 | S147: 154 | Y147: 0 | Z147: 74 | AB147: 0 | AC147: 228 | AD147: 0 | AF147: 52 | AG147: 0
A148: 0 | C148: =List!F147 -> 0 | D148: =List!G147 -> 0 | E148: =List!H147 -> 0 | F148: =CONCATENATE(List!I147," -",List!U147) -> - | G148: =List!J147 -> 0 | H148: =List!M147 -> 0 | I148: =IF(D148<1," ",IF(Fee!L156,"Yes ","No")) ->  | J148: Neglect | R148: 0 | S148: 154 | Y148: 0 | Z148: 74 | AB148: 0 | AC148: 228 | AD148: 0 | AF148: 52 | AG148: 0
A149: 0 | C149: =List!F148 -> 0 | D149: =List!G148 -> 0 | E149: =List!H148 -> 0 | F149: =CONCATENATE(List!I148," -",List!U148) -> - | G149: =List!J148 -> 0 | H149: =List!M148 -> 0 | I149: =IF(D149<1," ",IF(Fee!L157,"Yes ","No")) ->  | J149: Neglect | R149: 0 | S149: 154 | Y149: 0 | Z149: 74 | AB149: 0 | AC149: 228 | AD149: 0 | AF149: 52 | AG149: 0
A150: 0 | C150: =List!F149 -> 0 | D150: =List!G149 -> 0 | E150: =List!H149 -> 0 | F150: =CONCATENATE(List!I149," -",List!U149) -> - | G150: =List!J149 -> 0 | H150: =List!M149 -> 0 | I150: =IF(D150<1," ",IF(Fee!L158,"Yes ","No")) ->  | J150: Neglect | R150: 0 | S150: 154 | Y150: 0 | Z150: 74 | AB150: 0 | AC150: 228 | AD150: 0 | AF150: 52 | AG150: 0
A151: =D151 -> 0 | C151: =List!F150 -> 0 | D151: =List!G150 -> 0 | E151: =List!H150 -> 0 | F151: =CONCATENATE(List!I150," -",List!U150) -> - | G151: =List!J150 -> 0 | H151: =List!M150 -> 0 | I151: =IF(D151<1," ",IF(Fee!L159,"Yes ","No")) ->  | J151: Neglect | R151: 0 | S151: 154 | Y151: 0 | Z151: 74 | AB151: 0 | AC151: 228 | AD151: 0 | AF151: 52 | AG151: 0
A152: 0 | C152: =List!F151 -> 0 | D152: =List!G151 -> 0 | E152: =List!H151 -> 0 | F152: =CONCATENATE(List!I151," -",List!U151) -> - | G152: =List!J151 -> 0 | H152: =List!M151 -> 0 | I152: =IF(D152<1," ",IF(Fee!L160,"Yes ","No")) ->  | J152: Neglect | R152: 0 | S152: 154 | Y152: 0 | Z152: 74 | AB152: 0 | AC152: 228 | AD152: 0 | AF152: 52 | AG152: 0
A153: 0 | C153: =List!F152 -> 0 | D153: =List!G152 -> 0 | E153: =List!H152 -> 0 | F153: =CONCATENATE(List!I152," -",List!U152) -> - | G153: =List!J152 -> 0 | H153: =List!M152 -> 0 | I153: =IF(D153<1," ",IF(Fee!L161,"Yes ","No")) ->  | J153: Neglect | R153: 0 | S153: 154 | Y153: 0 | Z153: 74 | AB153: 0 | AC153: 228 | AD153: 0 | AF153: 52 | AG153: 0
A154: 0 | C154: =List!F153 -> 0 | D154: =List!G153 -> 0 | E154: =List!H153 -> 0 | F154: =CONCATENATE(List!I153," -",List!U153) -> - | G154: =List!J153 -> 0 | H154: =List!M153 -> 0 | I154: =IF(D154<1," ",IF(Fee!L162,"Yes ","No")) ->  | J154: Neglect | R154: 0 | S154: 154 | Y154: 0 | Z154: 74 | AB154: 0 | AC154: 228 | AD154: 0 | AF154: 52 | AG154: 0
A155: 0 | C155: =List!F154 -> 0 | D155: =List!G154 -> 0 | E155: =List!H154 -> 0 | F155: =CONCATENATE(List!I154," -",List!U154) -> - | G155: =List!J154 -> 0 | H155: =List!M154 -> 0 | I155: =IF(D155<1," ",IF(Fee!L163,"Yes ","No")) ->  | J155: Neglect | R155: 0 | S155: 154 | Y155: 0 | Z155: 74 | AB155: 0 | AC155: 228 | AD155: 0 | AF155: 52 | AG155: 0
A156: 0 | C156: =List!F155 -> 0 | D156: =List!G155 -> 0 | E156: =List!H155 -> 0 | F156: =CONCATENATE(List!I155," -",List!U155) -> - | G156: =List!J155 -> 0 | H156: =List!M155 -> 0 | I156: =IF(D156<1," ",IF(Fee!L164,"Yes ","No")) ->  | J156: Neglect | R156: 0 | S156: 154 | Y156: 0 | Z156: 74 | AB156: 0 | AC156: 228 | AD156: 0 | AF156: 52 | AG156: 0
A157: 0 | C157: =List!F156 -> 0 | D157: =List!G156 -> 0 | E157: =List!H156 -> 0 | F157: =CONCATENATE(List!I156," -",List!U156) -> - | G157: =List!J156 -> 0 | H157: =List!M156 -> 0 | I157: =IF(D157<1," ",IF(Fee!L165,"Yes ","No")) ->  | J157: Neglect | R157: 0 | S157: 154 | Y157: 0 | Z157: 74 | AB157: 0 | AC157: 228 | AD157: 0 | AF157: 52 | AG157: 0
A158: 0 | C158: =List!F157 -> 0 | D158: =List!G157 -> 0 | E158: =List!H157 -> 0 | F158: =CONCATENATE(List!I157," -",List!U157) -> - | G158: =List!J157 -> 0 | H158: =List!M157 -> 0 | I158: =IF(D158<1," ",IF(Fee!L166,"Yes ","No")) ->  | J158: Neglect | R158: 0 | S158: 154 | Y158: 0 | Z158: 74 | AB158: 0 | AC158: 228 | AD158: 0 | AF158: 52 | AG158: 0
A159: 0 | C159: =List!F158 -> 0 | D159: =List!G158 -> 0 | E159: =List!H158 -> 0 | F159: =CONCATENATE(List!I158," -",List!U158) -> - | G159: =List!J158 -> 0 | H159: =List!M158 -> 0 | I159: =IF(D159<1," ",IF(Fee!L167,"Yes ","No")) ->  | J159: Neglect | R159: 0 | S159: 154 | Y159: 0 | Z159: 74 | AB159: 0 | AC159: 228 | AD159: 0 | AF159: 52 | AG159: 0
A160: 0 | C160: =List!F159 -> 0 | D160: =List!G159 -> 0 | E160: =List!H159 -> 0 | F160: =CONCATENATE(List!I159," -",List!U159) -> - | G160: =List!J159 -> 0 | H160: =List!M159 -> 0 | I160: =IF(D160<1," ",IF(Fee!L168,"Yes ","No")) ->  | J160: Neglect | R160: 0 | S160: 154 | Y160: 0 | Z160: 74 | AB160: 0 | AC160: 228 | AD160: 0 | AF160: 52 | AG160: 0
A161: 0 | C161: =List!F160 -> 0 | D161: =List!G160 -> 0 | E161: =List!H160 -> 0 | F161: =CONCATENATE(List!I160," -",List!U160) -> - | G161: =List!J160 -> 0 | H161: =List!M160 -> 0 | I161: =IF(D161<1," ",IF(Fee!L169,"Yes ","No")) ->  | J161: Neglect | R161: 0 | S161: 154 | Y161: 0 | Z161: 74 | AB161: 0 | AC161: 228 | AD161: 0 | AF161: 52 | AG161: 0
A162: 0 | C162: =List!F161 -> 0 | D162: =List!G161 -> 0 | E162: =List!H161 -> 0 | F162: =CONCATENATE(List!I161," -",List!U161) -> - | G162: =List!J161 -> 0 | H162: =List!M161 -> 0 | I162: =IF(D162<1," ",IF(Fee!L170,"Yes ","No")) ->  | J162: Neglect | R162: 0 | S162: 154 | Y162: 0 | Z162: 74 | AB162: 0 | AC162: 228 | AD162: 0 | AF162: 52 | AG162: 0
A163: 0 | C163: =List!F162 -> 0 | D163: =List!G162 -> 0 | E163: =List!H162 -> 0 | F163: =CONCATENATE(List!I162," -",List!U162) -> - | G163: =List!J162 -> 0 | H163: =List!M162 -> 0 | I163: =IF(D163<1," ",IF(Fee!L171,"Yes ","No")) ->  | J163: Neglect | R163: 0 | S163: 154 | Y163: 0 | Z163: 74 | AB163: 0 | AC163: 228 | AD163: 0 | AF163: 52 | AG163: 0
A164: 0 | C164: =List!F163 -> 0 | D164: =List!G163 -> 0 | E164: =List!H163 -> 0 | F164: =CONCATENATE(List!I163," -",List!U163) -> - | G164: =List!J163 -> 0 | H164: =List!M163 -> 0 | I164: =IF(D164<1," ",IF(Fee!L172,"Yes ","No")) ->  | J164: Neglect | R164: 0 | S164: 154 | Y164: 0 | Z164: 74 | AB164: 0 | AC164: 228 | AD164: 0 | AF164: 52 | AG164: 0
A165: 0 | C165: =List!F164 -> 0 | D165: =List!G164 -> 0 | E165: =List!H164 -> 0 | F165: =CONCATENATE(List!I164," -",List!U164) -> - | G165: =List!J164 -> 0 | H165: =List!M164 -> 0 | I165: =IF(D165<1," ",IF(Fee!L173,"Yes ","No")) ->  | J165: Neglect | R165: =SUM(K165:Q165) -> 0 | S165: 154 | Y165: 0 | Z165: 74 | AB165: 0 | AC165: 228 | AD165: 0 | AF165: 52 | AG165: 0
A166: 0 | C166: =List!F165 -> 0 | D166: =List!G165 -> 0 | E166: =List!H165 -> 0 | F166: =CONCATENATE(List!I165," -",List!U165) -> - | G166: =List!J165 -> 0 | H166: =List!M165 -> 0 | I166: =IF(D166<1," ",IF(Fee!L174,"Yes ","No")) ->  | J166: Neglect | R166: 0 | S166: 154 | Y166: 0 | Z166: 74 | AB166: 0 | AC166: 228 | AD166: 0 | AF166: 52 | AG166: 0
A167: 0 | C167: =List!F166 -> 0 | D167: =List!G166 -> 0 | E167: =List!H166 -> 0 | F167: =CONCATENATE(List!I166," -",List!U166) -> - | G167: =List!J166 -> 0 | H167: =List!M166 -> 0 | I167: =IF(D167<1," ",IF(Fee!L175,"Yes ","No")) ->  | J167: Neglect | R167: 0 | S167: 154 | Y167: 0 | Z167: 74 | AB167: 0 | AC167: 228 | AD167: 0 | AF167: 52 | AG167: 0
A168: 0 | C168: =List!F167 -> 0 | D168: =List!G167 -> 0 | E168: =List!H167 -> 0 | F168: =CONCATENATE(List!I167," -",List!U167) -> - | G168: =List!J167 -> 0 | H168: =List!M167 -> 0 | I168: =IF(D168<1," ",IF(Fee!L176,"Yes ","No")) ->  | J168: Neglect | R168: 0 | S168: 154 | Y168: 0 | Z168: 74 | AB168: 0 | AC168: 228 | AD168: 0 | AF168: 52 | AG168: 0
A169: =A170 -> 0 | C169: VII CLASS TELUGU MEDIUM | J169: =IF(AD169<1,"Neglect",IF(AD169<65,"Detained",IF(AD169<75,"MC required","Satisfactory"))) -> Neglect | AD169: 0 | AG169: 0
A170: =D170 -> 0 | C170: =List!F169 -> 0 | D170: =List!G169 -> 0 | E170: =List!H169 -> 0 | F170: =CONCATENATE(List!I169," -",List!U169) -> - | G170: =List!J169 -> 0 | H170: =List!M169 -> 0 | I170: =IF(D170<1," ",IF(Fee!L178,"Yes ","No")) ->  | J170: Neglect | R170: 0 | S170: =S168 -> 154 | Y170: =SUM(U170:X170) -> 0 | Z170: =Z168 -> 74 | AB170: =ROUND(R170+Y170,0) -> 0 | AC170: =AB5 -> 228 | AD170: 0 | AF170: =Data!M9 -> 50 | AG170: 0
A171: 0 | C171: =List!F170 -> 0 | D171: =List!G170 -> 0 | E171: =List!H170 -> 0 | F171: =CONCATENATE(List!I170," -",List!U170) -> - | G171: =List!J170 -> 0 | H171: =List!M170 -> 0 | I171: =IF(D171<1," ",IF(Fee!L179,"Yes ","No")) ->  | J171: Neglect | R171: 0 | S171: 154 | Y171: 0 | Z171: 74 | AB171: 0 | AC171: 228 | AD171: 0 | AF171: =AF170 -> 50 | AG171: 0
A172: 0 | C172: =List!F171 -> 0 | D172: =List!G171 -> 0 | E172: =List!H171 -> 0 | F172: =CONCATENATE(List!I171," -",List!U171) -> - | G172: =List!J171 -> 0 | H172: =List!M171 -> 0 | I172: =IF(D172<1," ",IF(Fee!L180,"Yes ","No")) ->  | J172: Neglect | R172: 0 | S172: 154 | Y172: 0 | Z172: 74 | AB172: 0 | AC172: 228 | AD172: 0 | AF172: 50 | AG172: 0
A173: 0 | C173: =List!F172 -> 0 | D173: =List!G172 -> 0 | E173: =List!H172 -> 0 | F173: =CONCATENATE(List!I172," -",List!U172) -> - | G173: =List!J172 -> 0 | H173: =List!M172 -> 0 | I173: =IF(D173<1," ",IF(Fee!L181,"Yes ","No")) ->  | J173: Neglect | R173: 0 | S173: 154 | Y173: 0 | Z173: 74 | AB173: 0 | AC173: 228 | AD173: 0 | AF173: 50 | AG173: 0
A174: 0 | C174: =List!F173 -> 0 | D174: =List!G173 -> 0 | E174: =List!H173 -> 0 | F174: =CONCATENATE(List!I173," -",List!U173) -> - | G174: =List!J173 -> 0 | H174: =List!M173 -> 0 | I174: =IF(D174<1," ",IF(Fee!L182,"Yes ","No")) ->  | J174: Neglect | R174: 0 | S174: 154 | Y174: 0 | Z174: 74 | AB174: 0 | AC174: 228 | AD174: 0 | AF174: 50 | AG174: 0
A175: 0 | C175: =List!F174 -> 0 | D175: =List!G174 -> 0 | E175: =List!H174 -> 0 | F175: =CONCATENATE(List!I174," -",List!U174) -> - | G175: =List!J174 -> 0 | H175: =List!M174 -> 0 | I175: =IF(D175<1," ",IF(Fee!L183,"Yes ","No")) ->  | J175: Neglect | R175: 0 | S175: 154 | Y175: 0 | Z175: 74 | AB175: 0 | AC175: 228 | AD175: 0 | AF175: 50 | AG175: 0
A176: 0 | C176: =List!F175 -> 0 | D176: =List!G175 -> 0 | E176: =List!H175 -> 0 | F176: =CONCATENATE(List!I175," -",List!U175) -> - | G176: =List!J175 -> 0 | H176: =List!M175 -> 0 | I176: =IF(D176<1," ",IF(Fee!L184,"Yes ","No")) ->  | J176: Neglect | R176: 0 | S176: 154 | Y176: 0 | Z176: 74 | AB176: 0 | AC176: 228 | AD176: 0 | AF176: 50 | AG176: 0
A177: 0 | C177: =List!F176 -> 0 | D177: =List!G176 -> 0 | E177: =List!H176 -> 0 | F177: =CONCATENATE(List!I176," -",List!U176) -> - | G177: =List!J176 -> 0 | H177: =List!M176 -> 0 | I177: =IF(D177<1," ",IF(Fee!L185,"Yes ","No")) ->  | J177: Neglect | R177: 0 | S177: 154 | Y177: 0 | Z177: 74 | AB177: 0 | AC177: 228 | AD177: 0 | AF177: 50 | AG177: 0
A178: 0 | C178: =List!F177 -> 0 | D178: =List!G177 -> 0 | E178: =List!H177 -> 0 | F178: =CONCATENATE(List!I177," -",List!U177) -> - | G178: =List!J177 -> 0 | H178: =List!M177 -> 0 | I178: =IF(D178<1," ",IF(Fee!L186,"Yes ","No")) ->  | J178: Neglect | R178: 0 | S178: 154 | Y178: 0 | Z178: 74 | AB178: 0 | AC178: 228 | AD178: 0 | AF178: 50 | AG178: 0
A179: 0 | C179: =List!F178 -> 0 | D179: =List!G178 -> 0 | E179: =List!H178 -> 0 | F179: =CONCATENATE(List!I178," -",List!U178) -> - | G179: =List!J178 -> 0 | H179: =List!M178 -> 0 | I179: =IF(D179<1," ",IF(Fee!L187,"Yes ","No")) ->  | J179: Neglect | R179: 0 | S179: 154 | Y179: 0 | Z179: 74 | AB179: 0 | AC179: 228 | AD179: 0 | AF179: 50 | AG179: 0
A180: 0 | C180: =List!F179 -> 0 | D180: =List!G179 -> 0 | E180: =List!H179 -> 0 | F180: =CONCATENATE(List!I179," -",List!U179) -> - | G180: =List!J179 -> 0 | H180: =List!M179 -> 0 | I180: =IF(D180<1," ",IF(Fee!L188,"Yes ","No")) ->  | J180: Neglect | R180: 0 | S180: 154 | Y180: 0 | Z180: 74 | AB180: 0 | AC180: 228 | AD180: 0 | AF180: 50 | AG180: 0
A181: 0 | C181: =List!F180 -> 0 | D181: =List!G180 -> 0 | E181: =List!H180 -> 0 | F181: =CONCATENATE(List!I180," -",List!U180) -> - | G181: =List!J180 -> 0 | H181: =List!M180 -> 0 | I181: =IF(D181<1," ",IF(Fee!L189,"Yes ","No")) ->  | J181: Neglect | R181: 0 | S181: 154 | Y181: 0 | Z181: 74 | AB181: 0 | AC181: 228 | AD181: 0 | AF181: 50 | AG181: 0
A182: 0 | C182: =List!F181 -> 0 | D182: =List!G181 -> 0 | E182: =List!H181 -> 0 | F182: =CONCATENATE(List!I181," -",List!U181) -> - | G182: =List!J181 -> 0 | H182: =List!M181 -> 0 | I182: =IF(D182<1," ",IF(Fee!L190,"Yes ","No")) ->  | J182: Neglect | R182: 0 | S182: 154 | Y182: 0 | Z182: 74 | AB182: 0 | AC182: 228 | AD182: 0 | AF182: 50 | AG182: 0
A183: 0 | C183: =List!F182 -> 0 | D183: =List!G182 -> 0 | E183: =List!H182 -> 0 | F183: =CONCATENATE(List!I182," -",List!U182) -> - | G183: =List!J182 -> 0 | H183: =List!M182 -> 0 | I183: =IF(D183<1," ",IF(Fee!L191,"Yes ","No")) ->  | J183: Neglect | R183: 0 | S183: 154 | Y183: 0 | Z183: 74 | AB183: 0 | AC183: 228 | AD183: 0 | AF183: 50 | AG183: 0
A184: 0 | C184: =List!F183 -> 0 | D184: =List!G183 -> 0 | E184: =List!H183 -> 0 | F184: =CONCATENATE(List!I183," -",List!U183) -> - | G184: =List!J183 -> 0 | H184: =List!M183 -> 0 | I184: =IF(D184<1," ",IF(Fee!L192,"Yes ","No")) ->  | J184: Neglect | R184: 0 | S184: 154 | Y184: 0 | Z184: 74 | AB184: 0 | AC184: 228 | AD184: 0 | AF184: 50 | AG184: 0
A185: 0 | C185: =List!F184 -> 0 | D185: =List!G184 -> 0 | E185: =List!H184 -> 0 | F185: =CONCATENATE(List!I184," -",List!U184) -> - | G185: =List!J184 -> 0 | H185: =List!M184 -> 0 | I185: =IF(D185<1," ",IF(Fee!L193,"Yes ","No")) ->  | J185: Neglect | R185: 0 | S185: 154 | Y185: 0 | Z185: 74 | AB185: 0 | AC185: 228 | AD185: 0 | AF185: 50 | AG185: 0
A186: 0 | C186: =List!F185 -> 0 | D186: =List!G185 -> 0 | E186: =List!H185 -> 0 | F186: =CONCATENATE(List!I185," -",List!U185) -> - | G186: =List!J185 -> 0 | H186: =List!M185 -> 0 | I186: =IF(D186<1," ",IF(Fee!L194,"Yes ","No")) ->  | J186: Neglect | R186: 0 | S186: 154 | Y186: 0 | Z186: 74 | AB186: 0 | AC186: 228 | AD186: 0 | AF186: 50 | AG186: 0
A187: 0 | C187: =List!F186 -> 0 | D187: =List!G186 -> 0 | E187: =List!H186 -> 0 | F187: =CONCATENATE(List!I186," -",List!U186) -> - | G187: =List!J186 -> 0 | H187: =List!M186 -> 0 | I187: =IF(D187<1," ",IF(Fee!L195,"Yes ","No")) ->  | J187: Neglect | R187: 0 | S187: 154 | Y187: 0 | Z187: 74 | AB187: 0 | AC187: 228 | AD187: 0 | AF187: 50 | AG187: 0
A188: 0 | C188: =List!F187 -> 0 | D188: =List!G187 -> 0 | E188: =List!H187 -> 0 | F188: =CONCATENATE(List!I187," -",List!U187) -> - | G188: =List!J187 -> 0 | H188: =List!M187 -> 0 | I188: =IF(D188<1," ",IF(Fee!L196,"Yes ","No")) ->  | J188: Neglect | R188: 0 | S188: 154 | Y188: 0 | Z188: 74 | AB188: 0 | AC188: 228 | AD188: 0 | AF188: 50 | AG188: 0
A189: 0 | C189: =List!F188 -> 0 | D189: =List!G188 -> 0 | E189: =List!H188 -> 0 | F189: =CONCATENATE(List!I188," -",List!U188) -> - | G189: =List!J188 -> 0 | H189: =List!M188 -> 0 | I189: =IF(D189<1," ",IF(Fee!L197,"Yes ","No")) ->  | J189: Neglect | R189: 0 | S189: 154 | Y189: 0 | Z189: 74 | AB189: 0 | AC189: 228 | AD189: 0 | AF189: 50 | AG189: 0
A190: 0 | C190: =List!F189 -> 0 | D190: =List!G189 -> 0 | E190: =List!H189 -> 0 | F190: =CONCATENATE(List!I189," -",List!U189) -> - | G190: =List!J189 -> 0 | H190: =List!M189 -> 0 | I190: =IF(D190<1," ",IF(Fee!L198,"Yes ","No")) ->  | J190: =IF(AD190<1,"Neglect",IF(AD190<65,"Detained",IF(AD190<75,"MC required","Satisfactory"))) -> Neglect | R190: 0 | S190: 154 | Y190: =SUM(U190:X190) -> 0 | Z190: 74 | AB190: =ROUND(R190+Y190,0) -> 0 | AC190: 228 | AD190: 0 | AF190: 50 | AG190: 0
A191: 0 | C191: =List!F190 -> 0 | D191: =List!G190 -> 0 | E191: =List!H190 -> 0 | F191: =CONCATENATE(List!I190," -",List!U190) -> - | G191: =List!J190 -> 0 | H191: =List!M190 -> 0 | I191: =IF(D191<1," ",IF(Fee!L199,"Yes ","No")) ->  | J191: Neglect | R191: 0 | S191: 154 | Y191: 0 | Z191: 74 | AB191: 0 | AC191: 228 | AD191: 0 | AF191: 50 | AG191: 0
A192: 0 | C192: =List!F191 -> 0 | D192: =List!G191 -> 0 | E192: =List!H191 -> 0 | F192: =CONCATENATE(List!I191," -",List!U191) -> - | G192: =List!J191 -> 0 | H192: =List!M191 -> 0 | I192: =IF(D192<1," ",IF(Fee!L200,"Yes ","No")) ->  | J192: Neglect | R192: 0 | S192: 154 | Y192: 0 | Z192: 74 | AB192: 0 | AC192: 228 | AD192: 0 | AF192: 50 | AG192: 0
A193: 0 | C193: =List!F192 -> 0 | D193: =List!G192 -> 0 | E193: =List!H192 -> 0 | F193: =CONCATENATE(List!I192," -",List!U192) -> - | G193: =List!J192 -> 0 | H193: =List!M192 -> 0 | I193: =IF(D193<1," ",IF(Fee!L201,"Yes ","No")) ->  | J193: Neglect | R193: 0 | S193: 154 | Y193: 0 | Z193: 74 | AB193: 0 | AC193: 228 | AD193: 0 | AF193: 50 | AG193: 0
A194: 0 | C194: =List!F193 -> 0 | D194: =List!G193 -> 0 | E194: =List!H193 -> 0 | F194: =CONCATENATE(List!I193," -",List!U193) -> - | G194: =List!J193 -> 0 | H194: =List!M193 -> 0 | I194: =IF(D194<1," ",IF(Fee!L202,"Yes ","No")) ->  | J194: Neglect | R194: 0 | S194: 154 | Y194: 0 | Z194: 74 | AB194: 0 | AC194: 228 | AD194: 0 | AF194: 50 | AG194: 0
A195: 0 | C195: =List!F194 -> 0 | D195: =List!G194 -> 0 | E195: =List!H194 -> 0 | F195: =CONCATENATE(List!I194," -",List!U194) -> - | G195: =List!J194 -> 0 | H195: =List!M194 -> 0 | I195: =IF(D195<1," ",IF(Fee!L203,"Yes ","No")) ->  | J195: Neglect | R195: 0 | S195: 154 | Y195: 0 | Z195: 74 | AB195: 0 | AC195: 228 | AD195: 0 | AF195: 50 | AG195: 0
A196: 0 | C196: =List!F195 -> 0 | D196: =List!G195 -> 0 | E196: =List!H195 -> 0 | F196: =CONCATENATE(List!I195," -",List!U195) -> - | G196: =List!J195 -> 0 | H196: =List!M195 -> 0 | I196: =IF(D196<1," ",IF(Fee!L204,"Yes ","No")) ->  | J196: Neglect | R196: 0 | S196: 154 | Y196: 0 | Z196: 74 | AB196: 0 | AC196: 228 | AD196: 0 | AF196: 50 | AG196: 0
A197: 0 | C197: =List!F196 -> 0 | D197: =List!G196 -> 0 | E197: =List!H196 -> 0 | F197: =CONCATENATE(List!I196," -",List!U196) -> - | G197: =List!J196 -> 0 | H197: =List!M196 -> 0 | I197: =IF(D197<1," ",IF(Fee!L205,"Yes ","No")) ->  | J197: Neglect | R197: 0 | S197: 154 | Y197: 0 | Z197: 74 | AB197: 0 | AC197: 228 | AD197: 0 | AF197: 50 | AG197: 0
A198: 0 | C198: =List!F197 -> 0 | D198: =List!G197 -> 0 | E198: =List!H197 -> 0 | F198: =CONCATENATE(List!I197," -",List!U197) -> - | G198: =List!J197 -> 0 | H198: =List!M197 -> 0 | I198: =IF(D198<1," ",IF(Fee!L206,"Yes ","No")) ->  | J198: Neglect | R198: 0 | S198: 154 | Y198: 0 | Z198: 74 | AB198: 0 | AC198: 228 | AD198: 0 | AF198: 50 | AG198: 0
A199: 0 | C199: =List!F198 -> 0 | D199: =List!G198 -> 0 | E199: =List!H198 -> 0 | F199: =CONCATENATE(List!I198," -",List!U198) -> - | G199: =List!J198 -> 0 | H199: =List!M198 -> 0 | I199: =IF(D199<1," ",IF(Fee!L207,"Yes ","No")) ->  | J199: Neglect | R199: 0 | S199: 154 | Y199: 0 | Z199: 74 | AB199: 0 | AC199: 228 | AD199: 0 | AF199: 50 | AG199: 0
A200: 0 | C200: =List!F199 -> 0 | D200: =List!G199 -> 0 | E200: =List!H199 -> 0 | F200: =CONCATENATE(List!I199," -",List!U199) -> - | G200: =List!J199 -> 0 | H200: =List!M199 -> 0 | I200: =IF(D200<1," ",IF(Fee!L208,"Yes ","No")) ->  | J200: Neglect | R200: 0 | S200: 154 | Y200: 0 | Z200: 74 | AB200: 0 | AC200: 228 | AD200: 0 | AF200: 50 | AG200: 0
... 617 more rows

Sheet Stre
B1: You shall get this data correct only if you have filled all the colums of the "List"
B2: =Data!D7 -> Z P P HIGH SCHOOL
B3: =CONCATENATE(Data!D8,", ",Data!D9,", ",Data!D10,".") -> ISLAMPETA, PEDAGANTYADA MANDAL, VISAKHAPATNAM.
T4: Strength Particulars as on | U4: 2011-07-31
C5: Telugu Medium
C6: Class | E6: OC | H6: BC | U6: SC | AB6: ST | AE6: TOTAL | AK6: New admissions | AL6: Promoties
H7: A | J7: B | L7: C | N7: D | P7: E | R7: T | U7: B | W7: C | Y7: T
E8: B | F8: G | G8: T | H8: B | I8: G | J8: B | K8: G | L8: B | M8: G | N8: B | O8: G | P8: B | Q8: G | R8: B | S8: G | T8: T | U8: B | V8: G | W8: B | X8: G | Y8: B | Z8: G | AA8: T | AB8: B | AC8: G | AD8: T | AE8: B | AF8: G | AG8: T
C9: VI | E9: =COUNTIF(List!V7:V690,"6111") -> 0 | F9: =COUNTIF(List!V7:V690,"6121") -> 1 | G9: =E9+F9 -> 1 | H9: =COUNTIF(List!V7:V690,"6112") -> 0 | I9: =COUNTIF(List!V7:V690,"6122") -> 1 | J9: =COUNTIF(List!V7:V690,"6113") -> 0 | K9: =COUNTIF(List!V7:V690,"6123") -> 0 | L9: =COUNTIF(List!V7:V690,"6114") -> 0 | M9: =COUNTIF(List!V7:V690,"6124") -> 0 | N9: =COUNTIF(List!V7:V690,"6115") -> 0 | O9: =COUNTIF(List!V7:V690,"6125") -> 0 | P9: =COUNTIF(List!V7:V690,"6119") -> 1 | Q9: =COUNTIF(List!V7:V690,"6129") -> 0 | R9: =H9+J9+L9+N9+P9 -> 1 | S9: 1 | T9: =R9+S9 -> 2 | U9: =COUNTIF(List!V7:V690,"6116") -> 1 | V9: =COUNTIF(List!V7:V690,"6126") -> 0 | W9: =COUNTIF(List!V7:V690,"6117") -> 0 | X9: =COUNTIF(List!V7:V690,"6127") -> 1 | Y9: =U9+W9 -> 1 | Z9: 1 | AA9: =Y9+Z9 -> 2 | AB9: =COUNTIF(List!V7:V690,"6118") -> 1 | AC9: =COUNTIF(List!V7:V690,"6128") -> 0 | AD9: =AB9+AC9 -> 1 | AE9: =E9+R9+Y9+AB9 -> 3 | AF9: 3 | AG9: =AE9+AF9 -> 6 | AK9: =List!Y7 -> 3 | AL9: =AG9-AK9 -> 3
C10: VII | E10: =COUNTIF(List!V7:V690,"7111") -> 0 | F10: =COUNTIF(List!V7:V690,"7121") -> 0 | G10: =E10+F10 -> 0 | H10: =COUNTIF(List!V7:V690,"7112") -> 0 | I10: =COUNTIF(List!V7:V690,"7122") -> 0 | J10: =COUNTIF(List!V7:V690,"7113") -> 0 | K10: =COUNTIF(List!V7:V690,"7123") -> 0 | L10: =COUNTIF(List!V7:V690,"7114") -> 0 | M10: =COUNTIF(List!V7:V690,"7124") -> 0 | N10: =COUNTIF(List!V7:V690,"7115") -> 0 | O10: =COUNTIF(List!V7:V690,"7125") -> 0 | P10: =COUNTIF(List!V7:V690,"7119") -> 0 | Q10: =COUNTIF(List!V7:V690,"7129") -> 0 | R10: 0 | S10: 0 | T10: =R10+S10 -> 0 | U10: =COUNTIF(List!V7:V690,"7116") -> 0 | V10: =COUNTIF(List!V7:V690,"7126") -> 0 | W10: =COUNTIF(List!V7:V690,"7117") -> 0 | X10: =COUNTIF(List!V7:V690,"7127") -> 0 | Y10: 0 | Z10: 0 | AA10: =Y10+Z10 -> 0 | AB10: =COUNTIF(List!V7:V690,"7118") -> 0 | AC10: =COUNTIF(List!V7:V690,"7128") -> 0 | AD10: =AB10+AC10 -> 0 | AE10: 0 | AF10: 0 | AG10: =AE10+AF10 -> 0 | AK10: =List!Y9 -> 0 | AL10: =AG10-AK10 -> 0
C11: VIII | E11: =COUNTIF(List!V7:V690,"8111") -> 0 | F11: =COUNTIF(List!V7:V690,"8121") -> 0 | G11: =E11+F11 -> 0 | H11: =COUNTIF(List!V7:V690,"8112") -> 0 | I11: =COUNTIF(List!V7:V690,"8122") -> 0 | J11: =COUNTIF(List!V7:V690,"8113") -> 0 | K11: =COUNTIF(List!V7:V690,"8123") -> 0 | L11: =COUNTIF(List!V7:V690,"8114") -> 0 | M11: =COUNTIF(List!V7:V690,"8124") -> 0 | N11: =COUNTIF(List!V7:V690,"8115") -> 0 | O11: =COUNTIF(List!V7:V690,"8125") -> 0 | P11: =COUNTIF(List!V7:V690,"8119") -> 0 | Q11: =COUNTIF(List!V7:V690,"8129") -> 0 | R11: 0 | S11: 0 | T11: =R11+S11 -> 0 | U11: =COUNTIF(List!V7:V690,"8116") -> 0 | V11: =COUNTIF(List!V7:V690,"8126") -> 0 | W11: =COUNTIF(List!V7:V690,"8117") -> 0 | X11: =COUNTIF(List!V7:V690,"8127") -> 0 | Y11: 0 | Z11: 0 | AA11: =Y11+Z11 -> 0 | AB11: =COUNTIF(List!V7:V690,"8118") -> 0 | AC11: =COUNTIF(List!V7:V690,"8128") -> 0 | AD11: =AB11+AC11 -> 0 | AE11: 0 | AF11: 0 | AG11: =AE11+AF11 -> 0 | AK11: =List!Y11 -> 0 | AL11: 0
C12: IX | E12: =COUNTIF(List!V7:V690,"9111") -> 0 | F12: =COUNTIF(List!V7:V690,"9121") -> 0 | G12: =E12+F12 -> 0 | H12: =COUNTIF(List!V7:V690,"9112") -> 0 | I12: =COUNTIF(List!V7:V690,"9122") -> 0 | J12: =COUNTIF(List!V7:V690,"9113") -> 0 | K12: =COUNTIF(List!V7:V690,"9123") -> 0 | L12: =COUNTIF(List!V7:V690,"9114") -> 0 | M12: =COUNTIF(List!V7:V690,"9124") -> 0 | N12: =COUNTIF(List!V7:V690,"9115") -> 0 | O12: =COUNTIF(List!V7:V690,"9125") -> 0 | P12: =COUNTIF(List!V7:V690,"9119") -> 0 | Q12: =COUNTIF(List!V7:V690,"9129") -> 0 | R12: 0 | S12: 0 | T12: =R12+S12 -> 0 | U12: =COUNTIF(List!V7:V690,"9116") -> 0 | V12: =COUNTIF(List!V7:V690,"9126") -> 0 | W12: =COUNTIF(List!V7:V690,"9117") -> 0 | X12: =COUNTIF(List!V7:V690,"9127") -> 0 | Y12: 0 | Z12: 0 | AA12: =Y12+Z12 -> 0 | AB12: =COUNTIF(List!V7:V690,"9118") -> 0 | AC12: =COUNTIF(List!V7:V690,"9128") -> 0 | AD12: =AB12+AC12 -> 0 | AE12: 0 | AF12: 0 | AG12: =AE12+AF12 -> 0 | AK12: =List!Y13 -> 0 | AL12: 0
C13: X | E13: =COUNTIF(List!V7:V815,"10111") -> 0 | F13: =COUNTIF(List!V7:V815,"10121") -> 0 | G13: =E13+F13 -> 0 | H13: =COUNTIF(List!V7:V815,"10112") -> 0 | I13: =COUNTIF(List!V7:V815,"10122") -> 0 | J13: =COUNTIF(List!V7:V7680,"10113") -> 0 | K13: =COUNTIF(List!V7:V7680,"10123") -> 0 | L13: =COUNTIF(List!V7:V815,"10114") -> 0 | M13: =COUNTIF(List!V7:V815,"10124") -> 0 | N13: =COUNTIF(List!V7:V815,"10115") -> 0 | O13: =COUNTIF(List!V7:V815,"10125") -> 0 | P13: =COUNTIF(List!V7:V815,"10119") -> 0 | Q13: =COUNTIF(List!V7:V815,"10129") -> 0 | R13: 0 | S13: 0 | T13: =R13+S13 -> 0 | U13: =COUNTIF(List!V7:V815,"10116") -> 0 | V13: =COUNTIF(List!V7:V815,"10126") -> 0 | W13: =COUNTIF(List!V7:V815,"10117") -> 0 | X13: =COUNTIF(List!V7:V815,"10127") -> 0 | Y13: 0 | Z13: 0 | AA13: =Y13+Z13 -> 0 | AB13: =COUNTIF(List!V7:V815,"10118") -> 0 | AC13: =COUNTIF(List!V7:V815,"10128") -> 0 | AD13: =AB13+AC13 -> 0 | AE13: 0 | AF13: 0 | AG13: =AE13+AF13 -> 0 | AK13: =List!Y15 -> 0 | AL13: 0
C14: Total | E14: =SUM(E9:E13) -> 0 | F14: =SUM(F9:F13) -> 1 | G14: 1 | H14: 0 | I14: 1 | J14: 0 | K14: 0 | L14: 0 | M14: 0 | N14: 0 | O14: 0 | P14: 1 | Q14: 0 | R14: 1 | S14: 1 | T14: 2 | U14: 1 | V14: 0 | W14: 0 | X14: 1 | Y14: 1 | Z14: 1 | AA14: 2 | AB14: 1 | AC14: 0 | AD14: 1 | AE14: 3 | AF14: 3 | AG14: 6 | AK14: =SUM(AK9:AK13) -> 3 | AL14: =SUM(AL9:AL13) -> 3
C16: English Medium
C17: Class | E17: OC | H17: BC | U17: SC | AB17: ST | AE17: TOTAL | AK17: New admissions | AL17: Promoties
H18: A | J18: B | L18: C | N18: D | P18: E | R18: T | U18: B | W18: C | Y18: T
E19: B | F19: G | G19: T | H19: B | I19: G | J19: B | K19: G | L19: B | M19: G | N19: B | O19: G | P19: B | Q19: G | R19: B | S19: G | T19: T | U19: B | V19: G | W19: B | X19: G | Y19: B | Z19: G | AA19: T | AB19: B | AC19: G | AD19: T | AE19: B | AF19: G | AG19: T
C20: VI | E20: =COUNTIF(List!V7:V690,"6211") -> 0 | F20: =COUNTIF(List!V7:V690,"6221") -> 0 | G20: =E20+F20 -> 0 | H20: =COUNTIF(List!V7:V690,"6212") -> 0 | I20: =COUNTIF(List!V7:V690,"6222") -> 0 | J20: =COUNTIF(List!V7:V690,"6213") -> 0 | K20: =COUNTIF(List!V7:V690,"6223") -> 0 | L20: =COUNTIF(List!V7:V690,"6214") -> 0 | M20: =COUNTIF(List!V7:V690,"6224") -> 0 | N20: =COUNTIF(List!V7:V690,"6215") -> 0 | O20: =COUNTIF(List!V7:V690,"6225") -> 0 | P20: =COUNTIF(List!V7:V690,"6219") -> 0 | Q20: =COUNTIF(List!V7:V690,"6229") -> 0 | R20: =H20+J20+L20+N20+P20 -> 0 | S20: 0 | T20: =R20+S20 -> 0 | U20: =COUNTIF(List!V7:V690,"6216") -> 0 | V20: =COUNTIF(List!V7:V690,"6226") -> 0 | W20: =COUNTIF(List!V7:V690,"6217") -> 0 | X20: =COUNTIF(List!V7:V690,"6227") -> 0 | Y20: =U20+W20 -> 0 | Z20: =V20+X20 -> 0 | AA20: =Y20+Z20 -> 0 | AB20: =COUNTIF(List!V7:V690,"6218") -> 0 | AC20: =COUNTIF(List!V7:V690,"6228") -> 0 | AD20: =AB20+AC20 -> 0 | AE20: =E20+R20+Y20+AB20 -> 0 | AF20: 0 | AG20: =AE20+AF20 -> 0 | AK20: =List!Y8 -> 0 | AL20: 0
C21: VII | E21: =COUNTIF(List!V7:V690,"7211") -> 0 | F21: =COUNTIF(List!V7:V690,"7221") -> 0 | G21: =E21+F21 -> 0 | H21: =COUNTIF(List!V7:V690,"7212") -> 0 | I21: =COUNTIF(List!V7:V690,"7222") -> 0 | J21: =COUNTIF(List!V7:V690,"7213") -> 0 | K21: =COUNTIF(List!V7:V690,"7223") -> 0 | L21: =COUNTIF(List!V7:V690,"7214") -> 0 | M21: =COUNTIF(List!V7:V690,"7224") -> 0 | N21: =COUNTIF(List!V7:V690,"7215") -> 0 | O21: =COUNTIF(List!V7:V690,"7225") -> 0 | P21: =COUNTIF(List!V7:V690,"7219") -> 0 | Q21: =COUNTIF(List!V7:V690,"7229") -> 0 | R21: 0 | S21: 0 | T21: =R21+S21 -> 0 | U21: =COUNTIF(List!V7:V690,"7216") -> 0 | V21: =COUNTIF(List!V7:V690,"7226") -> 0 | W21: =COUNTIF(List!V7:V690,"7217") -> 0 | X21: =COUNTIF(List!V7:V690,"7227") -> 0 | Y21: =U21+W21 -> 0 | Z21: 0 | AA21: =Y21+Z21 -> 0 | AB21: =COUNTIF(List!V7:V690,"7218") -> 0 | AC21: =COUNTIF(List!V7:V690,"7228") -> 0 | AD21: =AB21+AC21 -> 0 | AE21: 0 | AF21: 0 | AG21: =AE21+AF21 -> 0 | AK21: =List!Y10 -> 0 | AL21: 0
C22: VIII | E22: =COUNTIF(List!V7:V690,"8211") -> 0 | F22: =COUNTIF(List!V7:V690,"8221") -> 0 | G22: =E22+F22 -> 0 | H22: =COUNTIF(List!V7:V690,"8212") -> 0 | I22: =COUNTIF(List!V7:V690,"8222") -> 0 | J22: =COUNTIF(List!V7:V690,"8213") -> 0 | K22: =COUNTIF(List!V7:V690,"8223") -> 0 | L22: =COUNTIF(List!V7:V690,"8214") -> 0 | M22: =COUNTIF(List!V7:V690,"8224") -> 0 | N22: =COUNTIF(List!V7:V690,"8215") -> 0 | O22: =COUNTIF(List!V7:V690,"8225") -> 0 | P22: =COUNTIF(List!V7:V690,"8219") -> 0 | Q22: =COUNTIF(List!V7:V690,"8229") -> 0 | R22: 0 | S22: 0 | T22: =R22+S22 -> 0 | U22: =COUNTIF(List!V7:V690,"8216") -> 0 | V22: =COUNTIF(List!V7:V690,"8226") -> 0 | W22: =COUNTIF(List!V7:V690,"8217") -> 0 | X22: =COUNTIF(List!V7:V690,"8227") -> 0 | Y22: 0 | Z22: 0 | AA22: =Y22+Z22 -> 0 | AB22: =COUNTIF(List!V7:V690,"8218") -> 0 | AC22: =COUNTIF(List!V7:V690,"8228") -> 0 | AD22: =AB22+AC22 -> 0 | AE22: 0 | AF22: 0 | AG22: =AE22+AF22 -> 0 | AK22: =List!Y12 -> 0 | AL22: 0
C23: IX | E23: =COUNTIF(List!V7:V690,"9211") -> 0 | F23: =COUNTIF(List!V7:V690,"9221") -> 0 | G23: =E23+F23 -> 0 | H23: =COUNTIF(List!V7:V690,"9212") -> 0 | I23: =COUNTIF(List!V7:V690,"9222") -> 0 | J23: =COUNTIF(List!V7:V690,"9213") -> 0 | K23: =COUNTIF(List!V7:V690,"9223") -> 0 | L23: =COUNTIF(List!V7:V690,"9214") -> 0 | M23: =COUNTIF(List!V7:V690,"9224") -> 0 | N23: =COUNTIF(List!V7:V690,"9215") -> 0 | O23: =COUNTIF(List!V7:V690,"9225") -> 0 | P23: =COUNTIF(List!V7:V690,"9219") -> 0 | Q23: =COUNTIF(List!V7:V690,"9229") -> 0 | R23: 0 | S23: 0 | T23: =R23+S23 -> 0 | U23: =COUNTIF(List!V7:V690,"9216") -> 0 | V23: =COUNTIF(List!V7:V690,"9226") -> 0 | W23: =COUNTIF(List!V7:V690,"9217") -> 0 | X23: =COUNTIF(List!V7:V690,"9227") -> 0 | Y23: 0 | Z23: 0 | AA23: =Y23+Z23 -> 0 | AB23: =COUNTIF(List!V7:V690,"9218") -> 0 | AC23: =COUNTIF(List!V7:V690,"9228") -> 0 | AD23: =AB23+AC23 -> 0 | AE23: 0 | AF23: 0 | AG23: =AE23+AF23 -> 0 | AK23: =List!Y14 -> 0 | AL23: 0
C24: X | E24: =COUNTIF(List!V7:V815,"10211") -> 0 | F24: =COUNTIF(List!V7:V815,"10221") -> 0 | G24: =E24+F24 -> 0 | H24: =COUNTIF(List!V7:V815,"10212") -> 0 | I24: =COUNTIF(List!V7:V815,"10222") -> 0 | J24: =COUNTIF(List!V7:V815,"10213") -> 0 | K24: =COUNTIF(List!V7:V815,"10223") -> 0 | L24: =COUNTIF(List!V7:V815,"10214") -> 0 | M24: =COUNTIF(List!V7:V815,"10224") -> 0 | N24: =COUNTIF(List!V7:V815,"10215") -> 0 | O24: =COUNTIF(List!V7:V815,"10225") -> 0 | P24: =COUNTIF(List!V7:V815,"10219") -> 0 | Q24: =COUNTIF(List!V7:V815,"10229") -> 0 | R24: 0 | S24: 0 | T24: =R24+S24 -> 0 | U24: =COUNTIF(List!V7:V815,"10216") -> 0 | V24: =COUNTIF(List!V7:V815,"10226") -> 0 | W24: =COUNTIF(List!V7:V815,"10217") -> 0 | X24: =COUNTIF(List!V7:V815,"10227") -> 0 | Y24: 0 | Z24: 0 | AA24: =Y24+Z24 -> 0 | AB24: =COUNTIF(List!V7:V815,"10218") -> 0 | AC24: =COUNTIF(List!V7:V815,"10228") -> 0 | AD24: =AB24+AC24 -> 0 | AE24: 0 | AF24: 0 | AG24: =AE24+AF24 -> 0 | AK24: =List!Y16 -> 0 | AL24: 0
C25: Total | E25: =SUM(E20:E24) -> 0 | F25: =SUM(F20:F24) -> 0 | G25: 0 | H25: 0 | I25: 0 | J25: 0 | K25: 0 | L25: 0 | M25: 0 | N25: 0 | O25: 0 | P25: 0 | Q25: 0 | R25: 0 | S25: 0 | T25: 0 | U25: 0 | V25: 0 | W25: 0 | X25: 0 | Y25: 0 | Z25: 0 | AA25: 0 | AB25: 0 | AC25: 0 | AD25: 0 | AE25: 0 | AF25: 0 | AG25: 0 | AK25: =SUM(AK20:AK24) -> 0 | AL25: =SUM(AL20:AL24) -> 0
C27: Grand Total
C28: Class | E28: OC | H28: BC | U28: SC | AB28: ST | AE28: TOTAL | AK28: New admissions | AL28: Promoties
H29: A | J29: B | L29: C | N29: D | P29: E | R29: T | U29: B | W29: C | Y29: T
E30: B | F30: G | G30: T | H30: B | I30: G | J30: B | K30: G | L30: B | M30: G | N30: B | O30: G | P30: B | Q30: G | R30: B | S30: G | T30: T | U30: B | V30: G | W30: B | X30: G | Y30: B | Z30: G | AA30: T | AB30: B | AC30: G | AD30: T | AE30: B | AF30: G | AG30: T
C31: VI | E31: =E9+E20 -> 0 | F31: =F9+F20 -> 1 | G31: 1 | H31: 0 | I31: 1 | J31: 0 | K31: 0 | L31: 0 | M31: 0 | N31: 0 | O31: 0 | P31: 1 | Q31: 0 | R31: 1 | S31: 1 | T31: 2 | U31: 1 | V31: 0 | W31: 0 | X31: 1 | Y31: 1 | Z31: 1 | AA31: 2 | AB31: 1 | AC31: 0 | AD31: 1 | AE31: 3 | AF31: 3 | AG31: 6 | AK31: =AK9+AK20 -> 3 | AL31: =AL9+AL20 -> 3
C32: VII | E32: =E10+E21 -> 0 | F32: 0 | G32: 0 | H32: 0 | I32: 0 | J32: 0 | K32: 0 | L32: 0 | M32: 0 | N32: 0 | O32: 0 | P32: 0 | Q32: 0 | R32: 0 | S32: 0 | T32: 0 | U32: 0 | V32: 0 | W32: 0 | X32: 0 | Y32: 0 | Z32: 0 | AA32: 0 | AB32: 0 | AC32: 0 | AD32: 0 | AE32: 0 | AF32: 0 | AG32: 0 | AK32: =AK10+AK21 -> 0 | AL32: 0
C33: VIII | E33: =E11+E22 -> 0 | F33: 0 | G33: 0 | H33: 0 | I33: 0 | J33: 0 | K33: 0 | L33: 0 | M33: 0 | N33: 0 | O33: 0 | P33: 0 | Q33: 0 | R33: 0 | S33: 0 | T33: 0 | U33: 0 | V33: 0 | W33: 0 | X33: 0 | Y33: 0 | Z33: 0 | AA33: 0 | AB33: 0 | AC33: 0 | AD33: 0 | AE33: 0 | AF33: 0 | AG33: 0 | AK33: 0 | AL33: 0
C34: IX | E34: =E12+E23 -> 0 | F34: 0 | G34: 0 | H34: 0 | I34: 0 | J34: 0 | K34: 0 | L34: 0 | M34: 0 | N34: 0 | O34: 0 | P34: 0 | Q34: 0 | R34: 0 | S34: 0 | T34: 0 | U34: 0 | V34: 0 | W34: 0 | X34: 0 | Y34: 0 | Z34: 0 | AA34: 0 | AB34: 0 | AC34: 0 | AD34: 0 | AE34: 0 | AF34: 0 | AG34: 0 | AK34: 0 | AL34: 0
C35: X | E35: =E13+E24 -> 0 | F35: 0 | G35: 0 | H35: 0 | I35: 0 | J35: 0 | K35: 0 | L35: 0 | M35: 0 | N35: 0 | O35: 0 | P35: 0 | Q35: 0 | R35: 0 | S35: 0 | T35: 0 | U35: 0 | V35: 0 | W35: 0 | X35: 0 | Y35: 0 | Z35: 0 | AA35: 0 | AB35: 0 | AC35: 0 | AD35: 0 | AE35: 0 | AF35: 0 | AG35: 0 | AK35: 0 | AL35: 0
C36: Total | E36: =E14+E25 -> 0 | F36: 1 | G36: 1 | H36: 0 | I36: 1 | J36: 0 | K36: 0 | L36: 0 | M36: 0 | N36: 0 | O36: 0 | P36: 1 | Q36: 0 | R36: 1 | S36: 1 | T36: 2 | U36: 1 | V36: 0 | W36: 0 | X36: 1 | Y36: 1 | Z36: 1 | AA36: 2 | AB36: 1 | AC36: 0 | AD36: 1 | AE36: 3 | AF36: 3 | AG36: 6 | AK36: 3 | AL36: 3

Sheet Uniform acquittance
C2: =CONCATENATE("ACQUITTANCE FOR DISTRIBUTION OF UNIFORMS ",Data!E3) -> ACQUITTANCE FOR DISTRIBUTION OF UNIFORMS 2011~2012
C3: ='Text books Acquittance'!C3:V3 -> Z P P HIGH SCHOOL, ISLAMPETA, PEDAGANTYADA MANDAL, VISAKHAPATNAM.
C4: =List!C4 -> Class | D4: =List!D4 -> Medium | E4: Adm No | F4: =List!G4 -> Roll No | G4: =List!H4 -> Name of the Student | I4: =List!J4 -> Sex | J4: Caste | K4: Name of the Parent | L4: No of uniforns issued | M4: Signature of the candidate
A5: =F5 -> 1 | C5: =List!C7 -> 6 | D5: =List!D7 -> TM | E5: =List!F7 -> 123 | F5: =List!G7 -> 1 | G5: =List!H7 -> T | H5: =List!I7 -> Lekhya | I5: =List!J7 -> G | J5: =List!M7 -> OC | K5: =List!R7 -> Rama Kumar | L5: 0
A6: =F6 -> 2 | C6: =List!C8 -> 6 | D6: =List!D8 -> TM | E6: =List!F8 -> 124 | F6: =List!G8 -> 2 | G6: =List!H8 -> A | H6: =List!I8 -> Neeharika | I6: =List!J8 -> G | J6: =List!M8 -> BC-A | K6: =List!R8 -> Ranganadh | L6: 0
A7: 3 | C7: =List!C9 -> 6 | D7: =List!D9 -> TM | E7: =List!F9 -> 125 | F7: =List!G9 -> 3 | G7: =List!H9 -> Sk | H7: =List!I9 -> Neelesh | I7: =List!J9 -> B | J7: =List!M9 -> BC-E | K7: =List!R9 -> 0 | L7: 0
A8: 4 | C8: =List!C10 -> 6 | D8: =List!D10 -> TM | E8: =List!F10 -> 126 | F8: =List!G10 -> 4 | G8: =List!H10 -> Ch | H8: =List!I10 -> Nikhil | I8: =List!J10 -> B | J8: =List!M10 -> SC-B | K8: =List!R10 -> 0 | L8: 0
A9: 5 | C9: =List!C11 -> 6 | D9: =List!D11 -> TM | E9: =List!F11 -> 127 | F9: =List!G11 -> 5 | G9: =List!H11 -> D | H9: =List!I11 -> Anjusha | I9: =List!J11 -> G | J9: =List!M11 -> SC-C | K9: =List!R11 -> 0 | L9: 0
A10: 6 | C10: =List!C12 -> 6 | D10: =List!D12 -> TM | E10: =List!F12 -> 128 | F10: =List!G12 -> 6 | G10: =List!H12 -> E | H10: =List!I12 -> Raja Sekhar | I10: =List!J12 -> B | J10: =List!M12 -> ST | K10: =List!R12 -> 0 | L10: 0
A11: 0 | C11: =List!C13 -> 6 | D11: =List!D13 -> TM | E11: =List!F13 -> 0 | F11: =List!G13 -> 0 | G11: =List!H13 -> 0 | H11: =List!I13 -> 0 | I11: =List!J13 -> 0 | J11: =List!M13 -> 0 | K11: =List!R13 -> 0 | L11: 0
A12: 0 | C12: =List!C14 -> 6 | D12: =List!D14 -> TM | E12: =List!F14 -> 0 | F12: =List!G14 -> 0 | G12: =List!H14 -> 0 | H12: =List!I14 -> 0 | I12: =List!J14 -> 0 | J12: =List!M14 -> 0 | K12: =List!R14 -> 0 | L12: 0
A13: 0 | C13: =List!C15 -> 6 | D13: =List!D15 -> TM | E13: =List!F15 -> 0 | F13: =List!G15 -> 0 | G13: =List!H15 -> 0 | H13: =List!I15 -> 0 | I13: =List!J15 -> 0 | J13: =List!M15 -> 0 | K13: =List!R15 -> 0 | L13: 0
A14: 0 | C14: =List!C16 -> 6 | D14: =List!D16 -> TM | E14: =List!F16 -> 0 | F14: =List!G16 -> 0 | G14: =List!H16 -> 0 | H14: =List!I16 -> 0 | I14: =List!J16 -> 0 | J14: =List!M16 -> 0 | K14: =List!R16 -> 0 | L14: 0
A15: 0 | C15: =List!C17 -> 6 | D15: =List!D17 -> TM | E15: =List!F17 -> 0 | F15: =List!G17 -> 0 | G15: =List!H17 -> 0 | H15: =List!I17 -> 0 | I15: =List!J17 -> 0 | J15: =List!M17 -> 0 | K15: =List!R17 -> 0 | L15: 0
A16: 0 | C16: =List!C18 -> 6 | D16: =List!D18 -> TM | E16: =List!F18 -> 0 | F16: =List!G18 -> 0 | G16: =List!H18 -> 0 | H16: =List!I18 -> 0 | I16: =List!J18 -> 0 | J16: =List!M18 -> 0 | K16: =List!R18 -> 0 | L16: 0
A17: 0 | C17: =List!C19 -> 6 | D17: =List!D19 -> TM | E17: =List!F19 -> 0 | F17: =List!G19 -> 0 | G17: =List!H19 -> 0 | H17: =List!I19 -> 0 | I17: =List!J19 -> 0 | J17: =List!M19 -> 0 | K17: =List!R19 -> 0 | L17: 0
A18: 0 | C18: =List!C20 -> 6 | D18: =List!D20 -> TM | E18: =List!F20 -> 0 | F18: =List!G20 -> 0 | G18: =List!H20 -> 0 | H18: =List!I20 -> 0 | I18: =List!J20 -> 0 | J18: =List!M20 -> 0 | K18: =List!R20 -> 0
A19: 0 | C19: =List!C21 -> 6 | D19: =List!D21 -> TM | E19: =List!F21 -> 0 | F19: =List!G21 -> 0 | G19: =List!H21 -> 0 | H19: =List!I21 -> 0 | I19: =List!J21 -> 0 | J19: =List!M21 -> 0 | K19: =List!R21 -> 0
A20: 0 | C20: =List!C22 -> 6 | D20: =List!D22 -> TM | E20: =List!F22 -> 0 | F20: =List!G22 -> 0 | G20: =List!H22 -> 0 | H20: =List!I22 -> 0 | I20: =List!J22 -> 0 | J20: =List!M22 -> 0 | K20: =List!R22 -> 0
A21: 0 | C21: =List!C23 -> 6 | D21: =List!D23 -> TM | E21: =List!F23 -> 0 | F21: =List!G23 -> 0 | G21: =List!H23 -> 0 | H21: =List!I23 -> 0 | I21: =List!J23 -> 0 | J21: =List!M23 -> 0 | K21: =List!R23 -> 0
A22: 0 | C22: =List!C24 -> 6 | D22: =List!D24 -> TM | E22: =List!F24 -> 0 | F22: =List!G24 -> 0 | G22: =List!H24 -> 0 | H22: =List!I24 -> 0 | I22: =List!J24 -> 0 | J22: =List!M24 -> 0 | K22: =List!R24 -> 0
A23: 0 | C23: =List!C25 -> 6 | D23: =List!D25 -> TM | E23: =List!F25 -> 0 | F23: =List!G25 -> 0 | G23: =List!H25 -> 0 | H23: =List!I25 -> 0 | I23: =List!J25 -> 0 | J23: =List!M25 -> 0 | K23: =List!R25 -> 0
A24: 0 | C24: =List!C26 -> 6 | D24: =List!D26 -> TM | E24: =List!F26 -> 0 | F24: =List!G26 -> 0 | G24: =List!H26 -> 0 | H24: =List!I26 -> 0 | I24: =List!J26 -> 0 | J24: =List!M26 -> 0 | K24: =List!R26 -> 0
A25: 0 | C25: =List!C27 -> 6 | D25: =List!D27 -> TM | E25: =List!F27 -> 0 | F25: =List!G27 -> 0 | G25: =List!H27 -> 0 | H25: =List!I27 -> 0 | I25: =List!J27 -> 0 | J25: =List!M27 -> 0 | K25: =List!R27 -> 0
A26: 0 | C26: =List!C28 -> 6 | D26: =List!D28 -> TM | E26: =List!F28 -> 0 | F26: =List!G28 -> 0 | G26: =List!H28 -> 0 | H26: =List!I28 -> 0 | I26: =List!J28 -> 0 | J26: =List!M28 -> 0 | K26: =List!R28 -> 0
A27: 0 | C27: =List!C29 -> 6 | D27: =List!D29 -> TM | E27: =List!F29 -> 0 | F27: =List!G29 -> 0 | G27: =List!H29 -> 0 | H27: =List!I29 -> 0 | I27: =List!J29 -> 0 | J27: =List!M29 -> 0 | K27: =List!R29 -> 0
A28: 0 | C28: =List!C30 -> 6 | D28: =List!D30 -> TM | E28: =List!F30 -> 0 | F28: =List!G30 -> 0 | G28: =List!H30 -> 0 | H28: =List!I30 -> 0 | I28: =List!J30 -> 0 | J28: =List!M30 -> 0 | K28: =List!R30 -> 0
A29: 0 | C29: =List!C31 -> 6 | D29: =List!D31 -> TM | E29: =List!F31 -> 0 | F29: =List!G31 -> 0 | G29: =List!H31 -> 0 | H29: =List!I31 -> 0 | I29: =List!J31 -> 0 | J29: =List!M31 -> 0 | K29: =List!R31 -> 0
A30: 0 | C30: =List!C32 -> 6 | D30: =List!D32 -> TM | E30: =List!F32 -> 0 | F30: =List!G32 -> 0 | G30: =List!H32 -> 0 | H30: =List!I32 -> 0 | I30: =List!J32 -> 0 | J30: =List!M32 -> 0 | K30: =List!R32 -> 0
A31: 0 | C31: =List!C33 -> 6 | D31: =List!D33 -> TM | E31: =List!F33 -> 0 | F31: =List!G33 -> 0 | G31: =List!H33 -> 0 | H31: =List!I33 -> 0 | I31: =List!J33 -> 0 | J31: =List!M33 -> 0 | K31: =List!R33 -> 0
A32: 0 | C32: =List!C34 -> 6 | D32: =List!D34 -> TM | E32: =List!F34 -> 0 | F32: =List!G34 -> 0 | G32: =List!H34 -> 0 | H32: =List!I34 -> 0 | I32: =List!J34 -> 0 | J32: =List!M34 -> 0 | K32: =List!R34 -> 0
A33: 0 | C33: =List!C35 -> 6 | D33: =List!D35 -> TM | E33: =List!F35 -> 0 | F33: =List!G35 -> 0 | G33: =List!H35 -> 0 | H33: =List!I35 -> 0 | I33: =List!J35 -> 0 | J33: =List!M35 -> 0 | K33: =List!R35 -> 0
A34: 0 | C34: =List!C36 -> 6 | D34: =List!D36 -> TM | E34: =List!F36 -> 0 | F34: =List!G36 -> 0 | G34: =List!H36 -> 0 | H34: =List!I36 -> 0 | I34: =List!J36 -> 0 | J34: =List!M36 -> 0 | K34: =List!R36 -> 0
A35: 0 | C35: =List!C37 -> 6 | D35: =List!D37 -> TM | E35: =List!F37 -> 0 | F35: =List!G37 -> 0 | G35: =List!H37 -> 0 | H35: =List!I37 -> 0 | I35: =List!J37 -> 0 | J35: =List!M37 -> 0 | K35: =List!R37 -> 0
A36: 0 | C36: =List!C38 -> 6 | D36: =List!D38 -> TM | E36: =List!F38 -> 0 | F36: =List!G38 -> 0 | G36: =List!H38 -> 0 | H36: =List!I38 -> 0 | I36: =List!J38 -> 0 | J36: =List!M38 -> 0 | K36: =List!R38 -> 0
A37: 0 | C37: =List!C39 -> 6 | D37: =List!D39 -> TM | E37: =List!F39 -> 0 | F37: =List!G39 -> 0 | G37: =List!H39 -> 0 | H37: =List!I39 -> 0 | I37: =List!J39 -> 0 | J37: =List!M39 -> 0 | K37: =List!R39 -> 0
A38: 0 | C38: =List!C40 -> 6 | D38: =List!D40 -> TM | E38: =List!F40 -> 0 | F38: =List!G40 -> 0 | G38: =List!H40 -> 0 | H38: =List!I40 -> 0 | I38: =List!J40 -> 0 | J38: =List!M40 -> 0 | K38: =List!R40 -> 0
A39: 0 | C39: =List!C41 -> 6 | D39: =List!D41 -> TM | E39: =List!F41 -> 0 | F39: =List!G41 -> 0 | G39: =List!H41 -> 0 | H39: =List!I41 -> 0 | I39: =List!J41 -> 0 | J39: =List!M41 -> 0 | K39: =List!R41 -> 0
A40: 0 | C40: =List!C42 -> 6 | D40: =List!D42 -> TM | E40: =List!F42 -> 0 | F40: =List!G42 -> 0 | G40: =List!H42 -> 0 | H40: =List!I42 -> 0 | I40: =List!J42 -> 0 | J40: =List!M42 -> 0 | K40: =List!R42 -> 0
A41: 0 | C41: =List!C43 -> 6 | D41: =List!D43 -> TM | E41: =List!F43 -> 0 | F41: =List!G43 -> 0 | G41: =List!H43 -> 0 | H41: =List!I43 -> 0 | I41: =List!J43 -> 0 | J41: =List!M43 -> 0 | K41: =List!R43 -> 0
A42: 0 | C42: =List!C44 -> 6 | D42: =List!D44 -> TM | E42: =List!F44 -> 0 | F42: =List!G44 -> 0 | G42: =List!H44 -> 0 | H42: =List!I44 -> 0 | I42: =List!J44 -> 0 | J42: =List!M44 -> 0 | K42: =List!R44 -> 0
A43: 0 | C43: =List!C45 -> 6 | D43: =List!D45 -> TM | E43: =List!F45 -> 0 | F43: =List!G45 -> 0 | G43: =List!H45 -> 0 | H43: =List!I45 -> 0 | I43: =List!J45 -> 0 | J43: =List!M45 -> 0 | K43: =List!R45 -> 0
A44: 0 | C44: =List!C46 -> 6 | D44: =List!D46 -> TM | E44: =List!F46 -> 0 | F44: =List!G46 -> 0 | G44: =List!H46 -> 0 | H44: =List!I46 -> 0 | I44: =List!J46 -> 0 | J44: =List!M46 -> 0 | K44: =List!R46 -> 0
A45: 0 | C45: =List!C47 -> 6 | D45: =List!D47 -> TM | E45: =List!F47 -> 0 | F45: =List!G47 -> 0 | G45: =List!H47 -> 0 | H45: =List!I47 -> 0 | I45: =List!J47 -> 0 | J45: =List!M47 -> 0 | K45: =List!R47 -> 0
A46: 0 | C46: =List!C48 -> 6 | D46: =List!D48 -> TM | E46: =List!F48 -> 0 | F46: =List!G48 -> 0 | G46: =List!H48 -> 0 | H46: =List!I48 -> 0 | I46: =List!J48 -> 0 | J46: =List!M48 -> 0 | K46: =List!R48 -> 0
A47: 0 | C47: =List!C49 -> 6 | D47: =List!D49 -> TM | E47: =List!F49 -> 0 | F47: =List!G49 -> 0 | G47: =List!H49 -> 0 | H47: =List!I49 -> 0 | I47: =List!J49 -> 0 | J47: =List!M49 -> 0 | K47: =List!R49 -> 0
A48: 0 | C48: =List!C50 -> 6 | D48: =List!D50 -> TM | E48: =List!F50 -> 0 | F48: =List!G50 -> 0 | G48: =List!H50 -> 0 | H48: =List!I50 -> 0 | I48: =List!J50 -> 0 | J48: =List!M50 -> 0 | K48: =List!R50 -> 0
A49: 0 | C49: =List!C51 -> 6 | D49: =List!D51 -> TM | E49: =List!F51 -> 0 | F49: =List!G51 -> 0 | G49: =List!H51 -> 0 | H49: =List!I51 -> 0 | I49: =List!J51 -> 0 | J49: =List!M51 -> 0 | K49: =List!R51 -> 0
A50: 0 | C50: =List!C52 -> 6 | D50: =List!D52 -> TM | E50: =List!F52 -> 0 | F50: =List!G52 -> 0 | G50: =List!H52 -> 0 | H50: =List!I52 -> 0 | I50: =List!J52 -> 0 | J50: =List!M52 -> 0 | K50: =List!R52 -> 0
A51: 0 | C51: =List!C53 -> 6 | D51: =List!D53 -> TM | E51: =List!F53 -> 0 | F51: =List!G53 -> 0 | G51: =List!H53 -> 0 | H51: =List!I53 -> 0 | I51: =List!J53 -> 0 | J51: =List!M53 -> 0 | K51: =List!R53 -> 0
A52: 0 | C52: =List!C54 -> 6 | D52: =List!D54 -> TM | E52: =List!F54 -> 0 | F52: =List!G54 -> 0 | G52: =List!H54 -> 0 | H52: =List!I54 -> 0 | I52: =List!J54 -> 0 | J52: =List!M54 -> 0 | K52: =List!R54 -> 0
A53: 0 | C53: =List!C55 -> 6 | D53: =List!D55 -> TM | E53: =List!F55 -> 0 | F53: =List!G55 -> 0 | G53: =List!H55 -> 0 | H53: =List!I55 -> 0 | I53: =List!J55 -> 0 | J53: =List!M55 -> 0 | K53: =List!R55 -> 0
A54: 0 | C54: =List!C56 -> 6 | D54: =List!D56 -> TM | E54: =List!F56 -> 0 | F54: =List!G56 -> 0 | G54: =List!H56 -> 0 | H54: =List!I56 -> 0 | I54: =List!J56 -> 0 | J54: =List!M56 -> 0 | K54: =List!R56 -> 0
A55: 0 | C55: =List!C57 -> 6 | D55: =List!D57 -> TM | E55: =List!F57 -> 0 | F55: =List!G57 -> 0 | G55: =List!H57 -> 0 | H55: =List!I57 -> 0 | I55: =List!J57 -> 0 | J55: =List!M57 -> 0 | K55: =List!R57 -> 0
A56: 0 | C56: =List!C58 -> 6 | D56: =List!D58 -> TM | E56: =List!F58 -> 0 | F56: =List!G58 -> 0 | G56: =List!H58 -> 0 | H56: =List!I58 -> 0 | I56: =List!J58 -> 0 | J56: =List!M58 -> 0 | K56: =List!R58 -> 0
A57: 0 | C57: =List!C59 -> 6 | D57: =List!D59 -> TM | E57: =List!F59 -> 0 | F57: =List!G59 -> 0 | G57: =List!H59 -> 0 | H57: =List!I59 -> 0 | I57: =List!J59 -> 0 | J57: =List!M59 -> 0 | K57: =List!R59 -> 0
A58: 0 | C58: =List!C60 -> 6 | D58: =List!D60 -> TM | E58: =List!F60 -> 0 | F58: =List!G60 -> 0 | G58: =List!H60 -> 0 | H58: =List!I60 -> 0 | I58: =List!J60 -> 0 | J58: =List!M60 -> 0 | K58: =List!R60 -> 0
A59: 0 | C59: =List!C61 -> 6 | D59: =List!D61 -> TM | E59: =List!F61 -> 0 | F59: =List!G61 -> 0 | G59: =List!H61 -> 0 | H59: =List!I61 -> 0 | I59: =List!J61 -> 0 | J59: =List!M61 -> 0 | K59: =List!R61 -> 0
A60: 0 | C60: =List!C62 -> 6 | D60: =List!D62 -> TM | E60: =List!F62 -> 0 | F60: =List!G62 -> 0 | G60: =List!H62 -> 0 | H60: =List!I62 -> 0 | I60: =List!J62 -> 0 | J60: =List!M62 -> 0 | K60: =List!R62 -> 0
A61: 0 | C61: =List!C63 -> 6 | D61: =List!D63 -> TM | E61: =List!F63 -> 0 | F61: =List!G63 -> 0 | G61: =List!H63 -> 0 | H61: =List!I63 -> 0 | I61: =List!J63 -> 0 | J61: =List!M63 -> 0 | K61: =List!R63 -> 0
A62: 0 | C62: =List!C64 -> 6 | D62: =List!D64 -> TM | E62: =List!F64 -> 0 | F62: =List!G64 -> 0 | G62: =List!H64 -> 0 | H62: =List!I64 -> 0 | I62: =List!J64 -> 0 | J62: =List!M64 -> 0 | K62: =List!R64 -> 0
A63: 0 | C63: =List!C65 -> 6 | D63: =List!D65 -> TM | E63: =List!F65 -> 0 | F63: =List!G65 -> 0 | G63: =List!H65 -> 0 | H63: =List!I65 -> 0 | I63: =List!J65 -> 0 | J63: =List!M65 -> 0 | K63: =List!R65 -> 0
A64: 0 | C64: =List!C66 -> 6 | D64: =List!D66 -> TM | E64: =List!F66 -> 0 | F64: =List!G66 -> 0 | G64: =List!H66 -> 0 | H64: =List!I66 -> 0 | I64: =List!J66 -> 0 | J64: =List!M66 -> 0 | K64: =List!R66 -> 0
A65: 0 | C65: =List!C67 -> 6 | D65: =List!D67 -> TM | E65: =List!F67 -> 0 | F65: =List!G67 -> 0 | G65: =List!H67 -> 0 | H65: =List!I67 -> 0 | I65: =List!J67 -> 0 | J65: =List!M67 -> 0 | K65: =List!R67 -> 0
A66: 0 | C66: =List!C68 -> 6 | D66: =List!D68 -> TM | E66: =List!F68 -> 0 | F66: =List!G68 -> 0 | G66: =List!H68 -> 0 | H66: =List!I68 -> 0 | I66: =List!J68 -> 0 | J66: =List!M68 -> 0 | K66: =List!R68 -> 0
A67: 0 | C67: =List!C69 -> 6 | D67: =List!D69 -> TM | E67: =List!F69 -> 0 | F67: =List!G69 -> 0 | G67: =List!H69 -> 0 | H67: =List!I69 -> 0 | I67: =List!J69 -> 0 | J67: =List!M69 -> 0 | K67: =List!R69 -> 0
A68: 0 | C68: =List!C70 -> 6 | D68: =List!D70 -> TM | E68: =List!F70 -> 0 | F68: =List!G70 -> 0 | G68: =List!H70 -> 0 | H68: =List!I70 -> 0 | I68: =List!J70 -> 0 | J68: =List!M70 -> 0 | K68: =List!R70 -> 0
A69: 0 | C69: =List!C71 -> 6 | D69: =List!D71 -> TM | E69: =List!F71 -> 0 | F69: =List!G71 -> 0 | G69: =List!H71 -> 0 | H69: =List!I71 -> 0 | I69: =List!J71 -> 0 | J69: =List!M71 -> 0 | K69: =List!R71 -> 0
A70: =F70 -> 0 | C70: =List!C72 -> 6 | D70: =List!D72 -> TM | E70: =List!F72 -> 0 | F70: =List!G72 -> 0 | G70: =List!H72 -> 0 | H70: =List!I72 -> 0 | I70: =List!J72 -> 0 | J70: =List!M72 -> 0 | K70: =List!R72 -> 0
A71: 0 | C71: =List!C73 -> 6 | D71: =List!D73 -> TM | E71: =List!F73 -> 0 | F71: =List!G73 -> 0 | G71: =List!H73 -> 0 | H71: =List!I73 -> 0 | I71: =List!J73 -> 0 | J71: =List!M73 -> 0 | K71: =List!R73 -> 0
A72: 0 | C72: =List!C74 -> 6 | D72: =List!D74 -> TM | E72: =List!F74 -> 0 | F72: =List!G74 -> 0 | G72: =List!H74 -> 0 | H72: =List!I74 -> 0 | I72: =List!J74 -> 0 | J72: =List!M74 -> 0 | K72: =List!R74 -> 0
A73: 0 | C73: =List!C75 -> 6 | D73: =List!D75 -> TM | E73: =List!F75 -> 0 | F73: =List!G75 -> 0 | G73: =List!H75 -> 0 | H73: =List!I75 -> 0 | I73: =List!J75 -> 0 | J73: =List!M75 -> 0 | K73: =List!R75 -> 0
A74: 0 | C74: =List!C76 -> 6 | D74: =List!D76 -> TM | E74: =List!F76 -> 0 | F74: =List!G76 -> 0 | G74: =List!H76 -> 0 | H74: =List!I76 -> 0 | I74: =List!J76 -> 0 | J74: =List!M76 -> 0 | K74: =List!R76 -> 0
A75: 0 | C75: =List!C77 -> 6 | D75: =List!D77 -> TM | E75: =List!F77 -> 0 | F75: =List!G77 -> 0 | G75: =List!H77 -> 0 | H75: =List!I77 -> 0 | I75: =List!J77 -> 0 | J75: =List!M77 -> 0 | K75: =List!R77 -> 0
A76: 0 | C76: =List!C78 -> 6 | D76: =List!D78 -> TM | E76: =List!F78 -> 0 | F76: =List!G78 -> 0 | G76: =List!H78 -> 0 | H76: =List!I78 -> 0 | I76: =List!J78 -> 0 | J76: =List!M78 -> 0 | K76: =List!R78 -> 0
A77: 0 | C77: =List!C79 -> 6 | D77: =List!D79 -> TM | E77: =List!F79 -> 0 | F77: =List!G79 -> 0 | G77: =List!H79 -> 0 | H77: =List!I79 -> 0 | I77: =List!J79 -> 0 | J77: =List!M79 -> 0 | K77: =List!R79 -> 0
A78: 0 | C78: =List!C80 -> 6 | D78: =List!D80 -> TM | E78: =List!F80 -> 0 | F78: =List!G80 -> 0 | G78: =List!H80 -> 0 | H78: =List!I80 -> 0 | I78: =List!J80 -> 0 | J78: =List!M80 -> 0 | K78: =List!R80 -> 0
A79: 0 | C79: =List!C81 -> 6 | D79: =List!D81 -> TM | E79: =List!F81 -> 0 | F79: =List!G81 -> 0 | G79: =List!H81 -> 0 | H79: =List!I81 -> 0 | I79: =List!J81 -> 0 | J79: =List!M81 -> 0 | K79: =List!R81 -> 0
A80: 0 | C80: =List!C82 -> 6 | D80: =List!D82 -> TM | E80: =List!F82 -> 0 | F80: =List!G82 -> 0 | G80: =List!H82 -> 0 | H80: =List!I82 -> 0 | I80: =List!J82 -> 0 | J80: =List!M82 -> 0 | K80: =List!R82 -> 0
A81: 0 | C81: =List!C83 -> 6 | D81: =List!D83 -> TM | E81: =List!F83 -> 0 | F81: =List!G83 -> 0 | G81: =List!H83 -> 0 | H81: =List!I83 -> 0 | I81: =List!J83 -> 0 | J81: =List!M83 -> 0 | K81: =List!R83 -> 0
A82: 0 | C82: =List!C84 -> 6 | D82: =List!D84 -> TM | E82: =List!F84 -> 0 | F82: =List!G84 -> 0 | G82: =List!H84 -> 0 | H82: =List!I84 -> 0 | I82: =List!J84 -> 0 | J82: =List!M84 -> 0 | K82: =List!R84 -> 0
A83: 0 | C83: =List!C85 -> 6 | D83: =List!D85 -> TM | E83: =List!F85 -> 0 | F83: =List!G85 -> 0 | G83: =List!H85 -> 0 | H83: =List!I85 -> 0 | I83: =List!J85 -> 0 | J83: =List!M85 -> 0 | K83: =List!R85 -> 0
A84: 0 | C84: =List!C86 -> 6 | D84: =List!D86 -> TM | E84: =List!F86 -> 0 | F84: =List!G86 -> 0 | G84: =List!H86 -> 0 | H84: =List!I86 -> 0 | I84: =List!J86 -> 0 | J84: =List!M86 -> 0 | K84: =List!R86 -> 0
A85: 0 | C85: =List!C87 -> 6 | D85: =List!D87 -> TM | E85: =List!F87 -> 0 | F85: =List!G87 -> 0 | G85: =List!H87 -> 0 | H85: =List!I87 -> 0 | I85: =List!J87 -> 0 | J85: =List!M87 -> 0 | K85: =List!R87 -> 0
A86: 0 | C86: =List!C88 -> 6 | D86: =List!D88 -> TM | E86: =List!F88 -> 0 | F86: =List!G88 -> 0 | G86: =List!H88 -> 0 | H86: =List!I88 -> 0 | I86: =List!J88 -> 0 | J86: =List!M88 -> 0 | K86: =List!R88 -> 0
A87: 0 | C87: =List!C89 -> 6 | D87: =List!D89 -> TM | E87: =List!F89 -> 0 | F87: =List!G89 -> 0 | G87: =List!H89 -> 0 | H87: =List!I89 -> 0 | I87: =List!J89 -> 0 | J87: =List!M89 -> 0 | K87: =List!R89 -> 0
A88: 0 | C88: =List!C90 -> 6 | D88: =List!D90 -> TM | E88: =List!F90 -> 0 | F88: =List!G90 -> 0 | G88: =List!H90 -> 0 | H88: =List!I90 -> 0 | I88: =List!J90 -> 0 | J88: =List!M90 -> 0 | K88: =List!R90 -> 0
A89: 0 | C89: =List!C91 -> 6 | D89: =List!D91 -> TM | E89: =List!F91 -> 0 | F89: =List!G91 -> 0 | G89: =List!H91 -> 0 | H89: =List!I91 -> 0 | I89: =List!J91 -> 0 | J89: =List!M91 -> 0 | K89: =List!R91 -> 0
A90: 0 | C90: =List!C92 -> 6 | D90: =List!D92 -> TM | E90: =List!F92 -> 0 | F90: =List!G92 -> 0 | G90: =List!H92 -> 0 | H90: =List!I92 -> 0 | I90: =List!J92 -> 0 | J90: =List!M92 -> 0 | K90: =List!R92 -> 0
A91: 0 | C91: =List!C93 -> 6 | D91: =List!D93 -> TM | E91: =List!F93 -> 0 | F91: =List!G93 -> 0 | G91: =List!H93 -> 0 | H91: =List!I93 -> 0 | I91: =List!J93 -> 0 | J91: =List!M93 -> 0 | K91: =List!R93 -> 0
A92: 0 | C92: =List!C94 -> 6 | D92: =List!D94 -> TM | E92: =List!F94 -> 0 | F92: =List!G94 -> 0 | G92: =List!H94 -> 0 | H92: =List!I94 -> 0 | I92: =List!J94 -> 0 | J92: =List!M94 -> 0 | K92: =List!R94 -> 0
A93: 0 | C93: =List!C95 -> 6 | D93: =List!D95 -> TM | E93: =List!F95 -> 0 | F93: =List!G95 -> 0 | G93: =List!H95 -> 0 | H93: =List!I95 -> 0 | I93: =List!J95 -> 0 | J93: =List!M95 -> 0 | K93: =List!R95 -> 0
A94: 0 | C94: =List!C96 -> 6 | D94: =List!D96 -> TM | E94: =List!F96 -> 0 | F94: =List!G96 -> 0 | G94: =List!H96 -> 0 | H94: =List!I96 -> 0 | I94: =List!J96 -> 0 | J94: =List!M96 -> 0 | K94: =List!R96 -> 0
A95: 0 | C95: =List!C97 -> 6 | D95: =List!D97 -> TM | E95: =List!F97 -> 0 | F95: =List!G97 -> 0 | G95: =List!H97 -> 0 | H95: =List!I97 -> 0 | I95: =List!J97 -> 0 | J95: =List!M97 -> 0 | K95: =List!R97 -> 0
A96: 0 | C96: =List!C98 -> 6 | D96: =List!D98 -> TM | E96: =List!F98 -> 0 | F96: =List!G98 -> 0 | G96: =List!H98 -> 0 | H96: =List!I98 -> 0 | I96: =List!J98 -> 0 | J96: =List!M98 -> 0 | K96: =List!R98 -> 0
A97: 0 | C97: =List!C99 -> 6 | D97: =List!D99 -> TM | E97: =List!F99 -> 0 | F97: =List!G99 -> 0 | G97: =List!H99 -> 0 | H97: =List!I99 -> 0 | I97: =List!J99 -> 0 | J97: =List!M99 -> 0 | K97: =List!R99 -> 0
A98: 0 | C98: =List!C100 -> 6 | D98: =List!D100 -> TM | E98: =List!F100 -> 0 | F98: =List!G100 -> 0 | G98: =List!H100 -> 0 | H98: =List!I100 -> 0 | I98: =List!J100 -> 0 | J98: =List!M100 -> 0 | K98: =List!R100 -> 0
A99: 0 | C99: =List!C101 -> 6 | D99: =List!D101 -> TM | E99: =List!F101 -> 0 | F99: =List!G101 -> 0 | G99: =List!H101 -> 0 | H99: =List!I101 -> 0 | I99: =List!J101 -> 0 | J99: =List!M101 -> 0 | K99: =List!R101 -> 0
A100: 0 | C100: =List!C102 -> 6 | D100: =List!D102 -> TM | E100: =List!F102 -> 0 | F100: =List!G102 -> 0 | G100: =List!H102 -> 0 | H100: =List!I102 -> 0 | I100: =List!J102 -> 0 | J100: =List!M102 -> 0 | K100: =List!R102 -> 0
A101: 0 | C101: =List!C103 -> 6 | D101: =List!D103 -> TM | E101: =List!F103 -> 0 | F101: =List!G103 -> 0 | G101: =List!H103 -> 0 | H101: =List!I103 -> 0 | I101: =List!J103 -> 0 | J101: =List!M103 -> 0 | K101: =List!R103 -> 0
A102: 0 | C102: =List!C104 -> 6 | D102: =List!D104 -> TM | E102: =List!F104 -> 0 | F102: =List!G104 -> 0 | G102: =List!H104 -> 0 | H102: =List!I104 -> 0 | I102: =List!J104 -> 0 | J102: =List!M104 -> 0 | K102: =List!R104 -> 0
A103: 0 | C103: =List!C105 -> 6 | D103: =List!D105 -> TM | E103: =List!F105 -> 0 | F103: =List!G105 -> 0 | G103: =List!H105 -> 0 | H103: =List!I105 -> 0 | I103: =List!J105 -> 0 | J103: =List!M105 -> 0 | K103: =List!R105 -> 0
A104: 0 | C104: =List!C106 -> 6 | D104: =List!D106 -> TM | E104: =List!F106 -> 0 | F104: =List!G106 -> 0 | G104: =List!H106 -> 0 | H104: =List!I106 -> 0 | I104: =List!J106 -> 0 | J104: =List!M106 -> 0 | K104: =List!R106 -> 0
A105: 0 | C105: =List!C107 -> 6 | D105: =List!D107 -> TM | E105: =List!F107 -> 0 | F105: =List!G107 -> 0 | G105: =List!H107 -> 0 | H105: =List!I107 -> 0 | I105: =List!J107 -> 0 | J105: =List!M107 -> 0 | K105: =List!R107 -> 0
A106: 0 | C106: =List!C108 -> 6 | D106: =List!D108 -> TM | E106: =List!F108 -> 0 | F106: =List!G108 -> 0 | G106: =List!H108 -> 0 | H106: =List!I108 -> 0 | I106: =List!J108 -> 0 | J106: =List!M108 -> 0 | K106: =List!R108 -> 0
A107: 0 | C107: =List!C109 -> 6 | D107: =List!D109 -> TM | E107: =List!F109 -> 0 | F107: =List!G109 -> 0 | G107: =List!H109 -> 0 | H107: =List!I109 -> 0 | I107: =List!J109 -> 0 | J107: =List!M109 -> 0 | K107: =List!R109 -> 0
A108: 0 | C108: =List!C110 -> 6 | D108: =List!D110 -> TM | E108: =List!F110 -> 0 | F108: =List!G110 -> 0 | G108: =List!H110 -> 0 | H108: =List!I110 -> 0 | I108: =List!J110 -> 0 | J108: =List!M110 -> 0 | K108: =List!R110 -> 0
A109: 0 | C109: =List!C111 -> 6 | D109: =List!D111 -> TM | E109: =List!F111 -> 0 | F109: =List!G111 -> 0 | G109: =List!H111 -> 0 | H109: =List!I111 -> 0 | I109: =List!J111 -> 0 | J109: =List!M111 -> 0 | K109: =List!R111 -> 0
A110: 0 | C110: =List!C112 -> 6 | D110: =List!D112 -> TM | E110: =List!F112 -> 0 | F110: =List!G112 -> 0 | G110: =List!H112 -> 0 | H110: =List!I112 -> 0 | I110: =List!J112 -> 0 | J110: =List!M112 -> 0 | K110: =List!R112 -> 0
A111: 0 | C111: =List!C113 -> 6 | D111: =List!D113 -> TM | E111: =List!F113 -> 0 | F111: =List!G113 -> 0 | G111: =List!H113 -> 0 | H111: =List!I113 -> 0 | I111: =List!J113 -> 0 | J111: =List!M113 -> 0 | K111: =List!R113 -> 0
A112: 0 | C112: =List!C114 -> 6 | D112: =List!D114 -> TM | E112: =List!F114 -> 0 | F112: =List!G114 -> 0 | G112: =List!H114 -> 0 | H112: =List!I114 -> 0 | I112: =List!J114 -> 0 | J112: =List!M114 -> 0 | K112: =List!R114 -> 0
A113: 0 | C113: =List!C115 -> 6 | D113: =List!D115 -> TM | E113: =List!F115 -> 0 | F113: =List!G115 -> 0 | G113: =List!H115 -> 0 | H113: =List!I115 -> 0 | I113: =List!J115 -> 0 | J113: =List!M115 -> 0 | K113: =List!R115 -> 0
A114: 0 | C114: =List!C116 -> 6 | D114: =List!D116 -> TM | E114: =List!F116 -> 0 | F114: =List!G116 -> 0 | G114: =List!H116 -> 0 | H114: =List!I116 -> 0 | I114: =List!J116 -> 0 | J114: =List!M116 -> 0 | K114: =List!R116 -> 0
A115: =A5 -> 1 | K115: Signature of the Class Teacher:
A116: =A5 -> 1
A117: 0 | C117: =List!C118 -> 6 | D117: =List!D118 -> EM | E117: =List!F118 -> 0 | F117: =List!G118 -> 0 | G117: =List!H118 -> 0 | H117: =List!I118 -> 0 | I117: =List!J118 -> 0 | J117: =List!M118 -> 0 | K117: =List!R118 -> 0 | L117: 0
A118: 0 | C118: =List!C119 -> 6 | D118: =List!D119 -> EM | E118: =List!F119 -> 0 | F118: =List!G119 -> 0 | G118: =List!H119 -> 0 | H118: =List!I119 -> 0 | I118: =List!J119 -> 0 | J118: =List!M119 -> 0 | K118: =List!R119 -> 0 | L118: 0
A119: 0 | C119: =List!C120 -> 6 | D119: =List!D120 -> EM | E119: =List!F120 -> 0 | F119: =List!G120 -> 0 | G119: =List!H120 -> 0 | H119: =List!I120 -> 0 | I119: =List!J120 -> 0 | J119: =List!M120 -> 0 | K119: =List!R120 -> 0 | L119: 0
A120: 0 | C120: =List!C121 -> 6 | D120: =List!D121 -> EM | E120: =List!F121 -> 0 | F120: =List!G121 -> 0 | G120: =List!H121 -> 0 | H120: =List!I121 -> 0 | I120: =List!J121 -> 0 | J120: =List!M121 -> 0 | K120: =List!R121 -> 0 | L120: 0
A121: 0 | C121: =List!C122 -> 6 | D121: =List!D122 -> EM | E121: =List!F122 -> 0 | F121: =List!G122 -> 0 | G121: =List!H122 -> 0 | H121: =List!I122 -> 0 | I121: =List!J122 -> 0 | J121: =List!M122 -> 0 | K121: =List!R122 -> 0 | L121: 0
A122: 0 | C122: =List!C123 -> 6 | D122: =List!D123 -> EM | E122: =List!F123 -> 0 | F122: =List!G123 -> 0 | G122: =List!H123 -> 0 | H122: =List!I123 -> 0 | I122: =List!J123 -> 0 | J122: =List!M123 -> 0 | K122: =List!R123 -> 0 | L122: 0
A123: 0 | C123: =List!C124 -> 6 | D123: =List!D124 -> EM | E123: =List!F124 -> 0 | F123: =List!G124 -> 0 | G123: =List!H124 -> 0 | H123: =List!I124 -> 0 | I123: =List!J124 -> 0 | J123: =List!M124 -> 0 | K123: =List!R124 -> 0 | L123: 0
A124: 0 | C124: =List!C125 -> 6 | D124: =List!D125 -> EM | E124: =List!F125 -> 0 | F124: =List!G125 -> 0 | G124: =List!H125 -> 0 | H124: =List!I125 -> 0 | I124: =List!J125 -> 0 | J124: =List!M125 -> 0 | K124: =List!R125 -> 0 | L124: 0
A125: 0 | C125: =List!C126 -> 6 | D125: =List!D126 -> EM | E125: =List!F126 -> 0 | F125: =List!G126 -> 0 | G125: =List!H126 -> 0 | H125: =List!I126 -> 0 | I125: =List!J126 -> 0 | J125: =List!M126 -> 0 | K125: =List!R126 -> 0
A126: 0 | C126: =List!C127 -> 6 | D126: =List!D127 -> EM | E126: =List!F127 -> 0 | F126: =List!G127 -> 0 | G126: =List!H127 -> 0 | H126: =List!I127 -> 0 | I126: =List!J127 -> 0 | J126: =List!M127 -> 0 | K126: =List!R127 -> 0
A127: 0 | C127: =List!C128 -> 6 | D127: =List!D128 -> EM | E127: =List!F128 -> 0 | F127: =List!G128 -> 0 | G127: =List!H128 -> 0 | H127: =List!I128 -> 0 | I127: =List!J128 -> 0 | J127: =List!M128 -> 0 | K127: =List!R128 -> 0
A128: 0 | C128: =List!C129 -> 6 | D128: =List!D129 -> EM | E128: =List!F129 -> 0 | F128: =List!G129 -> 0 | G128: =List!H129 -> 0 | H128: =List!I129 -> 0 | I128: =List!J129 -> 0 | J128: =List!M129 -> 0 | K128: =List!R129 -> 0
A129: 0 | C129: =List!C130 -> 6 | D129: =List!D130 -> EM | E129: =List!F130 -> 0 | F129: =List!G130 -> 0 | G129: =List!H130 -> 0 | H129: =List!I130 -> 0 | I129: =List!J130 -> 0 | J129: =List!M130 -> 0 | K129: =List!R130 -> 0
A130: 0 | C130: =List!C131 -> 6 | D130: =List!D131 -> EM | E130: =List!F131 -> 0 | F130: =List!G131 -> 0 | G130: =List!H131 -> 0 | H130: =List!I131 -> 0 | I130: =List!J131 -> 0 | J130: =List!M131 -> 0 | K130: =List!R131 -> 0
A131: 0 | C131: =List!C132 -> 6 | D131: =List!D132 -> EM | E131: =List!F132 -> 0 | F131: =List!G132 -> 0 | G131: =List!H132 -> 0 | H131: =List!I132 -> 0 | I131: =List!J132 -> 0 | J131: =List!M132 -> 0 | K131: =List!R132 -> 0
A132: 0 | C132: =List!C133 -> 6 | D132: =List!D133 -> EM | E132: =List!F133 -> 0 | F132: =List!G133 -> 0 | G132: =List!H133 -> 0 | H132: =List!I133 -> 0 | I132: =List!J133 -> 0 | J132: =List!M133 -> 0 | K132: =List!R133 -> 0
A133: 0 | C133: =List!C134 -> 6 | D133: =List!D134 -> EM | E133: =List!F134 -> 0 | F133: =List!G134 -> 0 | G133: =List!H134 -> 0 | H133: =List!I134 -> 0 | I133: =List!J134 -> 0 | J133: =List!M134 -> 0 | K133: =List!R134 -> 0
A134: 0 | C134: =List!C135 -> 6 | D134: =List!D135 -> EM | E134: =List!F135 -> 0 | F134: =List!G135 -> 0 | G134: =List!H135 -> 0 | H134: =List!I135 -> 0 | I134: =List!J135 -> 0 | J134: =List!M135 -> 0 | K134: =List!R135 -> 0
A135: =F135 -> 0 | C135: =List!C136 -> 6 | D135: =List!D136 -> EM | E135: =List!F136 -> 0 | F135: =List!G136 -> 0 | G135: =List!H136 -> 0 | H135: =List!I136 -> 0 | I135: =List!J136 -> 0 | J135: =List!M136 -> 0 | K135: =List!R136 -> 0
A136: 0 | C136: =List!C137 -> 6 | D136: =List!D137 -> EM | E136: =List!F137 -> 0 | F136: =List!G137 -> 0 | G136: =List!H137 -> 0 | H136: =List!I137 -> 0 | I136: =List!J137 -> 0 | J136: =List!M137 -> 0 | K136: =List!R137 -> 0
A137: 0 | C137: =List!C138 -> 6 | D137: =List!D138 -> EM | E137: =List!F138 -> 0 | F137: =List!G138 -> 0 | G137: =List!H138 -> 0 | H137: =List!I138 -> 0 | I137: =List!J138 -> 0 | J137: =List!M138 -> 0 | K137: =List!R138 -> 0
A138: 0 | C138: =List!C139 -> 6 | D138: =List!D139 -> EM | E138: =List!F139 -> 0 | F138: =List!G139 -> 0 | G138: =List!H139 -> 0 | H138: =List!I139 -> 0 | I138: =List!J139 -> 0 | J138: =List!M139 -> 0 | K138: =List!R139 -> 0
A139: 0 | C139: =List!C140 -> 6 | D139: =List!D140 -> EM | E139: =List!F140 -> 0 | F139: =List!G140 -> 0 | G139: =List!H140 -> 0 | H139: =List!I140 -> 0 | I139: =List!J140 -> 0 | J139: =List!M140 -> 0 | K139: =List!R140 -> 0
A140: 0 | C140: =List!C141 -> 6 | D140: =List!D141 -> EM | E140: =List!F141 -> 0 | F140: =List!G141 -> 0 | G140: =List!H141 -> 0 | H140: =List!I141 -> 0 | I140: =List!J141 -> 0 | J140: =List!M141 -> 0 | K140: =List!R141 -> 0
A141: 0 | C141: =List!C142 -> 6 | D141: =List!D142 -> EM | E141: =List!F142 -> 0 | F141: =List!G142 -> 0 | G141: =List!H142 -> 0 | H141: =List!I142 -> 0 | I141: =List!J142 -> 0 | J141: =List!M142 -> 0 | K141: =List!R142 -> 0
A142: 0 | C142: =List!C143 -> 6 | D142: =List!D143 -> EM | E142: =List!F143 -> 0 | F142: =List!G143 -> 0 | G142: =List!H143 -> 0 | H142: =List!I143 -> 0 | I142: =List!J143 -> 0 | J142: =List!M143 -> 0 | K142: =List!R143 -> 0
A143: 0 | C143: =List!C144 -> 6 | D143: =List!D144 -> EM | E143: =List!F144 -> 0 | F143: =List!G144 -> 0 | G143: =List!H144 -> 0 | H143: =List!I144 -> 0 | I143: =List!J144 -> 0 | J143: =List!M144 -> 0 | K143: =List!R144 -> 0
A144: 0 | C144: =List!C145 -> 6 | D144: =List!D145 -> EM | E144: =List!F145 -> 0 | F144: =List!G145 -> 0 | G144: =List!H145 -> 0 | H144: =List!I145 -> 0 | I144: =List!J145 -> 0 | J144: =List!M145 -> 0 | K144: =List!R145 -> 0
A145: 0 | C145: =List!C146 -> 6 | D145: =List!D146 -> EM | E145: =List!F146 -> 0 | F145: =List!G146 -> 0 | G145: =List!H146 -> 0 | H145: =List!I146 -> 0 | I145: =List!J146 -> 0 | J145: =List!M146 -> 0 | K145: =List!R146 -> 0
A146: 0 | C146: =List!C147 -> 6 | D146: =List!D147 -> EM | E146: =List!F147 -> 0 | F146: =List!G147 -> 0 | G146: =List!H147 -> 0 | H146: =List!I147 -> 0 | I146: =List!J147 -> 0 | J146: =List!M147 -> 0 | K146: =List!R147 -> 0
A147: 0 | C147: =List!C148 -> 6 | D147: =List!D148 -> EM | E147: =List!F148 -> 0 | F147: =List!G148 -> 0 | G147: =List!H148 -> 0 | H147: =List!I148 -> 0 | I147: =List!J148 -> 0 | J147: =List!M148 -> 0 | K147: =List!R148 -> 0
A148: 0 | C148: =List!C149 -> 6 | D148: =List!D149 -> EM | E148: =List!F149 -> 0 | F148: =List!G149 -> 0 | G148: =List!H149 -> 0 | H148: =List!I149 -> 0 | I148: =List!J149 -> 0 | J148: =List!M149 -> 0 | K148: =List!R149 -> 0
A149: 0 | C149: =List!C150 -> 6 | D149: =List!D150 -> EM | E149: =List!F150 -> 0 | F149: =List!G150 -> 0 | G149: =List!H150 -> 0 | H149: =List!I150 -> 0 | I149: =List!J150 -> 0 | J149: =List!M150 -> 0 | K149: =List!R150 -> 0
A150: 0 | C150: =List!C151 -> 6 | D150: =List!D151 -> EM | E150: =List!F151 -> 0 | F150: =List!G151 -> 0 | G150: =List!H151 -> 0 | H150: =List!I151 -> 0 | I150: =List!J151 -> 0 | J150: =List!M151 -> 0 | K150: =List!R151 -> 0
A151: 0 | C151: =List!C152 -> 6 | D151: =List!D152 -> EM | E151: =List!F152 -> 0 | F151: =List!G152 -> 0 | G151: =List!H152 -> 0 | H151: =List!I152 -> 0 | I151: =List!J152 -> 0 | J151: =List!M152 -> 0 | K151: =List!R152 -> 0
A152: 0 | C152: =List!C153 -> 6 | D152: =List!D153 -> EM | E152: =List!F153 -> 0 | F152: =List!G153 -> 0 | G152: =List!H153 -> 0 | H152: =List!I153 -> 0 | I152: =List!J153 -> 0 | J152: =List!M153 -> 0 | K152: =List!R153 -> 0
A153: 0 | C153: =List!C154 -> 6 | D153: =List!D154 -> EM | E153: =List!F154 -> 0 | F153: =List!G154 -> 0 | G153: =List!H154 -> 0 | H153: =List!I154 -> 0 | I153: =List!J154 -> 0 | J153: =List!M154 -> 0 | K153: =List!R154 -> 0
A154: 0 | C154: =List!C155 -> 6 | D154: =List!D155 -> EM | E154: =List!F155 -> 0 | F154: =List!G155 -> 0 | G154: =List!H155 -> 0 | H154: =List!I155 -> 0 | I154: =List!J155 -> 0 | J154: =List!M155 -> 0 | K154: =List!R155 -> 0
A155: 0 | C155: =List!C156 -> 6 | D155: =List!D156 -> EM | E155: =List!F156 -> 0 | F155: =List!G156 -> 0 | G155: =List!H156 -> 0 | H155: =List!I156 -> 0 | I155: =List!J156 -> 0 | J155: =List!M156 -> 0 | K155: =List!R156 -> 0
A156: 0 | C156: =List!C157 -> 6 | D156: =List!D157 -> EM | E156: =List!F157 -> 0 | F156: =List!G157 -> 0 | G156: =List!H157 -> 0 | H156: =List!I157 -> 0 | I156: =List!J157 -> 0 | J156: =List!M157 -> 0 | K156: =List!R157 -> 0
A157: 0 | C157: =List!C158 -> 6 | D157: =List!D158 -> EM | E157: =List!F158 -> 0 | F157: =List!G158 -> 0 | G157: =List!H158 -> 0 | H157: =List!I158 -> 0 | I157: =List!J158 -> 0 | J157: =List!M158 -> 0 | K157: =List!R158 -> 0
A158: 0 | C158: =List!C159 -> 6 | D158: =List!D159 -> EM | E158: =List!F159 -> 0 | F158: =List!G159 -> 0 | G158: =List!H159 -> 0 | H158: =List!I159 -> 0 | I158: =List!J159 -> 0 | J158: =List!M159 -> 0 | K158: =List!R159 -> 0
A159: 0 | C159: =List!C160 -> 6 | D159: =List!D160 -> EM | E159: =List!F160 -> 0 | F159: =List!G160 -> 0 | G159: =List!H160 -> 0 | H159: =List!I160 -> 0 | I159: =List!J160 -> 0 | J159: =List!M160 -> 0 | K159: =List!R160 -> 0
A160: 0 | C160: =List!C161 -> 6 | D160: =List!D161 -> EM | E160: =List!F161 -> 0 | F160: =List!G161 -> 0 | G160: =List!H161 -> 0 | H160: =List!I161 -> 0 | I160: =List!J161 -> 0 | J160: =List!M161 -> 0 | K160: =List!R161 -> 0
A161: 0 | C161: =List!C162 -> 6 | D161: =List!D162 -> EM | E161: =List!F162 -> 0 | F161: =List!G162 -> 0 | G161: =List!H162 -> 0 | H161: =List!I162 -> 0 | I161: =List!J162 -> 0 | J161: =List!M162 -> 0 | K161: =List!R162 -> 0
A162: 0 | C162: =List!C163 -> 6 | D162: =List!D163 -> EM | E162: =List!F163 -> 0 | F162: =List!G163 -> 0 | G162: =List!H163 -> 0 | H162: =List!I163 -> 0 | I162: =List!J163 -> 0 | J162: =List!M163 -> 0 | K162: =List!R163 -> 0
A163: 0 | C163: =List!C164 -> 6 | D163: =List!D164 -> EM | E163: =List!F164 -> 0 | F163: =List!G164 -> 0 | G163: =List!H164 -> 0 | H163: =List!I164 -> 0 | I163: =List!J164 -> 0 | J163: =List!M164 -> 0 | K163: =List!R164 -> 0
A164: 0 | C164: =List!C165 -> 6 | D164: =List!D165 -> EM | E164: =List!F165 -> 0 | F164: =List!G165 -> 0 | G164: =List!H165 -> 0 | H164: =List!I165 -> 0 | I164: =List!J165 -> 0 | J164: =List!M165 -> 0 | K164: =List!R165 -> 0
A165: 0 | C165: =List!C166 -> 6 | D165: =List!D166 -> EM | E165: =List!F166 -> 0 | F165: =List!G166 -> 0 | G165: =List!H166 -> 0 | H165: =List!I166 -> 0 | I165: =List!J166 -> 0 | J165: =List!M166 -> 0 | K165: =List!R166 -> 0
A166: 0 | C166: =List!C167 -> 6 | D166: =List!D167 -> EM | E166: =List!F167 -> 0 | F166: =List!G167 -> 0 | G166: =List!H167 -> 0 | H166: =List!I167 -> 0 | I166: =List!J167 -> 0 | J166: =List!M167 -> 0 | K166: =List!R167 -> 0
A167: =A117 -> 0 | K167: Signature of the Class Teacher:
A168: =A117 -> 0
A169: 0 | C169: =List!C169 -> 7 | D169: =List!D169 -> TM | E169: =List!F169 -> 0 | F169: =List!G169 -> 0 | G169: =List!H169 -> 0 | H169: =List!I169 -> 0 | I169: =List!J169 -> 0 | J169: =List!M169 -> 0 | K169: =List!R169 -> 0 | L169: 0
A170: 0 | C170: =List!C170 -> 7 | D170: =List!D170 -> TM | E170: =List!F170 -> 0 | F170: =List!G170 -> 0 | G170: =List!H170 -> 0 | H170: =List!I170 -> 0 | I170: =List!J170 -> 0 | J170: =List!M170 -> 0 | K170: =List!R170 -> 0 | L170: 0
A171: 0 | C171: =List!C171 -> 7 | D171: =List!D171 -> TM | E171: =List!F171 -> 0 | F171: =List!G171 -> 0 | G171: =List!H171 -> 0 | H171: =List!I171 -> 0 | I171: =List!J171 -> 0 | J171: =List!M171 -> 0 | K171: =List!R171 -> 0 | L171: 0
A172: 0 | C172: =List!C172 -> 7 | D172: =List!D172 -> TM | E172: =List!F172 -> 0 | F172: =List!G172 -> 0 | G172: =List!H172 -> 0 | H172: =List!I172 -> 0 | I172: =List!J172 -> 0 | J172: =List!M172 -> 0 | K172: =List!R172 -> 0 | L172: 0
A173: 0 | C173: =List!C173 -> 7 | D173: =List!D173 -> TM | E173: =List!F173 -> 0 | F173: =List!G173 -> 0 | G173: =List!H173 -> 0 | H173: =List!I173 -> 0 | I173: =List!J173 -> 0 | J173: =List!M173 -> 0 | K173: =List!R173 -> 0 | L173: 0
A174: 0 | C174: =List!C174 -> 7 | D174: =List!D174 -> TM | E174: =List!F174 -> 0 | F174: =List!G174 -> 0 | G174: =List!H174 -> 0 | H174: =List!I174 -> 0 | I174: =List!J174 -> 0 | J174: =List!M174 -> 0 | K174: =List!R174 -> 0 | L174: 0
A175: 0 | C175: =List!C175 -> 7 | D175: =List!D175 -> TM | E175: =List!F175 -> 0 | F175: =List!G175 -> 0 | G175: =List!H175 -> 0 | H175: =List!I175 -> 0 | I175: =List!J175 -> 0 | J175: =List!M175 -> 0 | K175: =List!R175 -> 0 | L175: 0
A176: 0 | C176: =List!C176 -> 7 | D176: =List!D176 -> TM | E176: =List!F176 -> 0 | F176: =List!G176 -> 0 | G176: =List!H176 -> 0 | H176: =List!I176 -> 0 | I176: =List!J176 -> 0 | J176: =List!M176 -> 0 | K176: =List!R176 -> 0 | L176: 0
A177: 0 | C177: =List!C177 -> 7 | D177: =List!D177 -> TM | E177: =List!F177 -> 0 | F177: =List!G177 -> 0 | G177: =List!H177 -> 0 | H177: =List!I177 -> 0 | I177: =List!J177 -> 0 | J177: =List!M177 -> 0 | K177: =List!R177 -> 0 | L177: 0
A178: 0 | C178: =List!C178 -> 7 | D178: =List!D178 -> TM | E178: =List!F178 -> 0 | F178: =List!G178 -> 0 | G178: =List!H178 -> 0 | H178: =List!I178 -> 0 | I178: =List!J178 -> 0 | J178: =List!M178 -> 0 | K178: =List!R178 -> 0 | L178: 0
A179: 0 | C179: =List!C179 -> 7 | D179: =List!D179 -> TM | E179: =List!F179 -> 0 | F179: =List!G179 -> 0 | G179: =List!H179 -> 0 | H179: =List!I179 -> 0 | I179: =List!J179 -> 0 | J179: =List!M179 -> 0 | K179: =List!R179 -> 0 | L179: 0
A180: 0 | C180: =List!C180 -> 7 | D180: =List!D180 -> TM | E180: =List!F180 -> 0 | F180: =List!G180 -> 0 | G180: =List!H180 -> 0 | H180: =List!I180 -> 0 | I180: =List!J180 -> 0 | J180: =List!M180 -> 0 | K180: =List!R180 -> 0 | L180: 0
A181: 0 | C181: =List!C181 -> 7 | D181: =List!D181 -> TM | E181: =List!F181 -> 0 | F181: =List!G181 -> 0 | G181: =List!H181 -> 0 | H181: =List!I181 -> 0 | I181: =List!J181 -> 0 | J181: =List!M181 -> 0 | K181: =List!R181 -> 0 | L181: 0
A182: 0 | C182: =List!C182 -> 7 | D182: =List!D182 -> TM | E182: =List!F182 -> 0 | F182: =List!G182 -> 0 | G182: =List!H182 -> 0 | H182: =List!I182 -> 0 | I182: =List!J182 -> 0 | J182: =List!M182 -> 0 | K182: =List!R182 -> 0 | L182: 0
A183: 0 | C183: =List!C183 -> 7 | D183: =List!D183 -> TM | E183: =List!F183 -> 0 | F183: =List!G183 -> 0 | G183: =List!H183 -> 0 | H183: =List!I183 -> 0 | I183: =List!J183 -> 0 | J183: =List!M183 -> 0 | K183: =List!R183 -> 0 | L183: 0
A184: 0 | C184: =List!C184 -> 7 | D184: =List!D184 -> TM | E184: =List!F184 -> 0 | F184: =List!G184 -> 0 | G184: =List!H184 -> 0 | H184: =List!I184 -> 0 | I184: =List!J184 -> 0 | J184: =List!M184 -> 0 | K184: =List!R184 -> 0 | L184: 0
A185: 0 | C185: =List!C185 -> 7 | D185: =List!D185 -> TM | E185: =List!F185 -> 0 | F185: =List!G185 -> 0 | G185: =List!H185 -> 0 | H185: =List!I185 -> 0 | I185: =List!J185 -> 0 | J185: =List!M185 -> 0 | K185: =List!R185 -> 0 | L185: 0
A186: 0 | C186: =List!C186 -> 7 | D186: =List!D186 -> TM | E186: =List!F186 -> 0 | F186: =List!G186 -> 0 | G186: =List!H186 -> 0 | H186: =List!I186 -> 0 | I186: =List!J186 -> 0 | J186: =List!M186 -> 0 | K186: =List!R186 -> 0 | L186: 0
A187: 0 | C187: =List!C187 -> 7 | D187: =List!D187 -> TM | E187: =List!F187 -> 0 | F187: =List!G187 -> 0 | G187: =List!H187 -> 0 | H187: =List!I187 -> 0 | I187: =List!J187 -> 0 | J187: =List!M187 -> 0 | K187: =List!R187 -> 0 | L187: 0
A188: 0 | C188: =List!C188 -> 7 | D188: =List!D188 -> TM | E188: =List!F188 -> 0 | F188: =List!G188 -> 0 | G188: =List!H188 -> 0 | H188: =List!I188 -> 0 | I188: =List!J188 -> 0 | J188: =List!M188 -> 0 | K188: =List!R188 -> 0 | L188: 0
A189: 0 | C189: =List!C189 -> 7 | D189: =List!D189 -> TM | E189: =List!F189 -> 0 | F189: =List!G189 -> 0 | G189: =List!H189 -> 0 | H189: =List!I189 -> 0 | I189: =List!J189 -> 0 | J189: =List!M189 -> 0 | K189: =List!R189 -> 0 | L189: 0
A190: 0 | C190: =List!C190 -> 7 | D190: =List!D190 -> TM | E190: =List!F190 -> 0 | F190: =List!G190 -> 0 | G190: =List!H190 -> 0 | H190: =List!I190 -> 0 | I190: =List!J190 -> 0 | J190: =List!M190 -> 0 | K190: =List!R190 -> 0 | L190: 0
A191: 0 | C191: =List!C191 -> 7 | D191: =List!D191 -> TM | E191: =List!F191 -> 0 | F191: =List!G191 -> 0 | G191: =List!H191 -> 0 | H191: =List!I191 -> 0 | I191: =List!J191 -> 0 | J191: =List!M191 -> 0 | K191: =List!R191 -> 0 | L191: 0
A192: 0 | C192: =List!C192 -> 7 | D192: =List!D192 -> TM | E192: =List!F192 -> 0 | F192: =List!G192 -> 0 | G192: =List!H192 -> 0 | H192: =List!I192 -> 0 | I192: =List!J192 -> 0 | J192: =List!M192 -> 0 | K192: =List!R192 -> 0 | L192: 0
A193: 0 | C193: =List!C193 -> 7 | D193: =List!D193 -> TM | E193: =List!F193 -> 0 | F193: =List!G193 -> 0 | G193: =List!H193 -> 0 | H193: =List!I193 -> 0 | I193: =List!J193 -> 0 | J193: =List!M193 -> 0 | K193: =List!R193 -> 0 | L193: 0
A194: 0 | C194: =List!C194 -> 7 | D194: =List!D194 -> TM | E194: =List!F194 -> 0 | F194: =List!G194 -> 0 | G194: =List!H194 -> 0 | H194: =List!I194 -> 0 | I194: =List!J194 -> 0 | J194: =List!M194 -> 0 | K194: =List!R194 -> 0 | L194: 0
A195: 0 | C195: =List!C195 -> 7 | D195: =List!D195 -> TM | E195: =List!F195 -> 0 | F195: =List!G195 -> 0 | G195: =List!H195 -> 0 | H195: =List!I195 -> 0 | I195: =List!J195 -> 0 | J195: =List!M195 -> 0 | K195: =List!R195 -> 0 | L195: 0
A196: 0 | C196: =List!C196 -> 7 | D196: =List!D196 -> TM | E196: =List!F196 -> 0 | F196: =List!G196 -> 0 | G196: =List!H196 -> 0 | H196: =List!I196 -> 0 | I196: =List!J196 -> 0 | J196: =List!M196 -> 0 | K196: =List!R196 -> 0 | L196: 0
A197: 0 | C197: =List!C197 -> 7 | D197: =List!D197 -> TM | E197: =List!F197 -> 0 | F197: =List!G197 -> 0 | G197: =List!H197 -> 0 | H197: =List!I197 -> 0 | I197: =List!J197 -> 0 | J197: =List!M197 -> 0 | K197: =List!R197 -> 0 | L197: 0
A198: 0 | C198: =List!C198 -> 7 | D198: =List!D198 -> TM | E198: =List!F198 -> 0 | F198: =List!G198 -> 0 | G198: =List!H198 -> 0 | H198: =List!I198 -> 0 | I198: =List!J198 -> 0 | J198: =List!M198 -> 0 | K198: =List!R198 -> 0
A199: 0 | C199: =List!C199 -> 7 | D199: =List!D199 -> TM | E199: =List!F199 -> 0 | F199: =List!G199 -> 0 | G199: =List!H199 -> 0 | H199: =List!I199 -> 0 | I199: =List!J199 -> 0 | J199: =List!M199 -> 0 | K199: =List!R199 -> 0
A200: =F200 -> 0 | C200: =List!C200 -> 7 | D200: =List!D200 -> TM | E200: =List!F200 -> 0 | F200: =List!G200 -> 0 | G200: =List!H200 -> 0 | H200: =List!I200 -> 0 | I200: =List!J200 -> 0 | J200: =List!M200 -> 0 | K200: =List!R200 -> 0
A201: 0 | C201: =List!C201 -> 7 | D201: =List!D201 -> TM | E201: =List!F201 -> 0 | F201: =List!G201 -> 0 | G201: =List!H201 -> 0 | H201: =List!I201 -> 0 | I201: =List!J201 -> 0 | J201: =List!M201 -> 0 | K201: =List!R201 -> 0
... 298 more rows

Sheet NTBooks
O1: Enter the 'Books Received' mannually
B2: =CONCATENATE(Stre!B2,", ",Stre!B3) -> Z P P HIGH SCHOOL, ISLAMPETA, PEDAGANTYADA MANDAL, VISAKHAPATNAM.
B3: National Text Books: Received - Distributed - Balance
B5: S. No | C5: Title of the Book | H5: Actual Requirment | R5: Books Received
H6: VI | J6: VII | L6: VIII | N6: IX | P6: X | R6: VI | T6: VII | V6: VIII | X6: IX | Z6: X
H7: TM | I7: EM | J7: TM | K7: EM | L7: TM | M7: EM | N7: TM | O7: EM | P7: TM | Q7: EM | R7: TM | S7: EM | T7: TM | U7: EM | V7: TM | W7: EM | X7: TM | Y7: EM | Z7: TM | AA7: EM
B8: 1 | C8: Telugu Reader | H8: =Stre!AG31 -> 6 | J8: =Stre!AG32 -> 0 | L8: =Stre!AG33 -> 0 | N8: =Stre!AG34 -> 0 | P8: =Stre!AG35 -> 0
B9: 2 | C9: Hindi Reader | H9: =Stre!AG31 -> 6 | J9: =Stre!AG32 -> 0 | L9: =Stre!AG33 -> 0 | N9: =Stre!AG34 -> 0 | P9: =Stre!AG35 -> 0
B10: 3 | C10: English Reader | H10: =Stre!AG9 -> 6 | I10: =Stre!AG20 -> 0 | J10: =Stre!AG10 -> 0 | K10: =Stre!AG21 -> 0 | L10: =Stre!AG11 -> 0 | M10: =Stre!AG22 -> 0 | N10: =Stre!AG12 -> 0 | O10: =Stre!AG23 -> 0 | P10: =Stre!AG13 -> 0 | Q10: =Stre!AG24 -> 0
B11: 4 | C11: Mathematics | H11: =Stre!AG9 -> 6 | I11: =Stre!AG20 -> 0 | J11: =Stre!AG10 -> 0 | K11: =Stre!AG21 -> 0 | L11: =Stre!AG11 -> 0 | M11: =Stre!AG22 -> 0 | N11: =Stre!AG12 -> 0 | O11: =Stre!AG23 -> 0 | P11: =Stre!AG13 -> 0 | Q11: =Stre!AG24 -> 0
B12: 5 | C12: General Science PV 2 | H12: =Stre!AG9 -> 6 | I12: =Stre!AG20 -> 0 | J12: =Stre!AG10 -> 0 | K12: =Stre!AG21 -> 0
B13: 6 | C13: Physical Science | L13: =Stre!AG11 -> 0 | M13: =Stre!AG22 -> 0 | N13: =Stre!AG12 -> 0 | O13: =Stre!AG23 -> 0 | P13: =Stre!AG13 -> 0 | Q13: =Stre!AG24 -> 0
B14: 7 | C14: Biological Science | L14: =Stre!AG11 -> 0 | M14: =Stre!AG22 -> 0 | N14: =Stre!AG12 -> 0 | O14: =Stre!AG23 -> 0 | P14: =Stre!AG13 -> 0 | Q14: =Stre!AG24 -> 0
B15: 8 | C15: Social Studies | H15: =Stre!AG9 -> 6 | I15: =Stre!AG20 -> 0 | J15: =Stre!AG10 -> 0 | K15: =Stre!AG21 -> 0 | L15: =Stre!AG11 -> 0 | M15: =Stre!AG22 -> 0 | N15: =Stre!AG12 -> 0 | O15: =Stre!AG23 -> 0 | P15: =Stre!AG13 -> 0 | Q15: =Stre!AG24 -> 0
B16: 9 | C16: Environmental Education | N16: =Stre!AG12 -> 0 | O16: =Stre!AG23 -> 0 | P16: =Stre!AG13 -> 0 | Q16: =Stre!AG24 -> 0
B18: S. No | C18: Title of the Book | H18: Balance Books in the School | R18: Further Requirment
H19: VI | J19: VII | L19: VIII | N19: IX | P19: X | R19: VI | T19: VII | V19: VIII | X19: IX | Z19: X
H20: TM | I20: EM | J20: TM | K20: EM | L20: TM | M20: EM | N20: TM | O20: EM | P20: TM | Q20: EM | R20: TM | S20: EM | T20: TM | U20: EM | V20: TM | W20: EM | X20: TM | Y20: EM | Z20: TM | AA20: EM
B21: 1 | C21: Telugu Reader | H21: =IF(R8>H8,(R8-H8)," ") ->  | J21: =IF(T8>J8,(T8-J8)," ") ->  | R21: =IF(R8<H8,H8-R8," ") -> 6 | T21: =IF(T8<J8,J8-T8," ") ->  | V21: =IF(V8<L8,L8-V8," ") ->  | X21: =IF(X8<N8,N8-X8," ") ->  | Z21: =IF(Z8<P8,P8-Z8," ") -> 
B22: 2 | C22: Hindi Reader | H22: =IF(R9>H9,(R9-H9)," ") ->  | R22: 6 | T22: =IF(T9<J9,J9-T9," ") -> 
B23: 3 | C23: English Reader | R23: 6 | S23: =IF(S10<I10,I10-S10," ") ->  | U23: =IF(U10<K10,K10-U10," ") ->  | W23: =IF(W10<M10,M10-W10," ") ->  | Y23: =IF(Y10<O10,O10-Y10," ") ->  | AA23: =IF(AA10<Q10,Q10-AA10," ") -> 
B24: 4 | C24: Mathematics | R24: 6
B25: 5 | C25: General Science PV 2 | R25: 6
B26: 6 | C26: Physical Science | V26: =IF(V13<L13,L13-V13," ") ->  | Z26: =IF(Z13<P13,P13-Z13," ") ->  | AA26: =IF(AA13<Q13,Q13-AA13," ") -> 
B27: 7 | C27: Biological Science | Z27: =IF(Z14<P14,P14-Z14," ") -> 
B28: 8 | C28: Social Studies | R28: =IF(R15<H15,H15-R15," ") -> 6 | S28: =IF(S15<I15,I15-S15," ") ->  | T28: =IF(T15<J15,J15-T15," ") ->  | U28: =IF(U15<K15,K15-U15," ") -> 
B29: 9 | C29: Environmental Education
C33: =Data!D8 -> ISLAMPETA
C34: Date: | V34: Headmaster

Sheet Text books Acquittance
C2: =CONCATENATE("ACQUITTANCE FOR THE DISTRIBUTION OF FREE NT BOOKS : ",Data!E3) -> ACQUITTANCE FOR THE DISTRIBUTION OF FREE NT BOOKS : 2011~2012
C3: =NTBooks!B2 -> Z P P HIGH SCHOOL, ISLAMPETA, PEDAGANTYADA MANDAL, VISAKHAPATNAM.
C4: =List!C4 -> Class | D4: =List!D4 -> Medium | E4: Adm No | F4: =List!G4 -> Roll No | G4: =List!H4 -> Name of the Student | I4: =List!J4 -> Sex | J4: =List!M4 -> Code | K4: Father's name | L4: Telugu | M4: Hindi | N4: English | O4: Maths | P4: Science | Q4: PS | R4: BS | S4: Social | T4: Env S | U4: Total | V4: Signature of the Student
A5: 1
A6: =F6 -> 1 | C6: =List!C7 -> 6 | D6: =List!D7 -> TM | E6: =List!F7 -> 123 | F6: =List!G7 -> 1 | G6: =List!H7 -> T | H6: =List!I7 -> Lekhya | I6: =List!J7 -> G | J6: =List!M7 -> OC | K6: =List!R7 -> Rama Kumar | L6: 0
A7: =F7 -> 2 | C7: =List!C8 -> 6 | D7: =List!D8 -> TM | E7: =List!F8 -> 124 | F7: =List!G8 -> 2 | G7: =List!H8 -> A | H7: =List!I8 -> Neeharika | I7: =List!J8 -> G | J7: =List!M8 -> BC-A | K7: =List!R8 -> Ranganadh | L7: 0
A8: 3 | C8: =List!C9 -> 6 | D8: =List!D9 -> TM | E8: =List!F9 -> 125 | F8: =List!G9 -> 3 | G8: =List!H9 -> Sk | H8: =List!I9 -> Neelesh | I8: =List!J9 -> B | J8: =List!M9 -> BC-E | K8: =List!R9 -> 0 | L8: 0
A9: 4 | C9: =List!C10 -> 6 | D9: =List!D10 -> TM | E9: =List!F10 -> 126 | F9: =List!G10 -> 4 | G9: =List!H10 -> Ch | H9: =List!I10 -> Nikhil | I9: =List!J10 -> B | J9: =List!M10 -> SC-B | K9: =List!R10 -> 0 | L9: 0
A10: 5 | C10: =List!C11 -> 6 | D10: =List!D11 -> TM | E10: =List!F11 -> 127 | F10: =List!G11 -> 5 | G10: =List!H11 -> D | H10: =List!I11 -> Anjusha | I10: =List!J11 -> G | J10: =List!M11 -> SC-C | K10: =List!R11 -> 0 | L10: 0
A11: 6 | C11: =List!C12 -> 6 | D11: =List!D12 -> TM | E11: =List!F12 -> 128 | F11: =List!G12 -> 6 | G11: =List!H12 -> E | H11: =List!I12 -> Raja Sekhar | I11: =List!J12 -> B | J11: =List!M12 -> ST | K11: =List!R12 -> 0 | L11: 0
A12: 0 | C12: =List!C13 -> 6 | D12: =List!D13 -> TM | E12: =List!F13 -> 0 | F12: =List!G13 -> 0 | G12: =List!H13 -> 0 | H12: =List!I13 -> 0 | I12: =List!J13 -> 0 | J12: =List!M13 -> 0 | K12: =List!R13 -> 0 | L12: 0
A13: 0 | C13: =List!C14 -> 6 | D13: =List!D14 -> TM | E13: =List!F14 -> 0 | F13: =List!G14 -> 0 | G13: =List!H14 -> 0 | H13: =List!I14 -> 0 | I13: =List!J14 -> 0 | J13: =List!M14 -> 0 | K13: =List!R14 -> 0 | L13: 0
A14: 0 | C14: =List!C15 -> 6 | D14: =List!D15 -> TM | E14: =List!F15 -> 0 | F14: =List!G15 -> 0 | G14: =List!H15 -> 0 | H14: =List!I15 -> 0 | I14: =List!J15 -> 0 | J14: =List!M15 -> 0 | K14: =List!R15 -> 0 | L14: 0
A15: 0 | C15: =List!C16 -> 6 | D15: =List!D16 -> TM | E15: =List!F16 -> 0 | F15: =List!G16 -> 0 | G15: =List!H16 -> 0 | H15: =List!I16 -> 0 | I15: =List!J16 -> 0 | J15: =List!M16 -> 0 | K15: =List!R16 -> 0 | L15: 0
A16: 0 | C16: =List!C17 -> 6 | D16: =List!D17 -> TM | E16: =List!F17 -> 0 | F16: =List!G17 -> 0 | G16: =List!H17 -> 0 | H16: =List!I17 -> 0 | I16: =List!J17 -> 0 | J16: =List!M17 -> 0 | K16: =List!R17 -> 0 | L16: 0
A17: 0 | C17: =List!C18 -> 6 | D17: =List!D18 -> TM | E17: =List!F18 -> 0 | F17: =List!G18 -> 0 | G17: =List!H18 -> 0 | H17: =List!I18 -> 0 | I17: =List!J18 -> 0 | J17: =List!M18 -> 0 | K17: =List!R18 -> 0 | L17: 0
A18: 0 | C18: =List!C19 -> 6 | D18: =List!D19 -> TM | E18: =List!F19 -> 0 | F18: =List!G19 -> 0 | G18: =List!H19 -> 0 | H18: =List!I19 -> 0 | I18: =List!J19 -> 0 | J18: =List!M19 -> 0 | K18: =List!R19 -> 0 | L18: 0
A19: 0 | C19: =List!C20 -> 6 | D19: =List!D20 -> TM | E19: =List!F20 -> 0 | F19: =List!G20 -> 0 | G19: =List!H20 -> 0 | H19: =List!I20 -> 0 | I19: =List!J20 -> 0 | J19: =List!M20 -> 0 | K19: =List!R20 -> 0 | L19: 0
A20: 0 | C20: =List!C21 -> 6 | D20: =List!D21 -> TM | E20: =List!F21 -> 0 | F20: =List!G21 -> 0 | G20: =List!H21 -> 0 | H20: =List!I21 -> 0 | I20: =List!J21 -> 0 | J20: =List!M21 -> 0 | K20: =List!R21 -> 0 | L20: 0
A21: 0 | C21: =List!C22 -> 6 | D21: =List!D22 -> TM | E21: =List!F22 -> 0 | F21: =List!G22 -> 0 | G21: =List!H22 -> 0 | H21: =List!I22 -> 0 | I21: =List!J22 -> 0 | J21: =List!M22 -> 0 | K21: =List!R22 -> 0 | L21: 0
A22: 0 | C22: =List!C23 -> 6 | D22: =List!D23 -> TM | E22: =List!F23 -> 0 | F22: =List!G23 -> 0 | G22: =List!H23 -> 0 | H22: =List!I23 -> 0 | I22: =List!J23 -> 0 | J22: =List!M23 -> 0 | K22: =List!R23 -> 0 | L22: 0
A23: 0 | C23: =List!C24 -> 6 | D23: =List!D24 -> TM | E23: =List!F24 -> 0 | F23: =List!G24 -> 0 | G23: =List!H24 -> 0 | H23: =List!I24 -> 0 | I23: =List!J24 -> 0 | J23: =List!M24 -> 0 | K23: =List!R24 -> 0 | L23: 0
A24: 0 | C24: =List!C25 -> 6 | D24: =List!D25 -> TM | E24: =List!F25 -> 0 | F24: =List!G25 -> 0 | G24: =List!H25 -> 0 | H24: =List!I25 -> 0 | I24: =List!J25 -> 0 | J24: =List!M25 -> 0 | K24: =List!R25 -> 0 | L24: 0
A25: 0 | C25: =List!C26 -> 6 | D25: =List!D26 -> TM | E25: =List!F26 -> 0 | F25: =List!G26 -> 0 | G25: =List!H26 -> 0 | H25: =List!I26 -> 0 | I25: =List!J26 -> 0 | J25: =List!M26 -> 0 | K25: =List!R26 -> 0 | L25: 0
A26: 0 | C26: =List!C27 -> 6 | D26: =List!D27 -> TM | E26: =List!F27 -> 0 | F26: =List!G27 -> 0 | G26: =List!H27 -> 0 | H26: =List!I27 -> 0 | I26: =List!J27 -> 0 | J26: =List!M27 -> 0 | K26: =List!R27 -> 0 | L26: 0
A27: 0 | C27: =List!C28 -> 6 | D27: =List!D28 -> TM | E27: =List!F28 -> 0 | F27: =List!G28 -> 0 | G27: =List!H28 -> 0 | H27: =List!I28 -> 0 | I27: =List!J28 -> 0 | J27: =List!M28 -> 0 | K27: =List!R28 -> 0 | L27: 0
A28: 0 | C28: =List!C29 -> 6 | D28: =List!D29 -> TM | E28: =List!F29 -> 0 | F28: =List!G29 -> 0 | G28: =List!H29 -> 0 | H28: =List!I29 -> 0 | I28: =List!J29 -> 0 | J28: =List!M29 -> 0 | K28: =List!R29 -> 0 | L28: 0
A29: 0 | C29: =List!C30 -> 6 | D29: =List!D30 -> TM | E29: =List!F30 -> 0 | F29: =List!G30 -> 0 | G29: =List!H30 -> 0 | H29: =List!I30 -> 0 | I29: =List!J30 -> 0 | J29: =List!M30 -> 0 | K29: =List!R30 -> 0 | L29: 0
A30: 0 | C30: =List!C31 -> 6 | D30: =List!D31 -> TM | E30: =List!F31 -> 0 | F30: =List!G31 -> 0 | G30: =List!H31 -> 0 | H30: =List!I31 -> 0 | I30: =List!J31 -> 0 | J30: =List!M31 -> 0 | K30: =List!R31 -> 0 | L30: 0
A31: 0 | C31: =List!C32 -> 6 | D31: =List!D32 -> TM | E31: =List!F32 -> 0 | F31: =List!G32 -> 0 | G31: =List!H32 -> 0 | H31: =List!I32 -> 0 | I31: =List!J32 -> 0 | J31: =List!M32 -> 0 | K31: =List!R32 -> 0 | L31: 0
A32: 0 | C32: =List!C33 -> 6 | D32: =List!D33 -> TM | E32: =List!F33 -> 0 | F32: =List!G33 -> 0 | G32: =List!H33 -> 0 | H32: =List!I33 -> 0 | I32: =List!J33 -> 0 | J32: =List!M33 -> 0 | K32: =List!R33 -> 0 | L32: 0
A33: 0 | C33: =List!C34 -> 6 | D33: =List!D34 -> TM | E33: =List!F34 -> 0 | F33: =List!G34 -> 0 | G33: =List!H34 -> 0 | H33: =List!I34 -> 0 | I33: =List!J34 -> 0 | J33: =List!M34 -> 0 | K33: =List!R34 -> 0 | L33: 0
A34: 0 | C34: =List!C35 -> 6 | D34: =List!D35 -> TM | E34: =List!F35 -> 0 | F34: =List!G35 -> 0 | G34: =List!H35 -> 0 | H34: =List!I35 -> 0 | I34: =List!J35 -> 0 | J34: =List!M35 -> 0 | K34: =List!R35 -> 0 | L34: 0
A35: 0 | C35: =List!C36 -> 6 | D35: =List!D36 -> TM | E35: =List!F36 -> 0 | F35: =List!G36 -> 0 | G35: =List!H36 -> 0 | H35: =List!I36 -> 0 | I35: =List!J36 -> 0 | J35: =List!M36 -> 0 | K35: =List!R36 -> 0 | L35: 0
A36: 0 | C36: =List!C37 -> 6 | D36: =List!D37 -> TM | E36: =List!F37 -> 0 | F36: =List!G37 -> 0 | G36: =List!H37 -> 0 | H36: =List!I37 -> 0 | I36: =List!J37 -> 0 | J36: =List!M37 -> 0 | K36: =List!R37 -> 0 | L36: 0
A37: 0 | C37: =List!C38 -> 6 | D37: =List!D38 -> TM | E37: =List!F38 -> 0 | F37: =List!G38 -> 0 | G37: =List!H38 -> 0 | H37: =List!I38 -> 0 | I37: =List!J38 -> 0 | J37: =List!M38 -> 0 | K37: =List!R38 -> 0 | L37: 0
A38: 0 | C38: =List!C39 -> 6 | D38: =List!D39 -> TM | E38: =List!F39 -> 0 | F38: =List!G39 -> 0 | G38: =List!H39 -> 0 | H38: =List!I39 -> 0 | I38: =List!J39 -> 0 | J38: =List!M39 -> 0 | K38: =List!R39 -> 0 | L38: 0
A39: 0 | C39: =List!C40 -> 6 | D39: =List!D40 -> TM | E39: =List!F40 -> 0 | F39: =List!G40 -> 0 | G39: =List!H40 -> 0 | H39: =List!I40 -> 0 | I39: =List!J40 -> 0 | J39: =List!M40 -> 0 | K39: =List!R40 -> 0 | L39: 0
A40: 0 | C40: =List!C41 -> 6 | D40: =List!D41 -> TM | E40: =List!F41 -> 0 | F40: =List!G41 -> 0 | G40: =List!H41 -> 0 | H40: =List!I41 -> 0 | I40: =List!J41 -> 0 | J40: =List!M41 -> 0 | K40: =List!R41 -> 0 | L40: 0
A41: 0 | C41: =List!C42 -> 6 | D41: =List!D42 -> TM | E41: =List!F42 -> 0 | F41: =List!G42 -> 0 | G41: =List!H42 -> 0 | H41: =List!I42 -> 0 | I41: =List!J42 -> 0 | J41: =List!M42 -> 0 | K41: =List!R42 -> 0 | L41: 0
A42: 0 | C42: =List!C43 -> 6 | D42: =List!D43 -> TM | E42: =List!F43 -> 0 | F42: =List!G43 -> 0 | G42: =List!H43 -> 0 | H42: =List!I43 -> 0 | I42: =List!J43 -> 0 | J42: =List!M43 -> 0 | K42: =List!R43 -> 0 | L42: 0
A43: 0 | C43: =List!C44 -> 6 | D43: =List!D44 -> TM | E43: =List!F44 -> 0 | F43: =List!G44 -> 0 | G43: =List!H44 -> 0 | H43: =List!I44 -> 0 | I43: =List!J44 -> 0 | J43: =List!M44 -> 0 | K43: =List!R44 -> 0 | L43: 0
A44: 0 | C44: =List!C45 -> 6 | D44: =List!D45 -> TM | E44: =List!F45 -> 0 | F44: =List!G45 -> 0 | G44: =List!H45 -> 0 | H44: =List!I45 -> 0 | I44: =List!J45 -> 0 | J44: =List!M45 -> 0 | K44: =List!R45 -> 0 | L44: 0
A45: 0 | C45: =List!C46 -> 6 | D45: =List!D46 -> TM | E45: =List!F46 -> 0 | F45: =List!G46 -> 0 | G45: =List!H46 -> 0 | H45: =List!I46 -> 0 | I45: =List!J46 -> 0 | J45: =List!M46 -> 0 | K45: =List!R46 -> 0 | L45: 0
A46: 0 | C46: =List!C47 -> 6 | D46: =List!D47 -> TM | E46: =List!F47 -> 0 | F46: =List!G47 -> 0 | G46: =List!H47 -> 0 | H46: =List!I47 -> 0 | I46: =List!J47 -> 0 | J46: =List!M47 -> 0 | K46: =List!R47 -> 0 | L46: 0
A47: 0 | C47: =List!C48 -> 6 | D47: =List!D48 -> TM | E47: =List!F48 -> 0 | F47: =List!G48 -> 0 | G47: =List!H48 -> 0 | H47: =List!I48 -> 0 | I47: =List!J48 -> 0 | J47: =List!M48 -> 0 | K47: =List!R48 -> 0 | L47: 0
A48: 0 | C48: =List!C49 -> 6 | D48: =List!D49 -> TM | E48: =List!F49 -> 0 | F48: =List!G49 -> 0 | G48: =List!H49 -> 0 | H48: =List!I49 -> 0 | I48: =List!J49 -> 0 | J48: =List!M49 -> 0 | K48: =List!R49 -> 0 | L48: 0
A49: 0 | C49: =List!C50 -> 6 | D49: =List!D50 -> TM | E49: =List!F50 -> 0 | F49: =List!G50 -> 0 | G49: =List!H50 -> 0 | H49: =List!I50 -> 0 | I49: =List!J50 -> 0 | J49: =List!M50 -> 0 | K49: =List!R50 -> 0 | L49: 0
A50: 0 | C50: =List!C51 -> 6 | D50: =List!D51 -> TM | E50: =List!F51 -> 0 | F50: =List!G51 -> 0 | G50: =List!H51 -> 0 | H50: =List!I51 -> 0 | I50: =List!J51 -> 0 | J50: =List!M51 -> 0 | K50: =List!R51 -> 0 | L50: 0
A51: 0 | C51: =List!C52 -> 6 | D51: =List!D52 -> TM | E51: =List!F52 -> 0 | F51: =List!G52 -> 0 | G51: =List!H52 -> 0 | H51: =List!I52 -> 0 | I51: =List!J52 -> 0 | J51: =List!M52 -> 0 | K51: =List!R52 -> 0 | L51: 0
A52: 0 | C52: =List!C53 -> 6 | D52: =List!D53 -> TM | E52: =List!F53 -> 0 | F52: =List!G53 -> 0 | G52: =List!H53 -> 0 | H52: =List!I53 -> 0 | I52: =List!J53 -> 0 | J52: =List!M53 -> 0 | K52: =List!R53 -> 0 | L52: 0
A53: 0 | C53: =List!C54 -> 6 | D53: =List!D54 -> TM | E53: =List!F54 -> 0 | F53: =List!G54 -> 0 | G53: =List!H54 -> 0 | H53: =List!I54 -> 0 | I53: =List!J54 -> 0 | J53: =List!M54 -> 0 | K53: =List!R54 -> 0 | L53: 0
A54: 0 | C54: =List!C55 -> 6 | D54: =List!D55 -> TM | E54: =List!F55 -> 0 | F54: =List!G55 -> 0 | G54: =List!H55 -> 0 | H54: =List!I55 -> 0 | I54: =List!J55 -> 0 | J54: =List!M55 -> 0 | K54: =List!R55 -> 0 | L54: 0
A55: 0 | C55: =List!C56 -> 6 | D55: =List!D56 -> TM | E55: =List!F56 -> 0 | F55: =List!G56 -> 0 | G55: =List!H56 -> 0 | H55: =List!I56 -> 0 | I55: =List!J56 -> 0 | J55: =List!M56 -> 0 | K55: =List!R56 -> 0 | L55: 0
A56: 0 | C56: =List!C57 -> 6 | D56: =List!D57 -> TM | E56: =List!F57 -> 0 | F56: =List!G57 -> 0 | G56: =List!H57 -> 0 | H56: =List!I57 -> 0 | I56: =List!J57 -> 0 | J56: =List!M57 -> 0 | K56: =List!R57 -> 0 | L56: 0
A57: 0 | C57: =List!C58 -> 6 | D57: =List!D58 -> TM | E57: =List!F58 -> 0 | F57: =List!G58 -> 0 | G57: =List!H58 -> 0 | H57: =List!I58 -> 0 | I57: =List!J58 -> 0 | J57: =List!M58 -> 0 | K57: =List!R58 -> 0 | L57: 0
A58: 0 | C58: =List!C59 -> 6 | D58: =List!D59 -> TM | E58: =List!F59 -> 0 | F58: =List!G59 -> 0 | G58: =List!H59 -> 0 | H58: =List!I59 -> 0 | I58: =List!J59 -> 0 | J58: =List!M59 -> 0 | K58: =List!R59 -> 0 | L58: 0
A59: 0 | C59: =List!C60 -> 6 | D59: =List!D60 -> TM | E59: =List!F60 -> 0 | F59: =List!G60 -> 0 | G59: =List!H60 -> 0 | H59: =List!I60 -> 0 | I59: =List!J60 -> 0 | J59: =List!M60 -> 0 | K59: =List!R60 -> 0 | L59: 0
A60: 0 | C60: =List!C61 -> 6 | D60: =List!D61 -> TM | E60: =List!F61 -> 0 | F60: =List!G61 -> 0 | G60: =List!H61 -> 0 | H60: =List!I61 -> 0 | I60: =List!J61 -> 0 | J60: =List!M61 -> 0 | K60: =List!R61 -> 0 | L60: 0
A61: 0 | C61: =List!C62 -> 6 | D61: =List!D62 -> TM | E61: =List!F62 -> 0 | F61: =List!G62 -> 0 | G61: =List!H62 -> 0 | H61: =List!I62 -> 0 | I61: =List!J62 -> 0 | J61: =List!M62 -> 0 | K61: =List!R62 -> 0 | L61: 0
A62: 0 | C62: =List!C63 -> 6 | D62: =List!D63 -> TM | E62: =List!F63 -> 0 | F62: =List!G63 -> 0 | G62: =List!H63 -> 0 | H62: =List!I63 -> 0 | I62: =List!J63 -> 0 | J62: =List!M63 -> 0 | K62: =List!R63 -> 0 | L62: 0
A63: 0 | C63: =List!C64 -> 6 | D63: =List!D64 -> TM | E63: =List!F64 -> 0 | F63: =List!G64 -> 0 | G63: =List!H64 -> 0 | H63: =List!I64 -> 0 | I63: =List!J64 -> 0 | J63: =List!M64 -> 0 | K63: =List!R64 -> 0 | L63: 0
A64: 0 | C64: =List!C65 -> 6 | D64: =List!D65 -> TM | E64: =List!F65 -> 0 | F64: =List!G65 -> 0 | G64: =List!H65 -> 0 | H64: =List!I65 -> 0 | I64: =List!J65 -> 0 | J64: =List!M65 -> 0 | K64: =List!R65 -> 0 | L64: 0
A65: 0 | C65: =List!C66 -> 6 | D65: =List!D66 -> TM | E65: =List!F66 -> 0 | F65: =List!G66 -> 0 | G65: =List!H66 -> 0 | H65: =List!I66 -> 0 | I65: =List!J66 -> 0 | J65: =List!M66 -> 0 | K65: =List!R66 -> 0 | L65: 0
A66: 0 | C66: =List!C67 -> 6 | D66: =List!D67 -> TM | E66: =List!F67 -> 0 | F66: =List!G67 -> 0 | G66: =List!H67 -> 0 | H66: =List!I67 -> 0 | I66: =List!J67 -> 0 | J66: =List!M67 -> 0 | K66: =List!R67 -> 0 | L66: 0
A67: 0 | C67: =List!C68 -> 6 | D67: =List!D68 -> TM | E67: =List!F68 -> 0 | F67: =List!G68 -> 0 | G67: =List!H68 -> 0 | H67: =List!I68 -> 0 | I67: =List!J68 -> 0 | J67: =List!M68 -> 0 | K67: =List!R68 -> 0 | L67: 0
A68: 0 | C68: =List!C69 -> 6 | D68: =List!D69 -> TM | E68: =List!F69 -> 0 | F68: =List!G69 -> 0 | G68: =List!H69 -> 0 | H68: =List!I69 -> 0 | I68: =List!J69 -> 0 | J68: =List!M69 -> 0 | K68: =List!R69 -> 0 | L68: 0
A69: 0 | C69: =List!C70 -> 6 | D69: =List!D70 -> TM | E69: =List!F70 -> 0 | F69: =List!G70 -> 0 | G69: =List!H70 -> 0 | H69: =List!I70 -> 0 | I69: =List!J70 -> 0 | J69: =List!M70 -> 0 | K69: =List!R70 -> 0 | L69: 0
A70: 0 | C70: =List!C71 -> 6 | D70: =List!D71 -> TM | E70: =List!F71 -> 0 | F70: =List!G71 -> 0 | G70: =List!H71 -> 0 | H70: =List!I71 -> 0 | I70: =List!J71 -> 0 | J70: =List!M71 -> 0 | K70: =List!R71 -> 0 | L70: 0
A71: =F71 -> 0 | C71: =List!C72 -> 6 | D71: =List!D72 -> TM | E71: =List!F72 -> 0 | F71: =List!G72 -> 0 | G71: =List!H72 -> 0 | H71: =List!I72 -> 0 | I71: =List!J72 -> 0 | J71: =List!M72 -> 0 | K71: =List!R72 -> 0 | L71: 0
A72: 0 | C72: =List!C73 -> 6 | D72: =List!D73 -> TM | E72: =List!F73 -> 0 | F72: =List!G73 -> 0 | G72: =List!H73 -> 0 | H72: =List!I73 -> 0 | I72: =List!J73 -> 0 | J72: =List!M73 -> 0 | K72: =List!R73 -> 0 | L72: 0
A73: 0 | C73: =List!C74 -> 6 | D73: =List!D74 -> TM | E73: =List!F74 -> 0 | F73: =List!G74 -> 0 | G73: =List!H74 -> 0 | H73: =List!I74 -> 0 | I73: =List!J74 -> 0 | J73: =List!M74 -> 0 | K73: =List!R74 -> 0 | L73: 0
A74: 0 | C74: =List!C75 -> 6 | D74: =List!D75 -> TM | E74: =List!F75 -> 0 | F74: =List!G75 -> 0 | G74: =List!H75 -> 0 | H74: =List!I75 -> 0 | I74: =List!J75 -> 0 | J74: =List!M75 -> 0 | K74: =List!R75 -> 0 | L74: 0
A75: 0 | C75: =List!C76 -> 6 | D75: =List!D76 -> TM | E75: =List!F76 -> 0 | F75: =List!G76 -> 0 | G75: =List!H76 -> 0 | H75: =List!I76 -> 0 | I75: =List!J76 -> 0 | J75: =List!M76 -> 0 | K75: =List!R76 -> 0 | L75: 0
A76: 0 | C76: =List!C77 -> 6 | D76: =List!D77 -> TM | E76: =List!F77 -> 0 | F76: =List!G77 -> 0 | G76: =List!H77 -> 0 | H76: =List!I77 -> 0 | I76: =List!J77 -> 0 | J76: =List!M77 -> 0 | K76: =List!R77 -> 0 | L76: 0
A77: 0 | C77: =List!C78 -> 6 | D77: =List!D78 -> TM | E77: =List!F78 -> 0 | F77: =List!G78 -> 0 | G77: =List!H78 -> 0 | H77: =List!I78 -> 0 | I77: =List!J78 -> 0 | J77: =List!M78 -> 0 | K77: =List!R78 -> 0 | L77: 0
A78: 0 | C78: =List!C79 -> 6 | D78: =List!D79 -> TM | E78: =List!F79 -> 0 | F78: =List!G79 -> 0 | G78: =List!H79 -> 0 | H78: =List!I79 -> 0 | I78: =List!J79 -> 0 | J78: =List!M79 -> 0 | K78: =List!R79 -> 0 | L78: 0
A79: 0 | C79: =List!C80 -> 6 | D79: =List!D80 -> TM | E79: =List!F80 -> 0 | F79: =List!G80 -> 0 | G79: =List!H80 -> 0 | H79: =List!I80 -> 0 | I79: =List!J80 -> 0 | J79: =List!M80 -> 0 | K79: =List!R80 -> 0 | L79: 0
A80: 0 | C80: =List!C81 -> 6 | D80: =List!D81 -> TM | E80: =List!F81 -> 0 | F80: =List!G81 -> 0 | G80: =List!H81 -> 0 | H80: =List!I81 -> 0 | I80: =List!J81 -> 0 | J80: =List!M81 -> 0 | K80: =List!R81 -> 0 | L80: 0
A81: 0 | C81: =List!C82 -> 6 | D81: =List!D82 -> TM | E81: =List!F82 -> 0 | F81: =List!G82 -> 0 | G81: =List!H82 -> 0 | H81: =List!I82 -> 0 | I81: =List!J82 -> 0 | J81: =List!M82 -> 0 | K81: =List!R82 -> 0 | L81: 0
A82: 0 | C82: =List!C83 -> 6 | D82: =List!D83 -> TM | E82: =List!F83 -> 0 | F82: =List!G83 -> 0 | G82: =List!H83 -> 0 | H82: =List!I83 -> 0 | I82: =List!J83 -> 0 | J82: =List!M83 -> 0 | K82: =List!R83 -> 0 | L82: 0
A83: 0 | C83: =List!C84 -> 6 | D83: =List!D84 -> TM | E83: =List!F84 -> 0 | F83: =List!G84 -> 0 | G83: =List!H84 -> 0 | H83: =List!I84 -> 0 | I83: =List!J84 -> 0 | J83: =List!M84 -> 0 | K83: =List!R84 -> 0 | L83: 0
A84: 0 | C84: =List!C85 -> 6 | D84: =List!D85 -> TM | E84: =List!F85 -> 0 | F84: =List!G85 -> 0 | G84: =List!H85 -> 0 | H84: =List!I85 -> 0 | I84: =List!J85 -> 0 | J84: =List!M85 -> 0 | K84: =List!R85 -> 0 | L84: 0
A85: 0 | C85: =List!C86 -> 6 | D85: =List!D86 -> TM | E85: =List!F86 -> 0 | F85: =List!G86 -> 0 | G85: =List!H86 -> 0 | H85: =List!I86 -> 0 | I85: =List!J86 -> 0 | J85: =List!M86 -> 0 | K85: =List!R86 -> 0 | L85: 0
A86: 0 | C86: =List!C87 -> 6 | D86: =List!D87 -> TM | E86: =List!F87 -> 0 | F86: =List!G87 -> 0 | G86: =List!H87 -> 0 | H86: =List!I87 -> 0 | I86: =List!J87 -> 0 | J86: =List!M87 -> 0 | K86: =List!R87 -> 0 | L86: 0
A87: 0 | C87: =List!C88 -> 6 | D87: =List!D88 -> TM | E87: =List!F88 -> 0 | F87: =List!G88 -> 0 | G87: =List!H88 -> 0 | H87: =List!I88 -> 0 | I87: =List!J88 -> 0 | J87: =List!M88 -> 0 | K87: =List!R88 -> 0 | L87: 0
A88: 0 | C88: =List!C89 -> 6 | D88: =List!D89 -> TM | E88: =List!F89 -> 0 | F88: =List!G89 -> 0 | G88: =List!H89 -> 0 | H88: =List!I89 -> 0 | I88: =List!J89 -> 0 | J88: =List!M89 -> 0 | K88: =List!R89 -> 0 | L88: 0
A89: 0 | C89: =List!C90 -> 6 | D89: =List!D90 -> TM | E89: =List!F90 -> 0 | F89: =List!G90 -> 0 | G89: =List!H90 -> 0 | H89: =List!I90 -> 0 | I89: =List!J90 -> 0 | J89: =List!M90 -> 0 | K89: =List!R90 -> 0 | L89: 0
A90: 0 | C90: =List!C91 -> 6 | D90: =List!D91 -> TM | E90: =List!F91 -> 0 | F90: =List!G91 -> 0 | G90: =List!H91 -> 0 | H90: =List!I91 -> 0 | I90: =List!J91 -> 0 | J90: =List!M91 -> 0 | K90: =List!R91 -> 0 | L90: 0
A91: 0 | C91: =List!C92 -> 6 | D91: =List!D92 -> TM | E91: =List!F92 -> 0 | F91: =List!G92 -> 0 | G91: =List!H92 -> 0 | H91: =List!I92 -> 0 | I91: =List!J92 -> 0 | J91: =List!M92 -> 0 | K91: =List!R92 -> 0 | L91: 0
A92: 0 | C92: =List!C93 -> 6 | D92: =List!D93 -> TM | E92: =List!F93 -> 0 | F92: =List!G93 -> 0 | G92: =List!H93 -> 0 | H92: =List!I93 -> 0 | I92: =List!J93 -> 0 | J92: =List!M93 -> 0 | K92: =List!R93 -> 0 | L92: 0
A93: 0 | C93: =List!C94 -> 6 | D93: =List!D94 -> TM | E93: =List!F94 -> 0 | F93: =List!G94 -> 0 | G93: =List!H94 -> 0 | H93: =List!I94 -> 0 | I93: =List!J94 -> 0 | J93: =List!M94 -> 0 | K93: =List!R94 -> 0 | L93: 0
A94: 0 | C94: =List!C95 -> 6 | D94: =List!D95 -> TM | E94: =List!F95 -> 0 | F94: =List!G95 -> 0 | G94: =List!H95 -> 0 | H94: =List!I95 -> 0 | I94: =List!J95 -> 0 | J94: =List!M95 -> 0 | K94: =List!R95 -> 0 | L94: 0
A95: 0 | C95: =List!C96 -> 6 | D95: =List!D96 -> TM | E95: =List!F96 -> 0 | F95: =List!G96 -> 0 | G95: =List!H96 -> 0 | H95: =List!I96 -> 0 | I95: =List!J96 -> 0 | J95: =List!M96 -> 0 | K95: =List!R96 -> 0 | L95: 0
A96: 0 | C96: =List!C97 -> 6 | D96: =List!D97 -> TM | E96: =List!F97 -> 0 | F96: =List!G97 -> 0 | G96: =List!H97 -> 0 | H96: =List!I97 -> 0 | I96: =List!J97 -> 0 | J96: =List!M97 -> 0 | K96: =List!R97 -> 0 | L96: 0
A97: 0 | C97: =List!C98 -> 6 | D97: =List!D98 -> TM | E97: =List!F98 -> 0 | F97: =List!G98 -> 0 | G97: =List!H98 -> 0 | H97: =List!I98 -> 0 | I97: =List!J98 -> 0 | J97: =List!M98 -> 0 | K97: =List!R98 -> 0 | L97: 0
A98: 0 | C98: =List!C99 -> 6 | D98: =List!D99 -> TM | E98: =List!F99 -> 0 | F98: =List!G99 -> 0 | G98: =List!H99 -> 0 | H98: =List!I99 -> 0 | I98: =List!J99 -> 0 | J98: =List!M99 -> 0 | K98: =List!R99 -> 0 | L98: 0
A99: 0 | C99: =List!C100 -> 6 | D99: =List!D100 -> TM | E99: =List!F100 -> 0 | F99: =List!G100 -> 0 | G99: =List!H100 -> 0 | H99: =List!I100 -> 0 | I99: =List!J100 -> 0 | J99: =List!M100 -> 0 | K99: =List!R100 -> 0 | L99: 0
A100: 0 | C100: =List!C101 -> 6 | D100: =List!D101 -> TM | E100: =List!F101 -> 0 | F100: =List!G101 -> 0 | G100: =List!H101 -> 0 | H100: =List!I101 -> 0 | I100: =List!J101 -> 0 | J100: =List!M101 -> 0 | K100: =List!R101 -> 0 | L100: 0
A101: 0 | C101: =List!C102 -> 6 | D101: =List!D102 -> TM | E101: =List!F102 -> 0 | F101: =List!G102 -> 0 | G101: =List!H102 -> 0 | H101: =List!I102 -> 0 | I101: =List!J102 -> 0 | J101: =List!M102 -> 0 | K101: =List!R102 -> 0 | L101: 0
A102: 0 | C102: =List!C103 -> 6 | D102: =List!D103 -> TM | E102: =List!F103 -> 0 | F102: =List!G103 -> 0 | G102: =List!H103 -> 0 | H102: =List!I103 -> 0 | I102: =List!J103 -> 0 | J102: =List!M103 -> 0 | K102: =List!R103 -> 0 | L102: 0
A103: 0 | C103: =List!C104 -> 6 | D103: =List!D104 -> TM | E103: =List!F104 -> 0 | F103: =List!G104 -> 0 | G103: =List!H104 -> 0 | H103: =List!I104 -> 0 | I103: =List!J104 -> 0 | J103: =List!M104 -> 0 | K103: =List!R104 -> 0 | L103: 0
A104: 0 | C104: =List!C105 -> 6 | D104: =List!D105 -> TM | E104: =List!F105 -> 0 | F104: =List!G105 -> 0 | G104: =List!H105 -> 0 | H104: =List!I105 -> 0 | I104: =List!J105 -> 0 | J104: =List!M105 -> 0 | K104: =List!R105 -> 0 | L104: 0
A105: 0 | C105: =List!C106 -> 6 | D105: =List!D106 -> TM | E105: =List!F106 -> 0 | F105: =List!G106 -> 0 | G105: =List!H106 -> 0 | H105: =List!I106 -> 0 | I105: =List!J106 -> 0 | J105: =List!M106 -> 0 | K105: =List!R106 -> 0 | L105: 0
A106: 0 | C106: =List!C107 -> 6 | D106: =List!D107 -> TM | E106: =List!F107 -> 0 | F106: =List!G107 -> 0 | G106: =List!H107 -> 0 | H106: =List!I107 -> 0 | I106: =List!J107 -> 0 | J106: =List!M107 -> 0 | K106: =List!R107 -> 0 | L106: 0
A107: 0 | C107: =List!C108 -> 6 | D107: =List!D108 -> TM | E107: =List!F108 -> 0 | F107: =List!G108 -> 0 | G107: =List!H108 -> 0 | H107: =List!I108 -> 0 | I107: =List!J108 -> 0 | J107: =List!M108 -> 0 | K107: =List!R108 -> 0 | L107: 0
A108: 0 | C108: =List!C109 -> 6 | D108: =List!D109 -> TM | E108: =List!F109 -> 0 | F108: =List!G109 -> 0 | G108: =List!H109 -> 0 | H108: =List!I109 -> 0 | I108: =List!J109 -> 0 | J108: =List!M109 -> 0 | K108: =List!R109 -> 0 | L108: 0
A109: 0 | C109: =List!C110 -> 6 | D109: =List!D110 -> TM | E109: =List!F110 -> 0 | F109: =List!G110 -> 0 | G109: =List!H110 -> 0 | H109: =List!I110 -> 0 | I109: =List!J110 -> 0 | J109: =List!M110 -> 0 | K109: =List!R110 -> 0 | L109: 0
A110: 0 | C110: =List!C111 -> 6 | D110: =List!D111 -> TM | E110: =List!F111 -> 0 | F110: =List!G111 -> 0 | G110: =List!H111 -> 0 | H110: =List!I111 -> 0 | I110: =List!J111 -> 0 | J110: =List!M111 -> 0 | K110: =List!R111 -> 0 | L110: 0
A111: 0 | C111: =List!C112 -> 6 | D111: =List!D112 -> TM | E111: =List!F112 -> 0 | F111: =List!G112 -> 0 | G111: =List!H112 -> 0 | H111: =List!I112 -> 0 | I111: =List!J112 -> 0 | J111: =List!M112 -> 0 | K111: =List!R112 -> 0 | L111: 0
A112: 0 | C112: =List!C113 -> 6 | D112: =List!D113 -> TM | E112: =List!F113 -> 0 | F112: =List!G113 -> 0 | G112: =List!H113 -> 0 | H112: =List!I113 -> 0 | I112: =List!J113 -> 0 | J112: =List!M113 -> 0 | K112: =List!R113 -> 0 | L112: 0
A113: 0 | C113: =List!C114 -> 6 | D113: =List!D114 -> TM | E113: =List!F114 -> 0 | F113: =List!G114 -> 0 | G113: =List!H114 -> 0 | H113: =List!I114 -> 0 | I113: =List!J114 -> 0 | J113: =List!M114 -> 0 | K113: =List!R114 -> 0 | L113: 0
A114: 0 | C114: =List!C115 -> 6 | D114: =List!D115 -> TM | E114: =List!F115 -> 0 | F114: =List!G115 -> 0 | G114: =List!H115 -> 0 | H114: =List!I115 -> 0 | I114: =List!J115 -> 0 | J114: =List!M115 -> 0 | K114: =List!R115 -> 0 | L114: 0
A115: 0 | C115: =List!C116 -> 6 | D115: =List!D116 -> TM | E115: =List!F116 -> 0 | F115: =List!G116 -> 0 | G115: =List!H116 -> 0 | H115: =List!I116 -> 0 | I115: =List!J116 -> 0 | J115: =List!M116 -> 0 | K115: =List!R116 -> 0 | L115: 0
A116: =A6 -> 1 | U116: Signature of the Class Teacher:
A117: =F117 -> 0 | C117: =List!C118 -> 6 | D117: =List!D118 -> EM | E117: =List!F118 -> 0 | F117: =List!G118 -> 0 | G117: =List!H118 -> 0 | H117: =List!I118 -> 0 | I117: =List!J118 -> 0 | J117: =List!M118 -> 0 | K117: =List!R118 -> 0 | L117: 0
A118: 0 | C118: =List!C119 -> 6 | D118: =List!D119 -> EM | E118: =List!F119 -> 0 | F118: =List!G119 -> 0 | G118: =List!H119 -> 0 | H118: =List!I119 -> 0 | I118: =List!J119 -> 0 | J118: =List!M119 -> 0 | K118: =List!R119 -> 0 | L118: 0
A119: 0 | C119: =List!C120 -> 6 | D119: =List!D120 -> EM | E119: =List!F120 -> 0 | F119: =List!G120 -> 0 | G119: =List!H120 -> 0 | H119: =List!I120 -> 0 | I119: =List!J120 -> 0 | J119: =List!M120 -> 0 | K119: =List!R120 -> 0 | L119: 0
A120: 0 | C120: =List!C121 -> 6 | D120: =List!D121 -> EM | E120: =List!F121 -> 0 | F120: =List!G121 -> 0 | G120: =List!H121 -> 0 | H120: =List!I121 -> 0 | I120: =List!J121 -> 0 | J120: =List!M121 -> 0 | K120: =List!R121 -> 0 | L120: 0
A121: 0 | C121: =List!C122 -> 6 | D121: =List!D122 -> EM | E121: =List!F122 -> 0 | F121: =List!G122 -> 0 | G121: =List!H122 -> 0 | H121: =List!I122 -> 0 | I121: =List!J122 -> 0 | J121: =List!M122 -> 0 | K121: =List!R122 -> 0 | L121: 0
A122: 0 | C122: =List!C123 -> 6 | D122: =List!D123 -> EM | E122: =List!F123 -> 0 | F122: =List!G123 -> 0 | G122: =List!H123 -> 0 | H122: =List!I123 -> 0 | I122: =List!J123 -> 0 | J122: =List!M123 -> 0 | K122: =List!R123 -> 0 | L122: 0
A123: 0 | C123: =List!C124 -> 6 | D123: =List!D124 -> EM | E123: =List!F124 -> 0 | F123: =List!G124 -> 0 | G123: =List!H124 -> 0 | H123: =List!I124 -> 0 | I123: =List!J124 -> 0 | J123: =List!M124 -> 0 | K123: =List!R124 -> 0 | L123: 0
A124: 0 | C124: =List!C125 -> 6 | D124: =List!D125 -> EM | E124: =List!F125 -> 0 | F124: =List!G125 -> 0 | G124: =List!H125 -> 0 | H124: =List!I125 -> 0 | I124: =List!J125 -> 0 | J124: =List!M125 -> 0 | K124: =List!R125 -> 0 | L124: 0
A125: 0 | C125: =List!C126 -> 6 | D125: =List!D126 -> EM | E125: =List!F126 -> 0 | F125: =List!G126 -> 0 | G125: =List!H126 -> 0 | H125: =List!I126 -> 0 | I125: =List!J126 -> 0 | J125: =List!M126 -> 0 | K125: =List!R126 -> 0 | L125: 0
A126: 0 | C126: =List!C127 -> 6 | D126: =List!D127 -> EM | E126: =List!F127 -> 0 | F126: =List!G127 -> 0 | G126: =List!H127 -> 0 | H126: =List!I127 -> 0 | I126: =List!J127 -> 0 | J126: =List!M127 -> 0 | K126: =List!R127 -> 0 | L126: 0
A127: 0 | C127: =List!C128 -> 6 | D127: =List!D128 -> EM | E127: =List!F128 -> 0 | F127: =List!G128 -> 0 | G127: =List!H128 -> 0 | H127: =List!I128 -> 0 | I127: =List!J128 -> 0 | J127: =List!M128 -> 0 | K127: =List!R128 -> 0 | L127: 0
A128: 0 | C128: =List!C129 -> 6 | D128: =List!D129 -> EM | E128: =List!F129 -> 0 | F128: =List!G129 -> 0 | G128: =List!H129 -> 0 | H128: =List!I129 -> 0 | I128: =List!J129 -> 0 | J128: =List!M129 -> 0 | K128: =List!R129 -> 0 | L128: 0
A129: 0 | C129: =List!C130 -> 6 | D129: =List!D130 -> EM | E129: =List!F130 -> 0 | F129: =List!G130 -> 0 | G129: =List!H130 -> 0 | H129: =List!I130 -> 0 | I129: =List!J130 -> 0 | J129: =List!M130 -> 0 | K129: =List!R130 -> 0 | L129: 0
A130: 0 | C130: =List!C131 -> 6 | D130: =List!D131 -> EM | E130: =List!F131 -> 0 | F130: =List!G131 -> 0 | G130: =List!H131 -> 0 | H130: =List!I131 -> 0 | I130: =List!J131 -> 0 | J130: =List!M131 -> 0 | K130: =List!R131 -> 0 | L130: 0
A131: 0 | C131: =List!C132 -> 6 | D131: =List!D132 -> EM | E131: =List!F132 -> 0 | F131: =List!G132 -> 0 | G131: =List!H132 -> 0 | H131: =List!I132 -> 0 | I131: =List!J132 -> 0 | J131: =List!M132 -> 0 | K131: =List!R132 -> 0 | L131: 0
A132: 0 | C132: =List!C133 -> 6 | D132: =List!D133 -> EM | E132: =List!F133 -> 0 | F132: =List!G133 -> 0 | G132: =List!H133 -> 0 | H132: =List!I133 -> 0 | I132: =List!J133 -> 0 | J132: =List!M133 -> 0 | K132: =List!R133 -> 0 | L132: 0
A133: 0 | C133: =List!C134 -> 6 | D133: =List!D134 -> EM | E133: =List!F134 -> 0 | F133: =List!G134 -> 0 | G133: =List!H134 -> 0 | H133: =List!I134 -> 0 | I133: =List!J134 -> 0 | J133: =List!M134 -> 0 | K133: =List!R134 -> 0 | L133: 0
A134: 0 | C134: =List!C135 -> 6 | D134: =List!D135 -> EM | E134: =List!F135 -> 0 | F134: =List!G135 -> 0 | G134: =List!H135 -> 0 | H134: =List!I135 -> 0 | I134: =List!J135 -> 0 | J134: =List!M135 -> 0 | K134: =List!R135 -> 0 | L134: 0
A135: 0 | C135: =List!C136 -> 6 | D135: =List!D136 -> EM | E135: =List!F136 -> 0 | F135: =List!G136 -> 0 | G135: =List!H136 -> 0 | H135: =List!I136 -> 0 | I135: =List!J136 -> 0 | J135: =List!M136 -> 0 | K135: =List!R136 -> 0 | L135: 0
A136: 0 | C136: =List!C137 -> 6 | D136: =List!D137 -> EM | E136: =List!F137 -> 0 | F136: =List!G137 -> 0 | G136: =List!H137 -> 0 | H136: =List!I137 -> 0 | I136: =List!J137 -> 0 | J136: =List!M137 -> 0 | K136: =List!R137 -> 0 | L136: 0
A137: 0 | C137: =List!C138 -> 6 | D137: =List!D138 -> EM | E137: =List!F138 -> 0 | F137: =List!G138 -> 0 | G137: =List!H138 -> 0 | H137: =List!I138 -> 0 | I137: =List!J138 -> 0 | J137: =List!M138 -> 0 | K137: =List!R138 -> 0 | L137: 0
A138: 0 | C138: =List!C139 -> 6 | D138: =List!D139 -> EM | E138: =List!F139 -> 0 | F138: =List!G139 -> 0 | G138: =List!H139 -> 0 | H138: =List!I139 -> 0 | I138: =List!J139 -> 0 | J138: =List!M139 -> 0 | K138: =List!R139 -> 0 | L138: 0
A139: 0 | C139: =List!C140 -> 6 | D139: =List!D140 -> EM | E139: =List!F140 -> 0 | F139: =List!G140 -> 0 | G139: =List!H140 -> 0 | H139: =List!I140 -> 0 | I139: =List!J140 -> 0 | J139: =List!M140 -> 0 | K139: =List!R140 -> 0 | L139: 0
A140: 0 | C140: =List!C141 -> 6 | D140: =List!D141 -> EM | E140: =List!F141 -> 0 | F140: =List!G141 -> 0 | G140: =List!H141 -> 0 | H140: =List!I141 -> 0 | I140: =List!J141 -> 0 | J140: =List!M141 -> 0 | K140: =List!R141 -> 0 | L140: 0
A141: 0 | C141: =List!C142 -> 6 | D141: =List!D142 -> EM | E141: =List!F142 -> 0 | F141: =List!G142 -> 0 | G141: =List!H142 -> 0 | H141: =List!I142 -> 0 | I141: =List!J142 -> 0 | J141: =List!M142 -> 0 | K141: =List!R142 -> 0 | L141: 0
A142: 0 | C142: =List!C143 -> 6 | D142: =List!D143 -> EM | E142: =List!F143 -> 0 | F142: =List!G143 -> 0 | G142: =List!H143 -> 0 | H142: =List!I143 -> 0 | I142: =List!J143 -> 0 | J142: =List!M143 -> 0 | K142: =List!R143 -> 0 | L142: 0
A143: 0 | C143: =List!C144 -> 6 | D143: =List!D144 -> EM | E143: =List!F144 -> 0 | F143: =List!G144 -> 0 | G143: =List!H144 -> 0 | H143: =List!I144 -> 0 | I143: =List!J144 -> 0 | J143: =List!M144 -> 0 | K143: =List!R144 -> 0 | L143: 0
A144: 0 | C144: =List!C145 -> 6 | D144: =List!D145 -> EM | E144: =List!F145 -> 0 | F144: =List!G145 -> 0 | G144: =List!H145 -> 0 | H144: =List!I145 -> 0 | I144: =List!J145 -> 0 | J144: =List!M145 -> 0 | K144: =List!R145 -> 0 | L144: 0
A145: 0 | C145: =List!C146 -> 6 | D145: =List!D146 -> EM | E145: =List!F146 -> 0 | F145: =List!G146 -> 0 | G145: =List!H146 -> 0 | H145: =List!I146 -> 0 | I145: =List!J146 -> 0 | J145: =List!M146 -> 0 | K145: =List!R146 -> 0 | L145: 0
A146: 0 | C146: =List!C147 -> 6 | D146: =List!D147 -> EM | E146: =List!F147 -> 0 | F146: =List!G147 -> 0 | G146: =List!H147 -> 0 | H146: =List!I147 -> 0 | I146: =List!J147 -> 0 | J146: =List!M147 -> 0 | K146: =List!R147 -> 0 | L146: 0
A147: 0 | C147: =List!C148 -> 6 | D147: =List!D148 -> EM | E147: =List!F148 -> 0 | F147: =List!G148 -> 0 | G147: =List!H148 -> 0 | H147: =List!I148 -> 0 | I147: =List!J148 -> 0 | J147: =List!M148 -> 0 | K147: =List!R148 -> 0 | L147: 0
A148: 0 | C148: =List!C149 -> 6 | D148: =List!D149 -> EM | E148: =List!F149 -> 0 | F148: =List!G149 -> 0 | G148: =List!H149 -> 0 | H148: =List!I149 -> 0 | I148: =List!J149 -> 0 | J148: =List!M149 -> 0 | K148: =List!R149 -> 0 | L148: 0
A149: =F149 -> 0 | C149: =List!C150 -> 6 | D149: =List!D150 -> EM | E149: =List!F150 -> 0 | F149: =List!G150 -> 0 | G149: =List!H150 -> 0 | H149: =List!I150 -> 0 | I149: =List!J150 -> 0 | J149: =List!M150 -> 0 | K149: =List!R150 -> 0 | L149: 0
A150: 0 | C150: =List!C151 -> 6 | D150: =List!D151 -> EM | E150: =List!F151 -> 0 | F150: =List!G151 -> 0 | G150: =List!H151 -> 0 | H150: =List!I151 -> 0 | I150: =List!J151 -> 0 | J150: =List!M151 -> 0 | K150: =List!R151 -> 0 | L150: 0
A151: 0 | C151: =List!C152 -> 6 | D151: =List!D152 -> EM | E151: =List!F152 -> 0 | F151: =List!G152 -> 0 | G151: =List!H152 -> 0 | H151: =List!I152 -> 0 | I151: =List!J152 -> 0 | J151: =List!M152 -> 0 | K151: =List!R152 -> 0 | L151: 0
A152: 0 | C152: =List!C153 -> 6 | D152: =List!D153 -> EM | E152: =List!F153 -> 0 | F152: =List!G153 -> 0 | G152: =List!H153 -> 0 | H152: =List!I153 -> 0 | I152: =List!J153 -> 0 | J152: =List!M153 -> 0 | K152: =List!R153 -> 0 | L152: 0
A153: 0 | C153: =List!C154 -> 6 | D153: =List!D154 -> EM | E153: =List!F154 -> 0 | F153: =List!G154 -> 0 | G153: =List!H154 -> 0 | H153: =List!I154 -> 0 | I153: =List!J154 -> 0 | J153: =List!M154 -> 0 | K153: =List!R154 -> 0 | L153: 0
A154: 0 | C154: =List!C155 -> 6 | D154: =List!D155 -> EM | E154: =List!F155 -> 0 | F154: =List!G155 -> 0 | G154: =List!H155 -> 0 | H154: =List!I155 -> 0 | I154: =List!J155 -> 0 | J154: =List!M155 -> 0 | K154: =List!R155 -> 0 | L154: 0
A155: 0 | C155: =List!C156 -> 6 | D155: =List!D156 -> EM | E155: =List!F156 -> 0 | F155: =List!G156 -> 0 | G155: =List!H156 -> 0 | H155: =List!I156 -> 0 | I155: =List!J156 -> 0 | J155: =List!M156 -> 0 | K155: =List!R156 -> 0 | L155: 0
A156: 0 | C156: =List!C157 -> 6 | D156: =List!D157 -> EM | E156: =List!F157 -> 0 | F156: =List!G157 -> 0 | G156: =List!H157 -> 0 | H156: =List!I157 -> 0 | I156: =List!J157 -> 0 | J156: =List!M157 -> 0 | K156: =List!R157 -> 0 | L156: 0
A157: 0 | C157: =List!C158 -> 6 | D157: =List!D158 -> EM | E157: =List!F158 -> 0 | F157: =List!G158 -> 0 | G157: =List!H158 -> 0 | H157: =List!I158 -> 0 | I157: =List!J158 -> 0 | J157: =List!M158 -> 0 | K157: =List!R158 -> 0 | L157: 0
A158: 0 | C158: =List!C159 -> 6 | D158: =List!D159 -> EM | E158: =List!F159 -> 0 | F158: =List!G159 -> 0 | G158: =List!H159 -> 0 | H158: =List!I159 -> 0 | I158: =List!J159 -> 0 | J158: =List!M159 -> 0 | K158: =List!R159 -> 0 | L158: 0
A159: 0 | C159: =List!C160 -> 6 | D159: =List!D160 -> EM | E159: =List!F160 -> 0 | F159: =List!G160 -> 0 | G159: =List!H160 -> 0 | H159: =List!I160 -> 0 | I159: =List!J160 -> 0 | J159: =List!M160 -> 0 | K159: =List!R160 -> 0 | L159: 0
A160: 0 | C160: =List!C161 -> 6 | D160: =List!D161 -> EM | E160: =List!F161 -> 0 | F160: =List!G161 -> 0 | G160: =List!H161 -> 0 | H160: =List!I161 -> 0 | I160: =List!J161 -> 0 | J160: =List!M161 -> 0 | K160: =List!R161 -> 0 | L160: 0
A161: 0 | C161: =List!C162 -> 6 | D161: =List!D162 -> EM | E161: =List!F162 -> 0 | F161: =List!G162 -> 0 | G161: =List!H162 -> 0 | H161: =List!I162 -> 0 | I161: =List!J162 -> 0 | J161: =List!M162 -> 0 | K161: =List!R162 -> 0 | L161: 0
A162: 0 | C162: =List!C163 -> 6 | D162: =List!D163 -> EM | E162: =List!F163 -> 0 | F162: =List!G163 -> 0 | G162: =List!H163 -> 0 | H162: =List!I163 -> 0 | I162: =List!J163 -> 0 | J162: =List!M163 -> 0 | K162: =List!R163 -> 0 | L162: 0
A163: 0 | C163: =List!C164 -> 6 | D163: =List!D164 -> EM | E163: =List!F164 -> 0 | F163: =List!G164 -> 0 | G163: =List!H164 -> 0 | H163: =List!I164 -> 0 | I163: =List!J164 -> 0 | J163: =List!M164 -> 0 | K163: =List!R164 -> 0 | L163: 0
A164: 0 | C164: =List!C165 -> 6 | D164: =List!D165 -> EM | E164: =List!F165 -> 0 | F164: =List!G165 -> 0 | G164: =List!H165 -> 0 | H164: =List!I165 -> 0 | I164: =List!J165 -> 0 | J164: =List!M165 -> 0 | K164: =List!R165 -> 0 | L164: 0
A165: 0 | C165: =List!C166 -> 6 | D165: =List!D166 -> EM | E165: =List!F166 -> 0 | F165: =List!G166 -> 0 | G165: =List!H166 -> 0 | H165: =List!I166 -> 0 | I165: =List!J166 -> 0 | J165: =List!M166 -> 0 | K165: =List!R166 -> 0 | L165: 0
A166: 0 | C166: =List!C167 -> 6 | D166: =List!D167 -> EM | E166: =List!F167 -> 0 | F166: =List!G167 -> 0 | G166: =List!H167 -> 0 | H166: =List!I167 -> 0 | I166: =List!J167 -> 0 | J166: =List!M167 -> 0 | K166: =List!R167 -> 0 | L166: 0
A167: =A117 -> 0 | U167: Signature of the Class Teacher:
A168: =F168 -> 0 | C168: =List!C169 -> 7 | D168: =List!D169 -> TM | E168: =List!F169 -> 0 | F168: =List!G169 -> 0 | G168: =List!H169 -> 0 | H168: =List!I169 -> 0 | I168: =List!J169 -> 0 | J168: =List!M169 -> 0 | K168: =List!R169 -> 0 | L168: 0
A169: 0 | C169: =List!C170 -> 7 | D169: =List!D170 -> TM | E169: =List!F170 -> 0 | F169: =List!G170 -> 0 | G169: =List!H170 -> 0 | H169: =List!I170 -> 0 | I169: =List!J170 -> 0 | J169: =List!M170 -> 0 | K169: =List!R170 -> 0 | L169: 0
A170: 0 | C170: =List!C171 -> 7 | D170: =List!D171 -> TM | E170: =List!F171 -> 0 | F170: =List!G171 -> 0 | G170: =List!H171 -> 0 | H170: =List!I171 -> 0 | I170: =List!J171 -> 0 | J170: =List!M171 -> 0 | K170: =List!R171 -> 0 | L170: 0
A171: 0 | C171: =List!C172 -> 7 | D171: =List!D172 -> TM | E171: =List!F172 -> 0 | F171: =List!G172 -> 0 | G171: =List!H172 -> 0 | H171: =List!I172 -> 0 | I171: =List!J172 -> 0 | J171: =List!M172 -> 0 | K171: =List!R172 -> 0 | L171: 0
A172: 0 | C172: =List!C173 -> 7 | D172: =List!D173 -> TM | E172: =List!F173 -> 0 | F172: =List!G173 -> 0 | G172: =List!H173 -> 0 | H172: =List!I173 -> 0 | I172: =List!J173 -> 0 | J172: =List!M173 -> 0 | K172: =List!R173 -> 0 | L172: 0
A173: 0 | C173: =List!C174 -> 7 | D173: =List!D174 -> TM | E173: =List!F174 -> 0 | F173: =List!G174 -> 0 | G173: =List!H174 -> 0 | H173: =List!I174 -> 0 | I173: =List!J174 -> 0 | J173: =List!M174 -> 0 | K173: =List!R174 -> 0 | L173: 0
A174: 0 | C174: =List!C175 -> 7 | D174: =List!D175 -> TM | E174: =List!F175 -> 0 | F174: =List!G175 -> 0 | G174: =List!H175 -> 0 | H174: =List!I175 -> 0 | I174: =List!J175 -> 0 | J174: =List!M175 -> 0 | K174: =List!R175 -> 0 | L174: 0
A175: 0 | C175: =List!C176 -> 7 | D175: =List!D176 -> TM | E175: =List!F176 -> 0 | F175: =List!G176 -> 0 | G175: =List!H176 -> 0 | H175: =List!I176 -> 0 | I175: =List!J176 -> 0 | J175: =List!M176 -> 0 | K175: =List!R176 -> 0 | L175: 0
A176: 0 | C176: =List!C177 -> 7 | D176: =List!D177 -> TM | E176: =List!F177 -> 0 | F176: =List!G177 -> 0 | G176: =List!H177 -> 0 | H176: =List!I177 -> 0 | I176: =List!J177 -> 0 | J176: =List!M177 -> 0 | K176: =List!R177 -> 0 | L176: 0
A177: 0 | C177: =List!C178 -> 7 | D177: =List!D178 -> TM | E177: =List!F178 -> 0 | F177: =List!G178 -> 0 | G177: =List!H178 -> 0 | H177: =List!I178 -> 0 | I177: =List!J178 -> 0 | J177: =List!M178 -> 0 | K177: =List!R178 -> 0 | L177: 0
A178: 0 | C178: =List!C179 -> 7 | D178: =List!D179 -> TM | E178: =List!F179 -> 0 | F178: =List!G179 -> 0 | G178: =List!H179 -> 0 | H178: =List!I179 -> 0 | I178: =List!J179 -> 0 | J178: =List!M179 -> 0 | K178: =List!R179 -> 0 | L178: 0
A179: 0 | C179: =List!C180 -> 7 | D179: =List!D180 -> TM | E179: =List!F180 -> 0 | F179: =List!G180 -> 0 | G179: =List!H180 -> 0 | H179: =List!I180 -> 0 | I179: =List!J180 -> 0 | J179: =List!M180 -> 0 | K179: =List!R180 -> 0 | L179: 0
A180: 0 | C180: =List!C181 -> 7 | D180: =List!D181 -> TM | E180: =List!F181 -> 0 | F180: =List!G181 -> 0 | G180: =List!H181 -> 0 | H180: =List!I181 -> 0 | I180: =List!J181 -> 0 | J180: =List!M181 -> 0 | K180: =List!R181 -> 0 | L180: 0
A181: 0 | C181: =List!C182 -> 7 | D181: =List!D182 -> TM | E181: =List!F182 -> 0 | F181: =List!G182 -> 0 | G181: =List!H182 -> 0 | H181: =List!I182 -> 0 | I181: =List!J182 -> 0 | J181: =List!M182 -> 0 | K181: =List!R182 -> 0 | L181: 0
A182: 0 | C182: =List!C183 -> 7 | D182: =List!D183 -> TM | E182: =List!F183 -> 0 | F182: =List!G183 -> 0 | G182: =List!H183 -> 0 | H182: =List!I183 -> 0 | I182: =List!J183 -> 0 | J182: =List!M183 -> 0 | K182: =List!R183 -> 0 | L182: 0
A183: 0 | C183: =List!C184 -> 7 | D183: =List!D184 -> TM | E183: =List!F184 -> 0 | F183: =List!G184 -> 0 | G183: =List!H184 -> 0 | H183: =List!I184 -> 0 | I183: =List!J184 -> 0 | J183: =List!M184 -> 0 | K183: =List!R184 -> 0 | L183: 0
A184: 0 | C184: =List!C185 -> 7 | D184: =List!D185 -> TM | E184: =List!F185 -> 0 | F184: =List!G185 -> 0 | G184: =List!H185 -> 0 | H184: =List!I185 -> 0 | I184: =List!J185 -> 0 | J184: =List!M185 -> 0 | K184: =List!R185 -> 0 | L184: 0
A185: 0 | C185: =List!C186 -> 7 | D185: =List!D186 -> TM | E185: =List!F186 -> 0 | F185: =List!G186 -> 0 | G185: =List!H186 -> 0 | H185: =List!I186 -> 0 | I185: =List!J186 -> 0 | J185: =List!M186 -> 0 | K185: =List!R186 -> 0 | L185: 0
A186: 0 | C186: =List!C187 -> 7 | D186: =List!D187 -> TM | E186: =List!F187 -> 0 | F186: =List!G187 -> 0 | G186: =List!H187 -> 0 | H186: =List!I187 -> 0 | I186: =List!J187 -> 0 | J186: =List!M187 -> 0 | K186: =List!R187 -> 0 | L186: 0
A187: 0 | C187: =List!C188 -> 7 | D187: =List!D188 -> TM | E187: =List!F188 -> 0 | F187: =List!G188 -> 0 | G187: =List!H188 -> 0 | H187: =List!I188 -> 0 | I187: =List!J188 -> 0 | J187: =List!M188 -> 0 | K187: =List!R188 -> 0 | L187: 0
A188: 0 | C188: =List!C189 -> 7 | D188: =List!D189 -> TM | E188: =List!F189 -> 0 | F188: =List!G189 -> 0 | G188: =List!H189 -> 0 | H188: =List!I189 -> 0 | I188: =List!J189 -> 0 | J188: =List!M189 -> 0 | K188: =List!R189 -> 0 | L188: 0
A189: 0 | C189: =List!C190 -> 7 | D189: =List!D190 -> TM | E189: =List!F190 -> 0 | F189: =List!G190 -> 0 | G189: =List!H190 -> 0 | H189: =List!I190 -> 0 | I189: =List!J190 -> 0 | J189: =List!M190 -> 0 | K189: =List!R190 -> 0 | L189: 0
A190: 0 | C190: =List!C191 -> 7 | D190: =List!D191 -> TM | E190: =List!F191 -> 0 | F190: =List!G191 -> 0 | G190: =List!H191 -> 0 | H190: =List!I191 -> 0 | I190: =List!J191 -> 0 | J190: =List!M191 -> 0 | K190: =List!R191 -> 0 | L190: 0
A191: 0 | C191: =List!C192 -> 7 | D191: =List!D192 -> TM | E191: =List!F192 -> 0 | F191: =List!G192 -> 0 | G191: =List!H192 -> 0 | H191: =List!I192 -> 0 | I191: =List!J192 -> 0 | J191: =List!M192 -> 0 | K191: =List!R192 -> 0 | L191: 0
A192: 0 | C192: =List!C193 -> 7 | D192: =List!D193 -> TM | E192: =List!F193 -> 0 | F192: =List!G193 -> 0 | G192: =List!H193 -> 0 | H192: =List!I193 -> 0 | I192: =List!J193 -> 0 | J192: =List!M193 -> 0 | K192: =List!R193 -> 0 | L192: 0
A193: 0 | C193: =List!C194 -> 7 | D193: =List!D194 -> TM | E193: =List!F194 -> 0 | F193: =List!G194 -> 0 | G193: =List!H194 -> 0 | H193: =List!I194 -> 0 | I193: =List!J194 -> 0 | J193: =List!M194 -> 0 | K193: =List!R194 -> 0 | L193: 0
A194: 0 | C194: =List!C195 -> 7 | D194: =List!D195 -> TM | E194: =List!F195 -> 0 | F194: =List!G195 -> 0 | G194: =List!H195 -> 0 | H194: =List!I195 -> 0 | I194: =List!J195 -> 0 | J194: =List!M195 -> 0 | K194: =List!R195 -> 0 | L194: 0
A195: 0 | C195: =List!C196 -> 7 | D195: =List!D196 -> TM | E195: =List!F196 -> 0 | F195: =List!G196 -> 0 | G195: =List!H196 -> 0 | H195: =List!I196 -> 0 | I195: =List!J196 -> 0 | J195: =List!M196 -> 0 | K195: =List!R196 -> 0 | L195: 0
A196: 0 | C196: =List!C197 -> 7 | D196: =List!D197 -> TM | E196: =List!F197 -> 0 | F196: =List!G197 -> 0 | G196: =List!H197 -> 0 | H196: =List!I197 -> 0 | I196: =List!J197 -> 0 | J196: =List!M197 -> 0 | K196: =List!R197 -> 0 | L196: 0
A197: 0 | C197: =List!C198 -> 7 | D197: =List!D198 -> TM | E197: =List!F198 -> 0 | F197: =List!G198 -> 0 | G197: =List!H198 -> 0 | H197: =List!I198 -> 0 | I197: =List!J198 -> 0 | J197: =List!M198 -> 0 | K197: =List!R198 -> 0 | L197: 0
A198: 0 | C198: =List!C199 -> 7 | D198: =List!D199 -> TM | E198: =List!F199 -> 0 | F198: =List!G199 -> 0 | G198: =List!H199 -> 0 | H198: =List!I199 -> 0 | I198: =List!J199 -> 0 | J198: =List!M199 -> 0 | K198: =List!R199 -> 0 | L198: 0
A199: =F199 -> 0 | C199: =List!C200 -> 7 | D199: =List!D200 -> TM | E199: =List!F200 -> 0 | F199: =List!G200 -> 0 | G199: =List!H200 -> 0 | H199: =List!I200 -> 0 | I199: =List!J200 -> 0 | J199: =List!M200 -> 0 | K199: =List!R200 -> 0 | L199: 0
A200: 0 | C200: =List!C201 -> 7 | D200: =List!D201 -> TM | E200: =List!F201 -> 0 | F200: =List!G201 -> 0 | G200: =List!H201 -> 0 | H200: =List!I201 -> 0 | I200: =List!J201 -> 0 | J200: =List!M201 -> 0 | K200: =List!R201 -> 0 | L200: 0
A201: 0 | C201: =List!C202 -> 7 | D201: =List!D202 -> TM | E201: =List!F202 -> 0 | F201: =List!G202 -> 0 | G201: =List!H202 -> 0 | H201: =List!I202 -> 0 | I201: =List!J202 -> 0 | J201: =List!M202 -> 0 | K201: =List!R202 -> 0 | L201: 0
... 614 more rows

Sheet X T
C2: =CONCATENATE(Data!D7,", ",Data!D8) -> Z P P HIGH SCHOOL, ISLAMPETA | H2: X TM ACHIEVEMENT REPORT | T2: =H2 -> X TM ACHIEVEMENT REPORT | AF2: =T2 -> X TM ACHIEVEMENT REPORT | AR2: =AF2 -> X TM ACHIEVEMENT REPORT | BD2: =AR2 -> X TM ACHIEVEMENT REPORT | BP2: =BD2 -> X TM ACHIEVEMENT REPORT
C4: Adm No | D4: S No | E4: Name of the Student | G4: Cast | H4: =CONCATENATE(Data!F7," - ",Data!G7,", ",Data!E3) -> Unit Test I - July, 2011~2012 | T4: =CONCATENATE(Data!F8," - ",Data!G8,", ",Data!E3) -> Unit Test II - August, 2011~2012 | AF4: =CONCATENATE(Data!F9," - ",Data!G9,", ",Data!E3) -> Quarterly - October, 2011~2012 | AR4: =CONCATENATE(Data!F10," - ",Data!G10,", ",Data!E3) -> Unit Test III - November, 2011~2012 | BD4: =CONCATENATE(Data!F11," - ",Data!G11,", ",Data!E3) -> Half yearly - December, 2011~2012 | BP4: =CONCATENATE(Data!F13," - ",Data!G13,", ",Data!E3) -> Pre-Public - March, 2011~2012
H5: Tel | I5: Hin | J5: Eng | K5: Mat | L5: Sci | O5: SS | P5: Total | Q5: Result | R5: % | S5: Grade | T5: Tel | U5: Hin | V5: Eng | W5: Mat | X5: Sci | AA5: SS | AB5: Total | AC5: Result | AD5: % | AE5: Grade | AF5: Tel | AG5: Hin | AH5: Eng | AI5: Mat | AJ5: Sci | AM5: SS | AN5: Total | AO5: Result | AP5: % | AQ5: Grade | AR5: Tel | AS5: Hin | AT5: Eng | AU5: Mat | AV5: Sci | AY5: SS | AZ5: Total | BA5: Result | BB5: % | BC5: Grade | BD5: Tel | BE5: Hin | BF5: Eng | BG5: Mat | BH5: Sci | BK5: SS | BL5: Total | BM5: Result | BN5: % | BO5: Grade | BP5: Tel | BQ5: Hin | BR5: Eng | BS5: Mat | BT5: Sci | BW5: SS | BX5: Total | BY5: Result | BZ5: % | CA5: Grade
L6: PS | M6: BS | N6: Avg | X6: PS | Y6: BS | Z6: Avg | AJ6: PS | AK6: BS | AL6: Avg | AV6: PS | AW6: BS | AX6: Avg | BH6: PS | BI6: BS | BJ6: Avg | BT6: PS | BU6: BS | BV6: Avg
H7: 25 | I7: 25 | J7: 25 | K7: 25 | L7: 25 | M7: 25 | N7: 25 | O7: 25 | P7: 150 | T7: 25 | U7: 25 | V7: 25 | W7: 25 | X7: 25 | Y7: 25 | Z7: 25 | AA7: 25 | AB7: 150 | AF7: 50 | AG7: 50 | AH7: 50 | AI7: 50 | AJ7: 50 | AK7: 50 | AL7: 50 | AM7: 50 | AN7: 300 | AR7: 25 | AS7: 25 | AT7: 25 | AU7: 25 | AV7: 25 | AW7: 25 | AX7: 25 | AY7: 25 | AZ7: 150 | BD7: 50 | BE7: 50 | BF7: 50 | BG7: 50 | BH7: 50 | BI7: 50 | BJ7: 50 | BK7: 50 | BL7: 300 | BP7: 100 | BQ7: 100 | BR7: 100 | BS7: 100 | BT7: 100 | BU7: 100 | BV7: 100 | BW7: 100 | BX7: 600
A8: =D8 -> 0 | C8: =Att!C656 -> 0 | D8: =Att!D656 -> 0 | E8: =Att!E656 -> 0 | F8: =Att!F656 -> - | G8: =Att!H656 -> 0 | N8: =IF(COUNT(L8,M8)=2,ROUND((L8+M8)/2,0),0) -> 0 | P8: =SUM(H8,I8,J8,K8,N8,O8) -> 0 | Q8: =IF(AND(COUNT(H8,I8,J8,K8,N8,O8)=6,MIN(H8,J8,K8,N8,O8)>=9,I8>=5),"Pass",IF(COUNT(H8,I8,J8,K8,N8,O8)<6,0,"Fail")) -> 0 | R8: =ROUND(P8*4/6,0) -> 0 | S8: =IF(AND(Q8="Fail"),"D",IF(R8>=80,"A+",IF(R8>=60,"A",IF(R8>=50,"B",IF(R8>=35,"C",IF(R8>0,"D",0)))))) -> 0 | Z8: =IF(COUNT(X8,Y8)=2,ROUND((X8+Y8)/2,0),0) -> 0 | AB8: =SUM(T8,U8,V8,W8,Z8,AA8) -> 0 | AC8: =IF(AND(COUNT(T8,U8,V8,W8,Z8,AA8)=6,MIN(T8,V8,W8,Z8,AA8)>=9,U8>=5),"Pass",IF(COUNT(T8,U8,V8,W8,Z8,AA8)<6,0,"Fail")) -> 0 | AD8: =ROUND(AB8*4/6,0) -> 0 | AE8: =IF(AND(AC8="Fail"),"D",IF(AD8>=80,"A+",IF(AD8>=60,"A",IF(AD8>=50,"B",IF(AD8>=35,"C",IF(AD8>0,"D",0)))))) -> 0 | AL8: =IF(COUNT(AJ8,AK8)=2,ROUND((AJ8+AK8)/2,0),0) -> 0 | AN8: =SUM(AF8,AG8,AH8,AI8,AL8,AM8) -> 0 | AO8: =IF(AND(COUNT(AF8,AG8,AH8,AI8,AL8,AM8)=6,MIN(AF8,AH8,AI8,AL8,AM8)>=18,AG8>=10),"Pass",IF(COUNT(AF8,AG8,AH8,AI8,AL8,AM8)<6,0,"Fail")) -> 0 | AP8: =ROUND(AN8/3,0) -> 0 | AQ8: =IF(AND(AO8="Fail"),"D",IF(AP8>=80,"A+",IF(AP8>=60,"A",IF(AP8>=50,"B",IF(AP8>=35,"C",IF(AP8>0,"D",0)))))) -> 0 | AX8: =IF(COUNT(AV8,AW8)=2,ROUND((AV8+AW8)/2,0),0) -> 0 | AZ8: =SUM(AR8,AS8,AT8,AU8,AX8,AY8) -> 0 | BA8: =IF(AND(COUNT(AR8,AS8,AT8,AU8,AX8,AY8)=6,MIN(AR8,AT8,AU8,AX8,AY8)>=9,AS8>=5),"Pass",IF(COUNT(AR8,AS8,AT8,AU8,AX8,AY8)<6,0,"Fail")) -> 0 | BB8: =ROUND(AZ8*4/6,0) -> 0 | BC8: =IF(AND(BA8="Fail"),"D",IF(BB8>=80,"A+",IF(BB8>=60,"A",IF(BB8>=50,"B",IF(BB8>=35,"C",IF(BB8>0,"D",0)))))) -> 0 | BJ8: =IF(COUNT(BH8,BI8)=2,ROUND((BH8+BI8)/2,0),0) -> 0 | BL8: =SUM(BD8,BE8,BF8,BG8,BJ8,BK8) -> 0 | BM8: =IF(AND(COUNT(BD8,BE8,BF8,BG8,BJ8,BK8)=6,MIN(BD8,BF8,BG8,BJ8,BK8)>=18,BE8>=10),"Pass",IF(COUNT(BD8,BE8,BF8,BG8,BJ8,BK8)<6,0,"Fail")) -> 0 | BN8: =ROUND(BL8/3,0) -> 0 | BO8: =IF(AND(BM8="Fail"),"D",IF(BN8>=80,"A+",IF(BN8>=60,"A",IF(BN8>=50,"B",IF(BN8>=35,"C",IF(BN8>0,"D",0)))))) -> 0 | BV8: =IF(COUNT(BT8,BU8)=2,ROUND((BT8+BU8)/2,0),0) -> 0 | BX8: =SUM(BP8,BQ8,BR8,BS8,BV8,BW8) -> 0 | BY8: =IF(AND(COUNT(BP8,BQ8,BR8,BS8,BV8,BW8)=6,MIN(BP8,BR8,BS8,BV8,BW8)>=35,BQ8>=20),"Pass",IF(COUNT(BP8,BQ8,BR8,BS8,BV8,BW8)<6,0,"Fail")) -> 0 | BZ8: =ROUND(BX8/6,0) -> 0 | CA8: =IF(AND(BY8="Fail"),"D",IF(BZ8>=80,"A+",IF(BZ8>=60,"A",IF(BZ8>=50,"B",IF(BZ8>=35,"C",IF(BZ8>0,"D",0)))))) -> 0
A9: =D9 -> 0 | C9: =Att!C657 -> 0 | D9: =Att!D657 -> 0 | E9: =Att!E657 -> 0 | F9: =Att!F657 -> - | G9: =Att!H657 -> 0 | N9: =IF(COUNT(L9,M9)=2,ROUND((L9+M9)/2,0),0) -> 0 | P9: 0 | Q9: 0 | R9: 0 | S9: =IF(AND(Q9="Fail"),"D",IF(R9>=80,"A+",IF(R9>=60,"A",IF(R9>=50,"B",IF(R9>=35,"C",IF(R9>0,"D",0)))))) -> 0 | Z9: =IF(COUNT(X9,Y9)=2,ROUND((X9+Y9)/2,0),0) -> 0 | AB9: =SUM(T9,U9,V9,W9,Z9,AA9) -> 0 | AC9: =IF(AND(COUNT(T9,U9,V9,W9,Z9,AA9)=6,MIN(T9,V9,W9,Z9,AA9)>=9,U9>=5),"Pass",IF(COUNT(T9,U9,V9,W9,Z9,AA9)<6,0,"Fail")) -> 0 | AD9: =ROUND(AB9*4/6,0) -> 0 | AE9: =IF(AND(AC9="Fail"),"D",IF(AD9>=80,"A+",IF(AD9>=60,"A",IF(AD9>=50,"B",IF(AD9>=35,"C",IF(AD9>0,"D",0)))))) -> 0 | AL9: =IF(COUNT(AJ9,AK9)=2,ROUND((AJ9+AK9)/2,0),0) -> 0 | AN9: =SUM(AF9,AG9,AH9,AI9,AL9,AM9) -> 0 | AO9: =IF(AND(COUNT(AF9,AG9,AH9,AI9,AL9,AM9)=6,MIN(AF9,AH9,AI9,AL9,AM9)>=18,AG9>=10),"Pass",IF(COUNT(AF9,AG9,AH9,AI9,AL9,AM9)<6,0,"Fail")) -> 0 | AP9: =ROUND(AN9/3,0) -> 0 | AQ9: =IF(AND(AO9="Fail"),"D",IF(AP9>=80,"A+",IF(AP9>=60,"A",IF(AP9>=50,"B",IF(AP9>=35,"C",IF(AP9>0,"D",0)))))) -> 0 | AX9: =IF(COUNT(AV9,AW9)=2,ROUND((AV9+AW9)/2,0),0) -> 0 | AZ9: =SUM(AR9,AS9,AT9,AU9,AX9,AY9) -> 0 | BA9: =IF(AND(COUNT(AR9,AS9,AT9,AU9,AX9,AY9)=6,MIN(AR9,AT9,AU9,AX9,AY9)>=9,AS9>=5),"Pass",IF(COUNT(AR9,AS9,AT9,AU9,AX9,AY9)<6,0,"Fail")) -> 0 | BB9: =ROUND(AZ9*4/6,0) -> 0 | BC9: =IF(AND(BA9="Fail"),"D",IF(BB9>=80,"A+",IF(BB9>=60,"A",IF(BB9>=50,"B",IF(BB9>=35,"C",IF(BB9>0,"D",0)))))) -> 0 | BJ9: =IF(COUNT(BH9,BI9)=2,ROUND((BH9+BI9)/2,0),0) -> 0 | BL9: =SUM(BD9,BE9,BF9,BG9,BJ9,BK9) -> 0 | BM9: =IF(AND(COUNT(BD9,BE9,BF9,BG9,BJ9,BK9)=6,MIN(BD9,BF9,BG9,BJ9,BK9)>=18,BE9>=10),"Pass",IF(COUNT(BD9,BE9,BF9,BG9,BJ9,BK9)<6,0,"Fail")) -> 0 | BN9: =ROUND(BL9/3,0) -> 0 | BO9: =IF(AND(BM9="Fail"),"D",IF(BN9>=80,"A+",IF(BN9>=60,"A",IF(BN9>=50,"B",IF(BN9>=35,"C",IF(BN9>0,"D",0)))))) -> 0 | BV9: =IF(COUNT(BT9,BU9)=2,ROUND((BT9+BU9)/2,0),0) -> 0 | BX9: =SUM(BP9,BQ9,BR9,BS9,BV9,BW9) -> 0 | BY9: =IF(AND(COUNT(BP9,BQ9,BR9,BS9,BV9,BW9)=6,MIN(BP9,BR9,BS9,BV9,BW9)>=35,BQ9>=20),"Pass",IF(COUNT(BP9,BQ9,BR9,BS9,BV9,BW9)<6,0,"Fail")) -> 0 | BZ9: =ROUND(BX9/6,0) -> 0 | CA9: =IF(AND(BY9="Fail"),"D",IF(BZ9>=80,"A+",IF(BZ9>=60,"A",IF(BZ9>=50,"B",IF(BZ9>=35,"C",IF(BZ9>0,"D",0)))))) -> 0
A10: 0 | C10: =Att!C658 -> 0 | D10: =Att!D658 -> 0 | E10: =Att!E658 -> 0 | F10: =Att!F658 -> - | G10: =Att!H658 -> 0 | N10: =IF(COUNT(L10,M10)=2,ROUND((L10+M10)/2,0),0) -> 0 | P10: 0 | Q10: 0 | R10: 0 | S10: 0 | Z10: 0 | AB10: 0 | AC10: 0 | AD10: 0 | AE10: 0 | AL10: =IF(COUNT(AJ10,AK10)=2,ROUND((AJ10+AK10)/2,0),0) -> 0 | AN10: =SUM(AF10,AG10,AH10,AI10,AL10,AM10) -> 0 | AO10: =IF(AND(COUNT(AF10,AG10,AH10,AI10,AL10,AM10)=6,MIN(AF10,AH10,AI10,AL10,AM10)>=18,AG10>=10),"Pass",IF(COUNT(AF10,AG10,AH10,AI10,AL10,AM10)<6,0,"Fail")) -> 0 | AP10: =ROUND(AN10/3,0) -> 0 | AQ10: =IF(AND(AO10="Fail"),"D",IF(AP10>=80,"A+",IF(AP10>=60,"A",IF(AP10>=50,"B",IF(AP10>=35,"C",IF(AP10>0,"D",0)))))) -> 0 | AX10: 0 | AZ10: 0 | BA10: 0 | BB10: 0 | BC10: 0 | BJ10: 0 | BL10: 0 | BM10: =IF(AND(COUNT(BD10,BE10,BF10,BG10,BJ10,BK10)=6,MIN(BD10,BF10,BG10,BJ10,BK10)>=18,BE10>=10),"Pass",IF(COUNT(BD10,BE10,BF10,BG10,BJ10,BK10)<6,0,"Fail")) -> 0 | BN10: =ROUND(BL10/3,0) -> 0 | BO10: 0 | BV10: 0 | BX10: 0 | BY10: =IF(AND(COUNT(BP10,BQ10,BR10,BS10,BV10,BW10)=6,MIN(BP10,BR10,BS10,BV10,BW10)>=35,BQ10>=20),"Pass",IF(COUNT(BP10,BQ10,BR10,BS10,BV10,BW10)<6,0,"Fail")) -> 0 | BZ10: =ROUND(BX10/6,0) -> 0 | CA10: 0
A11: 0 | C11: =Att!C659 -> 0 | D11: =Att!D659 -> 0 | E11: =Att!E659 -> 0 | F11: =Att!F659 -> - | G11: =Att!H659 -> 0 | N11: 0 | P11: 0 | Q11: 0 | R11: 0 | S11: 0 | Z11: 0 | AB11: 0 | AC11: 0 | AD11: 0 | AE11: 0 | AL11: =IF(COUNT(AJ11,AK11)=2,ROUND((AJ11+AK11)/2,0),0) -> 0 | AN11: =SUM(AF11,AG11,AH11,AI11,AL11,AM11) -> 0 | AO11: =IF(AND(COUNT(AF11,AG11,AH11,AI11,AL11,AM11)=6,MIN(AF11,AH11,AI11,AL11,AM11)>=18,AG11>=10),"Pass",IF(COUNT(AF11,AG11,AH11,AI11,AL11,AM11)<6,0,"Fail")) -> 0 | AP11: =ROUND(AN11/3,0) -> 0 | AQ11: =IF(AND(AO11="Fail"),"D",IF(AP11>=80,"A+",IF(AP11>=60,"A",IF(AP11>=50,"B",IF(AP11>=35,"C",IF(AP11>0,"D",0)))))) -> 0 | AX11: 0 | AZ11: 0 | BA11: 0 | BB11: 0 | BC11: 0 | BJ11: 0 | BL11: 0 | BM11: 0 | BN11: 0 | BO11: 0 | BV11: 0 | BX11: 0 | BY11: 0 | BZ11: 0 | CA11: 0
A12: 0 | C12: =Att!C660 -> 0 | D12: =Att!D660 -> 0 | E12: =Att!E660 -> 0 | F12: =Att!F660 -> - | G12: =Att!H660 -> 0 | N12: 0 | P12: 0 | Q12: 0 | R12: 0 | S12: 0 | Z12: 0 | AB12: 0 | AC12: 0 | AD12: 0 | AE12: 0 | AL12: =IF(COUNT(AJ12,AK12)=2,ROUND((AJ12+AK12)/2,0),0) -> 0 | AN12: =SUM(AF12,AG12,AH12,AI12,AL12,AM12) -> 0 | AO12: =IF(AND(COUNT(AF12,AG12,AH12,AI12,AL12,AM12)=6,MIN(AF12,AH12,AI12,AL12,AM12)>=18,AG12>=10),"Pass",IF(COUNT(AF12,AG12,AH12,AI12,AL12,AM12)<6,0,"Fail")) -> 0 | AP12: =ROUND(AN12/3,0) -> 0 | AQ12: =IF(AND(AO12="Fail"),"D",IF(AP12>=80,"A+",IF(AP12>=60,"A",IF(AP12>=50,"B",IF(AP12>=35,"C",IF(AP12>0,"D",0)))))) -> 0 | AX12: 0 | AZ12: 0 | BA12: 0 | BB12: 0 | BC12: 0 | BJ12: 0 | BL12: 0 | BM12: 0 | BN12: 0 | BO12: 0 | BV12: 0 | BX12: 0 | BY12: 0 | BZ12: 0 | CA12: 0
A13: 0 | C13: =Att!C661 -> 0 | D13: =Att!D661 -> 0 | E13: =Att!E661 -> 0 | F13: =Att!F661 -> - | G13: =Att!H661 -> 0 | N13: 0 | P13: 0 | Q13: 0 | R13: 0 | S13: 0 | Z13: 0 | AB13: 0 | AC13: 0 | AD13: 0 | AE13: 0 | AL13: 0 | AN13: 0 | AO13: =IF(AND(COUNT(AF13,AG13,AH13,AI13,AL13,AM13)=6,MIN(AF13,AH13,AI13,AL13,AM13)>=18,AG13>=10),"Pass",IF(COUNT(AF13,AG13,AH13,AI13,AL13,AM13)<6,0,"Fail")) -> 0 | AP13: =ROUND(AN13/3,0) -> 0 | AQ13: 0 | AX13: 0 | AZ13: 0 | BA13: 0 | BB13: 0 | BC13: 0 | BJ13: 0 | BL13: 0 | BM13: 0 | BN13: 0 | BO13: 0 | BV13: 0 | BX13: 0 | BY13: 0 | BZ13: 0 | CA13: 0
A14: 0 | C14: =Att!C662 -> 0 | D14: =Att!D662 -> 0 | E14: =Att!E662 -> 0 | F14: =Att!F662 -> - | G14: =Att!H662 -> 0 | N14: 0 | P14: =SUM(H14,I14,J14,K14,N14,O14) -> 0 | Q14: =IF(AND(COUNT(H14,I14,J14,K14,N14,O14)=6,MIN(H14,J14,K14,N14,O14)>=9,I14>=5),"Pass",IF(COUNT(H14,I14,J14,K14,N14,O14)<6,0,"Fail")) -> 0 | R14: =ROUND(P14*4/6,0) -> 0 | S14: 0 | Z14: 0 | AB14: 0 | AC14: 0 | AD14: 0 | AE14: 0 | AL14: 0 | AN14: 0 | AO14: 0 | AP14: 0 | AQ14: 0 | AX14: 0 | AZ14: 0 | BA14: 0 | BB14: 0 | BC14: 0 | BJ14: 0 | BL14: 0 | BM14: 0 | BN14: 0 | BO14: 0 | BV14: 0 | BX14: 0 | BY14: 0 | BZ14: 0 | CA14: 0
A15: 0 | C15: =Att!C663 -> 0 | D15: =Att!D663 -> 0 | E15: =Att!E663 -> 0 | F15: =Att!F663 -> - | G15: =Att!H663 -> 0 | N15: 0 | P15: 0 | Q15: 0 | R15: 0 | S15: 0 | Z15: 0 | AB15: 0 | AC15: 0 | AD15: 0 | AE15: 0 | AL15: 0 | AN15: 0 | AO15: 0 | AP15: 0 | AQ15: 0 | AX15: 0 | AZ15: 0 | BA15: 0 | BB15: 0 | BC15: 0 | BJ15: 0 | BL15: 0 | BM15: 0 | BN15: 0 | BO15: 0 | BV15: 0 | BX15: 0 | BY15: 0 | BZ15: 0 | CA15: 0
A16: 0 | C16: =Att!C664 -> 0 | D16: =Att!D664 -> 0 | E16: =Att!E664 -> 0 | F16: =Att!F664 -> - | G16: =Att!H664 -> 0 | N16: 0 | P16: 0 | Q16: 0 | R16: 0 | S16: 0 | Z16: 0 | AB16: 0 | AC16: 0 | AD16: 0 | AE16: 0 | AL16: 0 | AN16: 0 | AO16: 0 | AP16: 0 | AQ16: 0 | AX16: 0 | AZ16: 0 | BA16: 0 | BB16: 0 | BC16: 0 | BJ16: 0 | BL16: 0 | BM16: 0 | BN16: 0 | BO16: 0 | BV16: 0 | BX16: 0 | BY16: 0 | BZ16: 0 | CA16: 0
A17: 0 | C17: =Att!C665 -> 0 | D17: =Att!D665 -> 0 | E17: =Att!E665 -> 0 | F17: =Att!F665 -> - | G17: =Att!H665 -> 0 | N17: 0 | P17: 0 | Q17: 0 | R17: 0 | S17: 0 | Z17: 0 | AB17: 0 | AC17: 0 | AD17: 0 | AE17: 0 | AL17: 0 | AN17: 0 | AO17: 0 | AP17: 0 | AQ17: 0 | AX17: 0 | AZ17: 0 | BA17: 0 | BB17: 0 | BC17: 0 | BJ17: 0 | BL17: 0 | BM17: 0 | BN17: 0 | BO17: 0 | BV17: 0 | BX17: 0 | BY17: 0 | BZ17: 0 | CA17: 0
A18: 0 | C18: =Att!C666 -> 0 | D18: =Att!D666 -> 0 | E18: =Att!E666 -> 0 | F18: =Att!F666 -> - | G18: =Att!H666 -> 0 | N18: 0 | P18: 0 | Q18: 0 | R18: 0 | S18: 0 | Z18: 0 | AB18: 0 | AC18: 0 | AD18: 0 | AE18: 0 | AL18: 0 | AN18: 0 | AO18: 0 | AP18: 0 | AQ18: 0 | AX18: 0 | AZ18: 0 | BA18: 0 | BB18: 0 | BC18: 0 | BJ18: 0 | BL18: 0 | BM18: 0 | BN18: 0 | BO18: 0 | BV18: 0 | BX18: 0 | BY18: 0 | BZ18: 0 | CA18: 0
A19: 0 | C19: =Att!C667 -> 0 | D19: =Att!D667 -> 0 | E19: =Att!E667 -> 0 | F19: =Att!F667 -> - | G19: =Att!H667 -> 0 | N19: 0 | P19: 0 | Q19: 0 | R19: 0 | S19: 0 | Z19: 0 | AB19: 0 | AC19: 0 | AD19: 0 | AE19: 0 | AL19: 0 | AN19: 0 | AO19: 0 | AP19: 0 | AQ19: 0 | AX19: 0 | AZ19: 0 | BA19: 0 | BB19: 0 | BC19: 0 | BJ19: 0 | BL19: 0 | BM19: 0 | BN19: 0 | BO19: 0 | BV19: 0 | BX19: 0 | BY19: 0 | BZ19: 0 | CA19: 0
A20: 0 | C20: =Att!C668 -> 0 | D20: =Att!D668 -> 0 | E20: =Att!E668 -> 0 | F20: =Att!F668 -> - | G20: =Att!H668 -> 0 | N20: 0 | P20: 0 | Q20: 0 | R20: 0 | S20: 0 | Z20: 0 | AB20: 0 | AC20: 0 | AD20: 0 | AE20: 0 | AL20: 0 | AN20: 0 | AO20: 0 | AP20: 0 | AQ20: 0 | AX20: 0 | AZ20: 0 | BA20: 0 | BB20: 0 | BC20: 0 | BJ20: 0 | BL20: 0 | BM20: 0 | BN20: 0 | BO20: 0 | BV20: 0 | BX20: 0 | BY20: 0 | BZ20: 0 | CA20: 0
A21: 0 | C21: =Att!C669 -> 0 | D21: =Att!D669 -> 0 | E21: =Att!E669 -> 0 | F21: =Att!F669 -> - | G21: =Att!H669 -> 0 | N21: 0 | P21: 0 | Q21: 0 | R21: 0 | S21: 0 | Z21: 0 | AB21: 0 | AC21: 0 | AD21: 0 | AE21: 0 | AL21: 0 | AN21: 0 | AO21: 0 | AP21: 0 | AQ21: 0 | AX21: 0 | AZ21: 0 | BA21: 0 | BB21: 0 | BC21: 0 | BJ21: 0 | BL21: 0 | BM21: 0 | BN21: 0 | BO21: 0 | BV21: 0 | BX21: 0 | BY21: 0 | BZ21: 0 | CA21: 0
A22: 0 | C22: =Att!C670 -> 0 | D22: =Att!D670 -> 0 | E22: =Att!E670 -> 0 | F22: =Att!F670 -> - | G22: =Att!H670 -> 0 | N22: 0 | P22: 0 | Q22: 0 | R22: 0 | S22: 0 | Z22: 0 | AB22: 0 | AC22: 0 | AD22: 0 | AE22: 0 | AL22: 0 | AN22: 0 | AO22: 0 | AP22: 0 | AQ22: 0 | AX22: 0 | AZ22: 0 | BA22: 0 | BB22: 0 | BC22: 0 | BJ22: 0 | BL22: 0 | BM22: 0 | BN22: 0 | BO22: 0 | BV22: 0 | BX22: 0 | BY22: 0 | BZ22: 0 | CA22: 0
A23: 0 | C23: =Att!C671 -> 0 | D23: =Att!D671 -> 0 | E23: =Att!E671 -> 0 | F23: =Att!F671 -> - | G23: =Att!H671 -> 0 | N23: 0 | P23: =SUM(H23,I23,J23,K23,N23,O23) -> 0 | Q23: 0 | R23: 0 | S23: 0 | Z23: 0 | AB23: =SUM(T23,U23,V23,W23,Z23,AA23) -> 0 | AC23: 0 | AD23: 0 | AE23: 0 | AL23: 0 | AN23: 0 | AO23: 0 | AP23: 0 | AQ23: 0 | AX23: 0 | AZ23: =SUM(AR23,AS23,AT23,AU23,AX23,AY23) -> 0 | BA23: 0 | BB23: 0 | BC23: 0 | BJ23: 0 | BL23: 0 | BM23: 0 | BN23: 0 | BO23: 0 | BV23: 0 | BX23: 0 | BY23: 0 | BZ23: 0 | CA23: 0
A24: 0 | C24: =Att!C672 -> 0 | D24: =Att!D672 -> 0 | E24: =Att!E672 -> 0 | F24: =Att!F672 -> - | G24: =Att!H672 -> 0 | N24: 0 | P24: 0 | Q24: 0 | R24: 0 | S24: 0 | Z24: 0 | AB24: =SUM(T24,U24,V24,W24,Z24,AA24) -> 0 | AC24: 0 | AD24: 0 | AE24: 0 | AL24: 0 | AN24: 0 | AO24: 0 | AP24: 0 | AQ24: 0 | AX24: 0 | AZ24: =SUM(AR24,AS24,AT24,AU24,AX24,AY24) -> 0 | BA24: 0 | BB24: 0 | BC24: 0 | BJ24: 0 | BL24: 0 | BM24: 0 | BN24: 0 | BO24: 0 | BV24: 0 | BX24: 0 | BY24: 0 | BZ24: 0 | CA24: 0
A25: 0 | C25: =Att!C673 -> 0 | D25: =Att!D673 -> 0 | E25: =Att!E673 -> 0 | F25: =Att!F673 -> - | G25: =Att!H673 -> 0 | N25: 0 | P25: 0 | Q25: 0 | R25: 0 | S25: 0 | Z25: 0 | AB25: 0 | AC25: 0 | AD25: 0 | AE25: 0 | AL25: 0 | AN25: 0 | AO25: 0 | AP25: 0 | AQ25: 0 | AX25: 0 | AZ25: 0 | BA25: 0 | BB25: 0 | BC25: 0 | BJ25: 0 | BL25: 0 | BM25: 0 | BN25: 0 | BO25: 0 | BV25: 0 | BX25: 0 | BY25: 0 | BZ25: 0 | CA25: 0
A26: 0 | C26: =Att!C674 -> 0 | D26: =Att!D674 -> 0 | E26: =Att!E674 -> 0 | F26: =Att!F674 -> - | G26: =Att!H674 -> 0 | N26: 0 | P26: 0 | Q26: 0 | R26: 0 | S26: 0 | Z26: 0 | AB26: 0 | AC26: 0 | AD26: 0 | AE26: 0 | AL26: 0 | AN26: 0 | AO26: 0 | AP26: 0 | AQ26: 0 | AX26: 0 | AZ26: 0 | BA26: 0 | BB26: 0 | BC26: 0 | BJ26: 0 | BL26: 0 | BM26: 0 | BN26: 0 | BO26: 0 | BV26: 0 | BX26: 0 | BY26: 0 | BZ26: 0 | CA26: 0
A27: 0 | C27: =Att!C675 -> 0 | D27: =Att!D675 -> 0 | E27: =Att!E675 -> 0 | F27: =Att!F675 -> - | G27: =Att!H675 -> 0 | N27: 0 | P27: 0 | Q27: 0 | R27: 0 | S27: 0 | Z27: 0 | AB27: 0 | AC27: 0 | AD27: 0 | AE27: 0 | AL27: 0 | AN27: 0 | AO27: 0 | AP27: 0 | AQ27: 0 | AX27: 0 | AZ27: 0 | BA27: 0 | BB27: 0 | BC27: 0 | BJ27: 0 | BL27: 0 | BM27: 0 | BN27: 0 | BO27: 0 | BV27: 0 | BX27: 0 | BY27: 0 | BZ27: 0 | CA27: 0
A28: 0 | C28: =Att!C676 -> 0 | D28: =Att!D676 -> 0 | E28: =Att!E676 -> 0 | F28: =Att!F676 -> - | G28: =Att!H676 -> 0 | N28: 0 | P28: 0 | Q28: 0 | R28: 0 | S28: 0 | Z28: 0 | AB28: 0 | AC28: 0 | AD28: 0 | AE28: 0 | AL28: 0 | AN28: 0 | AO28: 0 | AP28: 0 | AQ28: 0 | AX28: 0 | AZ28: 0 | BA28: 0 | BB28: 0 | BC28: 0 | BJ28: 0 | BL28: 0 | BM28: 0 | BN28: 0 | BO28: 0 | BV28: 0 | BX28: 0 | BY28: =IF(AND(COUNT(BP28,BQ28,BR28,BS28,BV28,BW28)=6,MIN(BP28,BR28,BS28,BV28,BW28)>=35,BQ28>=20),"Pass",IF(COUNT(BP28,BQ28,BR28,BS28,BV28,BW28)<6,0,"Fail")) -> 0 | BZ28: =ROUND(BX28/6,0) -> 0 | CA28: 0
A29: 0 | C29: =Att!C677 -> 0 | D29: =Att!D677 -> 0 | E29: =Att!E677 -> 0 | F29: =Att!F677 -> - | G29: =Att!H677 -> 0 | N29: 0 | P29: 0 | Q29: 0 | R29: 0 | S29: 0 | Z29: 0 | AB29: 0 | AC29: 0 | AD29: 0 | AE29: 0 | AL29: 0 | AN29: 0 | AO29: 0 | AP29: 0 | AQ29: 0 | AX29: 0 | AZ29: 0 | BA29: 0 | BB29: 0 | BC29: 0 | BJ29: 0 | BL29: 0 | BM29: 0 | BN29: 0 | BO29: 0 | BV29: 0 | BX29: 0 | BY29: 0 | BZ29: 0 | CA29: 0
A30: 0 | C30: =Att!C678 -> 0 | D30: =Att!D678 -> 0 | E30: =Att!E678 -> 0 | F30: =Att!F678 -> - | G30: =Att!H678 -> 0 | N30: 0 | P30: 0 | Q30: 0 | R30: 0 | S30: 0 | Z30: 0 | AB30: 0 | AC30: 0 | AD30: 0 | AE30: 0 | AL30: 0 | AN30: 0 | AO30: 0 | AP30: 0 | AQ30: 0 | AX30: 0 | AZ30: 0 | BA30: 0 | BB30: 0 | BC30: 0 | BJ30: 0 | BL30: 0 | BM30: 0 | BN30: 0 | BO30: 0 | BV30: 0 | BX30: 0 | BY30: 0 | BZ30: 0 | CA30: 0
A31: 0 | C31: =Att!C679 -> 0 | D31: =Att!D679 -> 0 | E31: =Att!E679 -> 0 | F31: =Att!F679 -> - | G31: =Att!H679 -> 0 | N31: 0 | P31: 0 | Q31: 0 | R31: 0 | S31: 0 | Z31: 0 | AB31: 0 | AC31: 0 | AD31: 0 | AE31: 0 | AL31: 0 | AN31: 0 | AO31: 0 | AP31: 0 | AQ31: 0 | AX31: 0 | AZ31: 0 | BA31: 0 | BB31: 0 | BC31: 0 | BJ31: 0 | BL31: 0 | BM31: 0 | BN31: 0 | BO31: 0 | BV31: 0 | BX31: 0 | BY31: 0 | BZ31: 0 | CA31: 0
A32: 0 | C32: =Att!C680 -> 0 | D32: =Att!D680 -> 0 | E32: =Att!E680 -> 0 | F32: =Att!F680 -> - | G32: =Att!H680 -> 0 | N32: 0 | P32: 0 | Q32: 0 | R32: 0 | S32: 0 | Z32: 0 | AB32: 0 | AC32: 0 | AD32: 0 | AE32: 0 | AL32: 0 | AN32: 0 | AO32: 0 | AP32: 0 | AQ32: 0 | AX32: 0 | AZ32: 0 | BA32: 0 | BB32: 0 | BC32: 0 | BJ32: 0 | BL32: 0 | BM32: 0 | BN32: 0 | BO32: 0 | BV32: 0 | BX32: 0 | BY32: 0 | BZ32: 0 | CA32: 0
A33: 0 | C33: =Att!C681 -> 0 | D33: =Att!D681 -> 0 | E33: =Att!E681 -> 0 | F33: =Att!F681 -> - | G33: =Att!H681 -> 0 | N33: 0 | P33: 0 | Q33: 0 | R33: 0 | S33: 0 | Z33: 0 | AB33: 0 | AC33: 0 | AD33: 0 | AE33: 0 | AL33: 0 | AN33: 0 | AO33: 0 | AP33: 0 | AQ33: 0 | AX33: 0 | AZ33: 0 | BA33: 0 | BB33: 0 | BC33: 0 | BJ33: 0 | BL33: 0 | BM33: 0 | BN33: 0 | BO33: 0 | BV33: 0 | BX33: 0 | BY33: 0 | BZ33: 0 | CA33: 0
A34: 0 | C34: =Att!C682 -> 0 | D34: =Att!D682 -> 0 | E34: =Att!E682 -> 0 | F34: =Att!F682 -> - | G34: =Att!H682 -> 0 | N34: =IF(COUNT(L34,M34)=2,ROUND((L34+M34)/2,0),0) -> 0 | P34: 0 | Q34: 0 | R34: 0 | S34: 0 | Z34: 0 | AB34: 0 | AC34: 0 | AD34: 0 | AE34: 0 | AL34: 0 | AN34: 0 | AO34: 0 | AP34: 0 | AQ34: 0 | AX34: 0 | AZ34: 0 | BA34: 0 | BB34: 0 | BC34: 0 | BJ34: 0 | BL34: 0 | BM34: 0 | BN34: 0 | BO34: 0 | BV34: 0 | BX34: 0 | BY34: 0 | BZ34: 0 | CA34: 0
A35: 0 | C35: =Att!C683 -> 0 | D35: =Att!D683 -> 0 | E35: =Att!E683 -> 0 | F35: =Att!F683 -> - | G35: =Att!H683 -> 0 | N35: 0 | P35: 0 | Q35: 0 | R35: 0 | S35: 0 | Z35: 0 | AB35: 0 | AC35: 0 | AD35: 0 | AE35: 0 | AL35: 0 | AN35: 0 | AO35: 0 | AP35: 0 | AQ35: 0 | AX35: 0 | AZ35: 0 | BA35: 0 | BB35: 0 | BC35: 0 | BJ35: 0 | BL35: 0 | BM35: 0 | BN35: 0 | BO35: 0 | BV35: 0 | BX35: 0 | BY35: 0 | BZ35: 0 | CA35: 0
A36: 0 | C36: =Att!C684 -> 0 | D36: =Att!D684 -> 0 | E36: =Att!E684 -> 0 | F36: =Att!F684 -> - | G36: =Att!H684 -> 0 | N36: 0 | P36: 0 | Q36: 0 | R36: 0 | S36: 0 | Z36: 0 | AB36: 0 | AC36: 0 | AD36: 0 | AE36: 0 | AL36: 0 | AN36: 0 | AO36: 0 | AP36: 0 | AQ36: 0 | AX36: 0 | AZ36: 0 | BA36: 0 | BB36: 0 | BC36: 0 | BJ36: 0 | BL36: 0 | BM36: 0 | BN36: 0 | BO36: 0 | BV36: 0 | BX36: 0 | BY36: 0 | BZ36: 0 | CA36: 0
A37: 0 | C37: =Att!C685 -> 0 | D37: =Att!D685 -> 0 | E37: =Att!E685 -> 0 | F37: =Att!F685 -> - | G37: =Att!H685 -> 0 | N37: 0 | P37: 0 | Q37: 0 | R37: 0 | S37: 0 | Z37: 0 | AB37: 0 | AC37: 0 | AD37: 0 | AE37: 0 | AL37: 0 | AN37: 0 | AO37: 0 | AP37: 0 | AQ37: 0 | AX37: 0 | AZ37: 0 | BA37: 0 | BB37: 0 | BC37: 0 | BJ37: 0 | BL37: 0 | BM37: 0 | BN37: 0 | BO37: 0 | BV37: 0 | BX37: 0 | BY37: 0 | BZ37: 0 | CA37: 0
A38: 0 | C38: =Att!C686 -> 0 | D38: =Att!D686 -> 0 | E38: =Att!E686 -> 0 | F38: =Att!F686 -> - | G38: =Att!H686 -> 0 | N38: 0 | P38: 0 | Q38: 0 | R38: 0 | S38: 0 | Z38: 0 | AB38: 0 | AC38: 0 | AD38: 0 | AE38: 0 | AL38: 0 | AN38: 0 | AO38: 0 | AP38: 0 | AQ38: 0 | AX38: 0 | AZ38: 0 | BA38: 0 | BB38: 0 | BC38: 0 | BJ38: 0 | BL38: 0 | BM38: 0 | BN38: 0 | BO38: 0 | BV38: 0 | BX38: 0 | BY38: 0 | BZ38: 0 | CA38: 0
A39: 0 | C39: =Att!C687 -> 0 | D39: =Att!D687 -> 0 | E39: =Att!E687 -> 0 | F39: =Att!F687 -> - | G39: =Att!H687 -> 0 | N39: 0 | P39: 0 | Q39: 0 | R39: 0 | S39: 0 | Z39: 0 | AB39: 0 | AC39: 0 | AD39: 0 | AE39: 0 | AL39: 0 | AN39: 0 | AO39: 0 | AP39: 0 | AQ39: 0 | AX39: 0 | AZ39: 0 | BA39: 0 | BB39: 0 | BC39: 0 | BJ39: 0 | BL39: 0 | BM39: 0 | BN39: 0 | BO39: 0 | BV39: 0 | BX39: 0 | BY39: 0 | BZ39: 0 | CA39: 0
A40: 0 | C40: =Att!C688 -> 0 | D40: =Att!D688 -> 0 | E40: =Att!E688 -> 0 | F40: =Att!F688 -> - | G40: =Att!H688 -> 0 | N40: 0 | P40: 0 | Q40: 0 | R40: 0 | S40: 0 | Z40: 0 | AB40: 0 | AC40: 0 | AD40: 0 | AE40: 0 | AL40: 0 | AN40: 0 | AO40: 0 | AP40: 0 | AQ40: 0 | AX40: 0 | AZ40: 0 | BA40: 0 | BB40: 0 | BC40: 0 | BJ40: 0 | BL40: 0 | BM40: 0 | BN40: 0 | BO40: 0 | BV40: 0 | BX40: 0 | BY40: 0 | BZ40: 0 | CA40: 0
A41: 0 | C41: =Att!C689 -> 0 | D41: =Att!D689 -> 0 | E41: =Att!E689 -> 0 | F41: =Att!F689 -> - | G41: =Att!H689 -> 0 | N41: 0 | P41: 0 | Q41: 0 | R41: 0 | S41: 0 | Z41: 0 | AB41: 0 | AC41: 0 | AD41: 0 | AE41: 0 | AL41: 0 | AN41: 0 | AO41: 0 | AP41: 0 | AQ41: 0 | AX41: 0 | AZ41: 0 | BA41: 0 | BB41: 0 | BC41: 0 | BJ41: 0 | BL41: 0 | BM41: 0 | BN41: 0 | BO41: 0 | BV41: 0 | BX41: 0 | BY41: 0 | BZ41: 0 | CA41: 0
A42: 0 | C42: =Att!C690 -> 0 | D42: =Att!D690 -> 0 | E42: =Att!E690 -> 0 | F42: =Att!F690 -> - | G42: =Att!H690 -> 0 | N42: 0 | P42: 0 | Q42: 0 | R42: 0 | S42: 0 | Z42: 0 | AB42: 0 | AC42: 0 | AD42: 0 | AE42: 0 | AL42: 0 | AN42: 0 | AO42: 0 | AP42: 0 | AQ42: 0 | AX42: 0 | AZ42: 0 | BA42: 0 | BB42: 0 | BC42: 0 | BJ42: 0 | BL42: 0 | BM42: 0 | BN42: 0 | BO42: 0 | BV42: 0 | BX42: 0 | BY42: 0 | BZ42: 0 | CA42: 0
A43: 0 | C43: =Att!C691 -> 0 | D43: =Att!D691 -> 0 | E43: =Att!E691 -> 0 | F43: =Att!F691 -> - | G43: =Att!H691 -> 0 | N43: 0 | P43: 0 | Q43: 0 | R43: 0 | S43: 0 | Z43: 0 | AB43: 0 | AC43: 0 | AD43: 0 | AE43: 0 | AL43: 0 | AN43: 0 | AO43: 0 | AP43: 0 | AQ43: 0 | AX43: 0 | AZ43: 0 | BA43: 0 | BB43: 0 | BC43: 0 | BJ43: 0 | BL43: 0 | BM43: 0 | BN43: 0 | BO43: 0 | BV43: 0 | BX43: 0 | BY43: 0 | BZ43: 0 | CA43: 0
A44: 0 | C44: =Att!C692 -> 0 | D44: =Att!D692 -> 0 | E44: =Att!E692 -> 0 | F44: =Att!F692 -> - | G44: =Att!H692 -> 0 | N44: 0 | P44: 0 | Q44: 0 | R44: 0 | S44: 0 | Z44: 0 | AB44: 0 | AC44: 0 | AD44: 0 | AE44: 0 | AL44: 0 | AN44: 0 | AO44: 0 | AP44: 0 | AQ44: 0 | AX44: 0 | AZ44: 0 | BA44: 0 | BB44: 0 | BC44: 0 | BJ44: 0 | BL44: 0 | BM44: 0 | BN44: 0 | BO44: 0 | BV44: 0 | BX44: 0 | BY44: 0 | BZ44: 0 | CA44: 0
A45: 0 | C45: =Att!C693 -> 0 | D45: =Att!D693 -> 0 | E45: =Att!E693 -> 0 | F45: =Att!F693 -> - | G45: =Att!H693 -> 0 | N45: 0 | P45: 0 | Q45: 0 | R45: 0 | S45: 0 | Z45: 0 | AB45: 0 | AC45: 0 | AD45: 0 | AE45: 0 | AL45: 0 | AN45: 0 | AO45: 0 | AP45: 0 | AQ45: 0 | AX45: 0 | AZ45: 0 | BA45: 0 | BB45: 0 | BC45: 0 | BJ45: 0 | BL45: 0 | BM45: 0 | BN45: 0 | BO45: 0 | BV45: 0 | BX45: 0 | BY45: 0 | BZ45: 0 | CA45: 0
A46: 0 | C46: =Att!C694 -> 0 | D46: =Att!D694 -> 0 | E46: =Att!E694 -> 0 | F46: =Att!F694 -> - | G46: =Att!H694 -> 0 | N46: 0 | P46: 0 | Q46: 0 | R46: 0 | S46: 0 | Z46: 0 | AB46: 0 | AC46: 0 | AD46: 0 | AE46: 0 | AL46: 0 | AN46: 0 | AO46: 0 | AP46: 0 | AQ46: 0 | AX46: 0 | AZ46: 0 | BA46: 0 | BB46: 0 | BC46: 0 | BJ46: 0 | BL46: 0 | BM46: 0 | BN46: 0 | BO46: 0 | BV46: 0 | BX46: 0 | BY46: 0 | BZ46: 0 | CA46: 0
A47: 0 | C47: =Att!C695 -> 0 | D47: =Att!D695 -> 0 | E47: =Att!E695 -> 0 | F47: =Att!F695 -> - | G47: =Att!H695 -> 0 | N47: 0 | P47: 0 | Q47: 0 | R47: 0 | S47: 0 | Z47: 0 | AB47: 0 | AC47: 0 | AD47: 0 | AE47: 0 | AL47: 0 | AN47: 0 | AO47: 0 | AP47: 0 | AQ47: 0 | AX47: 0 | AZ47: 0 | BA47: 0 | BB47: 0 | BC47: 0 | BJ47: 0 | BL47: 0 | BM47: 0 | BN47: 0 | BO47: 0 | BV47: 0 | BX47: 0 | BY47: 0 | BZ47: 0 | CA47: 0
A48: 0 | C48: =Att!C696 -> 0 | D48: =Att!D696 -> 0 | E48: =Att!E696 -> 0 | F48: =Att!F696 -> - | G48: =Att!H696 -> 0 | N48: 0 | P48: 0 | Q48: 0 | R48: 0 | S48: 0 | Z48: 0 | AB48: 0 | AC48: 0 | AD48: 0 | AE48: 0 | AL48: 0 | AN48: 0 | AO48: 0 | AP48: 0 | AQ48: 0 | AX48: 0 | AZ48: 0 | BA48: 0 | BB48: 0 | BC48: 0 | BJ48: 0 | BL48: 0 | BM48: 0 | BN48: 0 | BO48: 0 | BV48: 0 | BX48: 0 | BY48: 0 | BZ48: 0 | CA48: 0
A49: 0 | C49: =Att!C697 -> 0 | D49: =Att!D697 -> 0 | E49: =Att!E697 -> 0 | F49: =Att!F697 -> - | G49: =Att!H697 -> 0 | N49: 0 | P49: 0 | Q49: 0 | R49: 0 | S49: 0 | Z49: 0 | AB49: 0 | AC49: 0 | AD49: 0 | AE49: 0 | AL49: 0 | AN49: 0 | AO49: 0 | AP49: 0 | AQ49: 0 | AX49: 0 | AZ49: 0 | BA49: 0 | BB49: 0 | BC49: 0 | BJ49: 0 | BL49: 0 | BM49: 0 | BN49: 0 | BO49: 0 | BV49: 0 | BX49: 0 | BY49: 0 | BZ49: 0 | CA49: 0
A50: 0 | C50: =Att!C698 -> 0 | D50: =Att!D698 -> 0 | E50: =Att!E698 -> 0 | F50: =Att!F698 -> - | G50: =Att!H698 -> 0 | N50: 0 | P50: 0 | Q50: 0 | R50: 0 | S50: 0 | Z50: 0 | AB50: 0 | AC50: 0 | AD50: 0 | AE50: 0 | AL50: 0 | AN50: 0 | AO50: 0 | AP50: 0 | AQ50: 0 | AX50: 0 | AZ50: 0 | BA50: 0 | BB50: 0 | BC50: 0 | BJ50: 0 | BL50: 0 | BM50: 0 | BN50: 0 | BO50: 0 | BV50: 0 | BX50: 0 | BY50: 0 | BZ50: 0 | CA50: 0
A51: 0 | C51: =Att!C699 -> 0 | D51: =Att!D699 -> 0 | E51: =Att!E699 -> 0 | F51: =Att!F699 -> - | G51: =Att!H699 -> 0 | N51: 0 | P51: 0 | Q51: 0 | R51: 0 | S51: 0 | Z51: 0 | AB51: 0 | AC51: 0 | AD51: 0 | AE51: 0 | AL51: 0 | AN51: 0 | AO51: 0 | AP51: 0 | AQ51: 0 | AX51: 0 | AZ51: 0 | BA51: 0 | BB51: 0 | BC51: 0 | BJ51: 0 | BL51: 0 | BM51: 0 | BN51: 0 | BO51: 0 | BV51: 0 | BX51: 0 | BY51: 0 | BZ51: 0 | CA51: 0
A52: 0 | C52: =Att!C700 -> 0 | D52: =Att!D700 -> 0 | E52: =Att!E700 -> 0 | F52: =Att!F700 -> - | G52: =Att!H700 -> 0 | N52: 0 | P52: 0 | Q52: 0 | R52: 0 | S52: 0 | Z52: 0 | AB52: 0 | AC52: 0 | AD52: 0 | AE52: 0 | AL52: 0 | AN52: 0 | AO52: 0 | AP52: 0 | AQ52: 0 | AX52: 0 | AZ52: 0 | BA52: 0 | BB52: 0 | BC52: 0 | BJ52: 0 | BL52: 0 | BM52: 0 | BN52: 0 | BO52: 0 | BV52: 0 | BX52: 0 | BY52: 0 | BZ52: 0 | CA52: 0
A53: 0 | C53: =Att!C701 -> 0 | D53: =Att!D701 -> 0 | E53: =Att!E701 -> 0 | F53: =Att!F701 -> - | G53: =Att!H701 -> 0 | N53: 0 | P53: 0 | Q53: 0 | R53: 0 | S53: 0 | Z53: 0 | AB53: 0 | AC53: 0 | AD53: 0 | AE53: 0 | AL53: 0 | AN53: 0 | AO53: 0 | AP53: 0 | AQ53: 0 | AX53: 0 | AZ53: 0 | BA53: 0 | BB53: 0 | BC53: 0 | BJ53: 0 | BL53: 0 | BM53: 0 | BN53: 0 | BO53: 0 | BV53: 0 | BX53: 0 | BY53: 0 | BZ53: 0 | CA53: 0
A54: 0 | C54: =Att!C702 -> 0 | D54: =Att!D702 -> 0 | E54: =Att!E702 -> 0 | F54: =Att!F702 -> - | G54: =Att!H702 -> 0 | N54: 0 | P54: 0 | Q54: 0 | R54: 0 | S54: 0 | Z54: 0 | AB54: 0 | AC54: 0 | AD54: 0 | AE54: 0 | AL54: 0 | AN54: 0 | AO54: 0 | AP54: 0 | AQ54: 0 | AX54: 0 | AZ54: 0 | BA54: 0 | BB54: 0 | BC54: 0 | BJ54: 0 | BL54: 0 | BM54: 0 | BN54: 0 | BO54: 0 | BV54: 0 | BX54: 0 | BY54: 0 | BZ54: 0 | CA54: 0
A55: 0 | C55: =Att!C703 -> 0 | D55: =Att!D703 -> 0 | E55: =Att!E703 -> 0 | F55: =Att!F703 -> - | G55: =Att!H703 -> 0 | N55: 0 | P55: 0 | Q55: 0 | R55: 0 | S55: 0 | Z55: 0 | AB55: 0 | AC55: 0 | AD55: 0 | AE55: 0 | AL55: 0 | AN55: 0 | AO55: 0 | AP55: 0 | AQ55: 0 | AX55: 0 | AZ55: 0 | BA55: 0 | BB55: 0 | BC55: 0 | BJ55: 0 | BL55: 0 | BM55: 0 | BN55: 0 | BO55: 0 | BV55: 0 | BX55: 0 | BY55: 0 | BZ55: 0 | CA55: 0
A56: 0 | C56: =Att!C704 -> 0 | D56: =Att!D704 -> 0 | E56: =Att!E704 -> 0 | F56: =Att!F704 -> - | G56: =Att!H704 -> 0 | N56: 0 | P56: 0 | Q56: 0 | R56: 0 | S56: 0 | Z56: 0 | AB56: 0 | AC56: 0 | AD56: 0 | AE56: 0 | AL56: 0 | AN56: 0 | AO56: 0 | AP56: 0 | AQ56: 0 | AX56: 0 | AZ56: 0 | BA56: 0 | BB56: 0 | BC56: 0 | BJ56: 0 | BL56: 0 | BM56: 0 | BN56: 0 | BO56: 0 | BV56: 0 | BX56: 0 | BY56: 0 | BZ56: 0 | CA56: 0
A57: 0 | C57: =Att!C705 -> 0 | D57: =Att!D705 -> 0 | E57: =Att!E705 -> 0 | F57: =Att!F705 -> - | G57: =Att!H705 -> 0 | N57: 0 | P57: 0 | Q57: 0 | R57: 0 | S57: 0 | Z57: 0 | AB57: 0 | AC57: 0 | AD57: 0 | AE57: 0 | AL57: 0 | AN57: 0 | AO57: 0 | AP57: 0 | AQ57: 0 | AX57: 0 | AZ57: 0 | BA57: 0 | BB57: 0 | BC57: 0 | BJ57: 0 | BL57: 0 | BM57: 0 | BN57: 0 | BO57: 0 | BV57: 0 | BX57: 0 | BY57: 0 | BZ57: 0 | CA57: 0
A58: 0 | C58: =Att!C706 -> 0 | D58: =Att!D706 -> 0 | E58: =Att!E706 -> 0 | F58: =Att!F706 -> - | G58: =Att!H706 -> 0 | N58: 0 | P58: 0 | Q58: 0 | R58: 0 | S58: 0 | Z58: 0 | AB58: 0 | AC58: 0 | AD58: 0 | AE58: 0 | AL58: 0 | AN58: 0 | AO58: 0 | AP58: 0 | AQ58: 0 | AX58: 0 | AZ58: 0 | BA58: 0 | BB58: 0 | BC58: 0 | BJ58: 0 | BL58: 0 | BM58: 0 | BN58: 0 | BO58: 0 | BV58: 0 | BX58: 0 | BY58: 0 | BZ58: 0 | CA58: 0
A59: 0 | C59: =Att!C707 -> 0 | D59: =Att!D707 -> 0 | E59: =Att!E707 -> 0 | F59: =Att!F707 -> - | G59: =Att!H707 -> 0 | N59: 0 | P59: 0 | Q59: 0 | R59: 0 | S59: 0 | Z59: 0 | AB59: 0 | AC59: 0 | AD59: 0 | AE59: 0 | AL59: 0 | AN59: 0 | AO59: 0 | AP59: 0 | AQ59: 0 | AX59: 0 | AZ59: 0 | BA59: 0 | BB59: 0 | BC59: 0 | BJ59: 0 | BL59: 0 | BM59: 0 | BN59: 0 | BO59: 0 | BV59: 0 | BX59: 0 | BY59: 0 | BZ59: 0 | CA59: 0
A60: 0 | C60: =Att!C708 -> 0 | D60: =Att!D708 -> 0 | E60: =Att!E708 -> 0 | F60: =Att!F708 -> - | G60: =Att!H708 -> 0 | N60: 0 | P60: 0 | Q60: 0 | R60: 0 | S60: 0 | Z60: 0 | AB60: 0 | AC60: 0 | AD60: 0 | AE60: 0 | AL60: 0 | AN60: 0 | AO60: 0 | AP60: 0 | AQ60: 0 | AX60: 0 | AZ60: 0 | BA60: 0 | BB60: 0 | BC60: 0 | BJ60: 0 | BL60: 0 | BM60: 0 | BN60: 0 | BO60: 0 | BV60: 0 | BX60: 0 | BY60: 0 | BZ60: 0 | CA60: 0
A61: 0 | C61: =Att!C709 -> 0 | D61: =Att!D709 -> 0 | E61: =Att!E709 -> 0 | F61: =Att!F709 -> - | G61: =Att!H709 -> 0 | N61: 0 | P61: 0 | Q61: 0 | R61: 0 | S61: 0 | Z61: 0 | AB61: 0 | AC61: 0 | AD61: 0 | AE61: 0 | AL61: 0 | AN61: 0 | AO61: 0 | AP61: 0 | AQ61: 0 | AX61: 0 | AZ61: 0 | BA61: 0 | BB61: 0 | BC61: 0 | BJ61: 0 | BL61: 0 | BM61: 0 | BN61: 0 | BO61: 0 | BV61: 0 | BX61: 0 | BY61: 0 | BZ61: 0 | CA61: 0
A62: 0 | C62: =Att!C710 -> 0 | D62: =Att!D710 -> 0 | E62: =Att!E710 -> 0 | F62: =Att!F710 -> - | G62: =Att!H710 -> 0 | N62: 0 | P62: 0 | Q62: 0 | R62: 0 | S62: 0 | Z62: 0 | AB62: 0 | AC62: 0 | AD62: 0 | AE62: 0 | AL62: 0 | AN62: 0 | AO62: 0 | AP62: 0 | AQ62: 0 | AX62: 0 | AZ62: 0 | BA62: 0 | BB62: 0 | BC62: 0 | BJ62: 0 | BL62: 0 | BM62: 0 | BN62: 0 | BO62: 0 | BV62: 0 | BX62: 0 | BY62: 0 | BZ62: 0 | CA62: 0
A63: 0 | C63: =Att!C711 -> 0 | D63: =Att!D711 -> 0 | E63: =Att!E711 -> 0 | F63: =Att!F711 -> - | G63: =Att!H711 -> 0 | N63: 0 | P63: 0 | Q63: 0 | R63: 0 | S63: 0 | Z63: 0 | AB63: 0 | AC63: 0 | AD63: 0 | AE63: 0 | AL63: 0 | AN63: 0 | AO63: 0 | AP63: 0 | AQ63: 0 | AX63: 0 | AZ63: 0 | BA63: 0 | BB63: 0 | BC63: 0 | BJ63: 0 | BL63: 0 | BM63: 0 | BN63: 0 | BO63: 0 | BV63: 0 | BX63: 0 | BY63: 0 | BZ63: 0 | CA63: 0
